Workbook

Sheet Notes
A1: Notes: Agent number includes partners who were EC's previously
A2: If 2017 is greater than or equal to the contract start year and 2017 is less than or equal to contract end year and 01/01/2017 <> Contract End Date, then contract must be LIVE that year
A3: If 2017 is greater than or equal to the contract start year and 2017 is less than or equal to contract end year and 01/01/2017 <> Contract End Date, then populate with the Contract Type that year
A4: If a contract changed from EC to Agent exactly half way through year, it will choose the latter, as it sorts by max date
A5: For purpose of this report, if a partner is ACTIVE during a given time, then it must be LIVE, even if recruitment is outside of contract years
A6: Contracts signed August onwards, but not ACTIVE, make LIVE the following year as not enough time to recruit for Sept intake
A7: Exclude agents signed to Ducasse only
A8: 2020.2 = Applied - Student

Sheet TABLES >>>

Sheet Count of Partners
B1: Live and Active Partners | Q1: Active Number of Agents
B2: 2017 | E2: 2018 | H2: 2019 | K2: 2020 | O2: Signed Contract Year | P2: No. of Agents | Q2: 2017 | R2: 2018 | S2: 2019 | T2: 2020 | U2: Active 2019 / Inactive 2020 | V2: Inactive 2019 / Active 2020 | W2: Active 2019 - 2020
A3: Channel | B3: Active | C3: Total | D3: % Active | E3: Active | F3: Total | G3: % Active | H3: Active | I3: Total | J3: % Active | K3: Active | L3: Total | M3: % Active | O3: Pre-2017 | P3: =COUNTIFS(Indirect!AI:AI,"Agent",Indirect!AQ:AQ,"<"&2017,Indirect!AR:AR,"0") -> 0 | Q3: =COUNTIFS(Indirect!AI:AI,"Agent",Indirect!AQ:AQ,"2016",Indirect!AR:AR,"0",Indirect!H:H,"Active")+COUNTIFS(Indirect!AI:AI,"Agent",Indirect!AQ:AQ,"2015",Indirect!AR:AR,"0",Indirect!H:H,"Active")+COUNTIFS(Indirect!AI:AI,"Agent",Indirect!AQ:AQ,"2014",Indirect!AR:AR,"0",Indirect!H:H,"Active")+COUNTIFS(Indirect!AI:AI,"Agent",Indirect!AQ:AQ,"2013",Indirect!AR:AR,"0",Indirect!H:H,"Active")+COUNTIFS(Indirect!AI:AI,"Agent",Indirect!AQ:AQ,"2012",Indirect!AR:AR,"0",Indirect!H:H,"Active")+COUNTIFS(Indirect!AI:AI,"Agent",Indirect!AQ:AQ,"2009",Indirect!AR:AR,"0",Indirect!H:H,"Active") -> 0 | R3: =COUNTIFS(Indirect!AI:AI,"Agent",Indirect!AQ:AQ,"2016",Indirect!AR:AR,"0",Indirect!I:I,"Active")+COUNTIFS(Indirect!AI:AI,"Agent",Indirect!AQ:AQ,"2015",Indirect!AR:AR,"0",Indirect!I:I,"Active")+COUNTIFS(Indirect!AI:AI,"Agent",Indirect!AQ:AQ,"2014",Indirect!AR:AR,"0",Indirect!I:I,"Active")+COUNTIFS(Indirect!AI:AI,"Agent",Indirect!AQ:AQ,"2013",Indirect!AR:AR,"0",Indirect!I:I,"Active")+COUNTIFS(Indirect!AI:AI,"Agent",Indirect!AQ:AQ,"2012",Indirect!AR:AR,"0",Indirect!I:I,"Active")+COUNTIFS(Indirect!AI:AI,"Agent",Indirect!AQ:AQ,"2009",Indirect!AR:AR,"0",Indirect!I:I,"Active") -> 0 | S3: =COUNTIFS(Indirect!AI:AI,"Agent",Indirect!AQ:AQ,"2016",Indirect!AR:AR,"0",Indirect!J:J,"Active")+COUNTIFS(Indirect!AI:AI,"Agent",Indirect!AQ:AQ,"2015",Indirect!AR:AR,"0",Indirect!J:J,"Active")+COUNTIFS(Indirect!AI:AI,"Agent",Indirect!AQ:AQ,"2014",Indirect!AR:AR,"0",Indirect!J:J,"Active")+COUNTIFS(Indirect!AI:AI,"Agent",Indirect!AQ:AQ,"2013",Indirect!AR:AR,"0",Indirect!J:J,"Active")+COUNTIFS(Indirect!AI:AI,"Agent",Indirect!AQ:AQ,"2012",Indirect!AR:AR,"0",Indirect!J:J,"Active")+COUNTIFS(Indirect!AI:AI,"Agent",Indirect!AQ:AQ,"2009",Indirect!AR:AR,"0",Indirect!J:J,"Active") -> 1 | T3: =COUNTIFS(Indirect!AI:AI,"Agent",Indirect!AQ:AQ,"2016",Indirect!AR:AR,"0",Indirect!K:K,"Active")+COUNTIFS(Indirect!AI:AI,"Agent",Indirect!AQ:AQ,"2015",Indirect!AR:AR,"0",Indirect!K:K,"Active")+COUNTIFS(Indirect!AI:AI,"Agent",Indirect!AQ:AQ,"2014",Indirect!AR:AR,"0",Indirect!K:K,"Active")+COUNTIFS(Indirect!AI:AI,"Agent",Indirect!AQ:AQ,"2013",Indirect!AR:AR,"0",Indirect!K:K,"Active")+COUNTIFS(Indirect!AI:AI,"Agent",Indirect!AQ:AQ,"2012",Indirect!AR:AR,"0",Indirect!K:K,"Active")+COUNTIFS(Indirect!AI:AI,"Agent",Indirect!AQ:AQ,"2009",Indirect!AR:AR,"0",Indirect!K:K,"Active") -> 0 | U3: =COUNTIFS(Indirect!AI:AI,"Agent",Indirect!AQ:AQ,"<"&2017,Indirect!J:J,"Active",Indirect!K:K,"inActive") -> 0 | V3: =COUNTIFS(Indirect!AI:AI,"Agent",Indirect!AQ:AQ,"<"&2017,Indirect!J:J,"inActive",Indirect!K:K,"Active") -> 0 | W3: =COUNTIFS(Indirect!AI:AI,"Agent",Indirect!AQ:AQ,"<"&2017,Indirect!J:J,"Active",Indirect!K:K,"Active") -> 0
A4: Agent | B4: =COUNTIFS(Indirect!AI:AI,"Agent",Indirect!H:H,"Active") -> 9 | C4: =COUNTIFS(Indirect!AI:AI,"Agent") -> 26 | D4: =B4/C4 -> 35% | E4: =COUNTIFS(Indirect!AJ:AJ,"Agent",Indirect!I:I,"Active") -> 29 | F4: =COUNTIFS(Indirect!AJ:AJ,"Agent") -> 70 | G4: =E4/F4 -> 41% | H4: =COUNTIFS(Indirect!AK:AK,"Agent",Indirect!J:J,"Active") -> 52 | I4: =COUNTIFS(Indirect!AK:AK,"Agent") -> 156 | J4: =H4/I4 -> 33% | K4: =COUNTIFS(Indirect!AL:AL,"Agent",Indirect!K:K,"Active") -> 71 | L4: =COUNTIFS(Indirect!AL:AL,"Agent") -> 249 | M4: =K4/L4 -> 29% | O4: Year 2017 | P4: =COUNTIFS(Indirect!AI:AI,"Agent",Indirect!AQ:AQ,"2017",Indirect!AR:AR,"0") -> 20 | Q4: =COUNTIFS(Indirect!AI:AI,"Agent",Indirect!AQ:AQ,"2017",Indirect!H:H,"Active") -> 7 | R4: =COUNTIFS(Indirect!AJ:AJ,"Agent",Indirect!AQ:AQ,"2017",Indirect!I:I,"Active") -> 9 | S4: =COUNTIFS(Indirect!AK:AK,"Agent",Indirect!AQ:AQ,"2017",Indirect!J:J,"Active") -> 9 | T4: =COUNTIFS(Indirect!AL:AL,"Agent",Indirect!AQ:AQ,"2017",Indirect!K:K,"Active") -> 4 | U4: =COUNTIFS(Indirect!AI:AI,"Agent",Indirect!AQ:AQ,"2017",Indirect!J:J,"Active",Indirect!K:K,"inActive") -> 4 | V4: =COUNTIFS(Indirect!AI:AI,"Agent",Indirect!AQ:AQ,"2017",Indirect!J:J,"inActive",Indirect!K:K,"Active") -> 0 | W4: =COUNTIFS(Indirect!AI:AI,"Agent",Indirect!AQ:AQ,"2017",Indirect!J:J,"Active",Indirect!K:K,"Active") -> 3
A5: Gold Partner | B5: =COUNTIFS(Indirect!AI:AI,"EC",Indirect!H:H,"Active") -> 79 | C5: =COUNTIFS(Indirect!AI:AI,"EC") -> 133 | D5: =B5/C5 -> 59% | E5: =COUNTIFS(Indirect!AJ:AJ,"EC",Indirect!I:I,"Active") -> 70 | F5: =COUNTIFS(Indirect!AJ:AJ,"EC") -> 112 | G5: =E5/F5 -> 63% | H5: =COUNTIFS(Indirect!AK:AK,"EC",Indirect!J:J,"Active") -> 61 | I5: =COUNTIFS(Indirect!AK:AK,"EC") -> 86 | J5: =H5/I5 -> 71% | K5: =COUNTIFS(Indirect!AL:AL,"EC",Indirect!K:K,"Active") -> 51 | L5: =COUNTIFS(Indirect!AL:AL,"EC") -> 58 | M5: =K5/L5 -> 88% | O5: Year 2018 | P5: =COUNTIFS(Indirect!$AJ:$AJ,"Agent",Indirect!$AQ:$AQ,"2018",Indirect!AR:AR,0) -> 42 | Q5: =COUNTIFS(Indirect!$AI:$AI,"Agent",Indirect!$AQ:$AQ,"2018",Indirect!H:H,"Active") -> 1 | R5: =COUNTIFS(Indirect!$AJ:$AJ,"Agent",Indirect!$AQ:$AQ,"2018",Indirect!I:I,"Active") -> 15 | S5: =COUNTIFS(Indirect!$AK:$AK,"Agent",Indirect!$AQ:$AQ,"2018",Indirect!J:J,"Active") -> 18 | T5: =COUNTIFS(Indirect!$AL:$AL,"Agent",Indirect!$AQ:$AQ,"2018",Indirect!K:K,"Active") -> 16 | U5: =COUNTIFS(Indirect!AJ:AJ,"Agent",Indirect!AQ:AQ,"2018",Indirect!J:J,"Active",Indirect!K:K,"inActive") -> 8 | V5: =COUNTIFS(Indirect!AJ:AJ,"Agent",Indirect!AQ:AQ,"2018",Indirect!J:J,"inActive",Indirect!K:K,"Active") -> 6 | W5: =COUNTIFS(Indirect!AJ:AJ,"Agent",Indirect!AQ:AQ,"2018",Indirect!J:J,"Active",Indirect!K:K,"Active") -> 10
A6: Total | B6: =SUM(B4:B5) -> 88 | C6: =SUM(C4:C5) -> 159 | D6: 55% | E6: =SUM(E4:E5) -> 99 | F6: 182 | G6: =E6/F6 -> 54% | H6: 113 | I6: 242 | J6: 47% | K6: 122 | L6: =SUM(L4:L5) -> 307 | M6: 40% | O6: Year 2019 | P6: =COUNTIFS(Indirect!$AK:$AK,"Agent",Indirect!$AQ:$AQ,"2019",Indirect!AR:AR,"0") -> 84 | Q6: =COUNTIFS(Indirect!$AI:$AI,"Agent",Indirect!$AQ:$AQ,"2019",Indirect!H:H,"Active") -> 0 | R6: =COUNTIFS(Indirect!$AJ:$AJ,"Agent",Indirect!$AQ:$AQ,"2019",Indirect!I:I,"Active") -> 1 | S6: =COUNTIFS(Indirect!$AK:$AK,"Agent",Indirect!$AQ:$AQ,"2019",Indirect!J:J,"Active") -> 18 | T6: =COUNTIFS(Indirect!$AL:$AL,"Agent",Indirect!$AQ:$AQ,"2019",Indirect!K:K,"Active") -> 14 | U6: =COUNTIFS(Indirect!AK:AK,"Agent",Indirect!AQ:AQ,"2019",Indirect!J:J,"Active",Indirect!K:K,"inActive") -> 16 | V6: =COUNTIFS(Indirect!AK:AK,"Agent",Indirect!AQ:AQ,"2019",Indirect!J:J,"inActive",Indirect!K:K,"Active") -> 12 | W6: =COUNTIFS(Indirect!AK:AK,"Agent",Indirect!AQ:AQ,"2019",Indirect!J:J,"Active",Indirect!K:K,"Active") -> 2
A7: *Does not exclude Ducasse only contracts - pending | O7: Year 2020 | P7: =COUNTIFS(Indirect!$AL:$AL,"Agent",Indirect!$AQ:$AQ,"2020",Indirect!AR:AR,"0") -> 74 | Q7: =COUNTIFS(Indirect!$AI:$AI,"Agent",Indirect!$AQ:$AQ,"2020",Indirect!H:H,"Active") -> 0 | R7: =COUNTIFS(Indirect!$AJ:$AJ,"Agent",Indirect!$AQ:$AQ,"2020",Indirect!I:I,"Active") -> 0 | S7: =COUNTIFS(Indirect!$AK:$AK,"Agent",Indirect!$AQ:$AQ,"2020",Indirect!J:J,"Active") -> 0 | T7: =COUNTIFS(Indirect!$AL:$AL,"Agent",Indirect!$AQ:$AQ,"2020",Indirect!K:K,"Active") -> 15 | U7: =COUNTIFS(Indirect!AL:AL,"Agent",Indirect!AQ:AQ,"2020",Indirect!J:J,"Active",Indirect!K:K,"inActive") -> 0 | V7: =COUNTIFS(Indirect!AL:AL,"Agent",Indirect!AQ:AQ,"2020",Indirect!J:J,"inActive",Indirect!K:K,"Active") -> 15 | W7: =COUNTIFS(Indirect!AL:AL,"Agent",Indirect!AQ:AQ,"2020",Indirect!J:J,"Active",Indirect!K:K,"Active") -> 0
O8: Total | P8: =SUM(P3:P7) -> 220 | Q8: =SUM(Q4:Q7) -> 8 | R8: 25 | S8: 45 | T8: 49 | U8: =SUM(U4:U7) -> 28 | V8: =SUM(V4:V7) -> 33 | W8: 15
O9: *Does not include Agents previously Gold Partners

Sheet Recruitment Summary
A1: TABLE 1 | B1: Recruitment 2017 - 2020 | P1: 2019.2 | R1: 2020.2 | T1: 2020.2 Growth
A2: Recruitment Channel | B2: 2017.1 | C2: 2017.2 | D2: 2017 Total | E2: 2018.1 | F2: 2018.2 | G2: 2018 Total | H2: 2019.1 | I2: 2019.2 | J2: 2019 Total | K2: 2020.1 | L2: 2020.2 | M2: 2020 Total | N2: 2020.2 YoY | P2: Contract Switch | Q2: New Activation | R2: Contract Switch | S2: New Activation | T2: 2020.2 YoY % | U2: ex Contract Switch | V2: ex New Activation | W2: Contract Switch | X2: New Activation | Y2: Organic | Z2: 2020.2 Organic
A3: Agent | B3: =SUMIF(Indirect!AI:AI,"Agent",Indirect!N:N) -> 1 | C3: =SUMIF(Indirect!AI:AI,"Agent",Indirect!O:O) -> 9 | D3: =B3+C3 -> 10 | E3: =SUMIF(Indirect!AJ:AJ,"Agent",Indirect!Q:Q) -> 8 | F3: =SUMIF(Indirect!AJ:AJ,"Agent",Indirect!R:R) -> 42 | G3: =E3+F3 -> 50 | H3: =SUMIF(Indirect!AK:AK,"Agent",Indirect!V:V) -> 38 | I3: =SUMIF(Indirect!AK:AK,"Agent",Indirect!Y:Y) -> 114 | J3: =H3+I3 -> 152 | K3: =SUMIF(Indirect!AL:AL,"Agent",Indirect!AA:AA) -> 48 | L3: =SUMIF(Indirect!AL:AL,"Agent",Indirect!AB:AB) -> 188 | M3: =K3+L3 -> 236 | N3: =L3/I3-1 -> 65% | P3: =SUMIFS(Indirect!Y:Y,Indirect!AK:AK,"Agent",Indirect!AR:AR,"1",Indirect!AS:AS,"2019") -> 0 | Q3: =SUMIFS(Indirect!Y:Y,Indirect!$AK:$AK,"Agent",Indirect!$AJ:$AJ,"EC") -> 28 | R3: =SUMIFS(Indirect!AB:AB,Indirect!AL:AL,"Agent",Indirect!AR:AR,"1",Indirect!AS:AS,"2020") -> 0 | S3: =SUMIFS(Indirect!AB:AB,Indirect!$AL:$AL,"Agent",Indirect!$AK:$AK,"EC") -> 76 | T3: =W3+X3+Y3 -> 65% | U3: =((L3-R3)/(I3-P3))-1 -> 65% | V3: =((L3-S3)/(I3-Q3))-1 -> 30% | W3: =((R3-P3)/(L3-I3)*N3) -> 0% | X3: =((S3-Q3)/(L3-I3))*N3 -> 42% | Y3: =((((L3-S3-R3)-(I3-Q3-P3)))/(L3-I3))*N3 -> 23% | Z3: =((L3-S3-R3)/(I3-Q3-P3))-1 -> 30%
A4: Gold Partner | B4: =SUMIF(Indirect!AI:AI,"EC",Indirect!N:N) -> 244 | C4: =SUMIF(Indirect!AI:AI,"EC",Indirect!O:O) -> 717 | D4: =B4+C4 -> 961 | E4: =SUMIF(Indirect!AJ:AJ,"EC",Indirect!Q:Q) -> 221 | F4: =SUMIF(Indirect!AJ:AJ,"EC",Indirect!R:R) -> 723 | G4: =E4+F4 -> 944 | H4: =SUMIF(Indirect!AK:AK,"EC",Indirect!V:V) -> 242 | I4: =SUMIF(Indirect!AK:AK,"EC",Indirect!Y:Y) -> 735 | J4: =H4+I4 -> 977 | K4: =SUMIF(Indirect!AL:AL,"EC",Indirect!AA:AA) -> 225 | L4: =SUMIF(Indirect!AL:AL,"EC",Indirect!AB:AB) -> 660 | M4: =K4+L4 -> 885 | N4: =L4/I4-1 -> -10% | P4: =SUMIFS(Indirect!Y:Y,Indirect!AK:AK,"EC",Indirect!AR:AR,"1",Indirect!AS:AS,"2019") -> 0 | Q4: =SUMIFS(Indirect!Y:Y,Indirect!$AK:$AK,"EC",Indirect!$AQ:$AQ,"2019") -> 4 | R4: =SUMIFS(Indirect!AB:AB,Indirect!AL:AL,"EC",Indirect!AR:AR,"1",Indirect!AS:AS,"2020") -> 0 | S4: =SUMIFS(Indirect!AB:AB,Indirect!$AL:$AL,"EC",Indirect!$AQ:$AQ,"2020") -> 6 | T4: =L4/I4-1 -> -10% | U4: =((L4-R4)/(I4-P4))-1 -> -10% | V4: =((L4-S4)/(I4-Q4))-1 -> -11% | W4: =((R4-P4)/(L4-I4)*N4) -> 0% | X4: =((S4-Q4)/(L4-I4))*N4 -> 0% | Y4: =((((L4-S4-R4)-(I4-Q4-P4)))/(L4-I4))*N4 -> -10% | Z4: =((L4-S4-R4)/(I4-Q4-P4))-1 -> -11%
A5: Referral | B5: =SUMIF(Indirect!AI:AI,"referral",Indirect!N:N) -> 0 | C5: =SUMIF(Indirect!AI:AI,"referral",Indirect!O:O) -> 0 | D5: =B5+C5 -> 0 | E5: =SUMIF(Indirect!AJ:AJ,"referral",Indirect!Q:Q) -> 0 | F5: =SUMIF(Indirect!AJ:AJ,"referral",Indirect!R:R) -> 1 | G5: =E5+F5 -> 1 | H5: =SUMIF(Indirect!AK:AK,"referral",Indirect!V:V) -> 1 | I5: =SUMIF(Indirect!AK:AK,"referral",Indirect!Y:Y) -> 1 | J5: =H5+I5 -> 2 | K5: =SUMIF(Indirect!AL:AL,"referral",Indirect!AA:AA) -> 0 | L5: =SUMIF(Indirect!AL:AL,"referral",Indirect!AB:AB) -> 0 | M5: =K5+L5 -> 0 | N5: -100% | P5: n/a | Q5: n/a | R5: n/a | S5: n/a | T5: n/a | U5: n/a | V5: n/a | W5: n/a | X5: n/a | Y5: n/a | Z5: n/a
A6: Indirect TOTAL | B6: =SUM(B3:B5) -> 245 | C6: =SUM(C3:C5) -> 726 | D6: =B6+C6 -> 971 | E6: =SUM(E3:E5) -> 229 | F6: =SUM(F3:F5) -> 766 | G6: =E6+F6 -> 995 | H6: =SUM(H3:H5) -> 281 | I6: =SUM(I3:I5) -> 850 | J6: =H6+I6 -> 1,131 | K6: =SUM(K3:K5) -> 273 | L6: =SUM(L3:L5) -> 848 | M6: =K6+L6 -> 1,121 | N6: -0% | P6: =SUM(P3:P5) -> 0 | Q6: 32 | R6: 0 | S6: 82 | T6: =L6/I6-1 -> -0% | U6: =((L6-R6)/(I6-P6))-1 -> -0% | V6: =((L6-S6)/(I6-Q6))-1 -> -6% | W6: =((R6-P6)/(L6-I6)*N6) -> 0% | X6: =((S6-Q6)/(L6-I6))*N6 -> 6% | Y6: =((((L6-S6-R6)-(I6-Q6-P6)))/(L6-I6))*N6 -> -6% | Z6: =((L6-S6-R6)/(I6-Q6-P6))-1 -> -6%
A7: Direct | B7: =SUMIF(Indirect!A:A,"Direct",Indirect!N:N) -> 166 | C7: =SUMIF(Indirect!A:A,"Direct",Indirect!O:O) -> 337 | D7: =B7+C7 -> 503 | E7: =SUMIF(Indirect!A:A,"Direct",Indirect!Q:Q) -> 117 | F7: =SUMIF(Indirect!A:A,"Direct",Indirect!R:R) -> 377 | G7: =E7+F7 -> 494 | H7: =SUMIF(Indirect!A:A,"Direct",Indirect!V:V) -> 122 | I7: =SUMIF(Indirect!A:A,"Direct",Indirect!Y:Y) -> 391 | J7: =H7+I7 -> 513 | K7: =SUMIF(Indirect!A:A,"Direct",Indirect!AA:AA) -> 143 | L7: =SUMIF(Indirect!A:A,"Direct",Indirect!AB:AB) -> 322 | M7: =K7+L7 -> 465 | N7: -18%
A8: Grand Total | B8: =B6+B7 -> 411 | C8: =C6+C7 -> 1,063 | D8: 1,474 | E8: 346 | F8: 1,143 | G8: 1,489 | H8: 403 | I8: 1,241 | J8: 1,644 | K8: 416 | L8: 1,170 | M8: 1,586 | N8: -6%
A9: Agent / Indirect | B9: =B3/B6 -> 0.4% | C9: 1.2% | D9: 1.0% | E9: 3.5% | F9: 5.5% | G9: 5.0% | H9: 13.5% | I9: 13.4% | J9: 13.4% | K9: 17.6% | L9: 22.2% | M9: =M3/M6 -> 21.1% | N9: =IFERROR((L9-I9)*100,"-") -> +9 pp
A10: Agent / Total | B10: =B3/B8 -> 0.2% | C10: 0.8% | D10: 0.7% | E10: 2.3% | F10: 3.7% | G10: 3.4% | H10: 9.4% | I10: 9.2% | J10: 9.2% | K10: 11.5% | L10: 16.1% | M10: =M3/M8 -> 14.9% | N10: =IFERROR((L10-I10)*100,"-") -> +7 pp
A11: Gold Partner / Total | B11: =B4/B8 -> 59.4% | C11: 67.5% | D11: 65.2% | E11: 63.9% | F11: 63.3% | G11: 63.4% | H11: 60.0% | I11: 59.2% | J11: 59.4% | K11: 54.1% | L11: =L4/L8 -> 56.4% | M11: =M4/M8 -> 55.8% | N11: -3 pp
A12: Indirect / Total | B12: =B6/B8 -> 59.6% | C12: =C6/C8 -> 68.3% | D12: 65.9% | E12: 66.2% | F12: 67.0% | G12: 66.8% | H12: 69.7% | I12: 68.5% | J12: 68.8% | K12: 65.6% | L12: =L6/L8 -> 72.5% | M12: =M6/M8 -> 70.7% | N12: +4 pp
A13: Direct / Total | B13: =B7/B8 -> 40.4% | C13: =C7/C8 -> 31.7% | D13: 34.1% | E13: 33.8% | F13: 33.0% | G13: 33.2% | H13: 30.3% | I13: 31.5% | J13: 31.2% | K13: 34.4% | L13: 27.5% | M13: 29.3% | N13: -4 pp

Sheet Summary by RAD Area (hidden)
A1: 2020.2 = Applied + | C1: =#REF! ->  | O1: EC League 2017.1- 2019.1
A3: Vertical Area | B3: (All) | O3: Contract Type | P3: (All)
O4: Vertical Area | P4: (All)
A5: Row Labels | B5: Sum of 2017.1 | C5: Sum of 2017.2 | D5: Sum of 2017 Total | E5: Sum of 2018.1 | F5: Sum of 2018.2 | G5: Sum of 2018 Total | H5: Sum of 2019.1 | I5: Sum of 2019.2 | J5: Sum of 2019 Total | K5: Sum of 2020.1 | L5: Sum of 2020.2 | M5: Sum of 2020 Total
A6: Direct | B6: 167 | C6: 337 | D6: 504 | E6: 117 | F6: 377 | G6: 494 | H6: 122 | I6: 390 | J6: 512 | K6: 146 | L6: 271 | M6: 661 | O6: EC Agent Account Name | P6: Sum of 2017.2 | Q6: Sum of 2018.2 | R6: Sum of 2019.2 | S6: Sum of 2020.2
A7: #REF! | B7: 0 | C7: 0 | D7: 0 | E7: 0 | F7: 0 | G7: 0 | H7: 0 | I7: 0 | J7: 0 | K7: 0 | L7: 0 | M7: 0 | O7: (blank) | P7: 337 | Q7: 377 | R7: 390 | S7: 271
A8: Grand Total | B8: 167 | C8: 337 | D8: 504 | E8: 117 | F8: 377 | G8: 494 | H8: 122 | I8: 390 | J8: 512 | K8: 146 | L8: 271 | M8: 661 | O8: Grand Total | P8: 337 | Q8: 377 | R8: 390 | S8: 271
A18: =B4&" Enrolment Summary" -> Enrolment Summary | B18: 2017.1 | C18: 2017.2 | D18: 2017 | E18: 2018.1 | F18: 2018.2 | G18: 2018 Total | H18: 2019.1 | I18: 2019.2 | J18: 2019 Total | K18: 2020.1 | L18: 2020.2 | M18: 2020 Total
A19: Agent | B19: =IFERROR(VLOOKUP($A$19:$A$23,$A$5:$J$13,2,FALSE),"-") -> - | C19: =IFERROR(VLOOKUP($A$19:$A$23,$A$5:$J$13,3,FALSE),"-") -> - | D19: =IFERROR(VLOOKUP($A$19:$A$23,$A$5:$J$13,4,FALSE),"-") -> - | E19: =IFERROR(VLOOKUP($A$19:$A$23,$A$5:$J$13,5,FALSE),"-") -> - | F19: =IFERROR(VLOOKUP($A$19:$A$23,$A$5:$J$13,6,FALSE),"-") -> - | G19: =IFERROR(VLOOKUP($A$19:$A$23,$A$5:$J$13,7,FALSE),"-") -> - | H19: =IFERROR(VLOOKUP($A$19:$A$23,$A$5:$J$13,8,FALSE),"-") -> - | I19: =IFERROR(VLOOKUP($A$19:$A$23,$A$5:$J$13,9,FALSE),"-") -> - | J19: =IFERROR(VLOOKUP($A$19:$A$23,$A$5:$J$13,10,FALSE),"-") -> - | K19: =IFERROR(VLOOKUP($A$19:$A$23,$A$5:$K$13,11,FALSE),"-") -> - | L19: =IFERROR(VLOOKUP($A$19:$A$23,$A$5:$L$13,12,FALSE),"-") -> - | M19: =IFERROR(VLOOKUP($A$19:$A$23,$A$5:$M$13,13,FALSE),"-") -> -
A20: EC | B20: =IFERROR(VLOOKUP($A$19:$A$23,$A$5:$J$13,2,FALSE),"-") -> - | C20: =IFERROR(VLOOKUP($A$19:$A$23,$A$5:$J$13,3,FALSE),"-") -> - | D20: =IFERROR(VLOOKUP($A$19:$A$23,$A$5:$J$13,4,FALSE),"-") -> - | E20: =IFERROR(VLOOKUP($A$19:$A$23,$A$5:$J$13,5,FALSE),"-") -> - | F20: =IFERROR(VLOOKUP($A$19:$A$23,$A$5:$J$13,6,FALSE),"-") -> - | G20: =IFERROR(VLOOKUP($A$19:$A$23,$A$5:$J$13,7,FALSE),"-") -> - | H20: =IFERROR(VLOOKUP($A$19:$A$23,$A$5:$J$13,8,FALSE),"-") -> - | I20: =IFERROR(VLOOKUP($A$19:$A$23,$A$5:$J$13,9,FALSE),"-") -> - | J20: =IFERROR(VLOOKUP($A$19:$A$23,$A$5:$J$13,10,FALSE),"-") -> - | K20: =IFERROR(VLOOKUP($A$19:$A$23,$A$5:$K$13,11,FALSE),"-") -> - | L20: =IFERROR(VLOOKUP($A$19:$A$23,$A$5:$L$13,12,FALSE),"-") -> - | M20: =IFERROR(VLOOKUP($A$19:$A$23,$A$5:$M$13,13,FALSE),"-") -> -
A21: Referral | B21: =IFERROR(VLOOKUP($A$19:$A$23,$A$5:$J$13,2,FALSE),"-") -> - | C21: =IFERROR(VLOOKUP($A$19:$A$23,$A$5:$J$13,3,FALSE),"-") -> - | D21: =IFERROR(VLOOKUP($A$19:$A$23,$A$5:$J$13,4,FALSE),"-") -> - | E21: =IFERROR(VLOOKUP($A$19:$A$23,$A$5:$J$13,5,FALSE),"-") -> - | F21: =IFERROR(VLOOKUP($A$19:$A$23,$A$5:$J$13,6,FALSE),"-") -> - | G21: =IFERROR(VLOOKUP($A$19:$A$23,$A$5:$J$13,7,FALSE),"-") -> - | H21: =IFERROR(VLOOKUP($A$19:$A$23,$A$5:$J$13,8,FALSE),"-") -> - | I21: =IFERROR(VLOOKUP($A$19:$A$23,$A$5:$J$13,9,FALSE),"-") -> - | J21: =IFERROR(VLOOKUP($A$19:$A$23,$A$5:$J$13,10,FALSE),"-") -> - | K21: =IFERROR(VLOOKUP($A$19:$A$23,$A$5:$K$13,11,FALSE),"-") -> - | L21: =IFERROR(VLOOKUP($A$19:$A$23,$A$5:$L$13,12,FALSE),"-") -> - | M21: =IFERROR(VLOOKUP($A$19:$A$23,$A$5:$M$13,13,FALSE),"-") -> -
A22: Indirect | B22: =SUM(B19:B21) -> 0 | C22: =SUM(C19:C21) -> 0 | D22: 0 | E22: 0 | F22: 0 | G22: 0 | H22: 0 | I22: 0 | J22: 0 | K22: 0 | L22: 0 | M22: 0
A23: Direct | B23: =IFERROR(VLOOKUP($A$19:$A$23,$A$5:$J$13,2,FALSE),"-") -> 167 | C23: =IFERROR(VLOOKUP($A$19:$A$23,$A$5:$J$13,3,FALSE),"-") -> 337 | D23: =IFERROR(VLOOKUP($A$19:$A$23,$A$5:$J$13,4,FALSE),"-") -> 504 | E23: =IFERROR(VLOOKUP($A$19:$A$23,$A$5:$J$13,5,FALSE),"-") -> 117 | F23: =IFERROR(VLOOKUP($A$19:$A$23,$A$5:$J$13,6,FALSE),"-") -> 377 | G23: =IFERROR(VLOOKUP($A$19:$A$23,$A$5:$J$13,7,FALSE),"-") -> 494 | H23: =IFERROR(VLOOKUP($A$19:$A$23,$A$5:$J$13,8,FALSE),"-") -> 122 | I23: =IFERROR(VLOOKUP($A$19:$A$23,$A$5:$J$13,9,FALSE),"-") -> 390 | J23: =IFERROR(VLOOKUP($A$19:$A$23,$A$5:$J$13,10,FALSE),"-") -> 512 | K23: =IFERROR(VLOOKUP($A$19:$A$23,$A$5:$K$13,11,FALSE),"-") -> 146 | L23: =IFERROR(VLOOKUP($A$19:$A$23,$A$5:$L$13,12,FALSE),"-") -> 271 | M23: =IFERROR(VLOOKUP($A$19:$A$23,$A$5:$M$13,13,FALSE),"-") -> 661
A24: Total Enrolment | B24: =B22+B23 -> 167 | C24: =C22+C23 -> 337 | D24: 504 | E24: 117 | F24: =F22+F23 -> 377 | G24: 494 | H24: 122 | I24: 390 | J24: 512 | K24: =K22+K23 -> 146 | L24: 271 | M24: =M22+M23 -> 661
A25: Total Agent / Total Indirect Enrolment | B25: =IFERROR(B19/B22,"-") -> - | C25: =IFERROR(C19/C22,"-") -> - | D25: - | E25: - | F25: - | G25: - | H25: - | I25: - | J25: - | K25: =IFERROR(K19/K22,"-") -> - | L25: - | M25: =IFERROR(M19/M22,"-") -> -
A26: Total Agent Enrolment / Total Enrolment | B26: =IFERROR(B19/B24,"-") -> - | C26: =IFERROR(C19/C24,"-") -> - | D26: - | E26: - | F26: - | G26: - | H26: - | I26: - | J26: - | K26: =IFERROR(K19/K24,"-") -> - | L26: - | M26: =IFERROR(M19/M24,"-") -> -
A27: Total EC / Total Enrolment | B27: =B20/B24 ->  | C27: =C20/C24 ->  | K27: =K20/K24 ->  | M27: =M20/M24 -> 
A28: Total Indirect Enrolment / Total Enrolment | B28: =B22/B24 -> 0.0% | C28: =C22/C24 -> 0.0% | D28: 0.0% | E28: 0.0% | F28: 0.0% | G28: 0.0% | H28: 0.0% | I28: 0.0% | J28: 0.0% | K28: =K22/K24 -> 0.0% | L28: 0.0% | M28: =M22/M24 -> 0.0%

Sheet Direct Business
A1: Direct Business | B1: 2017.1 | C1: 2017.2 | D1: 2017 Total | E1: 2018.1 | F1: 2018.2 | G1: 2018 Total | H1: 2019.1 | I1: 2019.2 | J1: 2019 Total | K1: 2020.1 | L1: 2020.2 | M1: 2020 Total | N1: 2020.2 YoY | O1: % of Direct | P1: Var YoY | Q1: % of Var | R1: % of YoY Decline
A2: Spain and Portugal | B2: =SUMIFS(Indirect!N:N,Indirect!A:A,"Direct",Indirect!C:C,A2) -> 49 | C2: =SUMIFS(Indirect!O:O,Indirect!A:A,"Direct",Indirect!C:C,A2) -> 99 | D2: =B2+C2 -> 148 | E2: =SUMIFS(Indirect!Q:Q,Indirect!A:A,"Direct",Indirect!C:C,A2) -> 48 | F2: =SUMIFS(Indirect!R:R,Indirect!A:A,"Direct",Indirect!C:C,A2) -> 135 | G2: =E2+F2 -> 183 | H2: =SUMIFS(Indirect!V:V,Indirect!A:A,"Direct",Indirect!C:C,A2) -> 34 | I2: =SUMIFS(Indirect!Y:Y,Indirect!A:A,"Direct",Indirect!C:C,A2) -> 124 | J2: =H2+I2 -> 158 | K2: =SUMIFS(Indirect!AA:AA,Indirect!A:A,"Direct",Indirect!C:C,A2) -> 30 | L2: =SUMIFS(Indirect!AB:AB,Indirect!A:A,"Direct",Indirect!C:C,A2) -> 64 | M2: =K2+L2 -> 94 | N2: =IFERROR(L2/I2-1,"-") -> -48% | O2: =L2/$L$18 -> 20% | P2: =L2-I2 -> -60 | Q2: =P2/$P$18 -> 87.0% | R2: =Q2*$N$18 -> -15%
A3: Central Europe and Caucasus | B3: =SUMIFS(Indirect!N:N,Indirect!A:A,"Direct",Indirect!C:C,A3) -> 6 | C3: =SUMIFS(Indirect!O:O,Indirect!A:A,"Direct",Indirect!C:C,A3) -> 14 | D3: 20 | E3: =SUMIFS(Indirect!Q:Q,Indirect!A:A,"Direct",Indirect!C:C,A3) -> 5 | F3: =SUMIFS(Indirect!R:R,Indirect!A:A,"Direct",Indirect!C:C,A3) -> 17 | G3: 22 | H3: =SUMIFS(Indirect!V:V,Indirect!A:A,"Direct",Indirect!C:C,A3) -> 13 | I3: =SUMIFS(Indirect!Y:Y,Indirect!A:A,"Direct",Indirect!C:C,A3) -> 35 | J3: 48 | K3: =SUMIFS(Indirect!AA:AA,Indirect!A:A,"Direct",Indirect!C:C,A3) -> 11 | L3: =SUMIFS(Indirect!AB:AB,Indirect!A:A,"Direct",Indirect!C:C,A3) -> 13 | M3: 24 | N3: -63% | O3: 4% | P3: -22 | Q3: =P3/$P$18 -> 31.9% | R3: -6%
A4: French Region | B4: =SUMIFS(Indirect!N:N,Indirect!A:A,"Direct",Indirect!C:C,A4) -> 37 | C4: =SUMIFS(Indirect!O:O,Indirect!A:A,"Direct",Indirect!C:C,A4) -> 89 | D4: 126 | E4: =SUMIFS(Indirect!Q:Q,Indirect!A:A,"Direct",Indirect!C:C,A4) -> 23 | F4: =SUMIFS(Indirect!R:R,Indirect!A:A,"Direct",Indirect!C:C,A4) -> 101 | G4: 124 | H4: =SUMIFS(Indirect!V:V,Indirect!A:A,"Direct",Indirect!C:C,A4) -> 27 | I4: =SUMIFS(Indirect!Y:Y,Indirect!A:A,"Direct",Indirect!C:C,A4) -> 90 | J4: 117 | K4: =SUMIFS(Indirect!AA:AA,Indirect!A:A,"Direct",Indirect!C:C,A4) -> 23 | L4: =SUMIFS(Indirect!AB:AB,Indirect!A:A,"Direct",Indirect!C:C,A4) -> 87 | M4: 110 | N4: -3% | O4: 27% | P4: -3 | Q4: 4.3% | R4: -1%
A5: Gulf Region | B5: =SUMIFS(Indirect!N:N,Indirect!A:A,"Direct",Indirect!C:C,A5) -> 4 | C5: =SUMIFS(Indirect!O:O,Indirect!A:A,"Direct",Indirect!C:C,A5) -> 7 | D5: 11 | E5: =SUMIFS(Indirect!Q:Q,Indirect!A:A,"Direct",Indirect!C:C,A5) -> 2 | F5: =SUMIFS(Indirect!R:R,Indirect!A:A,"Direct",Indirect!C:C,A5) -> 3 | G5: 5 | H5: =SUMIFS(Indirect!V:V,Indirect!A:A,"Direct",Indirect!C:C,A5) -> 2 | I5: =SUMIFS(Indirect!Y:Y,Indirect!A:A,"Direct",Indirect!C:C,A5) -> 6 | J5: 8 | K5: =SUMIFS(Indirect!AA:AA,Indirect!A:A,"Direct",Indirect!C:C,A5) -> 0 | L5: =SUMIFS(Indirect!AB:AB,Indirect!A:A,"Direct",Indirect!C:C,A5) -> 0 | M5: 0 | N5: -100% | O5: 0% | P5: -6 | Q5: 8.7% | R5: -2%
A6: Sub-Sahara Africa | B6: =SUMIFS(Indirect!N:N,Indirect!A:A,"Direct",Indirect!C:C,A6) -> 7 | C6: =SUMIFS(Indirect!O:O,Indirect!A:A,"Direct",Indirect!C:C,A6) -> 3 | D6: 10 | E6: =SUMIFS(Indirect!Q:Q,Indirect!A:A,"Direct",Indirect!C:C,A6) -> 0 | F6: =SUMIFS(Indirect!R:R,Indirect!A:A,"Direct",Indirect!C:C,A6) -> 2 | G6: 2 | H6: =SUMIFS(Indirect!V:V,Indirect!A:A,"Direct",Indirect!C:C,A6) -> 0 | I6: =SUMIFS(Indirect!Y:Y,Indirect!A:A,"Direct",Indirect!C:C,A6) -> 8 | J6: 8 | K6: =SUMIFS(Indirect!AA:AA,Indirect!A:A,"Direct",Indirect!C:C,A6) -> 1 | L6: =SUMIFS(Indirect!AB:AB,Indirect!A:A,"Direct",Indirect!C:C,A6) -> 5 | M6: 6 | N6: -38% | O6: 2% | P6: -3 | Q6: 4.3% | R6: -1%
A7: South America | B7: =SUMIFS(Indirect!N:N,Indirect!A:A,"Direct",Indirect!C:C,A7) -> 0 | C7: =SUMIFS(Indirect!O:O,Indirect!A:A,"Direct",Indirect!C:C,A7) -> 0 | D7: 0 | E7: =SUMIFS(Indirect!Q:Q,Indirect!A:A,"Direct",Indirect!C:C,A7) -> 0 | F7: =SUMIFS(Indirect!R:R,Indirect!A:A,"Direct",Indirect!C:C,A7) -> 0 | G7: 0 | H7: =SUMIFS(Indirect!V:V,Indirect!A:A,"Direct",Indirect!C:C,A7) -> 1 | I7: =SUMIFS(Indirect!Y:Y,Indirect!A:A,"Direct",Indirect!C:C,A7) -> 5 | J7: 6 | K7: =SUMIFS(Indirect!AA:AA,Indirect!A:A,"Direct",Indirect!C:C,A7) -> 1 | L7: =SUMIFS(Indirect!AB:AB,Indirect!A:A,"Direct",Indirect!C:C,A7) -> 1 | M7: 2 | N7: -80% | O7: 0% | P7: -4 | Q7: 5.8% | R7: -1%
A8: Eastern Europe | B8: =SUMIFS(Indirect!N:N,Indirect!A:A,"Direct",Indirect!C:C,A8) -> 4 | C8: =SUMIFS(Indirect!O:O,Indirect!A:A,"Direct",Indirect!C:C,A8) -> 2 | D8: 6 | E8: =SUMIFS(Indirect!Q:Q,Indirect!A:A,"Direct",Indirect!C:C,A8) -> 1 | F8: =SUMIFS(Indirect!R:R,Indirect!A:A,"Direct",Indirect!C:C,A8) -> 2 | G8: 3 | H8: =SUMIFS(Indirect!V:V,Indirect!A:A,"Direct",Indirect!C:C,A8) -> 2 | I8: =SUMIFS(Indirect!Y:Y,Indirect!A:A,"Direct",Indirect!C:C,A8) -> 4 | J8: 6 | K8: =SUMIFS(Indirect!AA:AA,Indirect!A:A,"Direct",Indirect!C:C,A8) -> 0 | L8: =SUMIFS(Indirect!AB:AB,Indirect!A:A,"Direct",Indirect!C:C,A8) -> 0 | M8: 0 | N8: -100% | O8: 0% | P8: -4 | Q8: 5.8% | R8: -1%
A9: Asia Pacific | B9: =SUMIFS(Indirect!N:N,Indirect!A:A,"Direct",Indirect!C:C,A9) -> 7 | C9: =SUMIFS(Indirect!O:O,Indirect!A:A,"Direct",Indirect!C:C,A9) -> 17 | D9: 24 | E9: =SUMIFS(Indirect!Q:Q,Indirect!A:A,"Direct",Indirect!C:C,A9) -> 6 | F9: =SUMIFS(Indirect!R:R,Indirect!A:A,"Direct",Indirect!C:C,A9) -> 17 | G9: 23 | H9: =SUMIFS(Indirect!V:V,Indirect!A:A,"Direct",Indirect!C:C,A9) -> 3 | I9: =SUMIFS(Indirect!Y:Y,Indirect!A:A,"Direct",Indirect!C:C,A9) -> 17 | J9: 20 | K9: =SUMIFS(Indirect!AA:AA,Indirect!A:A,"Direct",Indirect!C:C,A9) -> 3 | L9: =SUMIFS(Indirect!AB:AB,Indirect!A:A,"Direct",Indirect!C:C,A9) -> 14 | M9: 17 | N9: -18% | O9: 4% | P9: -3 | Q9: 4.3% | R9: -1%
A10: Nordic Region | B10: =SUMIFS(Indirect!N:N,Indirect!A:A,"Direct",Indirect!C:C,A10) -> 4 | C10: =SUMIFS(Indirect!O:O,Indirect!A:A,"Direct",Indirect!C:C,A10) -> 11 | D10: 15 | E10: =SUMIFS(Indirect!Q:Q,Indirect!A:A,"Direct",Indirect!C:C,A10) -> 5 | F10: =SUMIFS(Indirect!R:R,Indirect!A:A,"Direct",Indirect!C:C,A10) -> 12 | G10: 17 | H10: =SUMIFS(Indirect!V:V,Indirect!A:A,"Direct",Indirect!C:C,A10) -> 4 | I10: =SUMIFS(Indirect!Y:Y,Indirect!A:A,"Direct",Indirect!C:C,A10) -> 7 | J10: 11 | K10: =SUMIFS(Indirect!AA:AA,Indirect!A:A,"Direct",Indirect!C:C,A10) -> 4 | L10: =SUMIFS(Indirect!AB:AB,Indirect!A:A,"Direct",Indirect!C:C,A10) -> 9 | M10: 13 | N10: 29% | O10: 3% | P10: 2 | Q10: -2.9% | R10: 1%
A11: North America | B11: =SUMIFS(Indirect!N:N,Indirect!A:A,"Direct",Indirect!C:C,A11) -> 6 | C11: =SUMIFS(Indirect!O:O,Indirect!A:A,"Direct",Indirect!C:C,A11) -> 1 | D11: 7 | E11: =SUMIFS(Indirect!Q:Q,Indirect!A:A,"Direct",Indirect!C:C,A11) -> 0 | F11: =SUMIFS(Indirect!R:R,Indirect!A:A,"Direct",Indirect!C:C,A11) -> 1 | G11: 1 | H11: =SUMIFS(Indirect!V:V,Indirect!A:A,"Direct",Indirect!C:C,A11) -> 2 | I11: =SUMIFS(Indirect!Y:Y,Indirect!A:A,"Direct",Indirect!C:C,A11) -> 7 | J11: 9 | K11: =SUMIFS(Indirect!AA:AA,Indirect!A:A,"Direct",Indirect!C:C,A11) -> 2 | L11: =SUMIFS(Indirect!AB:AB,Indirect!A:A,"Direct",Indirect!C:C,A11) -> 8 | M11: 10 | N11: 14% | O11: 2% | P11: 1 | Q11: -1.4% | R11: 0%
A12: Switzerland | B12: =SUMIFS(Indirect!N:N,Indirect!A:A,"Direct",Indirect!C:C,A12) -> 29 | C12: =SUMIFS(Indirect!O:O,Indirect!A:A,"Direct",Indirect!C:C,A12) -> 55 | D12: 84 | E12: =SUMIFS(Indirect!Q:Q,Indirect!A:A,"Direct",Indirect!C:C,A12) -> 13 | F12: =SUMIFS(Indirect!R:R,Indirect!A:A,"Direct",Indirect!C:C,A12) -> 57 | G12: 70 | H12: =SUMIFS(Indirect!V:V,Indirect!A:A,"Direct",Indirect!C:C,A12) -> 23 | I12: =SUMIFS(Indirect!Y:Y,Indirect!A:A,"Direct",Indirect!C:C,A12) -> 42 | J12: 65 | K12: =SUMIFS(Indirect!AA:AA,Indirect!A:A,"Direct",Indirect!C:C,A12) -> 43 | L12: =SUMIFS(Indirect!AB:AB,Indirect!A:A,"Direct",Indirect!C:C,A12) -> 46 | M12: 89 | N12: 10% | O12: 14% | P12: 4 | Q12: -5.8% | R12: 1%
A13: South Asia | B13: =SUMIFS(Indirect!N:N,Indirect!A:A,"Direct",Indirect!C:C,A13) -> 0 | C13: =SUMIFS(Indirect!O:O,Indirect!A:A,"Direct",Indirect!C:C,A13) -> 0 | D13: 0 | E13: =SUMIFS(Indirect!Q:Q,Indirect!A:A,"Direct",Indirect!C:C,A13) -> 0 | F13: =SUMIFS(Indirect!R:R,Indirect!A:A,"Direct",Indirect!C:C,A13) -> 0 | G13: 0 | H13: =SUMIFS(Indirect!V:V,Indirect!A:A,"Direct",Indirect!C:C,A13) -> 0 | I13: =SUMIFS(Indirect!Y:Y,Indirect!A:A,"Direct",Indirect!C:C,A13) -> 0 | J13: 0 | K13: =SUMIFS(Indirect!AA:AA,Indirect!A:A,"Direct",Indirect!C:C,A13) -> 1 | L13: =SUMIFS(Indirect!AB:AB,Indirect!A:A,"Direct",Indirect!C:C,A13) -> 4 | M13: 5 | N13: - | O13: 1% | P13: 4 | Q13: -5.8% | R13: 1%
A14: Southern Europe and MENA | B14: =SUMIFS(Indirect!N:N,Indirect!A:A,"Direct",Indirect!C:C,A14) -> 0 | C14: =SUMIFS(Indirect!O:O,Indirect!A:A,"Direct",Indirect!C:C,A14) -> 2 | D14: 2 | E14: =SUMIFS(Indirect!Q:Q,Indirect!A:A,"Direct",Indirect!C:C,A14) -> 3 | F14: =SUMIFS(Indirect!R:R,Indirect!A:A,"Direct",Indirect!C:C,A14) -> 4 | G14: 7 | H14: =SUMIFS(Indirect!V:V,Indirect!A:A,"Direct",Indirect!C:C,A14) -> 1 | I14: =SUMIFS(Indirect!Y:Y,Indirect!A:A,"Direct",Indirect!C:C,A14) -> 3 | J14: 4 | K14: =SUMIFS(Indirect!AA:AA,Indirect!A:A,"Direct",Indirect!C:C,A14) -> 5 | L14: =SUMIFS(Indirect!AB:AB,Indirect!A:A,"Direct",Indirect!C:C,A14) -> 8 | M14: 13 | N14: 167% | O14: 2% | P14: 5 | Q14: -7.2% | R14: 1%
A15: China | B15: =SUMIFS(Indirect!N:N,Indirect!A:A,"Direct",Indirect!C:C,A15) -> 1 | C15: =SUMIFS(Indirect!O:O,Indirect!A:A,"Direct",Indirect!C:C,A15) -> 2 | D15: 3 | E15: =SUMIFS(Indirect!Q:Q,Indirect!A:A,"Direct",Indirect!C:C,A15) -> 1 | F15: =SUMIFS(Indirect!R:R,Indirect!A:A,"Direct",Indirect!C:C,A15) -> 2 | G15: 3 | H15: =SUMIFS(Indirect!V:V,Indirect!A:A,"Direct",Indirect!C:C,A15) -> 0 | I15: =SUMIFS(Indirect!Y:Y,Indirect!A:A,"Direct",Indirect!C:C,A15) -> 1 | J15: 1 | K15: =SUMIFS(Indirect!AA:AA,Indirect!A:A,"Direct",Indirect!C:C,A15) -> 0 | L15: =SUMIFS(Indirect!AB:AB,Indirect!A:A,"Direct",Indirect!C:C,A15) -> 6 | M15: 6 | N15: 500% | O15: 2% | P15: 5 | Q15: -7.2% | R15: 1%
A16: GAN Region | B16: =SUMIFS(Indirect!N:N,Indirect!A:A,"Direct",Indirect!C:C,A16) -> 11 | C16: =SUMIFS(Indirect!O:O,Indirect!A:A,"Direct",Indirect!C:C,A16) -> 21 | D16: 32 | E16: =SUMIFS(Indirect!Q:Q,Indirect!A:A,"Direct",Indirect!C:C,A16) -> 7 | F16: =SUMIFS(Indirect!R:R,Indirect!A:A,"Direct",Indirect!C:C,A16) -> 21 | G16: 28 | H16: =SUMIFS(Indirect!V:V,Indirect!A:A,"Direct",Indirect!C:C,A16) -> 7 | I16: =SUMIFS(Indirect!Y:Y,Indirect!A:A,"Direct",Indirect!C:C,A16) -> 18 | J16: 25 | K16: =SUMIFS(Indirect!AA:AA,Indirect!A:A,"Direct",Indirect!C:C,A16) -> 5 | L16: =SUMIFS(Indirect!AB:AB,Indirect!A:A,"Direct",Indirect!C:C,A16) -> 27 | M16: 32 | N16: 50% | O16: 8% | P16: 9 | Q16: -13.0% | R16: 2%
A17: UK Region | B17: =SUMIFS(Indirect!N:N,Indirect!A:A,"Direct",Indirect!C:C,A17) -> 1 | C17: =SUMIFS(Indirect!O:O,Indirect!A:A,"Direct",Indirect!C:C,A17) -> 14 | D17: 15 | E17: =SUMIFS(Indirect!Q:Q,Indirect!A:A,"Direct",Indirect!C:C,A17) -> 3 | F17: =SUMIFS(Indirect!R:R,Indirect!A:A,"Direct",Indirect!C:C,A17) -> 3 | G17: 6 | H17: =SUMIFS(Indirect!V:V,Indirect!A:A,"Direct",Indirect!C:C,A17) -> 3 | I17: =SUMIFS(Indirect!Y:Y,Indirect!A:A,"Direct",Indirect!C:C,A17) -> 24 | J17: 27 | K17: =SUMIFS(Indirect!AA:AA,Indirect!A:A,"Direct",Indirect!C:C,A17) -> 14 | L17: =SUMIFS(Indirect!AB:AB,Indirect!A:A,"Direct",Indirect!C:C,A17) -> 30 | M17: 44 | N17: 25% | O17: 9% | P17: 6 | Q17: -8.7% | R17: 2%
A18: Direct Total | B18: =SUM(B2:B17) -> 166 | C18: =SUM(C2:C17) -> 337 | D18: 503 | E18: =SUM(E2:E17) -> 117 | F18: =SUM(F2:F17) -> 377 | G18: 494 | H18: =SUM(H2:H17) -> 122 | I18: =SUM(I2:I17) -> 391 | J18: 513 | K18: =SUM(K2:K17) -> 143 | L18: =SUM(L2:L17) -> 322 | M18: 465 | N18: -18% | O18: 100% | P18: (69) | Q18: 100% | R18: =SUM(R2:R17) -> -18%

Sheet Gold Partners
A1: Gold Partners | B1: 2017.1 | C1: 2017.2 | D1: 2017 Total | E1: 2018.1 | F1: 2018.2 | G1: 2018 Total | H1: 2019.1 | I1: 2019.2 | J1: 2019 Total | K1: 2020.1 | L1: 2020.2 | M1: 2020 Total | N1: 2020.2 YoY | O1: % of Gold Partner | P1: Var YoY | Q1: % of Var | R1: % of YoY Decline
A2: GSC Corporation LLP | B2: =SUMIFS(Indirect!N:N,Indirect!AI:AI,"EC",Indirect!B:B,'Gold Partners'!A2) -> 3 | C2: =SUMIFS(Indirect!O:O,Indirect!AI:AI,"EC",Indirect!B:B,'Gold Partners'!A2) -> 33 | D2: =B2+C2 -> 36 | E2: =SUMIFS(Indirect!Q:Q,Indirect!AJ:AJ,"EC",Indirect!B:B,'Gold Partners'!A2) -> 5 | F2: =SUMIFS(Indirect!R:R,Indirect!AJ:AJ,"EC",Indirect!B:B,'Gold Partners'!A2) -> 48 | G2: =E2+F2 -> 53 | H2: =SUMIFS(Indirect!V:V,Indirect!AK:AK,"EC",Indirect!B:B,'Gold Partners'!A2) -> 5 | I2: =SUMIFS(Indirect!Y:Y,Indirect!AK:AK,"EC",Indirect!B:B,'Gold Partners'!A2) -> 50 | J2: =H2+I2 -> 55 | K2: =SUMIFS(Indirect!AA:AA,Indirect!AL:AL,"EC",Indirect!B:B,'Gold Partners'!A2) -> 6 | L2: =SUMIFS(Indirect!AB:AB,Indirect!AL:AL,"EC",Indirect!B:B,'Gold Partners'!A2) -> 26 | M2: =K2+L2 -> 32 | N2: =IFERROR(L2/I2-1,"-") -> -48% | O2: =L2/#REF! ->  | P2: =L2-I2 -> -24 | Q2: =P2/$P$104 -> 32.4% | R2: =Q2*#REF! -> 
A3: IQ Consultancy LLC | B3: =SUMIFS(Indirect!N:N,Indirect!AI:AI,"EC",Indirect!B:B,'Gold Partners'!A3) -> 14 | C3: =SUMIFS(Indirect!O:O,Indirect!AI:AI,"EC",Indirect!B:B,'Gold Partners'!A3) -> 56 | D3: =B3+C3 -> 70 | E3: =SUMIFS(Indirect!Q:Q,Indirect!AJ:AJ,"EC",Indirect!B:B,'Gold Partners'!A3) -> 13 | F3: =SUMIFS(Indirect!R:R,Indirect!AJ:AJ,"EC",Indirect!B:B,'Gold Partners'!A3) -> 51 | G3: =E3+F3 -> 64 | H3: =SUMIFS(Indirect!V:V,Indirect!AK:AK,"EC",Indirect!B:B,'Gold Partners'!A3) -> 9 | I3: =SUMIFS(Indirect!Y:Y,Indirect!AK:AK,"EC",Indirect!B:B,'Gold Partners'!A3) -> 63 | J3: =H3+I3 -> 72 | K3: =SUMIFS(Indirect!AA:AA,Indirect!AL:AL,"EC",Indirect!B:B,'Gold Partners'!A3) -> 6 | L3: =SUMIFS(Indirect!AB:AB,Indirect!AL:AL,"EC",Indirect!B:B,'Gold Partners'!A3) -> 45 | M3: 51 | N3: -29% | O3: =L3/#REF! ->  | P3: -18 | Q3: 24.3% | R3: =Q3*#REF! -> 
A4: Ekthana Hospitality Education Services Co.Ltd. | B4: =SUMIFS(Indirect!N:N,Indirect!AI:AI,"EC",Indirect!B:B,'Gold Partners'!A4) -> 15 | C4: =SUMIFS(Indirect!O:O,Indirect!AI:AI,"EC",Indirect!B:B,'Gold Partners'!A4) -> 25 | D4: 40 | E4: =SUMIFS(Indirect!Q:Q,Indirect!AJ:AJ,"EC",Indirect!B:B,'Gold Partners'!A4) -> 17 | F4: =SUMIFS(Indirect!R:R,Indirect!AJ:AJ,"EC",Indirect!B:B,'Gold Partners'!A4) -> 22 | G4: 39 | H4: =SUMIFS(Indirect!V:V,Indirect!AK:AK,"EC",Indirect!B:B,'Gold Partners'!A4) -> 13 | I4: =SUMIFS(Indirect!Y:Y,Indirect!AK:AK,"EC",Indirect!B:B,'Gold Partners'!A4) -> 44 | J4: 57 | K4: =SUMIFS(Indirect!AA:AA,Indirect!AL:AL,"EC",Indirect!B:B,'Gold Partners'!A4) -> 18 | L4: =SUMIFS(Indirect!AB:AB,Indirect!AL:AL,"EC",Indirect!B:B,'Gold Partners'!A4) -> 26 | M4: 44 | N4: -41% | O4: =L4/#REF! ->  | P4: -18 | Q4: 24.3% | R4: =Q4*#REF! -> 
A5: Kaloudis Consulting Sàrl | B5: =SUMIFS(Indirect!N:N,Indirect!AI:AI,"EC",Indirect!B:B,'Gold Partners'!A5) -> 6 | C5: =SUMIFS(Indirect!O:O,Indirect!AI:AI,"EC",Indirect!B:B,'Gold Partners'!A5) -> 17 | D5: 23 | E5: =SUMIFS(Indirect!Q:Q,Indirect!AJ:AJ,"EC",Indirect!B:B,'Gold Partners'!A5) -> 5 | F5: =SUMIFS(Indirect!R:R,Indirect!AJ:AJ,"EC",Indirect!B:B,'Gold Partners'!A5) -> 19 | G5: 24 | H5: =SUMIFS(Indirect!V:V,Indirect!AK:AK,"EC",Indirect!B:B,'Gold Partners'!A5) -> 7 | I5: =SUMIFS(Indirect!Y:Y,Indirect!AK:AK,"EC",Indirect!B:B,'Gold Partners'!A5) -> 21 | J5: 28 | K5: =SUMIFS(Indirect!AA:AA,Indirect!AL:AL,"EC",Indirect!B:B,'Gold Partners'!A5) -> 4 | L5: =SUMIFS(Indirect!AB:AB,Indirect!AL:AL,"EC",Indirect!B:B,'Gold Partners'!A5) -> 8 | M5: 12 | N5: -62% | O5: =L5/#REF! ->  | P5: -13 | Q5: 17.6% | R5: =Q5*#REF! -> 
A6: Zista Education Services LLP | B6: =SUMIFS(Indirect!N:N,Indirect!AI:AI,"EC",Indirect!B:B,'Gold Partners'!A6) -> 27 | C6: =SUMIFS(Indirect!O:O,Indirect!AI:AI,"EC",Indirect!B:B,'Gold Partners'!A6) -> 56 | D6: 83 | E6: =SUMIFS(Indirect!Q:Q,Indirect!AJ:AJ,"EC",Indirect!B:B,'Gold Partners'!A6) -> 17 | F6: =SUMIFS(Indirect!R:R,Indirect!AJ:AJ,"EC",Indirect!B:B,'Gold Partners'!A6) -> 66 | G6: 83 | H6: =SUMIFS(Indirect!V:V,Indirect!AK:AK,"EC",Indirect!B:B,'Gold Partners'!A6) -> 14 | I6: =SUMIFS(Indirect!Y:Y,Indirect!AK:AK,"EC",Indirect!B:B,'Gold Partners'!A6) -> 64 | J6: 78 | K6: =SUMIFS(Indirect!AA:AA,Indirect!AL:AL,"EC",Indirect!B:B,'Gold Partners'!A6) -> 28 | L6: =SUMIFS(Indirect!AB:AB,Indirect!AL:AL,"EC",Indirect!B:B,'Gold Partners'!A6) -> 56 | M6: 84 | N6: -13% | O6: =L6/#REF! ->  | P6: -8 | Q6: 10.8% | R6: =Q6*#REF! -> 
A7: Nazih Nabil Chatila | B7: =SUMIFS(Indirect!N:N,Indirect!AI:AI,"EC",Indirect!B:B,'Gold Partners'!A7) -> 2 | C7: =SUMIFS(Indirect!O:O,Indirect!AI:AI,"EC",Indirect!B:B,'Gold Partners'!A7) -> 6 | D7: 8 | E7: =SUMIFS(Indirect!Q:Q,Indirect!AJ:AJ,"EC",Indirect!B:B,'Gold Partners'!A7) -> 2 | F7: =SUMIFS(Indirect!R:R,Indirect!AJ:AJ,"EC",Indirect!B:B,'Gold Partners'!A7) -> 11 | G7: 13 | H7: =SUMIFS(Indirect!V:V,Indirect!AK:AK,"EC",Indirect!B:B,'Gold Partners'!A7) -> 2 | I7: =SUMIFS(Indirect!Y:Y,Indirect!AK:AK,"EC",Indirect!B:B,'Gold Partners'!A7) -> 10 | J7: 12 | K7: =SUMIFS(Indirect!AA:AA,Indirect!AL:AL,"EC",Indirect!B:B,'Gold Partners'!A7) -> 0 | L7: =SUMIFS(Indirect!AB:AB,Indirect!AL:AL,"EC",Indirect!B:B,'Gold Partners'!A7) -> 0 | M7: 0 | N7: -100% | O7: =L7/#REF! ->  | P7: -10 | Q7: 13.5% | R7: =Q7*#REF! -> 
A8: Beijing Guangtian?an Education Consulting Co Ltd | B8: =SUMIFS(Indirect!N:N,Indirect!AI:AI,"EC",Indirect!B:B,'Gold Partners'!A8) -> 6 | C8: =SUMIFS(Indirect!O:O,Indirect!AI:AI,"EC",Indirect!B:B,'Gold Partners'!A8) -> 47 | D8: 53 | E8: =SUMIFS(Indirect!Q:Q,Indirect!AJ:AJ,"EC",Indirect!B:B,'Gold Partners'!A8) -> 8 | F8: =SUMIFS(Indirect!R:R,Indirect!AJ:AJ,"EC",Indirect!B:B,'Gold Partners'!A8) -> 30 | G8: 38 | H8: =SUMIFS(Indirect!V:V,Indirect!AK:AK,"EC",Indirect!B:B,'Gold Partners'!A8) -> 13 | I8: =SUMIFS(Indirect!Y:Y,Indirect!AK:AK,"EC",Indirect!B:B,'Gold Partners'!A8) -> 57 | J8: 70 | K8: =SUMIFS(Indirect!AA:AA,Indirect!AL:AL,"EC",Indirect!B:B,'Gold Partners'!A8) -> 13 | L8: =SUMIFS(Indirect!AB:AB,Indirect!AL:AL,"EC",Indirect!B:B,'Gold Partners'!A8) -> 46 | M8: 59 | N8: -19% | O8: =L8/#REF! ->  | P8: -11 | Q8: 14.9% | R8: =Q8*#REF! -> 
A9: CG Capital Ltd | B9: =SUMIFS(Indirect!N:N,Indirect!AI:AI,"EC",Indirect!B:B,'Gold Partners'!A9) -> 6 | C9: =SUMIFS(Indirect!O:O,Indirect!AI:AI,"EC",Indirect!B:B,'Gold Partners'!A9) -> 10 | D9: 16 | E9: =SUMIFS(Indirect!Q:Q,Indirect!AJ:AJ,"EC",Indirect!B:B,'Gold Partners'!A9) -> 2 | F9: =SUMIFS(Indirect!R:R,Indirect!AJ:AJ,"EC",Indirect!B:B,'Gold Partners'!A9) -> 13 | G9: 15 | H9: =SUMIFS(Indirect!V:V,Indirect!AK:AK,"EC",Indirect!B:B,'Gold Partners'!A9) -> 3 | I9: =SUMIFS(Indirect!Y:Y,Indirect!AK:AK,"EC",Indirect!B:B,'Gold Partners'!A9) -> 10 | J9: 13 | K9: =SUMIFS(Indirect!AA:AA,Indirect!AL:AL,"EC",Indirect!B:B,'Gold Partners'!A9) -> 3 | L9: =SUMIFS(Indirect!AB:AB,Indirect!AL:AL,"EC",Indirect!B:B,'Gold Partners'!A9) -> 2 | M9: 5 | N9: -80% | O9: =L9/#REF! ->  | P9: -8 | Q9: 10.8% | R9: =Q9*#REF! -> 
A10: Azeri Student Center | B10: =SUMIFS(Indirect!N:N,Indirect!AI:AI,"EC",Indirect!B:B,'Gold Partners'!A10) -> 0 | C10: =SUMIFS(Indirect!O:O,Indirect!AI:AI,"EC",Indirect!B:B,'Gold Partners'!A10) -> 11 | D10: 11 | E10: =SUMIFS(Indirect!Q:Q,Indirect!AJ:AJ,"EC",Indirect!B:B,'Gold Partners'!A10) -> 1 | F10: =SUMIFS(Indirect!R:R,Indirect!AJ:AJ,"EC",Indirect!B:B,'Gold Partners'!A10) -> 25 | G10: 26 | H10: =SUMIFS(Indirect!V:V,Indirect!AK:AK,"EC",Indirect!B:B,'Gold Partners'!A10) -> 1 | I10: =SUMIFS(Indirect!Y:Y,Indirect!AK:AK,"EC",Indirect!B:B,'Gold Partners'!A10) -> 9 | J10: 10 | K10: =SUMIFS(Indirect!AA:AA,Indirect!AL:AL,"EC",Indirect!B:B,'Gold Partners'!A10) -> 3 | L10: =SUMIFS(Indirect!AB:AB,Indirect!AL:AL,"EC",Indirect!B:B,'Gold Partners'!A10) -> 3 | M10: 6 | N10: -67% | O10: =L10/#REF! ->  | P10: -6 | Q10: 8.1% | R10: =Q10*#REF! -> 
A11: Overseas Education Sg Pte Ltd | B11: =SUMIFS(Indirect!N:N,Indirect!AI:AI,"EC",Indirect!B:B,'Gold Partners'!A11) -> 3 | C11: =SUMIFS(Indirect!O:O,Indirect!AI:AI,"EC",Indirect!B:B,'Gold Partners'!A11) -> 4 | D11: 7 | E11: =SUMIFS(Indirect!Q:Q,Indirect!AJ:AJ,"EC",Indirect!B:B,'Gold Partners'!A11) -> 2 | F11: =SUMIFS(Indirect!R:R,Indirect!AJ:AJ,"EC",Indirect!B:B,'Gold Partners'!A11) -> 2 | G11: 4 | H11: =SUMIFS(Indirect!V:V,Indirect!AK:AK,"EC",Indirect!B:B,'Gold Partners'!A11) -> 2 | I11: =SUMIFS(Indirect!Y:Y,Indirect!AK:AK,"EC",Indirect!B:B,'Gold Partners'!A11) -> 7 | J11: 9 | K11: =SUMIFS(Indirect!AA:AA,Indirect!AL:AL,"EC",Indirect!B:B,'Gold Partners'!A11) -> 3 | L11: =SUMIFS(Indirect!AB:AB,Indirect!AL:AL,"EC",Indirect!B:B,'Gold Partners'!A11) -> 1 | M11: 4 | N11: -86% | O11: =L11/#REF! ->  | P11: -6 | Q11: 8.1% | R11: =Q11*#REF! -> 
A12: Swiss Studies LLC Offshore SAL | B12: =SUMIFS(Indirect!N:N,Indirect!AI:AI,"EC",Indirect!B:B,'Gold Partners'!A12) -> 2 | C12: =SUMIFS(Indirect!O:O,Indirect!AI:AI,"EC",Indirect!B:B,'Gold Partners'!A12) -> 22 | D12: 24 | E12: =SUMIFS(Indirect!Q:Q,Indirect!AJ:AJ,"EC",Indirect!B:B,'Gold Partners'!A12) -> 4 | F12: =SUMIFS(Indirect!R:R,Indirect!AJ:AJ,"EC",Indirect!B:B,'Gold Partners'!A12) -> 26 | G12: 30 | H12: =SUMIFS(Indirect!V:V,Indirect!AK:AK,"EC",Indirect!B:B,'Gold Partners'!A12) -> 11 | I12: =SUMIFS(Indirect!Y:Y,Indirect!AK:AK,"EC",Indirect!B:B,'Gold Partners'!A12) -> 36 | J12: 47 | K12: =SUMIFS(Indirect!AA:AA,Indirect!AL:AL,"EC",Indirect!B:B,'Gold Partners'!A12) -> 7 | L12: =SUMIFS(Indirect!AB:AB,Indirect!AL:AL,"EC",Indirect!B:B,'Gold Partners'!A12) -> 34 | M12: 41 | N12: -6% | O12: =L12/#REF! ->  | P12: -2 | Q12: 2.7% | R12: =Q12*#REF! -> 
A13: Ms Kui Tshin NGUI | B13: =SUMIFS(Indirect!N:N,Indirect!AI:AI,"EC",Indirect!B:B,'Gold Partners'!A13) -> 4 | C13: =SUMIFS(Indirect!O:O,Indirect!AI:AI,"EC",Indirect!B:B,'Gold Partners'!A13) -> 4 | D13: 8 | E13: =SUMIFS(Indirect!Q:Q,Indirect!AJ:AJ,"EC",Indirect!B:B,'Gold Partners'!A13) -> 2 | F13: =SUMIFS(Indirect!R:R,Indirect!AJ:AJ,"EC",Indirect!B:B,'Gold Partners'!A13) -> 3 | G13: 5 | H13: =SUMIFS(Indirect!V:V,Indirect!AK:AK,"EC",Indirect!B:B,'Gold Partners'!A13) -> 3 | I13: =SUMIFS(Indirect!Y:Y,Indirect!AK:AK,"EC",Indirect!B:B,'Gold Partners'!A13) -> 9 | J13: 12 | K13: =SUMIFS(Indirect!AA:AA,Indirect!AL:AL,"EC",Indirect!B:B,'Gold Partners'!A13) -> 3 | L13: =SUMIFS(Indirect!AB:AB,Indirect!AL:AL,"EC",Indirect!B:B,'Gold Partners'!A13) -> 4 | M13: 7 | N13: -56% | O13: =L13/#REF! ->  | P13: -5 | Q13: 6.8% | R13: =Q13*#REF! -> 
A14: Philip Taylor | B14: =SUMIFS(Indirect!N:N,Indirect!AI:AI,"EC",Indirect!B:B,'Gold Partners'!A14) -> 0 | C14: =SUMIFS(Indirect!O:O,Indirect!AI:AI,"EC",Indirect!B:B,'Gold Partners'!A14) -> 5 | D14: 5 | E14: =SUMIFS(Indirect!Q:Q,Indirect!AJ:AJ,"EC",Indirect!B:B,'Gold Partners'!A14) -> 0 | F14: =SUMIFS(Indirect!R:R,Indirect!AJ:AJ,"EC",Indirect!B:B,'Gold Partners'!A14) -> 4 | G14: 4 | H14: =SUMIFS(Indirect!V:V,Indirect!AK:AK,"EC",Indirect!B:B,'Gold Partners'!A14) -> 2 | I14: =SUMIFS(Indirect!Y:Y,Indirect!AK:AK,"EC",Indirect!B:B,'Gold Partners'!A14) -> 7 | J14: 9 | K14: =SUMIFS(Indirect!AA:AA,Indirect!AL:AL,"EC",Indirect!B:B,'Gold Partners'!A14) -> 1 | L14: =SUMIFS(Indirect!AB:AB,Indirect!AL:AL,"EC",Indirect!B:B,'Gold Partners'!A14) -> 3 | M14: 4 | N14: -57% | O14: =L14/#REF! ->  | P14: -4 | Q14: 5.4% | R14: =Q14*#REF! -> 
A15: Intelligent Studies | B15: =SUMIFS(Indirect!N:N,Indirect!AI:AI,"EC",Indirect!B:B,'Gold Partners'!A15) -> 9 | C15: =SUMIFS(Indirect!O:O,Indirect!AI:AI,"EC",Indirect!B:B,'Gold Partners'!A15) -> 9 | D15: 18 | E15: =SUMIFS(Indirect!Q:Q,Indirect!AJ:AJ,"EC",Indirect!B:B,'Gold Partners'!A15) -> 5 | F15: =SUMIFS(Indirect!R:R,Indirect!AJ:AJ,"EC",Indirect!B:B,'Gold Partners'!A15) -> 14 | G15: 19 | H15: =SUMIFS(Indirect!V:V,Indirect!AK:AK,"EC",Indirect!B:B,'Gold Partners'!A15) -> 5 | I15: =SUMIFS(Indirect!Y:Y,Indirect!AK:AK,"EC",Indirect!B:B,'Gold Partners'!A15) -> 15 | J15: 20 | K15: =SUMIFS(Indirect!AA:AA,Indirect!AL:AL,"EC",Indirect!B:B,'Gold Partners'!A15) -> 3 | L15: =SUMIFS(Indirect!AB:AB,Indirect!AL:AL,"EC",Indirect!B:B,'Gold Partners'!A15) -> 10 | M15: 13 | N15: -33% | O15: =L15/#REF! ->  | P15: -5 | Q15: 6.8% | R15: =Q15*#REF! -> 
A16: SUN Education Group Pte Ltd. | B16: =SUMIFS(Indirect!N:N,Indirect!AI:AI,"EC",Indirect!B:B,'Gold Partners'!A16) -> 6 | C16: =SUMIFS(Indirect!O:O,Indirect!AI:AI,"EC",Indirect!B:B,'Gold Partners'!A16) -> 4 | D16: 10 | E16: =SUMIFS(Indirect!Q:Q,Indirect!AJ:AJ,"EC",Indirect!B:B,'Gold Partners'!A16) -> 2 | F16: =SUMIFS(Indirect!R:R,Indirect!AJ:AJ,"EC",Indirect!B:B,'Gold Partners'!A16) -> 4 | G16: 6 | H16: =SUMIFS(Indirect!V:V,Indirect!AK:AK,"EC",Indirect!B:B,'Gold Partners'!A16) -> 1 | I16: =SUMIFS(Indirect!Y:Y,Indirect!AK:AK,"EC",Indirect!B:B,'Gold Partners'!A16) -> 5 | J16: 6 | K16: =SUMIFS(Indirect!AA:AA,Indirect!AL:AL,"EC",Indirect!B:B,'Gold Partners'!A16) -> 0 | L16: =SUMIFS(Indirect!AB:AB,Indirect!AL:AL,"EC",Indirect!B:B,'Gold Partners'!A16) -> 0 | M16: 0 | N16: -100% | O16: =L16/#REF! ->  | P16: -5 | Q16: 6.8% | R16: =Q16*#REF! -> 
A17: Students International Group Pty Ltd. | B17: =SUMIFS(Indirect!N:N,Indirect!AI:AI,"EC",Indirect!B:B,'Gold Partners'!A17) -> 1 | C17: =SUMIFS(Indirect!O:O,Indirect!AI:AI,"EC",Indirect!B:B,'Gold Partners'!A17) -> 4 | D17: 5 | E17: =SUMIFS(Indirect!Q:Q,Indirect!AJ:AJ,"EC",Indirect!B:B,'Gold Partners'!A17) -> 1 | F17: =SUMIFS(Indirect!R:R,Indirect!AJ:AJ,"EC",Indirect!B:B,'Gold Partners'!A17) -> 5 | G17: 6 | H17: =SUMIFS(Indirect!V:V,Indirect!AK:AK,"EC",Indirect!B:B,'Gold Partners'!A17) -> 1 | I17: =SUMIFS(Indirect!Y:Y,Indirect!AK:AK,"EC",Indirect!B:B,'Gold Partners'!A17) -> 5 | J17: 6 | K17: =SUMIFS(Indirect!AA:AA,Indirect!AL:AL,"EC",Indirect!B:B,'Gold Partners'!A17) -> 0 | L17: =SUMIFS(Indirect!AB:AB,Indirect!AL:AL,"EC",Indirect!B:B,'Gold Partners'!A17) -> 0 | M17: 0 | N17: -100% | O17: =L17/#REF! ->  | P17: -5 | Q17: 6.8% | R17: =Q17*#REF! -> 
A18: Quoc Anh I.E.C Co. Ltd. | B18: =SUMIFS(Indirect!N:N,Indirect!AI:AI,"EC",Indirect!B:B,'Gold Partners'!A18) -> 10 | C18: =SUMIFS(Indirect!O:O,Indirect!AI:AI,"EC",Indirect!B:B,'Gold Partners'!A18) -> 9 | D18: 19 | E18: =SUMIFS(Indirect!Q:Q,Indirect!AJ:AJ,"EC",Indirect!B:B,'Gold Partners'!A18) -> 3 | F18: =SUMIFS(Indirect!R:R,Indirect!AJ:AJ,"EC",Indirect!B:B,'Gold Partners'!A18) -> 8 | G18: 11 | H18: =SUMIFS(Indirect!V:V,Indirect!AK:AK,"EC",Indirect!B:B,'Gold Partners'!A18) -> 3 | I18: =SUMIFS(Indirect!Y:Y,Indirect!AK:AK,"EC",Indirect!B:B,'Gold Partners'!A18) -> 8 | J18: 11 | K18: =SUMIFS(Indirect!AA:AA,Indirect!AL:AL,"EC",Indirect!B:B,'Gold Partners'!A18) -> 2 | L18: =SUMIFS(Indirect!AB:AB,Indirect!AL:AL,"EC",Indirect!B:B,'Gold Partners'!A18) -> 5 | M18: 7 | N18: -38% | O18: =L18/#REF! ->  | P18: -3 | Q18: 4.1% | R18: =Q18*#REF! -> 
A19: PIE International Education Services Ltd | B19: =SUMIFS(Indirect!N:N,Indirect!AI:AI,"EC",Indirect!B:B,'Gold Partners'!A19) -> 2 | C19: =SUMIFS(Indirect!O:O,Indirect!AI:AI,"EC",Indirect!B:B,'Gold Partners'!A19) -> 3 | D19: 5 | E19: =SUMIFS(Indirect!Q:Q,Indirect!AJ:AJ,"EC",Indirect!B:B,'Gold Partners'!A19) -> 0 | F19: =SUMIFS(Indirect!R:R,Indirect!AJ:AJ,"EC",Indirect!B:B,'Gold Partners'!A19) -> 5 | G19: 5 | H19: =SUMIFS(Indirect!V:V,Indirect!AK:AK,"EC",Indirect!B:B,'Gold Partners'!A19) -> 0 | I19: =SUMIFS(Indirect!Y:Y,Indirect!AK:AK,"EC",Indirect!B:B,'Gold Partners'!A19) -> 3 | J19: 3 | K19: =SUMIFS(Indirect!AA:AA,Indirect!AL:AL,"EC",Indirect!B:B,'Gold Partners'!A19) -> 0 | L19: =SUMIFS(Indirect!AB:AB,Indirect!AL:AL,"EC",Indirect!B:B,'Gold Partners'!A19) -> 0 | M19: 0 | N19: -100% | O19: =L19/#REF! ->  | P19: -3 | Q19: 4.1% | R19: =Q19*#REF! -> 
A20: Domar Travel and Tours Trans Ltd Zaporizhzhia | B20: =SUMIFS(Indirect!N:N,Indirect!AI:AI,"EC",Indirect!B:B,'Gold Partners'!A20) -> 1 | C20: =SUMIFS(Indirect!O:O,Indirect!AI:AI,"EC",Indirect!B:B,'Gold Partners'!A20) -> 2 | D20: 3 | E20: =SUMIFS(Indirect!Q:Q,Indirect!AJ:AJ,"EC",Indirect!B:B,'Gold Partners'!A20) -> 1 | F20: =SUMIFS(Indirect!R:R,Indirect!AJ:AJ,"EC",Indirect!B:B,'Gold Partners'!A20) -> 0 | G20: 1 | H20: =SUMIFS(Indirect!V:V,Indirect!AK:AK,"EC",Indirect!B:B,'Gold Partners'!A20) -> 0 | I20: =SUMIFS(Indirect!Y:Y,Indirect!AK:AK,"EC",Indirect!B:B,'Gold Partners'!A20) -> 2 | J20: 2 | K20: =SUMIFS(Indirect!AA:AA,Indirect!AL:AL,"EC",Indirect!B:B,'Gold Partners'!A20) -> 0 | L20: =SUMIFS(Indirect!AB:AB,Indirect!AL:AL,"EC",Indirect!B:B,'Gold Partners'!A20) -> 0 | M20: 0 | N20: -100% | O20: =L20/#REF! ->  | P20: -2 | Q20: 2.7% | R20: =Q20*#REF! -> 
A21: E & B Ltd | B21: =SUMIFS(Indirect!N:N,Indirect!AI:AI,"EC",Indirect!B:B,'Gold Partners'!A21) -> 0 | C21: =SUMIFS(Indirect!O:O,Indirect!AI:AI,"EC",Indirect!B:B,'Gold Partners'!A21) -> 12 | D21: 12 | E21: =SUMIFS(Indirect!Q:Q,Indirect!AJ:AJ,"EC",Indirect!B:B,'Gold Partners'!A21) -> 0 | F21: =SUMIFS(Indirect!R:R,Indirect!AJ:AJ,"EC",Indirect!B:B,'Gold Partners'!A21) -> 4 | G21: 4 | H21: =SUMIFS(Indirect!V:V,Indirect!AK:AK,"EC",Indirect!B:B,'Gold Partners'!A21) -> 0 | I21: =SUMIFS(Indirect!Y:Y,Indirect!AK:AK,"EC",Indirect!B:B,'Gold Partners'!A21) -> 2 | J21: 2 | K21: =SUMIFS(Indirect!AA:AA,Indirect!AL:AL,"EC",Indirect!B:B,'Gold Partners'!A21) -> 0 | L21: =SUMIFS(Indirect!AB:AB,Indirect!AL:AL,"EC",Indirect!B:B,'Gold Partners'!A21) -> 0 | M21: 0 | N21: -100% | O21: =L21/#REF! ->  | P21: -2 | Q21: 2.7% | R21: =Q21*#REF! -> 
A22: GlionKorea | B22: =SUMIFS(Indirect!N:N,Indirect!AI:AI,"EC",Indirect!B:B,'Gold Partners'!A22) -> 6 | C22: =SUMIFS(Indirect!O:O,Indirect!AI:AI,"EC",Indirect!B:B,'Gold Partners'!A22) -> 11 | D22: 17 | E22: =SUMIFS(Indirect!Q:Q,Indirect!AJ:AJ,"EC",Indirect!B:B,'Gold Partners'!A22) -> 2 | F22: =SUMIFS(Indirect!R:R,Indirect!AJ:AJ,"EC",Indirect!B:B,'Gold Partners'!A22) -> 8 | G22: 10 | H22: =SUMIFS(Indirect!V:V,Indirect!AK:AK,"EC",Indirect!B:B,'Gold Partners'!A22) -> 10 | I22: =SUMIFS(Indirect!Y:Y,Indirect!AK:AK,"EC",Indirect!B:B,'Gold Partners'!A22) -> 7 | J22: 17 | K22: =SUMIFS(Indirect!AA:AA,Indirect!AL:AL,"EC",Indirect!B:B,'Gold Partners'!A22) -> 2 | L22: =SUMIFS(Indirect!AB:AB,Indirect!AL:AL,"EC",Indirect!B:B,'Gold Partners'!A22) -> 5 | M22: 7 | N22: -29% | O22: =L22/#REF! ->  | P22: -2 | Q22: 2.7% | R22: =Q22*#REF! -> 
A23: Stacey Einhorn Wrubel | B23: =SUMIFS(Indirect!N:N,Indirect!AI:AI,"EC",Indirect!B:B,'Gold Partners'!A23) -> 1 | C23: =SUMIFS(Indirect!O:O,Indirect!AI:AI,"EC",Indirect!B:B,'Gold Partners'!A23) -> 5 | D23: 6 | E23: =SUMIFS(Indirect!Q:Q,Indirect!AJ:AJ,"EC",Indirect!B:B,'Gold Partners'!A23) -> 2 | F23: =SUMIFS(Indirect!R:R,Indirect!AJ:AJ,"EC",Indirect!B:B,'Gold Partners'!A23) -> 0 | G23: 2 | H23: =SUMIFS(Indirect!V:V,Indirect!AK:AK,"EC",Indirect!B:B,'Gold Partners'!A23) -> 4 | I23: =SUMIFS(Indirect!Y:Y,Indirect!AK:AK,"EC",Indirect!B:B,'Gold Partners'!A23) -> 2 | J23: 6 | K23: =SUMIFS(Indirect!AA:AA,Indirect!AL:AL,"EC",Indirect!B:B,'Gold Partners'!A23) -> 1 | L23: =SUMIFS(Indirect!AB:AB,Indirect!AL:AL,"EC",Indirect!B:B,'Gold Partners'!A23) -> 1 | M23: 2 | N23: -50% | O23: =L23/#REF! ->  | P23: -1 | Q23: 1.4% | R23: =Q23*#REF! -> 
A24: Swiss Academic Network (SAN) | B24: =SUMIFS(Indirect!N:N,Indirect!AI:AI,"EC",Indirect!B:B,'Gold Partners'!A24) -> 0 | C24: =SUMIFS(Indirect!O:O,Indirect!AI:AI,"EC",Indirect!B:B,'Gold Partners'!A24) -> 1 | D24: 1 | E24: =SUMIFS(Indirect!Q:Q,Indirect!AJ:AJ,"EC",Indirect!B:B,'Gold Partners'!A24) -> 0 | F24: =SUMIFS(Indirect!R:R,Indirect!AJ:AJ,"EC",Indirect!B:B,'Gold Partners'!A24) -> 0 | G24: 0 | H24: =SUMIFS(Indirect!V:V,Indirect!AK:AK,"EC",Indirect!B:B,'Gold Partners'!A24) -> 1 | I24: =SUMIFS(Indirect!Y:Y,Indirect!AK:AK,"EC",Indirect!B:B,'Gold Partners'!A24) -> 2 | J24: 3 | K24: =SUMIFS(Indirect!AA:AA,Indirect!AL:AL,"EC",Indirect!B:B,'Gold Partners'!A24) -> 0 | L24: =SUMIFS(Indirect!AB:AB,Indirect!AL:AL,"EC",Indirect!B:B,'Gold Partners'!A24) -> 0 | M24: 0 | N24: -100% | O24: =L24/#REF! ->  | P24: -2 | Q24: 2.7% | R24: =Q24*#REF! -> 
A25: World Travel Marketing Co. | B25: =SUMIFS(Indirect!N:N,Indirect!AI:AI,"EC",Indirect!B:B,'Gold Partners'!A25) -> 0 | C25: =SUMIFS(Indirect!O:O,Indirect!AI:AI,"EC",Indirect!B:B,'Gold Partners'!A25) -> 5 | D25: 5 | E25: =SUMIFS(Indirect!Q:Q,Indirect!AJ:AJ,"EC",Indirect!B:B,'Gold Partners'!A25) -> 0 | F25: =SUMIFS(Indirect!R:R,Indirect!AJ:AJ,"EC",Indirect!B:B,'Gold Partners'!A25) -> 1 | G25: 1 | H25: =SUMIFS(Indirect!V:V,Indirect!AK:AK,"EC",Indirect!B:B,'Gold Partners'!A25) -> 1 | I25: =SUMIFS(Indirect!Y:Y,Indirect!AK:AK,"EC",Indirect!B:B,'Gold Partners'!A25) -> 2 | J25: 3 | K25: =SUMIFS(Indirect!AA:AA,Indirect!AL:AL,"EC",Indirect!B:B,'Gold Partners'!A25) -> 0 | L25: =SUMIFS(Indirect!AB:AB,Indirect!AL:AL,"EC",Indirect!B:B,'Gold Partners'!A25) -> 0 | M25: 0 | N25: -100% | O25: =L25/#REF! ->  | P25: -2 | Q25: 2.7% | R25: =Q25*#REF! -> 
A26: International Education Group LLC | B26: =SUMIFS(Indirect!N:N,Indirect!AI:AI,"EC",Indirect!B:B,'Gold Partners'!A26) -> 0 | C26: =SUMIFS(Indirect!O:O,Indirect!AI:AI,"EC",Indirect!B:B,'Gold Partners'!A26) -> 1 | D26: 1 | E26: =SUMIFS(Indirect!Q:Q,Indirect!AJ:AJ,"EC",Indirect!B:B,'Gold Partners'!A26) -> 0 | F26: =SUMIFS(Indirect!R:R,Indirect!AJ:AJ,"EC",Indirect!B:B,'Gold Partners'!A26) -> 2 | G26: 2 | H26: =SUMIFS(Indirect!V:V,Indirect!AK:AK,"EC",Indirect!B:B,'Gold Partners'!A26) -> 0 | I26: =SUMIFS(Indirect!Y:Y,Indirect!AK:AK,"EC",Indirect!B:B,'Gold Partners'!A26) -> 4 | J26: 4 | K26: =SUMIFS(Indirect!AA:AA,Indirect!AL:AL,"EC",Indirect!B:B,'Gold Partners'!A26) -> 3 | L26: =SUMIFS(Indirect!AB:AB,Indirect!AL:AL,"EC",Indirect!B:B,'Gold Partners'!A26) -> 4 | M26: 7 | N26: 0% | O26: =L26/#REF! ->  | P26: 0 | Q26: 0.0% | R26: =Q26*#REF! -> 
A27: Absolut Hospitality Sàrl | B27: =SUMIFS(Indirect!N:N,Indirect!AI:AI,"EC",Indirect!B:B,'Gold Partners'!A27) -> 4 | C27: =SUMIFS(Indirect!O:O,Indirect!AI:AI,"EC",Indirect!B:B,'Gold Partners'!A27) -> 12 | D27: 16 | E27: =SUMIFS(Indirect!Q:Q,Indirect!AJ:AJ,"EC",Indirect!B:B,'Gold Partners'!A27) -> 2 | F27: =SUMIFS(Indirect!R:R,Indirect!AJ:AJ,"EC",Indirect!B:B,'Gold Partners'!A27) -> 7 | G27: 9 | H27: =SUMIFS(Indirect!V:V,Indirect!AK:AK,"EC",Indirect!B:B,'Gold Partners'!A27) -> 5 | I27: =SUMIFS(Indirect!Y:Y,Indirect!AK:AK,"EC",Indirect!B:B,'Gold Partners'!A27) -> 12 | J27: 17 | K27: =SUMIFS(Indirect!AA:AA,Indirect!AL:AL,"EC",Indirect!B:B,'Gold Partners'!A27) -> 6 | L27: =SUMIFS(Indirect!AB:AB,Indirect!AL:AL,"EC",Indirect!B:B,'Gold Partners'!A27) -> 13 | M27: 19 | N27: 8% | O27: =L27/#REF! ->  | P27: 1 | Q27: -1.4% | R27: =Q27*#REF! -> 
A28: Ana Macarena Ruiz Garcia | B28: =SUMIFS(Indirect!N:N,Indirect!AI:AI,"EC",Indirect!B:B,'Gold Partners'!A28) -> 2 | C28: =SUMIFS(Indirect!O:O,Indirect!AI:AI,"EC",Indirect!B:B,'Gold Partners'!A28) -> 7 | D28: 9 | E28: =SUMIFS(Indirect!Q:Q,Indirect!AJ:AJ,"EC",Indirect!B:B,'Gold Partners'!A28) -> 2 | F28: =SUMIFS(Indirect!R:R,Indirect!AJ:AJ,"EC",Indirect!B:B,'Gold Partners'!A28) -> 4 | G28: 6 | H28: =SUMIFS(Indirect!V:V,Indirect!AK:AK,"EC",Indirect!B:B,'Gold Partners'!A28) -> 0 | I28: =SUMIFS(Indirect!Y:Y,Indirect!AK:AK,"EC",Indirect!B:B,'Gold Partners'!A28) -> 4 | J28: 4 | K28: =SUMIFS(Indirect!AA:AA,Indirect!AL:AL,"EC",Indirect!B:B,'Gold Partners'!A28) -> 0 | L28: =SUMIFS(Indirect!AB:AB,Indirect!AL:AL,"EC",Indirect!B:B,'Gold Partners'!A28) -> 5 | M28: 5 | N28: 25% | O28: =L28/#REF! ->  | P28: 1 | Q28: -1.4% | R28: =Q28*#REF! -> 
A29: Global Hospitality and Education Consulting Group | B29: =SUMIFS(Indirect!N:N,Indirect!AI:AI,"EC",Indirect!B:B,'Gold Partners'!A29) -> 0 | C29: =SUMIFS(Indirect!O:O,Indirect!AI:AI,"EC",Indirect!B:B,'Gold Partners'!A29) -> 4 | D29: 4 | E29: =SUMIFS(Indirect!Q:Q,Indirect!AJ:AJ,"EC",Indirect!B:B,'Gold Partners'!A29) -> 2 | F29: =SUMIFS(Indirect!R:R,Indirect!AJ:AJ,"EC",Indirect!B:B,'Gold Partners'!A29) -> 3 | G29: 5 | H29: =SUMIFS(Indirect!V:V,Indirect!AK:AK,"EC",Indirect!B:B,'Gold Partners'!A29) -> 1 | I29: =SUMIFS(Indirect!Y:Y,Indirect!AK:AK,"EC",Indirect!B:B,'Gold Partners'!A29) -> 1 | J29: 2 | K29: =SUMIFS(Indirect!AA:AA,Indirect!AL:AL,"EC",Indirect!B:B,'Gold Partners'!A29) -> 0 | L29: =SUMIFS(Indirect!AB:AB,Indirect!AL:AL,"EC",Indirect!B:B,'Gold Partners'!A29) -> 0 | M29: 0 | N29: -100% | O29: =L29/#REF! ->  | P29: -1 | Q29: 1.4% | R29: =Q29*#REF! -> 
A30: Suzanne METZGER | B30: =SUMIFS(Indirect!N:N,Indirect!AI:AI,"EC",Indirect!B:B,'Gold Partners'!A30) -> 0 | C30: =SUMIFS(Indirect!O:O,Indirect!AI:AI,"EC",Indirect!B:B,'Gold Partners'!A30) -> 0 | D30: 0 | E30: =SUMIFS(Indirect!Q:Q,Indirect!AJ:AJ,"EC",Indirect!B:B,'Gold Partners'!A30) -> 0 | F30: =SUMIFS(Indirect!R:R,Indirect!AJ:AJ,"EC",Indirect!B:B,'Gold Partners'!A30) -> 1 | G30: 1 | H30: =SUMIFS(Indirect!V:V,Indirect!AK:AK,"EC",Indirect!B:B,'Gold Partners'!A30) -> 0 | I30: =SUMIFS(Indirect!Y:Y,Indirect!AK:AK,"EC",Indirect!B:B,'Gold Partners'!A30) -> 1 | J30: 1 | K30: =SUMIFS(Indirect!AA:AA,Indirect!AL:AL,"EC",Indirect!B:B,'Gold Partners'!A30) -> 0 | L30: =SUMIFS(Indirect!AB:AB,Indirect!AL:AL,"EC",Indirect!B:B,'Gold Partners'!A30) -> 0 | M30: 0 | N30: -100% | O30: =L30/#REF! ->  | P30: -1 | Q30: 1.4% | R30: =Q30*#REF! -> 
A31: Tanya Anthony | B31: =SUMIFS(Indirect!N:N,Indirect!AI:AI,"EC",Indirect!B:B,'Gold Partners'!A31) -> 2 | C31: =SUMIFS(Indirect!O:O,Indirect!AI:AI,"EC",Indirect!B:B,'Gold Partners'!A31) -> 4 | D31: 6 | E31: =SUMIFS(Indirect!Q:Q,Indirect!AJ:AJ,"EC",Indirect!B:B,'Gold Partners'!A31) -> 3 | F31: =SUMIFS(Indirect!R:R,Indirect!AJ:AJ,"EC",Indirect!B:B,'Gold Partners'!A31) -> 6 | G31: 9 | H31: =SUMIFS(Indirect!V:V,Indirect!AK:AK,"EC",Indirect!B:B,'Gold Partners'!A31) -> 3 | I31: =SUMIFS(Indirect!Y:Y,Indirect!AK:AK,"EC",Indirect!B:B,'Gold Partners'!A31) -> 1 | J31: 4 | K31: =SUMIFS(Indirect!AA:AA,Indirect!AL:AL,"EC",Indirect!B:B,'Gold Partners'!A31) -> 0 | L31: =SUMIFS(Indirect!AB:AB,Indirect!AL:AL,"EC",Indirect!B:B,'Gold Partners'!A31) -> 0 | M31: 0 | N31: -100% | O31: =L31/#REF! ->  | P31: -1 | Q31: 1.4% | R31: =Q31*#REF! -> 
A32: UniEd Smart Study Centre Sdn Bhd | B32: =SUMIFS(Indirect!N:N,Indirect!AI:AI,"EC",Indirect!B:B,'Gold Partners'!A32) -> 0 | C32: =SUMIFS(Indirect!O:O,Indirect!AI:AI,"EC",Indirect!B:B,'Gold Partners'!A32) -> 0 | D32: 0 | E32: =SUMIFS(Indirect!Q:Q,Indirect!AJ:AJ,"EC",Indirect!B:B,'Gold Partners'!A32) -> 1 | F32: =SUMIFS(Indirect!R:R,Indirect!AJ:AJ,"EC",Indirect!B:B,'Gold Partners'!A32) -> 1 | G32: 2 | H32: =SUMIFS(Indirect!V:V,Indirect!AK:AK,"EC",Indirect!B:B,'Gold Partners'!A32) -> 0 | I32: =SUMIFS(Indirect!Y:Y,Indirect!AK:AK,"EC",Indirect!B:B,'Gold Partners'!A32) -> 1 | J32: 1 | K32: =SUMIFS(Indirect!AA:AA,Indirect!AL:AL,"EC",Indirect!B:B,'Gold Partners'!A32) -> 0 | L32: =SUMIFS(Indirect!AB:AB,Indirect!AL:AL,"EC",Indirect!B:B,'Gold Partners'!A32) -> 0 | M32: 0 | N32: -100% | O32: =L32/#REF! ->  | P32: -1 | Q32: 1.4% | R32: =Q32*#REF! -> 
A33: Valeria Einstein | B33: =SUMIFS(Indirect!N:N,Indirect!AI:AI,"EC",Indirect!B:B,'Gold Partners'!A33) -> 3 | C33: =SUMIFS(Indirect!O:O,Indirect!AI:AI,"EC",Indirect!B:B,'Gold Partners'!A33) -> 4 | D33: 7 | E33: =SUMIFS(Indirect!Q:Q,Indirect!AJ:AJ,"EC",Indirect!B:B,'Gold Partners'!A33) -> 2 | F33: =SUMIFS(Indirect!R:R,Indirect!AJ:AJ,"EC",Indirect!B:B,'Gold Partners'!A33) -> 5 | G33: 7 | H33: =SUMIFS(Indirect!V:V,Indirect!AK:AK,"EC",Indirect!B:B,'Gold Partners'!A33) -> 5 | I33: =SUMIFS(Indirect!Y:Y,Indirect!AK:AK,"EC",Indirect!B:B,'Gold Partners'!A33) -> 3 | J33: 8 | K33: =SUMIFS(Indirect!AA:AA,Indirect!AL:AL,"EC",Indirect!B:B,'Gold Partners'!A33) -> 0 | L33: =SUMIFS(Indirect!AB:AB,Indirect!AL:AL,"EC",Indirect!B:B,'Gold Partners'!A33) -> 2 | M33: 2 | N33: -33% | O33: =L33/#REF! ->  | P33: -1 | Q33: 1.4% | R33: =Q33*#REF! -> 
A34: Yamina Saradouni | B34: =SUMIFS(Indirect!N:N,Indirect!AI:AI,"EC",Indirect!B:B,'Gold Partners'!A34) -> 2 | C34: =SUMIFS(Indirect!O:O,Indirect!AI:AI,"EC",Indirect!B:B,'Gold Partners'!A34) -> 1 | D34: 3 | E34: =SUMIFS(Indirect!Q:Q,Indirect!AJ:AJ,"EC",Indirect!B:B,'Gold Partners'!A34) -> 1 | F34: =SUMIFS(Indirect!R:R,Indirect!AJ:AJ,"EC",Indirect!B:B,'Gold Partners'!A34) -> 0 | G34: 1 | H34: =SUMIFS(Indirect!V:V,Indirect!AK:AK,"EC",Indirect!B:B,'Gold Partners'!A34) -> 2 | I34: =SUMIFS(Indirect!Y:Y,Indirect!AK:AK,"EC",Indirect!B:B,'Gold Partners'!A34) -> 3 | J34: 5 | K34: =SUMIFS(Indirect!AA:AA,Indirect!AL:AL,"EC",Indirect!B:B,'Gold Partners'!A34) -> 1 | L34: =SUMIFS(Indirect!AB:AB,Indirect!AL:AL,"EC",Indirect!B:B,'Gold Partners'!A34) -> 2 | M34: 3 | N34: -33% | O34: =L34/#REF! ->  | P34: -1 | Q34: 1.4% | R34: =Q34*#REF! -> 
A35: Bright Future Education Consultant & Overseas Training Inc. | B35: =SUMIFS(Indirect!N:N,Indirect!AI:AI,"EC",Indirect!B:B,'Gold Partners'!A35) -> 0 | C35: =SUMIFS(Indirect!O:O,Indirect!AI:AI,"EC",Indirect!B:B,'Gold Partners'!A35) -> 0 | D35: 0 | E35: =SUMIFS(Indirect!Q:Q,Indirect!AJ:AJ,"EC",Indirect!B:B,'Gold Partners'!A35) -> 0 | F35: =SUMIFS(Indirect!R:R,Indirect!AJ:AJ,"EC",Indirect!B:B,'Gold Partners'!A35) -> 0 | G35: 0 | H35: =SUMIFS(Indirect!V:V,Indirect!AK:AK,"EC",Indirect!B:B,'Gold Partners'!A35) -> 0 | I35: =SUMIFS(Indirect!Y:Y,Indirect!AK:AK,"EC",Indirect!B:B,'Gold Partners'!A35) -> 0 | J35: 0 | K35: =SUMIFS(Indirect!AA:AA,Indirect!AL:AL,"EC",Indirect!B:B,'Gold Partners'!A35) -> 0 | L35: =SUMIFS(Indirect!AB:AB,Indirect!AL:AL,"EC",Indirect!B:B,'Gold Partners'!A35) -> 0 | M35: 0 | N35: - | O35: =L35/#REF! ->  | P35: 0 | Q35: 0.0% | R35: =Q35*#REF! -> 
A36: High Times Education Wuhan Co Ltd | B36: =SUMIFS(Indirect!N:N,Indirect!AI:AI,"EC",Indirect!B:B,'Gold Partners'!A36) -> 3 | C36: =SUMIFS(Indirect!O:O,Indirect!AI:AI,"EC",Indirect!B:B,'Gold Partners'!A36) -> 2 | D36: 5 | E36: =SUMIFS(Indirect!Q:Q,Indirect!AJ:AJ,"EC",Indirect!B:B,'Gold Partners'!A36) -> 0 | F36: =SUMIFS(Indirect!R:R,Indirect!AJ:AJ,"EC",Indirect!B:B,'Gold Partners'!A36) -> 2 | G36: 2 | H36: =SUMIFS(Indirect!V:V,Indirect!AK:AK,"EC",Indirect!B:B,'Gold Partners'!A36) -> 0 | I36: =SUMIFS(Indirect!Y:Y,Indirect!AK:AK,"EC",Indirect!B:B,'Gold Partners'!A36) -> 1 | J36: 1 | K36: =SUMIFS(Indirect!AA:AA,Indirect!AL:AL,"EC",Indirect!B:B,'Gold Partners'!A36) -> 0 | L36: =SUMIFS(Indirect!AB:AB,Indirect!AL:AL,"EC",Indirect!B:B,'Gold Partners'!A36) -> 0 | M36: 0 | N36: -100% | O36: =L36/#REF! ->  | P36: -1 | Q36: 1.4% | R36: =Q36*#REF! -> 
A37: Itec LLC | B37: =SUMIFS(Indirect!N:N,Indirect!AI:AI,"EC",Indirect!B:B,'Gold Partners'!A37) -> 0 | C37: =SUMIFS(Indirect!O:O,Indirect!AI:AI,"EC",Indirect!B:B,'Gold Partners'!A37) -> 1 | D37: 1 | E37: =SUMIFS(Indirect!Q:Q,Indirect!AJ:AJ,"EC",Indirect!B:B,'Gold Partners'!A37) -> 0 | F37: =SUMIFS(Indirect!R:R,Indirect!AJ:AJ,"EC",Indirect!B:B,'Gold Partners'!A37) -> 3 | G37: 3 | H37: =SUMIFS(Indirect!V:V,Indirect!AK:AK,"EC",Indirect!B:B,'Gold Partners'!A37) -> 1 | I37: =SUMIFS(Indirect!Y:Y,Indirect!AK:AK,"EC",Indirect!B:B,'Gold Partners'!A37) -> 1 | J37: 2 | K37: =SUMIFS(Indirect!AA:AA,Indirect!AL:AL,"EC",Indirect!B:B,'Gold Partners'!A37) -> 0 | L37: =SUMIFS(Indirect!AB:AB,Indirect!AL:AL,"EC",Indirect!B:B,'Gold Partners'!A37) -> 0 | M37: 0 | N37: -100% | O37: =L37/#REF! ->  | P37: -1 | Q37: 1.4% | R37: =Q37*#REF! -> 
A38: LLC Domar Travel Education | B38: =SUMIFS(Indirect!N:N,Indirect!AI:AI,"EC",Indirect!B:B,'Gold Partners'!A38) -> 0 | C38: =SUMIFS(Indirect!O:O,Indirect!AI:AI,"EC",Indirect!B:B,'Gold Partners'!A38) -> 1 | D38: 1 | E38: =SUMIFS(Indirect!Q:Q,Indirect!AJ:AJ,"EC",Indirect!B:B,'Gold Partners'!A38) -> 0 | F38: =SUMIFS(Indirect!R:R,Indirect!AJ:AJ,"EC",Indirect!B:B,'Gold Partners'!A38) -> 0 | G38: 0 | H38: =SUMIFS(Indirect!V:V,Indirect!AK:AK,"EC",Indirect!B:B,'Gold Partners'!A38) -> 0 | I38: =SUMIFS(Indirect!Y:Y,Indirect!AK:AK,"EC",Indirect!B:B,'Gold Partners'!A38) -> 1 | J38: 1 | K38: =SUMIFS(Indirect!AA:AA,Indirect!AL:AL,"EC",Indirect!B:B,'Gold Partners'!A38) -> 0 | L38: =SUMIFS(Indirect!AB:AB,Indirect!AL:AL,"EC",Indirect!B:B,'Gold Partners'!A38) -> 0 | M38: 0 | N38: -100% | O38: =L38/#REF! ->  | P38: -1 | Q38: 1.4% | R38: =Q38*#REF! -> 
A39: Study Bridge LLC | B39: =SUMIFS(Indirect!N:N,Indirect!AI:AI,"EC",Indirect!B:B,'Gold Partners'!A39) -> 0 | C39: =SUMIFS(Indirect!O:O,Indirect!AI:AI,"EC",Indirect!B:B,'Gold Partners'!A39) -> 0 | D39: 0 | E39: =SUMIFS(Indirect!Q:Q,Indirect!AJ:AJ,"EC",Indirect!B:B,'Gold Partners'!A39) -> 0 | F39: =SUMIFS(Indirect!R:R,Indirect!AJ:AJ,"EC",Indirect!B:B,'Gold Partners'!A39) -> 3 | G39: 3 | H39: =SUMIFS(Indirect!V:V,Indirect!AK:AK,"EC",Indirect!B:B,'Gold Partners'!A39) -> 0 | I39: =SUMIFS(Indirect!Y:Y,Indirect!AK:AK,"EC",Indirect!B:B,'Gold Partners'!A39) -> 1 | J39: 1 | K39: =SUMIFS(Indirect!AA:AA,Indirect!AL:AL,"EC",Indirect!B:B,'Gold Partners'!A39) -> 0 | L39: =SUMIFS(Indirect!AB:AB,Indirect!AL:AL,"EC",Indirect!B:B,'Gold Partners'!A39) -> 0 | M39: 0 | N39: -100% | O39: =L39/#REF! ->  | P39: -1 | Q39: 1.4% | R39: =Q39*#REF! -> 
A40: Education International Cooperation (EIC) Group Limited | B40: =SUMIFS(Indirect!N:N,Indirect!AI:AI,"EC",Indirect!B:B,'Gold Partners'!A40) -> 3 | C40: =SUMIFS(Indirect!O:O,Indirect!AI:AI,"EC",Indirect!B:B,'Gold Partners'!A40) -> 5 | D40: 8 | E40: =SUMIFS(Indirect!Q:Q,Indirect!AJ:AJ,"EC",Indirect!B:B,'Gold Partners'!A40) -> 2 | F40: =SUMIFS(Indirect!R:R,Indirect!AJ:AJ,"EC",Indirect!B:B,'Gold Partners'!A40) -> 5 | G40: 7 | H40: =SUMIFS(Indirect!V:V,Indirect!AK:AK,"EC",Indirect!B:B,'Gold Partners'!A40) -> 1 | I40: =SUMIFS(Indirect!Y:Y,Indirect!AK:AK,"EC",Indirect!B:B,'Gold Partners'!A40) -> 1 | J40: 2 | K40: =SUMIFS(Indirect!AA:AA,Indirect!AL:AL,"EC",Indirect!B:B,'Gold Partners'!A40) -> 0 | L40: =SUMIFS(Indirect!AB:AB,Indirect!AL:AL,"EC",Indirect!B:B,'Gold Partners'!A40) -> 0 | M40: 0 | N40: -100% | O40: =L40/#REF! ->  | P40: -1 | Q40: 1.4% | R40: =Q40*#REF! -> 
A41: Erez Ovadia | B41: =SUMIFS(Indirect!N:N,Indirect!AI:AI,"EC",Indirect!B:B,'Gold Partners'!A41) -> 0 | C41: =SUMIFS(Indirect!O:O,Indirect!AI:AI,"EC",Indirect!B:B,'Gold Partners'!A41) -> 1 | D41: 1 | E41: =SUMIFS(Indirect!Q:Q,Indirect!AJ:AJ,"EC",Indirect!B:B,'Gold Partners'!A41) -> 2 | F41: =SUMIFS(Indirect!R:R,Indirect!AJ:AJ,"EC",Indirect!B:B,'Gold Partners'!A41) -> 0 | G41: 2 | H41: =SUMIFS(Indirect!V:V,Indirect!AK:AK,"EC",Indirect!B:B,'Gold Partners'!A41) -> 1 | I41: =SUMIFS(Indirect!Y:Y,Indirect!AK:AK,"EC",Indirect!B:B,'Gold Partners'!A41) -> 1 | J41: 2 | K41: =SUMIFS(Indirect!AA:AA,Indirect!AL:AL,"EC",Indirect!B:B,'Gold Partners'!A41) -> 0 | L41: =SUMIFS(Indirect!AB:AB,Indirect!AL:AL,"EC",Indirect!B:B,'Gold Partners'!A41) -> 0 | M41: 0 | N41: -100% | O41: =L41/#REF! ->  | P41: -1 | Q41: 1.4% | R41: =Q41*#REF! -> 
A42: PT. VIC Indonesia | B42: =SUMIFS(Indirect!N:N,Indirect!AI:AI,"EC",Indirect!B:B,'Gold Partners'!A42) -> 1 | C42: =SUMIFS(Indirect!O:O,Indirect!AI:AI,"EC",Indirect!B:B,'Gold Partners'!A42) -> 5 | D42: 6 | E42: =SUMIFS(Indirect!Q:Q,Indirect!AJ:AJ,"EC",Indirect!B:B,'Gold Partners'!A42) -> 0 | F42: =SUMIFS(Indirect!R:R,Indirect!AJ:AJ,"EC",Indirect!B:B,'Gold Partners'!A42) -> 1 | G42: 1 | H42: =SUMIFS(Indirect!V:V,Indirect!AK:AK,"EC",Indirect!B:B,'Gold Partners'!A42) -> 0 | I42: =SUMIFS(Indirect!Y:Y,Indirect!AK:AK,"EC",Indirect!B:B,'Gold Partners'!A42) -> 0 | J42: 0 | K42: =SUMIFS(Indirect!AA:AA,Indirect!AL:AL,"EC",Indirect!B:B,'Gold Partners'!A42) -> 0 | L42: =SUMIFS(Indirect!AB:AB,Indirect!AL:AL,"EC",Indirect!B:B,'Gold Partners'!A42) -> 0 | M42: 0 | N42: - | O42: =L42/#REF! ->  | P42: 0 | Q42: 0.0% | R42: =Q42*#REF! -> 
A43: StudyLab Ltd | B43: =SUMIFS(Indirect!N:N,Indirect!AI:AI,"EC",Indirect!B:B,'Gold Partners'!A43) -> 0 | C43: =SUMIFS(Indirect!O:O,Indirect!AI:AI,"EC",Indirect!B:B,'Gold Partners'!A43) -> 1 | D43: 1 | E43: =SUMIFS(Indirect!Q:Q,Indirect!AJ:AJ,"EC",Indirect!B:B,'Gold Partners'!A43) -> 0 | F43: =SUMIFS(Indirect!R:R,Indirect!AJ:AJ,"EC",Indirect!B:B,'Gold Partners'!A43) -> 1 | G43: 1 | H43: =SUMIFS(Indirect!V:V,Indirect!AK:AK,"EC",Indirect!B:B,'Gold Partners'!A43) -> 0 | I43: =SUMIFS(Indirect!Y:Y,Indirect!AK:AK,"EC",Indirect!B:B,'Gold Partners'!A43) -> 0 | J43: 0 | K43: =SUMIFS(Indirect!AA:AA,Indirect!AL:AL,"EC",Indirect!B:B,'Gold Partners'!A43) -> 0 | L43: =SUMIFS(Indirect!AB:AB,Indirect!AL:AL,"EC",Indirect!B:B,'Gold Partners'!A43) -> 0 | M43: 0 | N43: - | O43: =L43/#REF! ->  | P43: 0 | Q43: 0.0% | R43: =Q43*#REF! -> 
A44: Asmahan Azzam | B44: =SUMIFS(Indirect!N:N,Indirect!AI:AI,"EC",Indirect!B:B,'Gold Partners'!A44) -> 0 | C44: =SUMIFS(Indirect!O:O,Indirect!AI:AI,"EC",Indirect!B:B,'Gold Partners'!A44) -> 0 | D44: 0 | E44: =SUMIFS(Indirect!Q:Q,Indirect!AJ:AJ,"EC",Indirect!B:B,'Gold Partners'!A44) -> 1 | F44: =SUMIFS(Indirect!R:R,Indirect!AJ:AJ,"EC",Indirect!B:B,'Gold Partners'!A44) -> 0 | G44: 1 | H44: =SUMIFS(Indirect!V:V,Indirect!AK:AK,"EC",Indirect!B:B,'Gold Partners'!A44) -> 0 | I44: =SUMIFS(Indirect!Y:Y,Indirect!AK:AK,"EC",Indirect!B:B,'Gold Partners'!A44) -> 0 | J44: 0 | K44: =SUMIFS(Indirect!AA:AA,Indirect!AL:AL,"EC",Indirect!B:B,'Gold Partners'!A44) -> 0 | L44: =SUMIFS(Indirect!AB:AB,Indirect!AL:AL,"EC",Indirect!B:B,'Gold Partners'!A44) -> 0 | M44: 0 | N44: - | O44: =L44/#REF! ->  | P44: 0 | Q44: 0.0% | R44: =Q44*#REF! -> 
A45: Edumar Danismanlik Ve Yurt disi Egitim Hizmetleri Ltd. STI | B45: =SUMIFS(Indirect!N:N,Indirect!AI:AI,"EC",Indirect!B:B,'Gold Partners'!A45) -> 0 | C45: =SUMIFS(Indirect!O:O,Indirect!AI:AI,"EC",Indirect!B:B,'Gold Partners'!A45) -> 1 | D45: 1 | E45: =SUMIFS(Indirect!Q:Q,Indirect!AJ:AJ,"EC",Indirect!B:B,'Gold Partners'!A45) -> 0 | F45: =SUMIFS(Indirect!R:R,Indirect!AJ:AJ,"EC",Indirect!B:B,'Gold Partners'!A45) -> 0 | G45: 0 | H45: =SUMIFS(Indirect!V:V,Indirect!AK:AK,"EC",Indirect!B:B,'Gold Partners'!A45) -> 0 | I45: =SUMIFS(Indirect!Y:Y,Indirect!AK:AK,"EC",Indirect!B:B,'Gold Partners'!A45) -> 0 | J45: 0 | K45: =SUMIFS(Indirect!AA:AA,Indirect!AL:AL,"EC",Indirect!B:B,'Gold Partners'!A45) -> 0 | L45: =SUMIFS(Indirect!AB:AB,Indirect!AL:AL,"EC",Indirect!B:B,'Gold Partners'!A45) -> 0 | M45: 0 | N45: - | O45: =L45/#REF! ->  | P45: 0 | Q45: 0.0% | R45: =Q45*#REF! -> 
A46: Global Dialog LLC | B46: =SUMIFS(Indirect!N:N,Indirect!AI:AI,"EC",Indirect!B:B,'Gold Partners'!A46) -> 0 | C46: =SUMIFS(Indirect!O:O,Indirect!AI:AI,"EC",Indirect!B:B,'Gold Partners'!A46) -> 1 | D46: 1 | E46: =SUMIFS(Indirect!Q:Q,Indirect!AJ:AJ,"EC",Indirect!B:B,'Gold Partners'!A46) -> 0 | F46: =SUMIFS(Indirect!R:R,Indirect!AJ:AJ,"EC",Indirect!B:B,'Gold Partners'!A46) -> 0 | G46: 0 | H46: =SUMIFS(Indirect!V:V,Indirect!AK:AK,"EC",Indirect!B:B,'Gold Partners'!A46) -> 0 | I46: =SUMIFS(Indirect!Y:Y,Indirect!AK:AK,"EC",Indirect!B:B,'Gold Partners'!A46) -> 0 | J46: 0 | K46: =SUMIFS(Indirect!AA:AA,Indirect!AL:AL,"EC",Indirect!B:B,'Gold Partners'!A46) -> 0 | L46: =SUMIFS(Indirect!AB:AB,Indirect!AL:AL,"EC",Indirect!B:B,'Gold Partners'!A46) -> 0 | M46: 0 | N46: - | O46: =L46/#REF! ->  | P46: 0 | Q46: 0.0% | R46: =Q46*#REF! -> 
A47: Horizon Egitim ve Danismanlik | B47: =SUMIFS(Indirect!N:N,Indirect!AI:AI,"EC",Indirect!B:B,'Gold Partners'!A47) -> 0 | C47: =SUMIFS(Indirect!O:O,Indirect!AI:AI,"EC",Indirect!B:B,'Gold Partners'!A47) -> 1 | D47: 1 | E47: =SUMIFS(Indirect!Q:Q,Indirect!AJ:AJ,"EC",Indirect!B:B,'Gold Partners'!A47) -> 0 | F47: =SUMIFS(Indirect!R:R,Indirect!AJ:AJ,"EC",Indirect!B:B,'Gold Partners'!A47) -> 0 | G47: 0 | H47: =SUMIFS(Indirect!V:V,Indirect!AK:AK,"EC",Indirect!B:B,'Gold Partners'!A47) -> 0 | I47: =SUMIFS(Indirect!Y:Y,Indirect!AK:AK,"EC",Indirect!B:B,'Gold Partners'!A47) -> 0 | J47: 0 | K47: =SUMIFS(Indirect!AA:AA,Indirect!AL:AL,"EC",Indirect!B:B,'Gold Partners'!A47) -> 0 | L47: =SUMIFS(Indirect!AB:AB,Indirect!AL:AL,"EC",Indirect!B:B,'Gold Partners'!A47) -> 0 | M47: 0 | N47: - | O47: =L47/#REF! ->  | P47: 0 | Q47: 0.0% | R47: =Q47*#REF! -> 
A48: SAN Ltd. | B48: =SUMIFS(Indirect!N:N,Indirect!AI:AI,"EC",Indirect!B:B,'Gold Partners'!A48) -> 0 | C48: =SUMIFS(Indirect!O:O,Indirect!AI:AI,"EC",Indirect!B:B,'Gold Partners'!A48) -> 1 | D48: 1 | E48: =SUMIFS(Indirect!Q:Q,Indirect!AJ:AJ,"EC",Indirect!B:B,'Gold Partners'!A48) -> 0 | F48: =SUMIFS(Indirect!R:R,Indirect!AJ:AJ,"EC",Indirect!B:B,'Gold Partners'!A48) -> 0 | G48: 0 | H48: =SUMIFS(Indirect!V:V,Indirect!AK:AK,"EC",Indirect!B:B,'Gold Partners'!A48) -> 0 | I48: =SUMIFS(Indirect!Y:Y,Indirect!AK:AK,"EC",Indirect!B:B,'Gold Partners'!A48) -> 0 | J48: 0 | K48: =SUMIFS(Indirect!AA:AA,Indirect!AL:AL,"EC",Indirect!B:B,'Gold Partners'!A48) -> 0 | L48: =SUMIFS(Indirect!AB:AB,Indirect!AL:AL,"EC",Indirect!B:B,'Gold Partners'!A48) -> 0 | M48: 0 | N48: - | O48: =L48/#REF! ->  | P48: 0 | Q48: 0.0% | R48: =Q48*#REF! -> 
A49: Swisslinx | B49: =SUMIFS(Indirect!N:N,Indirect!AI:AI,"EC",Indirect!B:B,'Gold Partners'!A49) -> 0 | C49: =SUMIFS(Indirect!O:O,Indirect!AI:AI,"EC",Indirect!B:B,'Gold Partners'!A49) -> 1 | D49: 1 | E49: =SUMIFS(Indirect!Q:Q,Indirect!AJ:AJ,"EC",Indirect!B:B,'Gold Partners'!A49) -> 0 | F49: =SUMIFS(Indirect!R:R,Indirect!AJ:AJ,"EC",Indirect!B:B,'Gold Partners'!A49) -> 0 | G49: 0 | H49: =SUMIFS(Indirect!V:V,Indirect!AK:AK,"EC",Indirect!B:B,'Gold Partners'!A49) -> 0 | I49: =SUMIFS(Indirect!Y:Y,Indirect!AK:AK,"EC",Indirect!B:B,'Gold Partners'!A49) -> 0 | J49: 0 | K49: =SUMIFS(Indirect!AA:AA,Indirect!AL:AL,"EC",Indirect!B:B,'Gold Partners'!A49) -> 0 | L49: =SUMIFS(Indirect!AB:AB,Indirect!AL:AL,"EC",Indirect!B:B,'Gold Partners'!A49) -> 0 | M49: 0 | N49: - | O49: =L49/#REF! ->  | P49: 0 | Q49: 0.0% | R49: =Q49*#REF! -> 
A50: JSC Ego Perfectus | B50: =SUMIFS(Indirect!N:N,Indirect!AI:AI,"EC",Indirect!B:B,'Gold Partners'!A50) -> 0 | C50: =SUMIFS(Indirect!O:O,Indirect!AI:AI,"EC",Indirect!B:B,'Gold Partners'!A50) -> 0 | D50: 0 | E50: =SUMIFS(Indirect!Q:Q,Indirect!AJ:AJ,"EC",Indirect!B:B,'Gold Partners'!A50) -> 0 | F50: =SUMIFS(Indirect!R:R,Indirect!AJ:AJ,"EC",Indirect!B:B,'Gold Partners'!A50) -> 1 | G50: 1 | H50: =SUMIFS(Indirect!V:V,Indirect!AK:AK,"EC",Indirect!B:B,'Gold Partners'!A50) -> 0 | I50: =SUMIFS(Indirect!Y:Y,Indirect!AK:AK,"EC",Indirect!B:B,'Gold Partners'!A50) -> 0 | J50: 0 | K50: =SUMIFS(Indirect!AA:AA,Indirect!AL:AL,"EC",Indirect!B:B,'Gold Partners'!A50) -> 0 | L50: =SUMIFS(Indirect!AB:AB,Indirect!AL:AL,"EC",Indirect!B:B,'Gold Partners'!A50) -> 0 | M50: 0 | N50: - | O50: =L50/#REF! ->  | P50: 0 | Q50: 0.0% | R50: =Q50*#REF! -> 
A51: Peniel Doxa GH LTD | B51: =SUMIFS(Indirect!N:N,Indirect!AI:AI,"EC",Indirect!B:B,'Gold Partners'!A51) -> 0 | C51: =SUMIFS(Indirect!O:O,Indirect!AI:AI,"EC",Indirect!B:B,'Gold Partners'!A51) -> 0 | D51: 0 | E51: =SUMIFS(Indirect!Q:Q,Indirect!AJ:AJ,"EC",Indirect!B:B,'Gold Partners'!A51) -> 0 | F51: =SUMIFS(Indirect!R:R,Indirect!AJ:AJ,"EC",Indirect!B:B,'Gold Partners'!A51) -> 1 | G51: 1 | H51: =SUMIFS(Indirect!V:V,Indirect!AK:AK,"EC",Indirect!B:B,'Gold Partners'!A51) -> 0 | I51: =SUMIFS(Indirect!Y:Y,Indirect!AK:AK,"EC",Indirect!B:B,'Gold Partners'!A51) -> 0 | J51: 0 | K51: =SUMIFS(Indirect!AA:AA,Indirect!AL:AL,"EC",Indirect!B:B,'Gold Partners'!A51) -> 0 | L51: =SUMIFS(Indirect!AB:AB,Indirect!AL:AL,"EC",Indirect!B:B,'Gold Partners'!A51) -> 0 | M51: 0 | N51: - | O51: =L51/#REF! ->  | P51: 0 | Q51: 0.0% | R51: =Q51*#REF! -> 
A52: Fiza Tariq | B52: =SUMIFS(Indirect!N:N,Indirect!AI:AI,"EC",Indirect!B:B,'Gold Partners'!A52) -> 1 | C52: =SUMIFS(Indirect!O:O,Indirect!AI:AI,"EC",Indirect!B:B,'Gold Partners'!A52) -> 0 | D52: 1 | E52: =SUMIFS(Indirect!Q:Q,Indirect!AJ:AJ,"EC",Indirect!B:B,'Gold Partners'!A52) -> 0 | F52: =SUMIFS(Indirect!R:R,Indirect!AJ:AJ,"EC",Indirect!B:B,'Gold Partners'!A52) -> 0 | G52: 0 | H52: =SUMIFS(Indirect!V:V,Indirect!AK:AK,"EC",Indirect!B:B,'Gold Partners'!A52) -> 0 | I52: =SUMIFS(Indirect!Y:Y,Indirect!AK:AK,"EC",Indirect!B:B,'Gold Partners'!A52) -> 0 | J52: 0 | K52: =SUMIFS(Indirect!AA:AA,Indirect!AL:AL,"EC",Indirect!B:B,'Gold Partners'!A52) -> 0 | L52: =SUMIFS(Indirect!AB:AB,Indirect!AL:AL,"EC",Indirect!B:B,'Gold Partners'!A52) -> 0 | M52: 0 | N52: - | O52: =L52/#REF! ->  | P52: 0 | Q52: 0.0% | R52: =Q52*#REF! -> 
A53: Susan Michelmore | B53: =SUMIFS(Indirect!N:N,Indirect!AI:AI,"EC",Indirect!B:B,'Gold Partners'!A53) -> 0 | C53: =SUMIFS(Indirect!O:O,Indirect!AI:AI,"EC",Indirect!B:B,'Gold Partners'!A53) -> 1 | D53: 1 | E53: =SUMIFS(Indirect!Q:Q,Indirect!AJ:AJ,"EC",Indirect!B:B,'Gold Partners'!A53) -> 0 | F53: =SUMIFS(Indirect!R:R,Indirect!AJ:AJ,"EC",Indirect!B:B,'Gold Partners'!A53) -> 1 | G53: 1 | H53: =SUMIFS(Indirect!V:V,Indirect!AK:AK,"EC",Indirect!B:B,'Gold Partners'!A53) -> 0 | I53: =SUMIFS(Indirect!Y:Y,Indirect!AK:AK,"EC",Indirect!B:B,'Gold Partners'!A53) -> 0 | J53: 0 | K53: =SUMIFS(Indirect!AA:AA,Indirect!AL:AL,"EC",Indirect!B:B,'Gold Partners'!A53) -> 0 | L53: =SUMIFS(Indirect!AB:AB,Indirect!AL:AL,"EC",Indirect!B:B,'Gold Partners'!A53) -> 0 | M53: 0 | N53: - | O53: =L53/#REF! ->  | P53: 0 | Q53: 0.0% | R53: =Q53*#REF! -> 
A54: Burnett Global Education Ltd | B54: =SUMIFS(Indirect!N:N,Indirect!AI:AI,"EC",Indirect!B:B,'Gold Partners'!A54) -> 8 | C54: =SUMIFS(Indirect!O:O,Indirect!AI:AI,"EC",Indirect!B:B,'Gold Partners'!A54) -> 28 | D54: 36 | E54: =SUMIFS(Indirect!Q:Q,Indirect!AJ:AJ,"EC",Indirect!B:B,'Gold Partners'!A54) -> 8 | F54: =SUMIFS(Indirect!R:R,Indirect!AJ:AJ,"EC",Indirect!B:B,'Gold Partners'!A54) -> 24 | G54: 32 | H54: =SUMIFS(Indirect!V:V,Indirect!AK:AK,"EC",Indirect!B:B,'Gold Partners'!A54) -> 0 | I54: =SUMIFS(Indirect!Y:Y,Indirect!AK:AK,"EC",Indirect!B:B,'Gold Partners'!A54) -> 0 | J54: 0 | K54: =SUMIFS(Indirect!AA:AA,Indirect!AL:AL,"EC",Indirect!B:B,'Gold Partners'!A54) -> 0 | L54: =SUMIFS(Indirect!AB:AB,Indirect!AL:AL,"EC",Indirect!B:B,'Gold Partners'!A54) -> 0 | M54: 0 | N54: - | O54: =L54/#REF! ->  | P54: 0 | Q54: 0.0% | R54: =Q54*#REF! -> 
A55: Eruditus LLC | B55: =SUMIFS(Indirect!N:N,Indirect!AI:AI,"EC",Indirect!B:B,'Gold Partners'!A55) -> 0 | C55: =SUMIFS(Indirect!O:O,Indirect!AI:AI,"EC",Indirect!B:B,'Gold Partners'!A55) -> 0 | D55: 0 | E55: =SUMIFS(Indirect!Q:Q,Indirect!AJ:AJ,"EC",Indirect!B:B,'Gold Partners'!A55) -> 0 | F55: =SUMIFS(Indirect!R:R,Indirect!AJ:AJ,"EC",Indirect!B:B,'Gold Partners'!A55) -> 0 | G55: 0 | H55: =SUMIFS(Indirect!V:V,Indirect!AK:AK,"EC",Indirect!B:B,'Gold Partners'!A55) -> 0 | I55: =SUMIFS(Indirect!Y:Y,Indirect!AK:AK,"EC",Indirect!B:B,'Gold Partners'!A55) -> 0 | J55: 0 | K55: =SUMIFS(Indirect!AA:AA,Indirect!AL:AL,"EC",Indirect!B:B,'Gold Partners'!A55) -> 0 | L55: =SUMIFS(Indirect!AB:AB,Indirect!AL:AL,"EC",Indirect!B:B,'Gold Partners'!A55) -> 0 | M55: 0 | N55: - | O55: =L55/#REF! ->  | P55: 0 | Q55: 0.0% | R55: =Q55*#REF! -> 
A56: Leading Choice, The Global Hospitality Counsellors de Emil Razvan Pirjol | B56: =SUMIFS(Indirect!N:N,Indirect!AI:AI,"EC",Indirect!B:B,'Gold Partners'!A56) -> 0 | C56: =SUMIFS(Indirect!O:O,Indirect!AI:AI,"EC",Indirect!B:B,'Gold Partners'!A56) -> 1 | D56: 1 | E56: =SUMIFS(Indirect!Q:Q,Indirect!AJ:AJ,"EC",Indirect!B:B,'Gold Partners'!A56) -> 0 | F56: =SUMIFS(Indirect!R:R,Indirect!AJ:AJ,"EC",Indirect!B:B,'Gold Partners'!A56) -> 1 | G56: 1 | H56: =SUMIFS(Indirect!V:V,Indirect!AK:AK,"EC",Indirect!B:B,'Gold Partners'!A56) -> 0 | I56: =SUMIFS(Indirect!Y:Y,Indirect!AK:AK,"EC",Indirect!B:B,'Gold Partners'!A56) -> 0 | J56: 0 | K56: =SUMIFS(Indirect!AA:AA,Indirect!AL:AL,"EC",Indirect!B:B,'Gold Partners'!A56) -> 0 | L56: =SUMIFS(Indirect!AB:AB,Indirect!AL:AL,"EC",Indirect!B:B,'Gold Partners'!A56) -> 0 | M56: 0 | N56: - | O56: =L56/#REF! ->  | P56: 0 | Q56: 0.0% | R56: =Q56*#REF! -> 
A57: Career Enhancement Global Consultants | B57: =SUMIFS(Indirect!N:N,Indirect!AI:AI,"EC",Indirect!B:B,'Gold Partners'!A57) -> 0 | C57: =SUMIFS(Indirect!O:O,Indirect!AI:AI,"EC",Indirect!B:B,'Gold Partners'!A57) -> 0 | D57: 0 | E57: =SUMIFS(Indirect!Q:Q,Indirect!AJ:AJ,"EC",Indirect!B:B,'Gold Partners'!A57) -> 0 | F57: =SUMIFS(Indirect!R:R,Indirect!AJ:AJ,"EC",Indirect!B:B,'Gold Partners'!A57) -> 0 | G57: 0 | H57: =SUMIFS(Indirect!V:V,Indirect!AK:AK,"EC",Indirect!B:B,'Gold Partners'!A57) -> 0 | I57: =SUMIFS(Indirect!Y:Y,Indirect!AK:AK,"EC",Indirect!B:B,'Gold Partners'!A57) -> 0 | J57: 0 | K57: =SUMIFS(Indirect!AA:AA,Indirect!AL:AL,"EC",Indirect!B:B,'Gold Partners'!A57) -> 0 | L57: =SUMIFS(Indirect!AB:AB,Indirect!AL:AL,"EC",Indirect!B:B,'Gold Partners'!A57) -> 0 | M57: 0 | N57: - | O57: =L57/#REF! ->  | P57: 0 | Q57: 0.0% | R57: =Q57*#REF! -> 
A58: Cedarwood Consulting Ltd | B58: =SUMIFS(Indirect!N:N,Indirect!AI:AI,"EC",Indirect!B:B,'Gold Partners'!A58) -> 0 | C58: =SUMIFS(Indirect!O:O,Indirect!AI:AI,"EC",Indirect!B:B,'Gold Partners'!A58) -> 5 | D58: 5 | E58: =SUMIFS(Indirect!Q:Q,Indirect!AJ:AJ,"EC",Indirect!B:B,'Gold Partners'!A58) -> 0 | F58: =SUMIFS(Indirect!R:R,Indirect!AJ:AJ,"EC",Indirect!B:B,'Gold Partners'!A58) -> 0 | G58: 0 | H58: =SUMIFS(Indirect!V:V,Indirect!AK:AK,"EC",Indirect!B:B,'Gold Partners'!A58) -> 0 | I58: =SUMIFS(Indirect!Y:Y,Indirect!AK:AK,"EC",Indirect!B:B,'Gold Partners'!A58) -> 0 | J58: 0 | K58: =SUMIFS(Indirect!AA:AA,Indirect!AL:AL,"EC",Indirect!B:B,'Gold Partners'!A58) -> 0 | L58: =SUMIFS(Indirect!AB:AB,Indirect!AL:AL,"EC",Indirect!B:B,'Gold Partners'!A58) -> 0 | M58: 0 | N58: - | O58: =L58/#REF! ->  | P58: 0 | Q58: 0.0% | R58: =Q58*#REF! -> 
A59: Daphné Romaine Kaloudis | B59: =SUMIFS(Indirect!N:N,Indirect!AI:AI,"EC",Indirect!B:B,'Gold Partners'!A59) -> 0 | C59: =SUMIFS(Indirect!O:O,Indirect!AI:AI,"EC",Indirect!B:B,'Gold Partners'!A59) -> 0 | D59: 0 | E59: =SUMIFS(Indirect!Q:Q,Indirect!AJ:AJ,"EC",Indirect!B:B,'Gold Partners'!A59) -> 0 | F59: =SUMIFS(Indirect!R:R,Indirect!AJ:AJ,"EC",Indirect!B:B,'Gold Partners'!A59) -> 0 | G59: 0 | H59: =SUMIFS(Indirect!V:V,Indirect!AK:AK,"EC",Indirect!B:B,'Gold Partners'!A59) -> 0 | I59: =SUMIFS(Indirect!Y:Y,Indirect!AK:AK,"EC",Indirect!B:B,'Gold Partners'!A59) -> 0 | J59: 0 | K59: =SUMIFS(Indirect!AA:AA,Indirect!AL:AL,"EC",Indirect!B:B,'Gold Partners'!A59) -> 0 | L59: =SUMIFS(Indirect!AB:AB,Indirect!AL:AL,"EC",Indirect!B:B,'Gold Partners'!A59) -> 0 | M59: 0 | N59: - | O59: =L59/#REF! ->  | P59: 0 | Q59: 0.0% | R59: =Q59*#REF! -> 
A60: Peter and Ursula Helfer | B60: =SUMIFS(Indirect!N:N,Indirect!AI:AI,"EC",Indirect!B:B,'Gold Partners'!A60) -> 4 | C60: =SUMIFS(Indirect!O:O,Indirect!AI:AI,"EC",Indirect!B:B,'Gold Partners'!A60) -> 6 | D60: 10 | E60: =SUMIFS(Indirect!Q:Q,Indirect!AJ:AJ,"EC",Indirect!B:B,'Gold Partners'!A60) -> 4 | F60: =SUMIFS(Indirect!R:R,Indirect!AJ:AJ,"EC",Indirect!B:B,'Gold Partners'!A60) -> 10 | G60: 14 | H60: =SUMIFS(Indirect!V:V,Indirect!AK:AK,"EC",Indirect!B:B,'Gold Partners'!A60) -> 3 | I60: =SUMIFS(Indirect!Y:Y,Indirect!AK:AK,"EC",Indirect!B:B,'Gold Partners'!A60) -> 3 | J60: 6 | K60: =SUMIFS(Indirect!AA:AA,Indirect!AL:AL,"EC",Indirect!B:B,'Gold Partners'!A60) -> 1 | L60: =SUMIFS(Indirect!AB:AB,Indirect!AL:AL,"EC",Indirect!B:B,'Gold Partners'!A60) -> 3 | M60: 4 | N60: 0% | O60: =L60/#REF! ->  | P60: 0 | Q60: 0.0% | R60: =Q60*#REF! -> 
A61: Education Link Sverige AB | B61: =SUMIFS(Indirect!N:N,Indirect!AI:AI,"EC",Indirect!B:B,'Gold Partners'!A61) -> 0 | C61: =SUMIFS(Indirect!O:O,Indirect!AI:AI,"EC",Indirect!B:B,'Gold Partners'!A61) -> 1 | D61: 1 | E61: =SUMIFS(Indirect!Q:Q,Indirect!AJ:AJ,"EC",Indirect!B:B,'Gold Partners'!A61) -> 0 | F61: =SUMIFS(Indirect!R:R,Indirect!AJ:AJ,"EC",Indirect!B:B,'Gold Partners'!A61) -> 0 | G61: 0 | H61: =SUMIFS(Indirect!V:V,Indirect!AK:AK,"EC",Indirect!B:B,'Gold Partners'!A61) -> 0 | I61: =SUMIFS(Indirect!Y:Y,Indirect!AK:AK,"EC",Indirect!B:B,'Gold Partners'!A61) -> 0 | J61: 0 | K61: =SUMIFS(Indirect!AA:AA,Indirect!AL:AL,"EC",Indirect!B:B,'Gold Partners'!A61) -> 0 | L61: =SUMIFS(Indirect!AB:AB,Indirect!AL:AL,"EC",Indirect!B:B,'Gold Partners'!A61) -> 0 | M61: 0 | N61: - | O61: =L61/#REF! ->  | P61: 0 | Q61: 0.0% | R61: =Q61*#REF! -> 
A62: Grandland International Education China | B62: =SUMIFS(Indirect!N:N,Indirect!AI:AI,"EC",Indirect!B:B,'Gold Partners'!A62) -> 0 | C62: =SUMIFS(Indirect!O:O,Indirect!AI:AI,"EC",Indirect!B:B,'Gold Partners'!A62) -> 2 | D62: 2 | E62: =SUMIFS(Indirect!Q:Q,Indirect!AJ:AJ,"EC",Indirect!B:B,'Gold Partners'!A62) -> 0 | F62: =SUMIFS(Indirect!R:R,Indirect!AJ:AJ,"EC",Indirect!B:B,'Gold Partners'!A62) -> 3 | G62: 3 | H62: =SUMIFS(Indirect!V:V,Indirect!AK:AK,"EC",Indirect!B:B,'Gold Partners'!A62) -> 0 | I62: =SUMIFS(Indirect!Y:Y,Indirect!AK:AK,"EC",Indirect!B:B,'Gold Partners'!A62) -> 0 | J62: 0 | K62: =SUMIFS(Indirect!AA:AA,Indirect!AL:AL,"EC",Indirect!B:B,'Gold Partners'!A62) -> 0 | L62: =SUMIFS(Indirect!AB:AB,Indirect!AL:AL,"EC",Indirect!B:B,'Gold Partners'!A62) -> 0 | M62: 0 | N62: - | O62: =L62/#REF! ->  | P62: 0 | Q62: 0.0% | R62: =Q62*#REF! -> 
A63: Carolina Pallares | B63: =SUMIFS(Indirect!N:N,Indirect!AI:AI,"EC",Indirect!B:B,'Gold Partners'!A63) -> 1 | C63: =SUMIFS(Indirect!O:O,Indirect!AI:AI,"EC",Indirect!B:B,'Gold Partners'!A63) -> 2 | D63: 3 | E63: =SUMIFS(Indirect!Q:Q,Indirect!AJ:AJ,"EC",Indirect!B:B,'Gold Partners'!A63) -> 0 | F63: =SUMIFS(Indirect!R:R,Indirect!AJ:AJ,"EC",Indirect!B:B,'Gold Partners'!A63) -> 7 | G63: 7 | H63: =SUMIFS(Indirect!V:V,Indirect!AK:AK,"EC",Indirect!B:B,'Gold Partners'!A63) -> 1 | I63: =SUMIFS(Indirect!Y:Y,Indirect!AK:AK,"EC",Indirect!B:B,'Gold Partners'!A63) -> 4 | J63: 5 | K63: =SUMIFS(Indirect!AA:AA,Indirect!AL:AL,"EC",Indirect!B:B,'Gold Partners'!A63) -> 2 | L63: =SUMIFS(Indirect!AB:AB,Indirect!AL:AL,"EC",Indirect!B:B,'Gold Partners'!A63) -> 4 | M63: 6 | N63: 0% | O63: =L63/#REF! ->  | P63: 0 | Q63: 0.0% | R63: =Q63*#REF! -> 
A64: Henrique Ferraz Alvim Michalany | B64: =SUMIFS(Indirect!N:N,Indirect!AI:AI,"EC",Indirect!B:B,'Gold Partners'!A64) -> 0 | C64: =SUMIFS(Indirect!O:O,Indirect!AI:AI,"EC",Indirect!B:B,'Gold Partners'!A64) -> 0 | D64: 0 | E64: =SUMIFS(Indirect!Q:Q,Indirect!AJ:AJ,"EC",Indirect!B:B,'Gold Partners'!A64) -> 0 | F64: =SUMIFS(Indirect!R:R,Indirect!AJ:AJ,"EC",Indirect!B:B,'Gold Partners'!A64) -> 0 | G64: 0 | H64: =SUMIFS(Indirect!V:V,Indirect!AK:AK,"EC",Indirect!B:B,'Gold Partners'!A64) -> 0 | I64: =SUMIFS(Indirect!Y:Y,Indirect!AK:AK,"EC",Indirect!B:B,'Gold Partners'!A64) -> 0 | J64: 0 | K64: =SUMIFS(Indirect!AA:AA,Indirect!AL:AL,"EC",Indirect!B:B,'Gold Partners'!A64) -> 0 | L64: =SUMIFS(Indirect!AB:AB,Indirect!AL:AL,"EC",Indirect!B:B,'Gold Partners'!A64) -> 0 | M64: 0 | N64: - | O64: =L64/#REF! ->  | P64: 0 | Q64: 0.0% | R64: =Q64*#REF! -> 
A65: London Family Office Ltd | B65: =SUMIFS(Indirect!N:N,Indirect!AI:AI,"EC",Indirect!B:B,'Gold Partners'!A65) -> 0 | C65: =SUMIFS(Indirect!O:O,Indirect!AI:AI,"EC",Indirect!B:B,'Gold Partners'!A65) -> 0 | D65: 0 | E65: =SUMIFS(Indirect!Q:Q,Indirect!AJ:AJ,"EC",Indirect!B:B,'Gold Partners'!A65) -> 0 | F65: =SUMIFS(Indirect!R:R,Indirect!AJ:AJ,"EC",Indirect!B:B,'Gold Partners'!A65) -> 0 | G65: 0 | H65: =SUMIFS(Indirect!V:V,Indirect!AK:AK,"EC",Indirect!B:B,'Gold Partners'!A65) -> 0 | I65: =SUMIFS(Indirect!Y:Y,Indirect!AK:AK,"EC",Indirect!B:B,'Gold Partners'!A65) -> 0 | J65: 0 | K65: =SUMIFS(Indirect!AA:AA,Indirect!AL:AL,"EC",Indirect!B:B,'Gold Partners'!A65) -> 0 | L65: =SUMIFS(Indirect!AB:AB,Indirect!AL:AL,"EC",Indirect!B:B,'Gold Partners'!A65) -> 0 | M65: 0 | N65: - | O65: =L65/#REF! ->  | P65: 0 | Q65: 0.0% | R65: =Q65*#REF! -> 
A66: iae GLOBAL JAPAN, Inc. | B66: =SUMIFS(Indirect!N:N,Indirect!AI:AI,"EC",Indirect!B:B,'Gold Partners'!A66) -> 4 | C66: =SUMIFS(Indirect!O:O,Indirect!AI:AI,"EC",Indirect!B:B,'Gold Partners'!A66) -> 8 | D66: 12 | E66: =SUMIFS(Indirect!Q:Q,Indirect!AJ:AJ,"EC",Indirect!B:B,'Gold Partners'!A66) -> 4 | F66: =SUMIFS(Indirect!R:R,Indirect!AJ:AJ,"EC",Indirect!B:B,'Gold Partners'!A66) -> 8 | G66: 12 | H66: =SUMIFS(Indirect!V:V,Indirect!AK:AK,"EC",Indirect!B:B,'Gold Partners'!A66) -> 0 | I66: =SUMIFS(Indirect!Y:Y,Indirect!AK:AK,"EC",Indirect!B:B,'Gold Partners'!A66) -> 10 | J66: 10 | K66: =SUMIFS(Indirect!AA:AA,Indirect!AL:AL,"EC",Indirect!B:B,'Gold Partners'!A66) -> 3 | L66: =SUMIFS(Indirect!AB:AB,Indirect!AL:AL,"EC",Indirect!B:B,'Gold Partners'!A66) -> 8 | M66: =K66+L66 -> 11 | N66: =IFERROR(L66/I66-1,"-") -> -20% | O66: =L66/#REF! ->  | P66: =L66-I66 -> -2 | Q66: =P66/$P$104 -> 2.7% | R66: =Q66*#REF! -> 
A67: Soha Bahaaeldin Mohamed Mahmoud | B67: =SUMIFS(Indirect!N:N,Indirect!AI:AI,"EC",Indirect!B:B,'Gold Partners'!A67) -> 0 | C67: =SUMIFS(Indirect!O:O,Indirect!AI:AI,"EC",Indirect!B:B,'Gold Partners'!A67) -> 4 | D67: =B67+C67 -> 4 | E67: =SUMIFS(Indirect!Q:Q,Indirect!AJ:AJ,"EC",Indirect!B:B,'Gold Partners'!A67) -> 0 | F67: =SUMIFS(Indirect!R:R,Indirect!AJ:AJ,"EC",Indirect!B:B,'Gold Partners'!A67) -> 4 | G67: =E67+F67 -> 4 | H67: =SUMIFS(Indirect!V:V,Indirect!AK:AK,"EC",Indirect!B:B,'Gold Partners'!A67) -> 2 | I67: =SUMIFS(Indirect!Y:Y,Indirect!AK:AK,"EC",Indirect!B:B,'Gold Partners'!A67) -> 8 | J67: =H67+I67 -> 10 | K67: =SUMIFS(Indirect!AA:AA,Indirect!AL:AL,"EC",Indirect!B:B,'Gold Partners'!A67) -> 1 | L67: =SUMIFS(Indirect!AB:AB,Indirect!AL:AL,"EC",Indirect!B:B,'Gold Partners'!A67) -> 8 | M67: 9 | N67: 0% | O67: =L67/#REF! ->  | P67: 0 | Q67: 0.0% | R67: =Q67*#REF! -> 
A68: Starlet Services Co. Ltd | B68: =SUMIFS(Indirect!N:N,Indirect!AI:AI,"EC",Indirect!B:B,'Gold Partners'!A68) -> 0 | C68: =SUMIFS(Indirect!O:O,Indirect!AI:AI,"EC",Indirect!B:B,'Gold Partners'!A68) -> 0 | D68: 0 | E68: =SUMIFS(Indirect!Q:Q,Indirect!AJ:AJ,"EC",Indirect!B:B,'Gold Partners'!A68) -> 0 | F68: =SUMIFS(Indirect!R:R,Indirect!AJ:AJ,"EC",Indirect!B:B,'Gold Partners'!A68) -> 0 | G68: 0 | H68: =SUMIFS(Indirect!V:V,Indirect!AK:AK,"EC",Indirect!B:B,'Gold Partners'!A68) -> 0 | I68: =SUMIFS(Indirect!Y:Y,Indirect!AK:AK,"EC",Indirect!B:B,'Gold Partners'!A68) -> 0 | J68: 0 | K68: =SUMIFS(Indirect!AA:AA,Indirect!AL:AL,"EC",Indirect!B:B,'Gold Partners'!A68) -> 0 | L68: =SUMIFS(Indirect!AB:AB,Indirect!AL:AL,"EC",Indirect!B:B,'Gold Partners'!A68) -> 0 | M68: 0 | N68: - | O68: =L68/#REF! ->  | P68: 0 | Q68: 0.0% | R68: =Q68*#REF! -> 
A69: Study Plan International | B69: =SUMIFS(Indirect!N:N,Indirect!AI:AI,"EC",Indirect!B:B,'Gold Partners'!A69) -> 0 | C69: =SUMIFS(Indirect!O:O,Indirect!AI:AI,"EC",Indirect!B:B,'Gold Partners'!A69) -> 0 | D69: 0 | E69: =SUMIFS(Indirect!Q:Q,Indirect!AJ:AJ,"EC",Indirect!B:B,'Gold Partners'!A69) -> 0 | F69: =SUMIFS(Indirect!R:R,Indirect!AJ:AJ,"EC",Indirect!B:B,'Gold Partners'!A69) -> 0 | G69: 0 | H69: =SUMIFS(Indirect!V:V,Indirect!AK:AK,"EC",Indirect!B:B,'Gold Partners'!A69) -> 0 | I69: =SUMIFS(Indirect!Y:Y,Indirect!AK:AK,"EC",Indirect!B:B,'Gold Partners'!A69) -> 0 | J69: 0 | K69: =SUMIFS(Indirect!AA:AA,Indirect!AL:AL,"EC",Indirect!B:B,'Gold Partners'!A69) -> 0 | L69: =SUMIFS(Indirect!AB:AB,Indirect!AL:AL,"EC",Indirect!B:B,'Gold Partners'!A69) -> 0 | M69: 0 | N69: - | O69: =L69/#REF! ->  | P69: 0 | Q69: 0.0% | R69: =Q69*#REF! -> 
A70: Globus International | B70: =SUMIFS(Indirect!N:N,Indirect!AI:AI,"EC",Indirect!B:B,'Gold Partners'!A70) -> 0 | C70: =SUMIFS(Indirect!O:O,Indirect!AI:AI,"EC",Indirect!B:B,'Gold Partners'!A70) -> 1 | D70: 1 | E70: =SUMIFS(Indirect!Q:Q,Indirect!AJ:AJ,"EC",Indirect!B:B,'Gold Partners'!A70) -> 1 | F70: =SUMIFS(Indirect!R:R,Indirect!AJ:AJ,"EC",Indirect!B:B,'Gold Partners'!A70) -> 0 | G70: 1 | H70: =SUMIFS(Indirect!V:V,Indirect!AK:AK,"EC",Indirect!B:B,'Gold Partners'!A70) -> 0 | I70: =SUMIFS(Indirect!Y:Y,Indirect!AK:AK,"EC",Indirect!B:B,'Gold Partners'!A70) -> 0 | J70: 0 | K70: =SUMIFS(Indirect!AA:AA,Indirect!AL:AL,"EC",Indirect!B:B,'Gold Partners'!A70) -> 0 | L70: =SUMIFS(Indirect!AB:AB,Indirect!AL:AL,"EC",Indirect!B:B,'Gold Partners'!A70) -> 0 | M70: 0 | N70: - | O70: =L70/#REF! ->  | P70: 0 | Q70: 0.0% | R70: =Q70*#REF! -> 
A71: HOSPITALITY CONCEPTS FZ LLC | B71: =SUMIFS(Indirect!N:N,Indirect!AI:AI,"EC",Indirect!B:B,'Gold Partners'!A71) -> 0 | C71: =SUMIFS(Indirect!O:O,Indirect!AI:AI,"EC",Indirect!B:B,'Gold Partners'!A71) -> 0 | D71: 0 | E71: =SUMIFS(Indirect!Q:Q,Indirect!AJ:AJ,"EC",Indirect!B:B,'Gold Partners'!A71) -> 0 | F71: =SUMIFS(Indirect!R:R,Indirect!AJ:AJ,"EC",Indirect!B:B,'Gold Partners'!A71) -> 0 | G71: 0 | H71: =SUMIFS(Indirect!V:V,Indirect!AK:AK,"EC",Indirect!B:B,'Gold Partners'!A71) -> 0 | I71: =SUMIFS(Indirect!Y:Y,Indirect!AK:AK,"EC",Indirect!B:B,'Gold Partners'!A71) -> 0 | J71: 0 | K71: =SUMIFS(Indirect!AA:AA,Indirect!AL:AL,"EC",Indirect!B:B,'Gold Partners'!A71) -> 0 | L71: =SUMIFS(Indirect!AB:AB,Indirect!AL:AL,"EC",Indirect!B:B,'Gold Partners'!A71) -> 0 | M71: 0 | N71: - | O71: =L71/#REF! ->  | P71: 0 | Q71: 0.0% | R71: =Q71*#REF! -> 
A72: I-Link Educational Services Co., Ltd | B72: =SUMIFS(Indirect!N:N,Indirect!AI:AI,"EC",Indirect!B:B,'Gold Partners'!A72) -> 1 | C72: =SUMIFS(Indirect!O:O,Indirect!AI:AI,"EC",Indirect!B:B,'Gold Partners'!A72) -> 0 | D72: 1 | E72: =SUMIFS(Indirect!Q:Q,Indirect!AJ:AJ,"EC",Indirect!B:B,'Gold Partners'!A72) -> 0 | F72: =SUMIFS(Indirect!R:R,Indirect!AJ:AJ,"EC",Indirect!B:B,'Gold Partners'!A72) -> 0 | G72: 0 | H72: =SUMIFS(Indirect!V:V,Indirect!AK:AK,"EC",Indirect!B:B,'Gold Partners'!A72) -> 0 | I72: =SUMIFS(Indirect!Y:Y,Indirect!AK:AK,"EC",Indirect!B:B,'Gold Partners'!A72) -> 0 | J72: 0 | K72: =SUMIFS(Indirect!AA:AA,Indirect!AL:AL,"EC",Indirect!B:B,'Gold Partners'!A72) -> 0 | L72: =SUMIFS(Indirect!AB:AB,Indirect!AL:AL,"EC",Indirect!B:B,'Gold Partners'!A72) -> 0 | M72: 0 | N72: - | O72: =L72/#REF! ->  | P72: 0 | Q72: 0.0% | R72: =Q72*#REF! -> 
A73: NIL ULUSLARARASI EGITIM ORGANIZASYONU LTD STI | B73: =SUMIFS(Indirect!N:N,Indirect!AI:AI,"EC",Indirect!B:B,'Gold Partners'!A73) -> 0 | C73: =SUMIFS(Indirect!O:O,Indirect!AI:AI,"EC",Indirect!B:B,'Gold Partners'!A73) -> 0 | D73: 0 | E73: =SUMIFS(Indirect!Q:Q,Indirect!AJ:AJ,"EC",Indirect!B:B,'Gold Partners'!A73) -> 0 | F73: =SUMIFS(Indirect!R:R,Indirect!AJ:AJ,"EC",Indirect!B:B,'Gold Partners'!A73) -> 0 | G73: 0 | H73: =SUMIFS(Indirect!V:V,Indirect!AK:AK,"EC",Indirect!B:B,'Gold Partners'!A73) -> 0 | I73: =SUMIFS(Indirect!Y:Y,Indirect!AK:AK,"EC",Indirect!B:B,'Gold Partners'!A73) -> 0 | J73: 0 | K73: =SUMIFS(Indirect!AA:AA,Indirect!AL:AL,"EC",Indirect!B:B,'Gold Partners'!A73) -> 0 | L73: =SUMIFS(Indirect!AB:AB,Indirect!AL:AL,"EC",Indirect!B:B,'Gold Partners'!A73) -> 0 | M73: 0 | N73: - | O73: =L73/#REF! ->  | P73: 0 | Q73: 0.0% | R73: =Q73*#REF! -> 
A74: D&C Holidays Ltd | B74: =SUMIFS(Indirect!N:N,Indirect!AI:AI,"EC",Indirect!B:B,'Gold Partners'!A74) -> 1 | C74: =SUMIFS(Indirect!O:O,Indirect!AI:AI,"EC",Indirect!B:B,'Gold Partners'!A74) -> 0 | D74: 1 | E74: =SUMIFS(Indirect!Q:Q,Indirect!AJ:AJ,"EC",Indirect!B:B,'Gold Partners'!A74) -> 0 | F74: =SUMIFS(Indirect!R:R,Indirect!AJ:AJ,"EC",Indirect!B:B,'Gold Partners'!A74) -> 0 | G74: 0 | H74: =SUMIFS(Indirect!V:V,Indirect!AK:AK,"EC",Indirect!B:B,'Gold Partners'!A74) -> 0 | I74: =SUMIFS(Indirect!Y:Y,Indirect!AK:AK,"EC",Indirect!B:B,'Gold Partners'!A74) -> 2 | J74: 2 | K74: =SUMIFS(Indirect!AA:AA,Indirect!AL:AL,"EC",Indirect!B:B,'Gold Partners'!A74) -> 0 | L74: =SUMIFS(Indirect!AB:AB,Indirect!AL:AL,"EC",Indirect!B:B,'Gold Partners'!A74) -> 2 | M74: 2 | N74: 0% | O74: =L74/#REF! ->  | P74: 0 | Q74: 0.0% | R74: =Q74*#REF! -> 
A75: Gotha Servicos Administrativos Ltda | B75: =SUMIFS(Indirect!N:N,Indirect!AI:AI,"EC",Indirect!B:B,'Gold Partners'!A75) -> 2 | C75: =SUMIFS(Indirect!O:O,Indirect!AI:AI,"EC",Indirect!B:B,'Gold Partners'!A75) -> 1 | D75: 3 | E75: =SUMIFS(Indirect!Q:Q,Indirect!AJ:AJ,"EC",Indirect!B:B,'Gold Partners'!A75) -> 6 | F75: =SUMIFS(Indirect!R:R,Indirect!AJ:AJ,"EC",Indirect!B:B,'Gold Partners'!A75) -> 4 | G75: 10 | H75: =SUMIFS(Indirect!V:V,Indirect!AK:AK,"EC",Indirect!B:B,'Gold Partners'!A75) -> 1 | I75: =SUMIFS(Indirect!Y:Y,Indirect!AK:AK,"EC",Indirect!B:B,'Gold Partners'!A75) -> 4 | J75: 5 | K75: =SUMIFS(Indirect!AA:AA,Indirect!AL:AL,"EC",Indirect!B:B,'Gold Partners'!A75) -> 5 | L75: =SUMIFS(Indirect!AB:AB,Indirect!AL:AL,"EC",Indirect!B:B,'Gold Partners'!A75) -> 5 | M75: 10 | N75: 25% | O75: =L75/#REF! ->  | P75: 1 | Q75: -1.4% | R75: =Q75*#REF! -> 
A76: Asesorias Masalia Ltda | B76: =SUMIFS(Indirect!N:N,Indirect!AI:AI,"EC",Indirect!B:B,'Gold Partners'!A76) -> 0 | C76: =SUMIFS(Indirect!O:O,Indirect!AI:AI,"EC",Indirect!B:B,'Gold Partners'!A76) -> 1 | D76: 1 | E76: =SUMIFS(Indirect!Q:Q,Indirect!AJ:AJ,"EC",Indirect!B:B,'Gold Partners'!A76) -> 0 | F76: =SUMIFS(Indirect!R:R,Indirect!AJ:AJ,"EC",Indirect!B:B,'Gold Partners'!A76) -> 0 | G76: 0 | H76: =SUMIFS(Indirect!V:V,Indirect!AK:AK,"EC",Indirect!B:B,'Gold Partners'!A76) -> 0 | I76: =SUMIFS(Indirect!Y:Y,Indirect!AK:AK,"EC",Indirect!B:B,'Gold Partners'!A76) -> 0 | J76: 0 | K76: =SUMIFS(Indirect!AA:AA,Indirect!AL:AL,"EC",Indirect!B:B,'Gold Partners'!A76) -> 0 | L76: =SUMIFS(Indirect!AB:AB,Indirect!AL:AL,"EC",Indirect!B:B,'Gold Partners'!A76) -> 0 | M76: 0 | N76: - | O76: =L76/#REF! ->  | P76: 0 | Q76: 0.0% | R76: =Q76*#REF! -> 
A77: Grigory Alexandrovich Ugarov | B77: =SUMIFS(Indirect!N:N,Indirect!AI:AI,"EC",Indirect!B:B,'Gold Partners'!A77) -> 0 | C77: =SUMIFS(Indirect!O:O,Indirect!AI:AI,"EC",Indirect!B:B,'Gold Partners'!A77) -> 3 | D77: 3 | E77: =SUMIFS(Indirect!Q:Q,Indirect!AJ:AJ,"EC",Indirect!B:B,'Gold Partners'!A77) -> 0 | F77: =SUMIFS(Indirect!R:R,Indirect!AJ:AJ,"EC",Indirect!B:B,'Gold Partners'!A77) -> 3 | G77: 3 | H77: =SUMIFS(Indirect!V:V,Indirect!AK:AK,"EC",Indirect!B:B,'Gold Partners'!A77) -> 0 | I77: =SUMIFS(Indirect!Y:Y,Indirect!AK:AK,"EC",Indirect!B:B,'Gold Partners'!A77) -> 0 | J77: 0 | K77: =SUMIFS(Indirect!AA:AA,Indirect!AL:AL,"EC",Indirect!B:B,'Gold Partners'!A77) -> 0 | L77: =SUMIFS(Indirect!AB:AB,Indirect!AL:AL,"EC",Indirect!B:B,'Gold Partners'!A77) -> 0 | M77: 0 | N77: - | O77: =L77/#REF! ->  | P77: 0 | Q77: 0.0% | R77: =Q77*#REF! -> 
A78: IP Smirnov Igor Viktorovich | B78: =SUMIFS(Indirect!N:N,Indirect!AI:AI,"EC",Indirect!B:B,'Gold Partners'!A78) -> 1 | C78: =SUMIFS(Indirect!O:O,Indirect!AI:AI,"EC",Indirect!B:B,'Gold Partners'!A78) -> 0 | D78: 1 | E78: =SUMIFS(Indirect!Q:Q,Indirect!AJ:AJ,"EC",Indirect!B:B,'Gold Partners'!A78) -> 0 | F78: =SUMIFS(Indirect!R:R,Indirect!AJ:AJ,"EC",Indirect!B:B,'Gold Partners'!A78) -> 0 | G78: 0 | H78: =SUMIFS(Indirect!V:V,Indirect!AK:AK,"EC",Indirect!B:B,'Gold Partners'!A78) -> 0 | I78: =SUMIFS(Indirect!Y:Y,Indirect!AK:AK,"EC",Indirect!B:B,'Gold Partners'!A78) -> 0 | J78: 0 | K78: =SUMIFS(Indirect!AA:AA,Indirect!AL:AL,"EC",Indirect!B:B,'Gold Partners'!A78) -> 0 | L78: =SUMIFS(Indirect!AB:AB,Indirect!AL:AL,"EC",Indirect!B:B,'Gold Partners'!A78) -> 0 | M78: 0 | N78: - | O78: =L78/#REF! ->  | P78: 0 | Q78: 0.0% | R78: =Q78*#REF! -> 
A79: Irawaty Irawan Syafrizal | B79: =SUMIFS(Indirect!N:N,Indirect!AI:AI,"EC",Indirect!B:B,'Gold Partners'!A79) -> 0 | C79: =SUMIFS(Indirect!O:O,Indirect!AI:AI,"EC",Indirect!B:B,'Gold Partners'!A79) -> 1 | D79: 1 | E79: =SUMIFS(Indirect!Q:Q,Indirect!AJ:AJ,"EC",Indirect!B:B,'Gold Partners'!A79) -> 0 | F79: =SUMIFS(Indirect!R:R,Indirect!AJ:AJ,"EC",Indirect!B:B,'Gold Partners'!A79) -> 2 | G79: 2 | H79: =SUMIFS(Indirect!V:V,Indirect!AK:AK,"EC",Indirect!B:B,'Gold Partners'!A79) -> 0 | I79: =SUMIFS(Indirect!Y:Y,Indirect!AK:AK,"EC",Indirect!B:B,'Gold Partners'!A79) -> 0 | J79: 0 | K79: =SUMIFS(Indirect!AA:AA,Indirect!AL:AL,"EC",Indirect!B:B,'Gold Partners'!A79) -> 0 | L79: =SUMIFS(Indirect!AB:AB,Indirect!AL:AL,"EC",Indirect!B:B,'Gold Partners'!A79) -> 0 | M79: 0 | N79: - | O79: =L79/#REF! ->  | P79: 0 | Q79: 0.0% | R79: =Q79*#REF! -> 
A80: Private Entrepreneur Allahverdiyeva Tetiana Volodymyrivna | B80: =SUMIFS(Indirect!N:N,Indirect!AI:AI,"EC",Indirect!B:B,'Gold Partners'!A80) -> 0 | C80: =SUMIFS(Indirect!O:O,Indirect!AI:AI,"EC",Indirect!B:B,'Gold Partners'!A80) -> 0 | D80: 0 | E80: =SUMIFS(Indirect!Q:Q,Indirect!AJ:AJ,"EC",Indirect!B:B,'Gold Partners'!A80) -> 0 | F80: =SUMIFS(Indirect!R:R,Indirect!AJ:AJ,"EC",Indirect!B:B,'Gold Partners'!A80) -> 0 | G80: 0 | H80: =SUMIFS(Indirect!V:V,Indirect!AK:AK,"EC",Indirect!B:B,'Gold Partners'!A80) -> 0 | I80: =SUMIFS(Indirect!Y:Y,Indirect!AK:AK,"EC",Indirect!B:B,'Gold Partners'!A80) -> 0 | J80: 0 | K80: =SUMIFS(Indirect!AA:AA,Indirect!AL:AL,"EC",Indirect!B:B,'Gold Partners'!A80) -> 0 | L80: =SUMIFS(Indirect!AB:AB,Indirect!AL:AL,"EC",Indirect!B:B,'Gold Partners'!A80) -> 1 | M80: 1 | N80: - | O80: =L80/#REF! ->  | P80: 1 | Q80: -1.4% | R80: =Q80*#REF! -> 
A81: Shenzhen Aichao Overseas Information Consulting Co., Ltd | B81: =SUMIFS(Indirect!N:N,Indirect!AI:AI,"EC",Indirect!B:B,'Gold Partners'!A81) -> 2 | C81: =SUMIFS(Indirect!O:O,Indirect!AI:AI,"EC",Indirect!B:B,'Gold Partners'!A81) -> 1 | D81: 3 | E81: =SUMIFS(Indirect!Q:Q,Indirect!AJ:AJ,"EC",Indirect!B:B,'Gold Partners'!A81) -> 1 | F81: =SUMIFS(Indirect!R:R,Indirect!AJ:AJ,"EC",Indirect!B:B,'Gold Partners'!A81) -> 3 | G81: 4 | H81: =SUMIFS(Indirect!V:V,Indirect!AK:AK,"EC",Indirect!B:B,'Gold Partners'!A81) -> 3 | I81: =SUMIFS(Indirect!Y:Y,Indirect!AK:AK,"EC",Indirect!B:B,'Gold Partners'!A81) -> 6 | J81: 9 | K81: =SUMIFS(Indirect!AA:AA,Indirect!AL:AL,"EC",Indirect!B:B,'Gold Partners'!A81) -> 3 | L81: =SUMIFS(Indirect!AB:AB,Indirect!AL:AL,"EC",Indirect!B:B,'Gold Partners'!A81) -> 7 | M81: 10 | N81: 17% | O81: =L81/#REF! ->  | P81: 1 | Q81: -1.4% | R81: =Q81*#REF! -> 
A82: The Prime Holding Ltd | B82: =SUMIFS(Indirect!N:N,Indirect!AI:AI,"EC",Indirect!B:B,'Gold Partners'!A82) -> 0 | C82: =SUMIFS(Indirect!O:O,Indirect!AI:AI,"EC",Indirect!B:B,'Gold Partners'!A82) -> 0 | D82: 0 | E82: =SUMIFS(Indirect!Q:Q,Indirect!AJ:AJ,"EC",Indirect!B:B,'Gold Partners'!A82) -> 0 | F82: =SUMIFS(Indirect!R:R,Indirect!AJ:AJ,"EC",Indirect!B:B,'Gold Partners'!A82) -> 1 | G82: 1 | H82: =SUMIFS(Indirect!V:V,Indirect!AK:AK,"EC",Indirect!B:B,'Gold Partners'!A82) -> 1 | I82: =SUMIFS(Indirect!Y:Y,Indirect!AK:AK,"EC",Indirect!B:B,'Gold Partners'!A82) -> 1 | J82: 2 | K82: =SUMIFS(Indirect!AA:AA,Indirect!AL:AL,"EC",Indirect!B:B,'Gold Partners'!A82) -> 0 | L82: =SUMIFS(Indirect!AB:AB,Indirect!AL:AL,"EC",Indirect!B:B,'Gold Partners'!A82) -> 2 | M82: 2 | N82: 100% | O82: =L82/#REF! ->  | P82: 1 | Q82: -1.4% | R82: =Q82*#REF! -> 
A83: Euroeducate Inc. | B83: =SUMIFS(Indirect!N:N,Indirect!AI:AI,"EC",Indirect!B:B,'Gold Partners'!A83) -> 14 | C83: =SUMIFS(Indirect!O:O,Indirect!AI:AI,"EC",Indirect!B:B,'Gold Partners'!A83) -> 30 | D83: 44 | E83: =SUMIFS(Indirect!Q:Q,Indirect!AJ:AJ,"EC",Indirect!B:B,'Gold Partners'!A83) -> 8 | F83: =SUMIFS(Indirect!R:R,Indirect!AJ:AJ,"EC",Indirect!B:B,'Gold Partners'!A83) -> 38 | G83: 46 | H83: =SUMIFS(Indirect!V:V,Indirect!AK:AK,"EC",Indirect!B:B,'Gold Partners'!A83) -> 13 | I83: =SUMIFS(Indirect!Y:Y,Indirect!AK:AK,"EC",Indirect!B:B,'Gold Partners'!A83) -> 38 | J83: 51 | K83: =SUMIFS(Indirect!AA:AA,Indirect!AL:AL,"EC",Indirect!B:B,'Gold Partners'!A83) -> 13 | L83: =SUMIFS(Indirect!AB:AB,Indirect!AL:AL,"EC",Indirect!B:B,'Gold Partners'!A83) -> 43 | M83: 56 | N83: 13% | O83: =L83/#REF! ->  | P83: 5 | Q83: -6.8% | R83: =Q83*#REF! -> 
A84: Kahawa Na Kadhalika Limited | B84: =SUMIFS(Indirect!N:N,Indirect!AI:AI,"EC",Indirect!B:B,'Gold Partners'!A84) -> 0 | C84: =SUMIFS(Indirect!O:O,Indirect!AI:AI,"EC",Indirect!B:B,'Gold Partners'!A84) -> 0 | D84: 0 | E84: =SUMIFS(Indirect!Q:Q,Indirect!AJ:AJ,"EC",Indirect!B:B,'Gold Partners'!A84) -> 0 | F84: =SUMIFS(Indirect!R:R,Indirect!AJ:AJ,"EC",Indirect!B:B,'Gold Partners'!A84) -> 0 | G84: 0 | H84: =SUMIFS(Indirect!V:V,Indirect!AK:AK,"EC",Indirect!B:B,'Gold Partners'!A84) -> 0 | I84: =SUMIFS(Indirect!Y:Y,Indirect!AK:AK,"EC",Indirect!B:B,'Gold Partners'!A84) -> 0 | J84: 0 | K84: =SUMIFS(Indirect!AA:AA,Indirect!AL:AL,"EC",Indirect!B:B,'Gold Partners'!A84) -> 4 | L84: =SUMIFS(Indirect!AB:AB,Indirect!AL:AL,"EC",Indirect!B:B,'Gold Partners'!A84) -> 2 | M84: 6 | N84: - | O84: =L84/#REF! ->  | P84: 2 | Q84: -2.7% | R84: =Q84*#REF! -> 
A85: Dragica Nikolic PR Ostalo Obrazovanje Global Study Beograd | B85: =SUMIFS(Indirect!N:N,Indirect!AI:AI,"EC",Indirect!B:B,'Gold Partners'!A85) -> 0 | C85: =SUMIFS(Indirect!O:O,Indirect!AI:AI,"EC",Indirect!B:B,'Gold Partners'!A85) -> 0 | D85: 0 | E85: =SUMIFS(Indirect!Q:Q,Indirect!AJ:AJ,"EC",Indirect!B:B,'Gold Partners'!A85) -> 0 | F85: =SUMIFS(Indirect!R:R,Indirect!AJ:AJ,"EC",Indirect!B:B,'Gold Partners'!A85) -> 0 | G85: 0 | H85: =SUMIFS(Indirect!V:V,Indirect!AK:AK,"EC",Indirect!B:B,'Gold Partners'!A85) -> 0 | I85: =SUMIFS(Indirect!Y:Y,Indirect!AK:AK,"EC",Indirect!B:B,'Gold Partners'!A85) -> 0 | J85: 0 | K85: =SUMIFS(Indirect!AA:AA,Indirect!AL:AL,"EC",Indirect!B:B,'Gold Partners'!A85) -> 2 | L85: =SUMIFS(Indirect!AB:AB,Indirect!AL:AL,"EC",Indirect!B:B,'Gold Partners'!A85) -> 2 | M85: 4 | N85: - | O85: =L85/#REF! ->  | P85: 2 | Q85: -2.7% | R85: =Q85*#REF! -> 
A86: Pedro A. Martins Consulting Lda | B86: =SUMIFS(Indirect!N:N,Indirect!AI:AI,"EC",Indirect!B:B,'Gold Partners'!A86) -> 12 | C86: =SUMIFS(Indirect!O:O,Indirect!AI:AI,"EC",Indirect!B:B,'Gold Partners'!A86) -> 30 | D86: 42 | E86: =SUMIFS(Indirect!Q:Q,Indirect!AJ:AJ,"EC",Indirect!B:B,'Gold Partners'!A86) -> 14 | F86: =SUMIFS(Indirect!R:R,Indirect!AJ:AJ,"EC",Indirect!B:B,'Gold Partners'!A86) -> 27 | G86: 41 | H86: =SUMIFS(Indirect!V:V,Indirect!AK:AK,"EC",Indirect!B:B,'Gold Partners'!A86) -> 11 | I86: =SUMIFS(Indirect!Y:Y,Indirect!AK:AK,"EC",Indirect!B:B,'Gold Partners'!A86) -> 33 | J86: 44 | K86: =SUMIFS(Indirect!AA:AA,Indirect!AL:AL,"EC",Indirect!B:B,'Gold Partners'!A86) -> 7 | L86: =SUMIFS(Indirect!AB:AB,Indirect!AL:AL,"EC",Indirect!B:B,'Gold Partners'!A86) -> 35 | M86: 42 | N86: 6% | O86: =L86/#REF! ->  | P86: 2 | Q86: -2.7% | R86: =Q86*#REF! -> 
A87: NSB Consulting GmbH | B87: =SUMIFS(Indirect!N:N,Indirect!AI:AI,"EC",Indirect!B:B,'Gold Partners'!A87) -> 1 | C87: =SUMIFS(Indirect!O:O,Indirect!AI:AI,"EC",Indirect!B:B,'Gold Partners'!A87) -> 13 | D87: 14 | E87: =SUMIFS(Indirect!Q:Q,Indirect!AJ:AJ,"EC",Indirect!B:B,'Gold Partners'!A87) -> 6 | F87: =SUMIFS(Indirect!R:R,Indirect!AJ:AJ,"EC",Indirect!B:B,'Gold Partners'!A87) -> 11 | G87: 17 | H87: =SUMIFS(Indirect!V:V,Indirect!AK:AK,"EC",Indirect!B:B,'Gold Partners'!A87) -> 4 | I87: =SUMIFS(Indirect!Y:Y,Indirect!AK:AK,"EC",Indirect!B:B,'Gold Partners'!A87) -> 11 | J87: 15 | K87: =SUMIFS(Indirect!AA:AA,Indirect!AL:AL,"EC",Indirect!B:B,'Gold Partners'!A87) -> 10 | L87: =SUMIFS(Indirect!AB:AB,Indirect!AL:AL,"EC",Indirect!B:B,'Gold Partners'!A87) -> 13 | M87: 23 | N87: 18% | O87: =L87/#REF! ->  | P87: 2 | Q87: -2.7% | R87: =Q87*#REF! -> 
A88: Huatong Xinnuo Int'L Clutural Exchange Center Limited | B88: =SUMIFS(Indirect!N:N,Indirect!AI:AI,"EC",Indirect!B:B,'Gold Partners'!A88) -> 0 | C88: =SUMIFS(Indirect!O:O,Indirect!AI:AI,"EC",Indirect!B:B,'Gold Partners'!A88) -> 0 | D88: 0 | E88: =SUMIFS(Indirect!Q:Q,Indirect!AJ:AJ,"EC",Indirect!B:B,'Gold Partners'!A88) -> 0 | F88: =SUMIFS(Indirect!R:R,Indirect!AJ:AJ,"EC",Indirect!B:B,'Gold Partners'!A88) -> 0 | G88: 0 | H88: =SUMIFS(Indirect!V:V,Indirect!AK:AK,"EC",Indirect!B:B,'Gold Partners'!A88) -> 0 | I88: =SUMIFS(Indirect!Y:Y,Indirect!AK:AK,"EC",Indirect!B:B,'Gold Partners'!A88) -> 0 | J88: 0 | K88: =SUMIFS(Indirect!AA:AA,Indirect!AL:AL,"EC",Indirect!B:B,'Gold Partners'!A88) -> 0 | L88: =SUMIFS(Indirect!AB:AB,Indirect!AL:AL,"EC",Indirect!B:B,'Gold Partners'!A88) -> 2 | M88: 2 | N88: - | O88: =L88/#REF! ->  | P88: 2 | Q88: -2.7% | R88: =Q88*#REF! -> 
A89: Julien LEPRI | B89: =SUMIFS(Indirect!N:N,Indirect!AI:AI,"EC",Indirect!B:B,'Gold Partners'!A89) -> 5 | C89: =SUMIFS(Indirect!O:O,Indirect!AI:AI,"EC",Indirect!B:B,'Gold Partners'!A89) -> 9 | D89: 14 | E89: =SUMIFS(Indirect!Q:Q,Indirect!AJ:AJ,"EC",Indirect!B:B,'Gold Partners'!A89) -> 3 | F89: =SUMIFS(Indirect!R:R,Indirect!AJ:AJ,"EC",Indirect!B:B,'Gold Partners'!A89) -> 8 | G89: 11 | H89: =SUMIFS(Indirect!V:V,Indirect!AK:AK,"EC",Indirect!B:B,'Gold Partners'!A89) -> 7 | I89: =SUMIFS(Indirect!Y:Y,Indirect!AK:AK,"EC",Indirect!B:B,'Gold Partners'!A89) -> 7 | J89: 14 | K89: =SUMIFS(Indirect!AA:AA,Indirect!AL:AL,"EC",Indirect!B:B,'Gold Partners'!A89) -> 6 | L89: =SUMIFS(Indirect!AB:AB,Indirect!AL:AL,"EC",Indirect!B:B,'Gold Partners'!A89) -> 9 | M89: 15 | N89: 29% | O89: =L89/#REF! ->  | P89: 2 | Q89: -2.7% | R89: =Q89*#REF! -> 
A90: Beyond Education Inc. | B90: =SUMIFS(Indirect!N:N,Indirect!AI:AI,"EC",Indirect!B:B,'Gold Partners'!A90) -> 6 | C90: =SUMIFS(Indirect!O:O,Indirect!AI:AI,"EC",Indirect!B:B,'Gold Partners'!A90) -> 8 | D90: 14 | E90: =SUMIFS(Indirect!Q:Q,Indirect!AJ:AJ,"EC",Indirect!B:B,'Gold Partners'!A90) -> 6 | F90: =SUMIFS(Indirect!R:R,Indirect!AJ:AJ,"EC",Indirect!B:B,'Gold Partners'!A90) -> 12 | G90: 18 | H90: =SUMIFS(Indirect!V:V,Indirect!AK:AK,"EC",Indirect!B:B,'Gold Partners'!A90) -> 7 | I90: =SUMIFS(Indirect!Y:Y,Indirect!AK:AK,"EC",Indirect!B:B,'Gold Partners'!A90) -> 11 | J90: 18 | K90: =SUMIFS(Indirect!AA:AA,Indirect!AL:AL,"EC",Indirect!B:B,'Gold Partners'!A90) -> 2 | L90: =SUMIFS(Indirect!AB:AB,Indirect!AL:AL,"EC",Indirect!B:B,'Gold Partners'!A90) -> 16 | M90: 18 | N90: 45% | O90: =L90/#REF! ->  | P90: 5 | Q90: -6.8% | R90: =Q90*#REF! -> 
A91: Nebula Formation Holding Limited | B91: =SUMIFS(Indirect!N:N,Indirect!AI:AI,"EC",Indirect!B:B,'Gold Partners'!A91) -> 0 | C91: =SUMIFS(Indirect!O:O,Indirect!AI:AI,"EC",Indirect!B:B,'Gold Partners'!A91) -> 0 | D91: 0 | E91: =SUMIFS(Indirect!Q:Q,Indirect!AJ:AJ,"EC",Indirect!B:B,'Gold Partners'!A91) -> 0 | F91: =SUMIFS(Indirect!R:R,Indirect!AJ:AJ,"EC",Indirect!B:B,'Gold Partners'!A91) -> 0 | G91: 0 | H91: =SUMIFS(Indirect!V:V,Indirect!AK:AK,"EC",Indirect!B:B,'Gold Partners'!A91) -> 0 | I91: =SUMIFS(Indirect!Y:Y,Indirect!AK:AK,"EC",Indirect!B:B,'Gold Partners'!A91) -> 0 | J91: 0 | K91: =SUMIFS(Indirect!AA:AA,Indirect!AL:AL,"EC",Indirect!B:B,'Gold Partners'!A91) -> 0 | L91: =SUMIFS(Indirect!AB:AB,Indirect!AL:AL,"EC",Indirect!B:B,'Gold Partners'!A91) -> 3 | M91: 3 | N91: - | O91: =L91/#REF! ->  | P91: 3 | Q91: -4.1% | R91: =Q91*#REF! -> 
A92: Atlas Korea Co., Ltd | B92: =SUMIFS(Indirect!N:N,Indirect!AI:AI,"EC",Indirect!B:B,'Gold Partners'!A92) -> 8 | C92: =SUMIFS(Indirect!O:O,Indirect!AI:AI,"EC",Indirect!B:B,'Gold Partners'!A92) -> 9 | D92: 17 | E92: =SUMIFS(Indirect!Q:Q,Indirect!AJ:AJ,"EC",Indirect!B:B,'Gold Partners'!A92) -> 6 | F92: =SUMIFS(Indirect!R:R,Indirect!AJ:AJ,"EC",Indirect!B:B,'Gold Partners'!A92) -> 7 | G92: 13 | H92: =SUMIFS(Indirect!V:V,Indirect!AK:AK,"EC",Indirect!B:B,'Gold Partners'!A92) -> 5 | I92: =SUMIFS(Indirect!Y:Y,Indirect!AK:AK,"EC",Indirect!B:B,'Gold Partners'!A92) -> 7 | J92: 12 | K92: =SUMIFS(Indirect!AA:AA,Indirect!AL:AL,"EC",Indirect!B:B,'Gold Partners'!A92) -> 3 | L92: =SUMIFS(Indirect!AB:AB,Indirect!AL:AL,"EC",Indirect!B:B,'Gold Partners'!A92) -> 10 | M92: 13 | N92: 43% | O92: =L92/#REF! ->  | P92: 3 | Q92: -4.1% | R92: =Q92*#REF! -> 
A93: BHV d.o.o. | B93: =SUMIFS(Indirect!N:N,Indirect!AI:AI,"EC",Indirect!B:B,'Gold Partners'!A93) -> 0 | C93: =SUMIFS(Indirect!O:O,Indirect!AI:AI,"EC",Indirect!B:B,'Gold Partners'!A93) -> 5 | D93: 5 | E93: =SUMIFS(Indirect!Q:Q,Indirect!AJ:AJ,"EC",Indirect!B:B,'Gold Partners'!A93) -> 0 | F93: =SUMIFS(Indirect!R:R,Indirect!AJ:AJ,"EC",Indirect!B:B,'Gold Partners'!A93) -> 1 | G93: 1 | H93: =SUMIFS(Indirect!V:V,Indirect!AK:AK,"EC",Indirect!B:B,'Gold Partners'!A93) -> 1 | I93: =SUMIFS(Indirect!Y:Y,Indirect!AK:AK,"EC",Indirect!B:B,'Gold Partners'!A93) -> 2 | J93: 3 | K93: =SUMIFS(Indirect!AA:AA,Indirect!AL:AL,"EC",Indirect!B:B,'Gold Partners'!A93) -> 1 | L93: =SUMIFS(Indirect!AB:AB,Indirect!AL:AL,"EC",Indirect!B:B,'Gold Partners'!A93) -> 5 | M93: 6 | N93: 150% | O93: =L93/#REF! ->  | P93: 3 | Q93: -4.1% | R93: =Q93*#REF! -> 
A94: Private Entrepreneur Shakhraiuk Olesia | B94: =SUMIFS(Indirect!N:N,Indirect!AI:AI,"EC",Indirect!B:B,'Gold Partners'!A94) -> 0 | C94: =SUMIFS(Indirect!O:O,Indirect!AI:AI,"EC",Indirect!B:B,'Gold Partners'!A94) -> 2 | D94: 2 | E94: =SUMIFS(Indirect!Q:Q,Indirect!AJ:AJ,"EC",Indirect!B:B,'Gold Partners'!A94) -> 0 | F94: =SUMIFS(Indirect!R:R,Indirect!AJ:AJ,"EC",Indirect!B:B,'Gold Partners'!A94) -> 0 | G94: 0 | H94: =SUMIFS(Indirect!V:V,Indirect!AK:AK,"EC",Indirect!B:B,'Gold Partners'!A94) -> 0 | I94: =SUMIFS(Indirect!Y:Y,Indirect!AK:AK,"EC",Indirect!B:B,'Gold Partners'!A94) -> 0 | J94: 0 | K94: =SUMIFS(Indirect!AA:AA,Indirect!AL:AL,"EC",Indirect!B:B,'Gold Partners'!A94) -> 1 | L94: =SUMIFS(Indirect!AB:AB,Indirect!AL:AL,"EC",Indirect!B:B,'Gold Partners'!A94) -> 3 | M94: 4 | N94: - | O94: =L94/#REF! ->  | P94: 3 | Q94: -4.1% | R94: =Q94*#REF! -> 
A95: Daniela Di Pirro | B95: =SUMIFS(Indirect!N:N,Indirect!AI:AI,"EC",Indirect!B:B,'Gold Partners'!A95) -> 9 | C95: =SUMIFS(Indirect!O:O,Indirect!AI:AI,"EC",Indirect!B:B,'Gold Partners'!A95) -> 18 | D95: 27 | E95: =SUMIFS(Indirect!Q:Q,Indirect!AJ:AJ,"EC",Indirect!B:B,'Gold Partners'!A95) -> 8 | F95: =SUMIFS(Indirect!R:R,Indirect!AJ:AJ,"EC",Indirect!B:B,'Gold Partners'!A95) -> 25 | G95: 33 | H95: =SUMIFS(Indirect!V:V,Indirect!AK:AK,"EC",Indirect!B:B,'Gold Partners'!A95) -> 11 | I95: =SUMIFS(Indirect!Y:Y,Indirect!AK:AK,"EC",Indirect!B:B,'Gold Partners'!A95) -> 17 | J95: 28 | K95: =SUMIFS(Indirect!AA:AA,Indirect!AL:AL,"EC",Indirect!B:B,'Gold Partners'!A95) -> 11 | L95: =SUMIFS(Indirect!AB:AB,Indirect!AL:AL,"EC",Indirect!B:B,'Gold Partners'!A95) -> 22 | M95: 33 | N95: 29% | O95: =L95/#REF! ->  | P95: 5 | Q95: -6.8% | R95: =Q95*#REF! -> 
A96: Cecilia Velasco-Bas | B96: =SUMIFS(Indirect!N:N,Indirect!AI:AI,"EC",Indirect!B:B,'Gold Partners'!A96) -> 0 | C96: =SUMIFS(Indirect!O:O,Indirect!AI:AI,"EC",Indirect!B:B,'Gold Partners'!A96) -> 0 | D96: 0 | E96: =SUMIFS(Indirect!Q:Q,Indirect!AJ:AJ,"EC",Indirect!B:B,'Gold Partners'!A96) -> 0 | F96: =SUMIFS(Indirect!R:R,Indirect!AJ:AJ,"EC",Indirect!B:B,'Gold Partners'!A96) -> 0 | G96: 0 | H96: =SUMIFS(Indirect!V:V,Indirect!AK:AK,"EC",Indirect!B:B,'Gold Partners'!A96) -> 0 | I96: =SUMIFS(Indirect!Y:Y,Indirect!AK:AK,"EC",Indirect!B:B,'Gold Partners'!A96) -> 0 | J96: 0 | K96: =SUMIFS(Indirect!AA:AA,Indirect!AL:AL,"EC",Indirect!B:B,'Gold Partners'!A96) -> 0 | L96: =SUMIFS(Indirect!AB:AB,Indirect!AL:AL,"EC",Indirect!B:B,'Gold Partners'!A96) -> 3 | M96: 3 | N96: - | O96: =L96/#REF! ->  | P96: 3 | Q96: -4.1% | R96: =Q96*#REF! -> 
A97: FB Srls | B97: =SUMIFS(Indirect!N:N,Indirect!AI:AI,"EC",Indirect!B:B,'Gold Partners'!A97) -> 4 | C97: =SUMIFS(Indirect!O:O,Indirect!AI:AI,"EC",Indirect!B:B,'Gold Partners'!A97) -> 28 | D97: 32 | E97: =SUMIFS(Indirect!Q:Q,Indirect!AJ:AJ,"EC",Indirect!B:B,'Gold Partners'!A97) -> 10 | F97: =SUMIFS(Indirect!R:R,Indirect!AJ:AJ,"EC",Indirect!B:B,'Gold Partners'!A97) -> 25 | G97: 35 | H97: =SUMIFS(Indirect!V:V,Indirect!AK:AK,"EC",Indirect!B:B,'Gold Partners'!A97) -> 10 | I97: =SUMIFS(Indirect!Y:Y,Indirect!AK:AK,"EC",Indirect!B:B,'Gold Partners'!A97) -> 22 | J97: 32 | K97: =SUMIFS(Indirect!AA:AA,Indirect!AL:AL,"EC",Indirect!B:B,'Gold Partners'!A97) -> 9 | L97: =SUMIFS(Indirect!AB:AB,Indirect!AL:AL,"EC",Indirect!B:B,'Gold Partners'!A97) -> 28 | M97: 37 | N97: 27% | O97: =L97/#REF! ->  | P97: 6 | Q97: -8.1% | R97: =Q97*#REF! -> 
A98: 818821 Ontario Inc | B98: =SUMIFS(Indirect!N:N,Indirect!AI:AI,"EC",Indirect!B:B,'Gold Partners'!A98) -> 4 | C98: =SUMIFS(Indirect!O:O,Indirect!AI:AI,"EC",Indirect!B:B,'Gold Partners'!A98) -> 4 | D98: 8 | E98: =SUMIFS(Indirect!Q:Q,Indirect!AJ:AJ,"EC",Indirect!B:B,'Gold Partners'!A98) -> 1 | F98: =SUMIFS(Indirect!R:R,Indirect!AJ:AJ,"EC",Indirect!B:B,'Gold Partners'!A98) -> 4 | G98: 5 | H98: =SUMIFS(Indirect!V:V,Indirect!AK:AK,"EC",Indirect!B:B,'Gold Partners'!A98) -> 3 | I98: =SUMIFS(Indirect!Y:Y,Indirect!AK:AK,"EC",Indirect!B:B,'Gold Partners'!A98) -> 8 | J98: 11 | K98: =SUMIFS(Indirect!AA:AA,Indirect!AL:AL,"EC",Indirect!B:B,'Gold Partners'!A98) -> 6 | L98: =SUMIFS(Indirect!AB:AB,Indirect!AL:AL,"EC",Indirect!B:B,'Gold Partners'!A98) -> 12 | M98: 18 | N98: 50% | O98: =L98/#REF! ->  | P98: 4 | Q98: -5.4% | R98: =Q98*#REF! -> 
A99: Sky Lines Bulgaria Ltd | B99: =SUMIFS(Indirect!N:N,Indirect!AI:AI,"EC",Indirect!B:B,'Gold Partners'!A99) -> 0 | C99: =SUMIFS(Indirect!O:O,Indirect!AI:AI,"EC",Indirect!B:B,'Gold Partners'!A99) -> 0 | D99: 0 | E99: =SUMIFS(Indirect!Q:Q,Indirect!AJ:AJ,"EC",Indirect!B:B,'Gold Partners'!A99) -> 0 | F99: =SUMIFS(Indirect!R:R,Indirect!AJ:AJ,"EC",Indirect!B:B,'Gold Partners'!A99) -> 0 | G99: 0 | H99: =SUMIFS(Indirect!V:V,Indirect!AK:AK,"EC",Indirect!B:B,'Gold Partners'!A99) -> 0 | I99: =SUMIFS(Indirect!Y:Y,Indirect!AK:AK,"EC",Indirect!B:B,'Gold Partners'!A99) -> 0 | J99: 0 | K99: =SUMIFS(Indirect!AA:AA,Indirect!AL:AL,"EC",Indirect!B:B,'Gold Partners'!A99) -> 1 | L99: =SUMIFS(Indirect!AB:AB,Indirect!AL:AL,"EC",Indirect!B:B,'Gold Partners'!A99) -> 4 | M99: 5 | N99: - | O99: =L99/#REF! ->  | P99: 4 | Q99: -5.4% | R99: =Q99*#REF! -> 
A100: Xiu Lei | B100: =SUMIFS(Indirect!N:N,Indirect!AI:AI,"EC",Indirect!B:B,'Gold Partners'!A100) -> 3 | C100: =SUMIFS(Indirect!O:O,Indirect!AI:AI,"EC",Indirect!B:B,'Gold Partners'!A100) -> 11 | D100: 14 | E100: =SUMIFS(Indirect!Q:Q,Indirect!AJ:AJ,"EC",Indirect!B:B,'Gold Partners'!A100) -> 5 | F100: =SUMIFS(Indirect!R:R,Indirect!AJ:AJ,"EC",Indirect!B:B,'Gold Partners'!A100) -> 20 | G100: 25 | H100: =SUMIFS(Indirect!V:V,Indirect!AK:AK,"EC",Indirect!B:B,'Gold Partners'!A100) -> 7 | I100: =SUMIFS(Indirect!Y:Y,Indirect!AK:AK,"EC",Indirect!B:B,'Gold Partners'!A100) -> 12 | J100: 19 | K100: =SUMIFS(Indirect!AA:AA,Indirect!AL:AL,"EC",Indirect!B:B,'Gold Partners'!A100) -> 1 | L100: =SUMIFS(Indirect!AB:AB,Indirect!AL:AL,"EC",Indirect!B:B,'Gold Partners'!A100) -> 19 | M100: 20 | N100: 58% | O100: =L100/#REF! ->  | P100: 7 | Q100: -9.5% | R100: =Q100*#REF! -> 
A101: Global Connect Education and Service Co., Ltd | B101: =SUMIFS(Indirect!N:N,Indirect!AI:AI,"EC",Indirect!B:B,'Gold Partners'!A101) -> 5 | C101: =SUMIFS(Indirect!O:O,Indirect!AI:AI,"EC",Indirect!B:B,'Gold Partners'!A101) -> 16 | D101: 21 | E101: =SUMIFS(Indirect!Q:Q,Indirect!AJ:AJ,"EC",Indirect!B:B,'Gold Partners'!A101) -> 9 | F101: =SUMIFS(Indirect!R:R,Indirect!AJ:AJ,"EC",Indirect!B:B,'Gold Partners'!A101) -> 15 | G101: 24 | H101: =SUMIFS(Indirect!V:V,Indirect!AK:AK,"EC",Indirect!B:B,'Gold Partners'!A101) -> 9 | I101: =SUMIFS(Indirect!Y:Y,Indirect!AK:AK,"EC",Indirect!B:B,'Gold Partners'!A101) -> 11 | J101: 20 | K101: =SUMIFS(Indirect!AA:AA,Indirect!AL:AL,"EC",Indirect!B:B,'Gold Partners'!A101) -> 7 | L101: =SUMIFS(Indirect!AB:AB,Indirect!AL:AL,"EC",Indirect!B:B,'Gold Partners'!A101) -> 19 | M101: 26 | N101: 73% | O101: =L101/#REF! ->  | P101: 8 | Q101: -10.8% | R101: =Q101*#REF! -> 
A102: Studies LLC | B102: =SUMIFS(Indirect!N:N,Indirect!AI:AI,"EC",Indirect!B:B,'Gold Partners'!A102) -> 0 | C102: =SUMIFS(Indirect!O:O,Indirect!AI:AI,"EC",Indirect!B:B,'Gold Partners'!A102) -> 7 | D102: 7 | E102: =SUMIFS(Indirect!Q:Q,Indirect!AJ:AJ,"EC",Indirect!B:B,'Gold Partners'!A102) -> 0 | F102: =SUMIFS(Indirect!R:R,Indirect!AJ:AJ,"EC",Indirect!B:B,'Gold Partners'!A102) -> 0 | G102: 0 | H102: =SUMIFS(Indirect!V:V,Indirect!AK:AK,"EC",Indirect!B:B,'Gold Partners'!A102) -> 0 | I102: =SUMIFS(Indirect!Y:Y,Indirect!AK:AK,"EC",Indirect!B:B,'Gold Partners'!A102) -> 0 | J102: 0 | K102: =SUMIFS(Indirect!AA:AA,Indirect!AL:AL,"EC",Indirect!B:B,'Gold Partners'!A102) -> 2 | L102: =SUMIFS(Indirect!AB:AB,Indirect!AL:AL,"EC",Indirect!B:B,'Gold Partners'!A102) -> 10 | M102: 12 | N102: - | O102: =L102/#REF! ->  | P102: 10 | Q102: -13.5% | R102: =Q102*#REF! -> 
A103: Brilliant Education Consulting Co.,Ltd | B103: =SUMIFS(Indirect!N:N,Indirect!AI:AI,"EC",Indirect!B:B,'Gold Partners'!A103) -> 4 | C103: =SUMIFS(Indirect!O:O,Indirect!AI:AI,"EC",Indirect!B:B,'Gold Partners'!A103) -> 45 | D103: 49 | E103: =SUMIFS(Indirect!Q:Q,Indirect!AJ:AJ,"EC",Indirect!B:B,'Gold Partners'!A103) -> 8 | F103: =SUMIFS(Indirect!R:R,Indirect!AJ:AJ,"EC",Indirect!B:B,'Gold Partners'!A103) -> 43 | G103: 51 | H103: =SUMIFS(Indirect!V:V,Indirect!AK:AK,"EC",Indirect!B:B,'Gold Partners'!A103) -> 13 | I103: =SUMIFS(Indirect!Y:Y,Indirect!AK:AK,"EC",Indirect!B:B,'Gold Partners'!A103) -> 41 | J103: 54 | K103: =SUMIFS(Indirect!AA:AA,Indirect!AL:AL,"EC",Indirect!B:B,'Gold Partners'!A103) -> 11 | L103: =SUMIFS(Indirect!AB:AB,Indirect!AL:AL,"EC",Indirect!B:B,'Gold Partners'!A103) -> 59 | M103: 70 | N103: 44% | O103: =L103/#REF! ->  | P103: 18 | Q103: -24.3% | R103: =Q103*#REF! -> 
A104: Gold Partner Total | B104: =SUM(B2:B103) -> 244 | C104: 716 | D104: 960 | E104: 220 | F104: 722 | G104: 942 | H104: 242 | I104: 734 | J104: 976 | K104: 225 | L104: 660 | M104: 885 | N104: -10% | O104: =L104/#REF! ->  | P104: (74) | Q104: =P104/(#REF!-#REF!) ->  | R104: =Q104*#REF! -> 

Sheet Indirect
H1: 2017 | I1: 2018 | J1: 2019 | K1: 2020 | AI1: 2017 | AJ1: 2018 | AK1: 2019 | AL1: 2020 | AM1: 2017 | AN1: 2018 | AO1: 2019 | AP1: 2020
A2: Contract Type (as of today) | B2: EC Account: Account Name | C2: Vertical Area | D2: Country | E2: Contract Status (as of today) | F2: Contract Start Year Max | G2: Contract End Year Max | H2: Active in 2017 | I2: Active in 2018 | J2: Active In 2019 | K2: Active In 2020 | L2: Active 2017 & 2018 | M2: Active 2017 - 2020 | N2: 2017.1 | O2: 2017.2 | P2: 2017 Total | Q2: 2018.1 | R2: 2018.2 | S2: 2018 Total | T2: 2018 v 2017 | U2: 2018 v 2017 % | V2: 2019.1 | W2: 2019.1 vs 2018.1 | X2: 2019.1 v 2018.1 | Y2: 2019.2 | Z2: 2019 Total | AA2: 2020.1 | AB2: 2020.2 | AC2: 2020 Total | AD2: 2017 - 2018 Students | AE2: 2017 to 2019.1 | AF2: 2017.2 to 2019.2 | AG2: 2017 -2020 Students | AH2: Max Contract Start Year | AI2: Contract Type in 2017 | AJ2: Contract Type in 2018 | AK2: Contract Type in 2019 | AL2: Contract Type in 2020 | AM2: Status 2017 | AN2: Status 2018 | AO2: Status 2019 | AP2: Status 2020 | AQ2: Year Agent Signed | AR2: EC Previously? | AS2: Year Contract Switched | AT2: Active outside Contract Years 2017 | AU2: Active outside Contract Years 2018 | AV2: Active outside Contract Years 2019 | AW2: Active outside Contract Years 2020
A3: =VLOOKUP(B:B,'Salesforce Contracts 22nd June'!A:V,8,FALSE) -> EC | B3: =Lookup!L2 -> 818821 Ontario Inc | C3: =VLOOKUP(B:B,'Salesforce Contracts 22nd June'!A:V,4,FALSE) -> North America | D3: =VLOOKUP(B:B,'Salesforce Contracts 22nd June'!A:V,14,FALSE) -> Canada | E3: =VLOOKUP(B:B,'Salesforce Contracts 22nd June'!A:V,9,FALSE) -> Live Contract | F3: =VLOOKUP(B:B,'Salesforce Contracts 22nd June'!A:V,6,FALSE) -> 2020-01-01 | G3: =VLOOKUP(B:B,'Salesforce Contracts 22nd June'!A:V,7,FALSE) -> 2023-01-01 | H3: =IF(P3>=1,"Active","Inactive") -> Active | I3: =IF(S3>=1,"Active","Inactive") -> Active | J3: =IF(Z3>=1,"Active","Inactive") -> Active | K3: =IF(AC3>=1,"Active","Inactive") -> Active | L3: =IF(AD3>=1,"Active","Inactive") -> Active | M3: =IF(AG3>=1,"Active","Inactive") -> Active | N3: =SUMIFS('Enrolment Data 22nd June'!O:O,'Enrolment Data 22nd June'!F:F,B3,'Enrolment Data 22nd June'!P:P,$N$2,'Enrolment Data 22nd June'!N:N,"Yes") -> 4 | O3: =SUMIFS('Enrolment Data 22nd June'!O:O,'Enrolment Data 22nd June'!F:F,B3,'Enrolment Data 22nd June'!P:P,$O$2,'Enrolment Data 22nd June'!N:N,"Yes") -> 4 | P3: =IFERROR(N3+O3,"-") -> 8 | Q3: =SUMIFS('Enrolment Data 22nd June'!O:O,'Enrolment Data 22nd June'!F:F,B3,'Enrolment Data 22nd June'!P:P,$Q$2,'Enrolment Data 22nd June'!N:N,"Yes") -> 1 | R3: =SUMIFS('Enrolment Data 22nd June'!O:O,'Enrolment Data 22nd June'!F:F,B3,'Enrolment Data 22nd June'!P:P,$R$2,'Enrolment Data 22nd June'!N:N,"Yes") -> 4 | S3: =IFERROR(Q3+R3,"-") -> 5 | T3: =IFERROR(S3-P3,"-") -> -3 | U3: =IFERROR(S3/P3-1,"-") -> -38% | V3: =SUMIFS('Enrolment Data 22nd June'!O:O,'Enrolment Data 22nd June'!F:F,B3,'Enrolment Data 22nd June'!P:P,$V$2,'Enrolment Data 22nd June'!N:N,"Yes") -> 3 | W3: =IFERROR(V3-Q3,"-") -> 2 | X3: =IFERROR(V3/Q3-1,"-") -> 200% | Y3: =SUMIFS('Enrolment Data 22nd June'!O:O,'Enrolment Data 22nd June'!F:F,B3,'Enrolment Data 22nd June'!P:P,$Y$2,'Enrolment Data 22nd June'!N:N,"Yes") -> 8 | Z3: =IFERROR(V3+Y3,"-") -> 11 | AA3: =SUMIFS('Enrolment Data 22nd June'!O:O,'Enrolment Data 22nd June'!F:F,B3,'Enrolment Data 22nd June'!P:P,$AA$2,'Enrolment Data 22nd June'!N:N,"Yes") -> 6 | AB3: =SUMIFS('Enrolment Data 22nd June'!O:O,'Enrolment Data 22nd June'!F:F,B3,'Enrolment Data 22nd June'!P:P,$AB$2,'Enrolment Data 22nd June'!N:N,"Yes") -> 12 | AC3: =IFERROR(AA3+AB3,"-") -> 18 | AD3: =IFERROR(P3+S3,"-") -> 13 | AE3: =IFERROR(P3+S3+V3,"-") -> 16 | AF3: =IFERROR(O3+R3+Y3,"-") -> 16 | AG3: =IFERROR(P3+S3+Z3+AA3,"-") -> 30 | AH3: =TEXT(F3,"yyyy") -> 2020 | AI3: =IFERROR( INDEX('Salesforce Contracts 22nd June'!$S$2:$V$4000, MATCH(1,INDEX(('Salesforce Contracts 22nd June'!$A$2:$A$4000=$B3)*(INDEX('Salesforce Contracts 22nd June'!$S$2:$V$4000,,MATCH($AI$1,'Salesforce Contracts 22nd June'!$O$1:$R$1,0))<>""),0),0), MATCH(AI$1,'Salesforce Contracts 22nd June'!$O$1:$R$1,0)), "") -> EC | AJ3: =IFERROR( INDEX('Salesforce Contracts 22nd June'!$S$2:$V$4000, MATCH(1,INDEX(('Salesforce Contracts 22nd June'!$A$2:$A$4000=$B3)*(INDEX('Salesforce Contracts 22nd June'!$S$2:$V$4000,,MATCH($AJ$1,'Salesforce Contracts 22nd June'!$O$1:$R$1,0))<>""),0),0), MATCH(AJ$1,'Salesforce Contracts 22nd June'!$O$1:$R$1,0)), "") -> EC | AK3: =IFERROR( INDEX('Salesforce Contracts 22nd June'!$S$2:$V$4000, MATCH(1,INDEX(('Salesforce Contracts 22nd June'!$A$2:$A$4000=$B3)*(INDEX('Salesforce Contracts 22nd June'!$S$2:$V$4000,,MATCH($AK$1,'Salesforce Contracts 22nd June'!$O$1:$R$1,0))<>""),0),0), MATCH(AK$1,'Salesforce Contracts 22nd June'!$O$1:$R$1,0)), "") -> EC | AL3: =IFERROR( INDEX('Salesforce Contracts 22nd June'!$S$2:$V$4000, MATCH(1,INDEX(('Salesforce Contracts 22nd June'!$A$2:$A$4000=$B3)*(INDEX('Salesforce Contracts 22nd June'!$S$2:$V$4000,,MATCH($AL$1,'Salesforce Contracts 22nd June'!$O$1:$R$1,0))<>""),0),0), MATCH(AL$1,'Salesforce Contracts 22nd June'!$O$1:$R$1,0)), "") -> EC | AM3: =IFERROR( INDEX('Salesforce Contracts 22nd June'!$O$2:$R$4000, MATCH(1,INDEX(('Salesforce Contracts 22nd June'!$A$2:$A$4000=$B3)*(INDEX('Salesforce Contracts 22nd June'!$O$2:$R$4000,,MATCH($AM$1,'Salesforce Contracts 22nd June'!$O$1:$R$1,0))<>""),0),0), MATCH(AM$1,'Salesforce Contracts 22nd June'!$O$1:$R$1,0)), "") -> LIVE | AN3: =IFERROR( INDEX('Salesforce Contracts 22nd June'!$O$2:$R$4000, MATCH(1,INDEX(('Salesforce Contracts 22nd June'!$A$2:$A$4000=$B3)*(INDEX('Salesforce Contracts 22nd June'!$O$2:$R$4000,,MATCH($AN$1,'Salesforce Contracts 22nd June'!$O$1:$R$1,0))<>""),0),0), MATCH(AN$1,'Salesforce Contracts 22nd June'!$O$1:$R$1,0)), "") -> LIVE | AO3: =IFERROR( INDEX('Salesforce Contracts 22nd June'!$O$2:$R$4000, MATCH(1,INDEX(('Salesforce Contracts 22nd June'!$A$2:$A$4000=$B3)*(INDEX('Salesforce Contracts 22nd June'!$O$2:$R$4000,,MATCH($AO$1,'Salesforce Contracts 22nd June'!$O$1:$R$1,0))<>""),0),0), MATCH(AO$1,'Salesforce Contracts 22nd June'!$O$1:$R$1,0)), "") -> LIVE | AP3: =IFERROR( INDEX('Salesforce Contracts 22nd June'!$O$2:$R$4000, MATCH(1,INDEX(('Salesforce Contracts 22nd June'!$A$2:$A$4000=$B3)*(INDEX('Salesforce Contracts 22nd June'!$O$2:$R$4000,,MATCH($AP$1,'Salesforce Contracts 22nd June'!$O$1:$R$1,0))<>""),0),0), MATCH(AP$1,'Salesforce Contracts 22nd June'!$O$1:$R$1,0)), "") -> LIVE | AQ3: =IFERROR(VLOOKUP(B3,Lookup!Q:R,2,FALSE),"n/a") -> 2011 | AR3: =VLOOKUP(B3,Lookup!L:M,2,FALSE) -> 0 | AS3: =VLOOKUP(B3,Lookup!L:N,3,FALSE) -> (blank) | AT3: =IF(AND(H3="Active",AM3=""),"yes","") ->  | AU3: =IF(AND(I3="Active",AN3=""),"yes","") ->  | AV3: =IF(AND(J3="Active",AO3=""),"yes","") ->  | AW3: =IF(AND(K3="Active",AP3=""),"yes","") -> 
A4: =VLOOKUP(B:B,'Salesforce Contracts 22nd June'!A:V,8,FALSE) -> Agent | B4: =Lookup!L3 -> A League Consulting Co Ltd | C4: =VLOOKUP(B:B,'Salesforce Contracts 22nd June'!A:V,4,FALSE) -> Asia Pacific | D4: =VLOOKUP(B:B,'Salesforce Contracts 22nd June'!A:V,14,FALSE) -> Taiwan, Republic of China | E4: =VLOOKUP(B:B,'Salesforce Contracts 22nd June'!A:V,9,FALSE) -> Sent to Partner | F4: =VLOOKUP(B:B,'Salesforce Contracts 22nd June'!A:V,6,FALSE) -> 2020-04-01 | G4: =VLOOKUP(B:B,'Salesforce Contracts 22nd June'!A:V,7,FALSE) -> 2022-04-01 | H4: Inactive | I4: Inactive | J4: Inactive | K4: Inactive | L4: Inactive | M4: Inactive | N4: =SUMIFS('Enrolment Data 22nd June'!O:O,'Enrolment Data 22nd June'!F:F,B4,'Enrolment Data 22nd June'!P:P,$N$2,'Enrolment Data 22nd June'!N:N,"Yes") -> 0 | O4: =SUMIFS('Enrolment Data 22nd June'!O:O,'Enrolment Data 22nd June'!F:F,B4,'Enrolment Data 22nd June'!P:P,$O$2,'Enrolment Data 22nd June'!N:N,"Yes") -> 0 | P4: =IFERROR(N4+O4,"-") -> 0 | Q4: =SUMIFS('Enrolment Data 22nd June'!O:O,'Enrolment Data 22nd June'!F:F,B4,'Enrolment Data 22nd June'!P:P,$Q$2,'Enrolment Data 22nd June'!N:N,"Yes") -> 0 | R4: =SUMIFS('Enrolment Data 22nd June'!O:O,'Enrolment Data 22nd June'!F:F,B4,'Enrolment Data 22nd June'!P:P,$R$2,'Enrolment Data 22nd June'!N:N,"Yes") -> 0 | S4: =IFERROR(Q4+R4,"-") -> 0 | T4: =IFERROR(S4-P4,"-") -> 0 | U4: =IFERROR(S4/P4-1,"-") -> - | V4: =SUMIFS('Enrolment Data 22nd June'!O:O,'Enrolment Data 22nd June'!F:F,B4,'Enrolment Data 22nd June'!P:P,$V$2,'Enrolment Data 22nd June'!N:N,"Yes") -> 0 | W4: =IFERROR(V4-Q4,"-") -> 0 | X4: =IFERROR(V4/Q4-1,"-") -> - | Y4: =SUMIFS('Enrolment Data 22nd June'!O:O,'Enrolment Data 22nd June'!F:F,B4,'Enrolment Data 22nd June'!P:P,$Y$2,'Enrolment Data 22nd June'!N:N,"Yes") -> 0 | Z4: =IFERROR(V4+Y4,"-") -> 0 | AA4: =SUMIFS('Enrolment Data 22nd June'!O:O,'Enrolment Data 22nd June'!F:F,B4,'Enrolment Data 22nd June'!P:P,$AA$2,'Enrolment Data 22nd June'!N:N,"Yes") -> 0 | AB4: =SUMIFS('Enrolment Data 22nd June'!O:O,'Enrolment Data 22nd June'!F:F,B4,'Enrolment Data 22nd June'!P:P,$AB$2,'Enrolment Data 22nd June'!N:N,"Yes") -> 0 | AC4: =IFERROR(AA4+AB4,"-") -> 0 | AD4: =IFERROR(P4+S4,"-") -> 0 | AE4: 0 | AF4: 0 | AG4: =IFERROR(P4+S4+Z4+AA4,"-") -> 0 | AH4: 2020 | AI4: =IFERROR( INDEX('Salesforce Contracts 22nd June'!$S$2:$V$4000, MATCH(1,INDEX(('Salesforce Contracts 22nd June'!$A$2:$A$4000=$B4)*(INDEX('Salesforce Contracts 22nd June'!$S$2:$V$4000,,MATCH($AI$1,'Salesforce Contracts 22nd June'!$O$1:$R$1,0))<>""),0),0), MATCH(AI$1,'Salesforce Contracts 22nd June'!$O$1:$R$1,0)), "") ->  | AJ4: =IFERROR( INDEX('Salesforce Contracts 22nd June'!$S$2:$V$4000, MATCH(1,INDEX(('Salesforce Contracts 22nd June'!$A$2:$A$4000=$B4)*(INDEX('Salesforce Contracts 22nd June'!$S$2:$V$4000,,MATCH($AJ$1,'Salesforce Contracts 22nd June'!$O$1:$R$1,0))<>""),0),0), MATCH(AJ$1,'Salesforce Contracts 22nd June'!$O$1:$R$1,0)), "") ->  | AK4: =IFERROR( INDEX('Salesforce Contracts 22nd June'!$S$2:$V$4000, MATCH(1,INDEX(('Salesforce Contracts 22nd June'!$A$2:$A$4000=$B4)*(INDEX('Salesforce Contracts 22nd June'!$S$2:$V$4000,,MATCH($AK$1,'Salesforce Contracts 22nd June'!$O$1:$R$1,0))<>""),0),0), MATCH(AK$1,'Salesforce Contracts 22nd June'!$O$1:$R$1,0)), "") ->  | AL4: =IFERROR( INDEX('Salesforce Contracts 22nd June'!$S$2:$V$4000, MATCH(1,INDEX(('Salesforce Contracts 22nd June'!$A$2:$A$4000=$B4)*(INDEX('Salesforce Contracts 22nd June'!$S$2:$V$4000,,MATCH($AL$1,'Salesforce Contracts 22nd June'!$O$1:$R$1,0))<>""),0),0), MATCH(AL$1,'Salesforce Contracts 22nd June'!$O$1:$R$1,0)), "") -> Agent | AM4: =IFERROR( INDEX('Salesforce Contracts 22nd June'!$O$2:$R$4000, MATCH(1,INDEX(('Salesforce Contracts 22nd June'!$A$2:$A$4000=$B4)*(INDEX('Salesforce Contracts 22nd June'!$O$2:$R$4000,,MATCH($AM$1,'Salesforce Contracts 22nd June'!$O$1:$R$1,0))<>""),0),0), MATCH(AM$1,'Salesforce Contracts 22nd June'!$O$1:$R$1,0)), "") ->  | AN4: =IFERROR( INDEX('Salesforce Contracts 22nd June'!$O$2:$R$4000, MATCH(1,INDEX(('Salesforce Contracts 22nd June'!$A$2:$A$4000=$B4)*(INDEX('Salesforce Contracts 22nd June'!$O$2:$R$4000,,MATCH($AN$1,'Salesforce Contracts 22nd June'!$O$1:$R$1,0))<>""),0),0), MATCH(AN$1,'Salesforce Contracts 22nd June'!$O$1:$R$1,0)), "") ->  | AO4: =IFERROR( INDEX('Salesforce Contracts 22nd June'!$O$2:$R$4000, MATCH(1,INDEX(('Salesforce Contracts 22nd June'!$A$2:$A$4000=$B4)*(INDEX('Salesforce Contracts 22nd June'!$O$2:$R$4000,,MATCH($AO$1,'Salesforce Contracts 22nd June'!$O$1:$R$1,0))<>""),0),0), MATCH(AO$1,'Salesforce Contracts 22nd June'!$O$1:$R$1,0)), "") ->  | AP4: =IFERROR( INDEX('Salesforce Contracts 22nd June'!$O$2:$R$4000, MATCH(1,INDEX(('Salesforce Contracts 22nd June'!$A$2:$A$4000=$B4)*(INDEX('Salesforce Contracts 22nd June'!$O$2:$R$4000,,MATCH($AP$1,'Salesforce Contracts 22nd June'!$O$1:$R$1,0))<>""),0),0), MATCH(AP$1,'Salesforce Contracts 22nd June'!$O$1:$R$1,0)), "") -> LIVE | AQ4: =IFERROR(VLOOKUP(B4,Lookup!Q:R,2,FALSE),"n/a") -> 2020 | AR4: =VLOOKUP(B4,Lookup!L:M,2,FALSE) -> 0 | AS4: =VLOOKUP(B4,Lookup!L:N,3,FALSE) -> (blank) | AT4: =IF(AND(H4="Active",AM4=""),"yes","") ->  | AU4: =IF(AND(I4="Active",AN4=""),"yes","") ->  | AV4: =IF(AND(J4="Active",AO4=""),"yes","") ->  | AW4: =IF(AND(K4="Active",AP4=""),"yes","") -> 
A5: =VLOOKUP(B:B,'Salesforce Contracts 22nd June'!A:V,8,FALSE) -> Agent | B5: =Lookup!L4 -> AAA Uhak | C5: =VLOOKUP(B:B,'Salesforce Contracts 22nd June'!A:V,4,FALSE) -> Asia Pacific | D5: =VLOOKUP(B:B,'Salesforce Contracts 22nd June'!A:V,14,FALSE) -> Korea, Republic of | E5: =VLOOKUP(B:B,'Salesforce Contracts 22nd June'!A:V,9,FALSE) -> Agreement received | F5: =VLOOKUP(B:B,'Salesforce Contracts 22nd June'!A:V,6,FALSE) -> 2020-06-01 | G5: =VLOOKUP(B:B,'Salesforce Contracts 22nd June'!A:V,7,FALSE) -> 2022-06-01 | H5: Inactive | I5: Inactive | J5: Inactive | K5: Inactive | L5: Inactive | M5: Inactive | N5: =SUMIFS('Enrolment Data 22nd June'!O:O,'Enrolment Data 22nd June'!F:F,B5,'Enrolment Data 22nd June'!P:P,$N$2,'Enrolment Data 22nd June'!N:N,"Yes") -> 0 | O5: =SUMIFS('Enrolment Data 22nd June'!O:O,'Enrolment Data 22nd June'!F:F,B5,'Enrolment Data 22nd June'!P:P,$O$2,'Enrolment Data 22nd June'!N:N,"Yes") -> 0 | P5: 0 | Q5: =SUMIFS('Enrolment Data 22nd June'!O:O,'Enrolment Data 22nd June'!F:F,B5,'Enrolment Data 22nd June'!P:P,$Q$2,'Enrolment Data 22nd June'!N:N,"Yes") -> 0 | R5: =SUMIFS('Enrolment Data 22nd June'!O:O,'Enrolment Data 22nd June'!F:F,B5,'Enrolment Data 22nd June'!P:P,$R$2,'Enrolment Data 22nd June'!N:N,"Yes") -> 0 | S5: 0 | T5: 0 | U5: - | V5: =SUMIFS('Enrolment Data 22nd June'!O:O,'Enrolment Data 22nd June'!F:F,B5,'Enrolment Data 22nd June'!P:P,$V$2,'Enrolment Data 22nd June'!N:N,"Yes") -> 0 | W5: 0 | X5: - | Y5: =SUMIFS('Enrolment Data 22nd June'!O:O,'Enrolment Data 22nd June'!F:F,B5,'Enrolment Data 22nd June'!P:P,$Y$2,'Enrolment Data 22nd June'!N:N,"Yes") -> 0 | Z5: 0 | AA5: =SUMIFS('Enrolment Data 22nd June'!O:O,'Enrolment Data 22nd June'!F:F,B5,'Enrolment Data 22nd June'!P:P,$AA$2,'Enrolment Data 22nd June'!N:N,"Yes") -> 0 | AB5: =SUMIFS('Enrolment Data 22nd June'!O:O,'Enrolment Data 22nd June'!F:F,B5,'Enrolment Data 22nd June'!P:P,$AB$2,'Enrolment Data 22nd June'!N:N,"Yes") -> 0 | AC5: 0 | AD5: 0 | AE5: 0 | AF5: 0 | AG5: 0 | AH5: 2020 | AI5: =IFERROR( INDEX('Salesforce Contracts 22nd June'!$S$2:$V$4000, MATCH(1,INDEX(('Salesforce Contracts 22nd June'!$A$2:$A$4000=$B5)*(INDEX('Salesforce Contracts 22nd June'!$S$2:$V$4000,,MATCH($AI$1,'Salesforce Contracts 22nd June'!$O$1:$R$1,0))<>""),0),0), MATCH(AI$1,'Salesforce Contracts 22nd June'!$O$1:$R$1,0)), "") ->  | AJ5: =IFERROR( INDEX('Salesforce Contracts 22nd June'!$S$2:$V$4000, MATCH(1,INDEX(('Salesforce Contracts 22nd June'!$A$2:$A$4000=$B5)*(INDEX('Salesforce Contracts 22nd June'!$S$2:$V$4000,,MATCH($AJ$1,'Salesforce Contracts 22nd June'!$O$1:$R$1,0))<>""),0),0), MATCH(AJ$1,'Salesforce Contracts 22nd June'!$O$1:$R$1,0)), "") ->  | AK5: =IFERROR( INDEX('Salesforce Contracts 22nd June'!$S$2:$V$4000, MATCH(1,INDEX(('Salesforce Contracts 22nd June'!$A$2:$A$4000=$B5)*(INDEX('Salesforce Contracts 22nd June'!$S$2:$V$4000,,MATCH($AK$1,'Salesforce Contracts 22nd June'!$O$1:$R$1,0))<>""),0),0), MATCH(AK$1,'Salesforce Contracts 22nd June'!$O$1:$R$1,0)), "") ->  | AL5: =IFERROR( INDEX('Salesforce Contracts 22nd June'!$S$2:$V$4000, MATCH(1,INDEX(('Salesforce Contracts 22nd June'!$A$2:$A$4000=$B5)*(INDEX('Salesforce Contracts 22nd June'!$S$2:$V$4000,,MATCH($AL$1,'Salesforce Contracts 22nd June'!$O$1:$R$1,0))<>""),0),0), MATCH(AL$1,'Salesforce Contracts 22nd June'!$O$1:$R$1,0)), "") -> Agent | AM5: =IFERROR( INDEX('Salesforce Contracts 22nd June'!$O$2:$R$4000, MATCH(1,INDEX(('Salesforce Contracts 22nd June'!$A$2:$A$4000=$B5)*(INDEX('Salesforce Contracts 22nd June'!$O$2:$R$4000,,MATCH($AM$1,'Salesforce Contracts 22nd June'!$O$1:$R$1,0))<>""),0),0), MATCH(AM$1,'Salesforce Contracts 22nd June'!$O$1:$R$1,0)), "") ->  | AN5: =IFERROR( INDEX('Salesforce Contracts 22nd June'!$O$2:$R$4000, MATCH(1,INDEX(('Salesforce Contracts 22nd June'!$A$2:$A$4000=$B5)*(INDEX('Salesforce Contracts 22nd June'!$O$2:$R$4000,,MATCH($AN$1,'Salesforce Contracts 22nd June'!$O$1:$R$1,0))<>""),0),0), MATCH(AN$1,'Salesforce Contracts 22nd June'!$O$1:$R$1,0)), "") ->  | AO5: =IFERROR( INDEX('Salesforce Contracts 22nd June'!$O$2:$R$4000, MATCH(1,INDEX(('Salesforce Contracts 22nd June'!$A$2:$A$4000=$B5)*(INDEX('Salesforce Contracts 22nd June'!$O$2:$R$4000,,MATCH($AO$1,'Salesforce Contracts 22nd June'!$O$1:$R$1,0))<>""),0),0), MATCH(AO$1,'Salesforce Contracts 22nd June'!$O$1:$R$1,0)), "") ->  | AP5: =IFERROR( INDEX('Salesforce Contracts 22nd June'!$O$2:$R$4000, MATCH(1,INDEX(('Salesforce Contracts 22nd June'!$A$2:$A$4000=$B5)*(INDEX('Salesforce Contracts 22nd June'!$O$2:$R$4000,,MATCH($AP$1,'Salesforce Contracts 22nd June'!$O$1:$R$1,0))<>""),0),0), MATCH(AP$1,'Salesforce Contracts 22nd June'!$O$1:$R$1,0)), "") -> LIVE | AQ5: =IFERROR(VLOOKUP(B5,Lookup!Q:R,2,FALSE),"n/a") -> 2020 | AR5: =VLOOKUP(B5,Lookup!L:M,2,FALSE) -> 0 | AS5: =VLOOKUP(B5,Lookup!L:N,3,FALSE) -> (blank)
A6: =VLOOKUP(B:B,'Salesforce Contracts 22nd June'!A:V,8,FALSE) -> EC | B6: =Lookup!L5 -> Absolut Hospitality Sàrl | C6: =VLOOKUP(B:B,'Salesforce Contracts 22nd June'!A:V,4,FALSE) -> Southern Europe and MENA | D6: =VLOOKUP(B:B,'Salesforce Contracts 22nd June'!A:V,14,FALSE) -> Morocco; Tunisia | E6: =VLOOKUP(B:B,'Salesforce Contracts 22nd June'!A:V,9,FALSE) -> Live Contract | F6: =VLOOKUP(B:B,'Salesforce Contracts 22nd June'!A:V,6,FALSE) -> 2020-01-01 | G6: =VLOOKUP(B:B,'Salesforce Contracts 22nd June'!A:V,7,FALSE) -> 2023-01-01 | H6: Active | I6: Active | J6: Active | K6: Active | L6: Active | M6: Active | N6: =SUMIFS('Enrolment Data 22nd June'!O:O,'Enrolment Data 22nd June'!F:F,B6,'Enrolment Data 22nd June'!P:P,$N$2,'Enrolment Data 22nd June'!N:N,"Yes") -> 4 | O6: =SUMIFS('Enrolment Data 22nd June'!O:O,'Enrolment Data 22nd June'!F:F,B6,'Enrolment Data 22nd June'!P:P,$O$2,'Enrolment Data 22nd June'!N:N,"Yes") -> 12 | P6: 16 | Q6: =SUMIFS('Enrolment Data 22nd June'!O:O,'Enrolment Data 22nd June'!F:F,B6,'Enrolment Data 22nd June'!P:P,$Q$2,'Enrolment Data 22nd June'!N:N,"Yes") -> 2 | R6: =SUMIFS('Enrolment Data 22nd June'!O:O,'Enrolment Data 22nd June'!F:F,B6,'Enrolment Data 22nd June'!P:P,$R$2,'Enrolment Data 22nd June'!N:N,"Yes") -> 7 | S6: 9 | T6: -7 | U6: -44% | V6: =SUMIFS('Enrolment Data 22nd June'!O:O,'Enrolment Data 22nd June'!F:F,B6,'Enrolment Data 22nd June'!P:P,$V$2,'Enrolment Data 22nd June'!N:N,"Yes") -> 5 | W6: 3 | X6: 150% | Y6: =SUMIFS('Enrolment Data 22nd June'!O:O,'Enrolment Data 22nd June'!F:F,B6,'Enrolment Data 22nd June'!P:P,$Y$2,'Enrolment Data 22nd June'!N:N,"Yes") -> 12 | Z6: 17 | AA6: =SUMIFS('Enrolment Data 22nd June'!O:O,'Enrolment Data 22nd June'!F:F,B6,'Enrolment Data 22nd June'!P:P,$AA$2,'Enrolment Data 22nd June'!N:N,"Yes") -> 6 | AB6: =SUMIFS('Enrolment Data 22nd June'!O:O,'Enrolment Data 22nd June'!F:F,B6,'Enrolment Data 22nd June'!P:P,$AB$2,'Enrolment Data 22nd June'!N:N,"Yes") -> 13 | AC6: 19 | AD6: 25 | AE6: 30 | AF6: 31 | AG6: 48 | AH6: 2020 | AI6: =IFERROR( INDEX('Salesforce Contracts 22nd June'!$S$2:$V$4000, MATCH(1,INDEX(('Salesforce Contracts 22nd June'!$A$2:$A$4000=$B6)*(INDEX('Salesforce Contracts 22nd June'!$S$2:$V$4000,,MATCH($AI$1,'Salesforce Contracts 22nd June'!$O$1:$R$1,0))<>""),0),0), MATCH(AI$1,'Salesforce Contracts 22nd June'!$O$1:$R$1,0)), "") -> EC | AJ6: =IFERROR( INDEX('Salesforce Contracts 22nd June'!$S$2:$V$4000, MATCH(1,INDEX(('Salesforce Contracts 22nd June'!$A$2:$A$4000=$B6)*(INDEX('Salesforce Contracts 22nd June'!$S$2:$V$4000,,MATCH($AJ$1,'Salesforce Contracts 22nd June'!$O$1:$R$1,0))<>""),0),0), MATCH(AJ$1,'Salesforce Contracts 22nd June'!$O$1:$R$1,0)), "") -> EC | AK6: =IFERROR( INDEX('Salesforce Contracts 22nd June'!$S$2:$V$4000, MATCH(1,INDEX(('Salesforce Contracts 22nd June'!$A$2:$A$4000=$B6)*(INDEX('Salesforce Contracts 22nd June'!$S$2:$V$4000,,MATCH($AK$1,'Salesforce Contracts 22nd June'!$O$1:$R$1,0))<>""),0),0), MATCH(AK$1,'Salesforce Contracts 22nd June'!$O$1:$R$1,0)), "") -> EC | AL6: =IFERROR( INDEX('Salesforce Contracts 22nd June'!$S$2:$V$4000, MATCH(1,INDEX(('Salesforce Contracts 22nd June'!$A$2:$A$4000=$B6)*(INDEX('Salesforce Contracts 22nd June'!$S$2:$V$4000,,MATCH($AL$1,'Salesforce Contracts 22nd June'!$O$1:$R$1,0))<>""),0),0), MATCH(AL$1,'Salesforce Contracts 22nd June'!$O$1:$R$1,0)), "") -> EC | AM6: =IFERROR( INDEX('Salesforce Contracts 22nd June'!$O$2:$R$4000, MATCH(1,INDEX(('Salesforce Contracts 22nd June'!$A$2:$A$4000=$B6)*(INDEX('Salesforce Contracts 22nd June'!$O$2:$R$4000,,MATCH($AM$1,'Salesforce Contracts 22nd June'!$O$1:$R$1,0))<>""),0),0), MATCH(AM$1,'Salesforce Contracts 22nd June'!$O$1:$R$1,0)), "") -> LIVE | AN6: =IFERROR( INDEX('Salesforce Contracts 22nd June'!$O$2:$R$4000, MATCH(1,INDEX(('Salesforce Contracts 22nd June'!$A$2:$A$4000=$B6)*(INDEX('Salesforce Contracts 22nd June'!$O$2:$R$4000,,MATCH($AN$1,'Salesforce Contracts 22nd June'!$O$1:$R$1,0))<>""),0),0), MATCH(AN$1,'Salesforce Contracts 22nd June'!$O$1:$R$1,0)), "") -> LIVE | AO6: =IFERROR( INDEX('Salesforce Contracts 22nd June'!$O$2:$R$4000, MATCH(1,INDEX(('Salesforce Contracts 22nd June'!$A$2:$A$4000=$B6)*(INDEX('Salesforce Contracts 22nd June'!$O$2:$R$4000,,MATCH($AO$1,'Salesforce Contracts 22nd June'!$O$1:$R$1,0))<>""),0),0), MATCH(AO$1,'Salesforce Contracts 22nd June'!$O$1:$R$1,0)), "") -> LIVE | AP6: =IFERROR( INDEX('Salesforce Contracts 22nd June'!$O$2:$R$4000, MATCH(1,INDEX(('Salesforce Contracts 22nd June'!$A$2:$A$4000=$B6)*(INDEX('Salesforce Contracts 22nd June'!$O$2:$R$4000,,MATCH($AP$1,'Salesforce Contracts 22nd June'!$O$1:$R$1,0))<>""),0),0), MATCH(AP$1,'Salesforce Contracts 22nd June'!$O$1:$R$1,0)), "") -> LIVE | AQ6: =IFERROR(VLOOKUP(B6,Lookup!Q:R,2,FALSE),"n/a") -> 2016 | AR6: =VLOOKUP(B6,Lookup!L:M,2,FALSE) -> 0 | AS6: =VLOOKUP(B6,Lookup!L:N,3,FALSE) -> (blank)
A7: =VLOOKUP(B:B,'Salesforce Contracts 22nd June'!A:V,8,FALSE) -> Referral | B7: =Lookup!L6 -> Academspain sl | C7: =VLOOKUP(B:B,'Salesforce Contracts 22nd June'!A:V,4,FALSE) -> Spain and Portugal | D7: =VLOOKUP(B:B,'Salesforce Contracts 22nd June'!A:V,14,FALSE) -> Spain | E7: =VLOOKUP(B:B,'Salesforce Contracts 22nd June'!A:V,9,FALSE) -> Live Contract | F7: =VLOOKUP(B:B,'Salesforce Contracts 22nd June'!A:V,6,FALSE) -> 2019-01-01 | G7: =VLOOKUP(B:B,'Salesforce Contracts 22nd June'!A:V,7,FALSE) -> 2020-01-01 | H7: Inactive | I7: Inactive | J7: Inactive | K7: Inactive | L7: Inactive | M7: Inactive | N7: =SUMIFS('Enrolment Data 22nd June'!O:O,'Enrolment Data 22nd June'!F:F,B7,'Enrolment Data 22nd June'!P:P,$N$2,'Enrolment Data 22nd June'!N:N,"Yes") -> 0 | O7: =SUMIFS('Enrolment Data 22nd June'!O:O,'Enrolment Data 22nd June'!F:F,B7,'Enrolment Data 22nd June'!P:P,$O$2,'Enrolment Data 22nd June'!N:N,"Yes") -> 0 | P7: 0 | Q7: =SUMIFS('Enrolment Data 22nd June'!O:O,'Enrolment Data 22nd June'!F:F,B7,'Enrolment Data 22nd June'!P:P,$Q$2,'Enrolment Data 22nd June'!N:N,"Yes") -> 0 | R7: =SUMIFS('Enrolment Data 22nd June'!O:O,'Enrolment Data 22nd June'!F:F,B7,'Enrolment Data 22nd June'!P:P,$R$2,'Enrolment Data 22nd June'!N:N,"Yes") -> 0 | S7: 0 | T7: 0 | U7: - | V7: =SUMIFS('Enrolment Data 22nd June'!O:O,'Enrolment Data 22nd June'!F:F,B7,'Enrolment Data 22nd June'!P:P,$V$2,'Enrolment Data 22nd June'!N:N,"Yes") -> 0 | W7: 0 | X7: - | Y7: =SUMIFS('Enrolment Data 22nd June'!O:O,'Enrolment Data 22nd June'!F:F,B7,'Enrolment Data 22nd June'!P:P,$Y$2,'Enrolment Data 22nd June'!N:N,"Yes") -> 0 | Z7: 0 | AA7: =SUMIFS('Enrolment Data 22nd June'!O:O,'Enrolment Data 22nd June'!F:F,B7,'Enrolment Data 22nd June'!P:P,$AA$2,'Enrolment Data 22nd June'!N:N,"Yes") -> 0 | AB7: =SUMIFS('Enrolment Data 22nd June'!O:O,'Enrolment Data 22nd June'!F:F,B7,'Enrolment Data 22nd June'!P:P,$AB$2,'Enrolment Data 22nd June'!N:N,"Yes") -> 0 | AC7: 0 | AD7: 0 | AE7: 0 | AF7: 0 | AG7: 0 | AH7: 2019 | AI7: =IFERROR( INDEX('Salesforce Contracts 22nd June'!$S$2:$V$4000, MATCH(1,INDEX(('Salesforce Contracts 22nd June'!$A$2:$A$4000=$B7)*(INDEX('Salesforce Contracts 22nd June'!$S$2:$V$4000,,MATCH($AI$1,'Salesforce Contracts 22nd June'!$O$1:$R$1,0))<>""),0),0), MATCH(AI$1,'Salesforce Contracts 22nd June'!$O$1:$R$1,0)), "") ->  | AJ7: =IFERROR( INDEX('Salesforce Contracts 22nd June'!$S$2:$V$4000, MATCH(1,INDEX(('Salesforce Contracts 22nd June'!$A$2:$A$4000=$B7)*(INDEX('Salesforce Contracts 22nd June'!$S$2:$V$4000,,MATCH($AJ$1,'Salesforce Contracts 22nd June'!$O$1:$R$1,0))<>""),0),0), MATCH(AJ$1,'Salesforce Contracts 22nd June'!$O$1:$R$1,0)), "") -> Referral | AK7: =IFERROR( INDEX('Salesforce Contracts 22nd June'!$S$2:$V$4000, MATCH(1,INDEX(('Salesforce Contracts 22nd June'!$A$2:$A$4000=$B7)*(INDEX('Salesforce Contracts 22nd June'!$S$2:$V$4000,,MATCH($AK$1,'Salesforce Contracts 22nd June'!$O$1:$R$1,0))<>""),0),0), MATCH(AK$1,'Salesforce Contracts 22nd June'!$O$1:$R$1,0)), "") -> Referral | AL7: =IFERROR( INDEX('Salesforce Contracts 22nd June'!$S$2:$V$4000, MATCH(1,INDEX(('Salesforce Contracts 22nd June'!$A$2:$A$4000=$B7)*(INDEX('Salesforce Contracts 22nd June'!$S$2:$V$4000,,MATCH($AL$1,'Salesforce Contracts 22nd June'!$O$1:$R$1,0))<>""),0),0), MATCH(AL$1,'Salesforce Contracts 22nd June'!$O$1:$R$1,0)), "") ->  | AM7: =IFERROR( INDEX('Salesforce Contracts 22nd June'!$O$2:$R$4000, MATCH(1,INDEX(('Salesforce Contracts 22nd June'!$A$2:$A$4000=$B7)*(INDEX('Salesforce Contracts 22nd June'!$O$2:$R$4000,,MATCH($AM$1,'Salesforce Contracts 22nd June'!$O$1:$R$1,0))<>""),0),0), MATCH(AM$1,'Salesforce Contracts 22nd June'!$O$1:$R$1,0)), "") ->  | AN7: =IFERROR( INDEX('Salesforce Contracts 22nd June'!$O$2:$R$4000, MATCH(1,INDEX(('Salesforce Contracts 22nd June'!$A$2:$A$4000=$B7)*(INDEX('Salesforce Contracts 22nd June'!$O$2:$R$4000,,MATCH($AN$1,'Salesforce Contracts 22nd June'!$O$1:$R$1,0))<>""),0),0), MATCH(AN$1,'Salesforce Contracts 22nd June'!$O$1:$R$1,0)), "") -> LIVE | AO7: =IFERROR( INDEX('Salesforce Contracts 22nd June'!$O$2:$R$4000, MATCH(1,INDEX(('Salesforce Contracts 22nd June'!$A$2:$A$4000=$B7)*(INDEX('Salesforce Contracts 22nd June'!$O$2:$R$4000,,MATCH($AO$1,'Salesforce Contracts 22nd June'!$O$1:$R$1,0))<>""),0),0), MATCH(AO$1,'Salesforce Contracts 22nd June'!$O$1:$R$1,0)), "") -> LIVE | AP7: =IFERROR( INDEX('Salesforce Contracts 22nd June'!$O$2:$R$4000, MATCH(1,INDEX(('Salesforce Contracts 22nd June'!$A$2:$A$4000=$B7)*(INDEX('Salesforce Contracts 22nd June'!$O$2:$R$4000,,MATCH($AP$1,'Salesforce Contracts 22nd June'!$O$1:$R$1,0))<>""),0),0), MATCH(AP$1,'Salesforce Contracts 22nd June'!$O$1:$R$1,0)), "") ->  | AQ7: =IFERROR(VLOOKUP(B7,Lookup!Q:R,2,FALSE),"n/a") -> 2018 | AR7: =VLOOKUP(B7,Lookup!L:M,2,FALSE) -> 0 | AS7: =VLOOKUP(B7,Lookup!L:N,3,FALSE) -> (blank)
A8: =VLOOKUP(B:B,'Salesforce Contracts 22nd June'!A:V,8,FALSE) -> Referral | B8: =Lookup!L7 -> Addisco Education | C8: =VLOOKUP(B:B,'Salesforce Contracts 22nd June'!A:V,4,FALSE) -> GAN Region | D8: =VLOOKUP(B:B,'Salesforce Contracts 22nd June'!A:V,14,FALSE) -> Germany | E8: =VLOOKUP(B:B,'Salesforce Contracts 22nd June'!A:V,9,FALSE) -> Cancelled | F8: =VLOOKUP(B:B,'Salesforce Contracts 22nd June'!A:V,6,FALSE) -> 2013-02-01 | G8: =VLOOKUP(B:B,'Salesforce Contracts 22nd June'!A:V,7,FALSE) -> 2017-01-31 | H8: Inactive | I8: Inactive | J8: Inactive | K8: Inactive | L8: Inactive | M8: Inactive | N8: =SUMIFS('Enrolment Data 22nd June'!O:O,'Enrolment Data 22nd June'!F:F,B8,'Enrolment Data 22nd June'!P:P,$N$2,'Enrolment Data 22nd June'!N:N,"Yes") -> 0 | O8: =SUMIFS('Enrolment Data 22nd June'!O:O,'Enrolment Data 22nd June'!F:F,B8,'Enrolment Data 22nd June'!P:P,$O$2,'Enrolment Data 22nd June'!N:N,"Yes") -> 0 | P8: 0 | Q8: =SUMIFS('Enrolment Data 22nd June'!O:O,'Enrolment Data 22nd June'!F:F,B8,'Enrolment Data 22nd June'!P:P,$Q$2,'Enrolment Data 22nd June'!N:N,"Yes") -> 0 | R8: =SUMIFS('Enrolment Data 22nd June'!O:O,'Enrolment Data 22nd June'!F:F,B8,'Enrolment Data 22nd June'!P:P,$R$2,'Enrolment Data 22nd June'!N:N,"Yes") -> 0 | S8: 0 | T8: 0 | U8: - | V8: =SUMIFS('Enrolment Data 22nd June'!O:O,'Enrolment Data 22nd June'!F:F,B8,'Enrolment Data 22nd June'!P:P,$V$2,'Enrolment Data 22nd June'!N:N,"Yes") -> 0 | W8: 0 | X8: - | Y8: =SUMIFS('Enrolment Data 22nd June'!O:O,'Enrolment Data 22nd June'!F:F,B8,'Enrolment Data 22nd June'!P:P,$Y$2,'Enrolment Data 22nd June'!N:N,"Yes") -> 0 | Z8: =IFERROR(V8+Y8,"-") -> 0 | AA8: =SUMIFS('Enrolment Data 22nd June'!O:O,'Enrolment Data 22nd June'!F:F,B8,'Enrolment Data 22nd June'!P:P,$AA$2,'Enrolment Data 22nd June'!N:N,"Yes") -> 0 | AB8: =SUMIFS('Enrolment Data 22nd June'!O:O,'Enrolment Data 22nd June'!F:F,B8,'Enrolment Data 22nd June'!P:P,$AB$2,'Enrolment Data 22nd June'!N:N,"Yes") -> 0 | AC8: 0 | AD8: 0 | AE8: 0 | AF8: 0 | AG8: 0 | AH8: 2013 | AI8: =IFERROR( INDEX('Salesforce Contracts 22nd June'!$S$2:$V$4000, MATCH(1,INDEX(('Salesforce Contracts 22nd June'!$A$2:$A$4000=$B8)*(INDEX('Salesforce Contracts 22nd June'!$S$2:$V$4000,,MATCH($AI$1,'Salesforce Contracts 22nd June'!$O$1:$R$1,0))<>""),0),0), MATCH(AI$1,'Salesforce Contracts 22nd June'!$O$1:$R$1,0)), "") -> Referral | AJ8: =IFERROR( INDEX('Salesforce Contracts 22nd June'!$S$2:$V$4000, MATCH(1,INDEX(('Salesforce Contracts 22nd June'!$A$2:$A$4000=$B8)*(INDEX('Salesforce Contracts 22nd June'!$S$2:$V$4000,,MATCH($AJ$1,'Salesforce Contracts 22nd June'!$O$1:$R$1,0))<>""),0),0), MATCH(AJ$1,'Salesforce Contracts 22nd June'!$O$1:$R$1,0)), "") ->  | AK8: =IFERROR( INDEX('Salesforce Contracts 22nd June'!$S$2:$V$4000, MATCH(1,INDEX(('Salesforce Contracts 22nd June'!$A$2:$A$4000=$B8)*(INDEX('Salesforce Contracts 22nd June'!$S$2:$V$4000,,MATCH($AK$1,'Salesforce Contracts 22nd June'!$O$1:$R$1,0))<>""),0),0), MATCH(AK$1,'Salesforce Contracts 22nd June'!$O$1:$R$1,0)), "") ->  | AL8: =IFERROR( INDEX('Salesforce Contracts 22nd June'!$S$2:$V$4000, MATCH(1,INDEX(('Salesforce Contracts 22nd June'!$A$2:$A$4000=$B8)*(INDEX('Salesforce Contracts 22nd June'!$S$2:$V$4000,,MATCH($AL$1,'Salesforce Contracts 22nd June'!$O$1:$R$1,0))<>""),0),0), MATCH(AL$1,'Salesforce Contracts 22nd June'!$O$1:$R$1,0)), "") ->  | AM8: =IFERROR( INDEX('Salesforce Contracts 22nd June'!$O$2:$R$4000, MATCH(1,INDEX(('Salesforce Contracts 22nd June'!$A$2:$A$4000=$B8)*(INDEX('Salesforce Contracts 22nd June'!$O$2:$R$4000,,MATCH($AM$1,'Salesforce Contracts 22nd June'!$O$1:$R$1,0))<>""),0),0), MATCH(AM$1,'Salesforce Contracts 22nd June'!$O$1:$R$1,0)), "") -> LIVE | AN8: =IFERROR( INDEX('Salesforce Contracts 22nd June'!$O$2:$R$4000, MATCH(1,INDEX(('Salesforce Contracts 22nd June'!$A$2:$A$4000=$B8)*(INDEX('Salesforce Contracts 22nd June'!$O$2:$R$4000,,MATCH($AN$1,'Salesforce Contracts 22nd June'!$O$1:$R$1,0))<>""),0),0), MATCH(AN$1,'Salesforce Contracts 22nd June'!$O$1:$R$1,0)), "") ->  | AO8: =IFERROR( INDEX('Salesforce Contracts 22nd June'!$O$2:$R$4000, MATCH(1,INDEX(('Salesforce Contracts 22nd June'!$A$2:$A$4000=$B8)*(INDEX('Salesforce Contracts 22nd June'!$O$2:$R$4000,,MATCH($AO$1,'Salesforce Contracts 22nd June'!$O$1:$R$1,0))<>""),0),0), MATCH(AO$1,'Salesforce Contracts 22nd June'!$O$1:$R$1,0)), "") ->  | AP8: =IFERROR( INDEX('Salesforce Contracts 22nd June'!$O$2:$R$4000, MATCH(1,INDEX(('Salesforce Contracts 22nd June'!$A$2:$A$4000=$B8)*(INDEX('Salesforce Contracts 22nd June'!$O$2:$R$4000,,MATCH($AP$1,'Salesforce Contracts 22nd June'!$O$1:$R$1,0))<>""),0),0), MATCH(AP$1,'Salesforce Contracts 22nd June'!$O$1:$R$1,0)), "") ->  | AQ8: =IFERROR(VLOOKUP(B8,Lookup!Q:R,2,FALSE),"n/a") -> 2013 | AR8: =VLOOKUP(B8,Lookup!L:M,2,FALSE) -> 0 | AS8: =VLOOKUP(B8,Lookup!L:N,3,FALSE) -> (blank)
A9: =VLOOKUP(B:B,'Salesforce Contracts 22nd June'!A:V,8,FALSE) -> Agent | B9: =Lookup!L8 -> Aerovectra Ltd | C9: =VLOOKUP(B:B,'Salesforce Contracts 22nd June'!A:V,4,FALSE) -> Eastern Europe | D9: =VLOOKUP(B:B,'Salesforce Contracts 22nd June'!A:V,14,FALSE) -> Russian Federation | E9: =VLOOKUP(B:B,'Salesforce Contracts 22nd June'!A:V,9,FALSE) -> Live Contract | F9: =VLOOKUP(B:B,'Salesforce Contracts 22nd June'!A:V,6,FALSE) -> 2020-01-01 | G9: =VLOOKUP(B:B,'Salesforce Contracts 22nd June'!A:V,7,FALSE) -> 2022-01-01 | H9: Inactive | I9: Inactive | J9: Active | K9: Inactive | L9: Inactive | M9: Active | N9: =SUMIFS('Enrolment Data 22nd June'!O:O,'Enrolment Data 22nd June'!F:F,B9,'Enrolment Data 22nd June'!P:P,$N$2,'Enrolment Data 22nd June'!N:N,"Yes") -> 0 | O9: =SUMIFS('Enrolment Data 22nd June'!O:O,'Enrolment Data 22nd June'!F:F,B9,'Enrolment Data 22nd June'!P:P,$O$2,'Enrolment Data 22nd June'!N:N,"Yes") -> 0 | P9: 0 | Q9: =SUMIFS('Enrolment Data 22nd June'!O:O,'Enrolment Data 22nd June'!F:F,B9,'Enrolment Data 22nd June'!P:P,$Q$2,'Enrolment Data 22nd June'!N:N,"Yes") -> 0 | R9: =SUMIFS('Enrolment Data 22nd June'!O:O,'Enrolment Data 22nd June'!F:F,B9,'Enrolment Data 22nd June'!P:P,$R$2,'Enrolment Data 22nd June'!N:N,"Yes") -> 0 | S9: 0 | T9: 0 | U9: - | V9: =SUMIFS('Enrolment Data 22nd June'!O:O,'Enrolment Data 22nd June'!F:F,B9,'Enrolment Data 22nd June'!P:P,$V$2,'Enrolment Data 22nd June'!N:N,"Yes") -> 0 | W9: 0 | X9: - | Y9: =SUMIFS('Enrolment Data 22nd June'!O:O,'Enrolment Data 22nd June'!F:F,B9,'Enrolment Data 22nd June'!P:P,$Y$2,'Enrolment Data 22nd June'!N:N,"Yes") -> 1 | Z9: 1 | AA9: =SUMIFS('Enrolment Data 22nd June'!O:O,'Enrolment Data 22nd June'!F:F,B9,'Enrolment Data 22nd June'!P:P,$AA$2,'Enrolment Data 22nd June'!N:N,"Yes") -> 0 | AB9: =SUMIFS('Enrolment Data 22nd June'!O:O,'Enrolment Data 22nd June'!F:F,B9,'Enrolment Data 22nd June'!P:P,$AB$2,'Enrolment Data 22nd June'!N:N,"Yes") -> 0 | AC9: 0 | AD9: 0 | AE9: 0 | AF9: 1 | AG9: 1 | AH9: 2020 | AI9: =IFERROR( INDEX('Salesforce Contracts 22nd June'!$S$2:$V$4000, MATCH(1,INDEX(('Salesforce Contracts 22nd June'!$A$2:$A$4000=$B9)*(INDEX('Salesforce Contracts 22nd June'!$S$2:$V$4000,,MATCH($AI$1,'Salesforce Contracts 22nd June'!$O$1:$R$1,0))<>""),0),0), MATCH(AI$1,'Salesforce Contracts 22nd June'!$O$1:$R$1,0)), "") ->  | AJ9: =IFERROR( INDEX('Salesforce Contracts 22nd June'!$S$2:$V$4000, MATCH(1,INDEX(('Salesforce Contracts 22nd June'!$A$2:$A$4000=$B9)*(INDEX('Salesforce Contracts 22nd June'!$S$2:$V$4000,,MATCH($AJ$1,'Salesforce Contracts 22nd June'!$O$1:$R$1,0))<>""),0),0), MATCH(AJ$1,'Salesforce Contracts 22nd June'!$O$1:$R$1,0)), "") ->  | AK9: =IFERROR( INDEX('Salesforce Contracts 22nd June'!$S$2:$V$4000, MATCH(1,INDEX(('Salesforce Contracts 22nd June'!$A$2:$A$4000=$B9)*(INDEX('Salesforce Contracts 22nd June'!$S$2:$V$4000,,MATCH($AK$1,'Salesforce Contracts 22nd June'!$O$1:$R$1,0))<>""),0),0), MATCH(AK$1,'Salesforce Contracts 22nd June'!$O$1:$R$1,0)), "") -> Agent | AL9: =IFERROR( INDEX('Salesforce Contracts 22nd June'!$S$2:$V$4000, MATCH(1,INDEX(('Salesforce Contracts 22nd June'!$A$2:$A$4000=$B9)*(INDEX('Salesforce Contracts 22nd June'!$S$2:$V$4000,,MATCH($AL$1,'Salesforce Contracts 22nd June'!$O$1:$R$1,0))<>""),0),0), MATCH(AL$1,'Salesforce Contracts 22nd June'!$O$1:$R$1,0)), "") -> Agent | AM9: =IFERROR( INDEX('Salesforce Contracts 22nd June'!$O$2:$R$4000, MATCH(1,INDEX(('Salesforce Contracts 22nd June'!$A$2:$A$4000=$B9)*(INDEX('Salesforce Contracts 22nd June'!$O$2:$R$4000,,MATCH($AM$1,'Salesforce Contracts 22nd June'!$O$1:$R$1,0))<>""),0),0), MATCH(AM$1,'Salesforce Contracts 22nd June'!$O$1:$R$1,0)), "") ->  | AN9: =IFERROR( INDEX('Salesforce Contracts 22nd June'!$O$2:$R$4000, MATCH(1,INDEX(('Salesforce Contracts 22nd June'!$A$2:$A$4000=$B9)*(INDEX('Salesforce Contracts 22nd June'!$O$2:$R$4000,,MATCH($AN$1,'Salesforce Contracts 22nd June'!$O$1:$R$1,0))<>""),0),0), MATCH(AN$1,'Salesforce Contracts 22nd June'!$O$1:$R$1,0)), "") ->  | AO9: =IFERROR( INDEX('Salesforce Contracts 22nd June'!$O$2:$R$4000, MATCH(1,INDEX(('Salesforce Contracts 22nd June'!$A$2:$A$4000=$B9)*(INDEX('Salesforce Contracts 22nd June'!$O$2:$R$4000,,MATCH($AO$1,'Salesforce Contracts 22nd June'!$O$1:$R$1,0))<>""),0),0), MATCH(AO$1,'Salesforce Contracts 22nd June'!$O$1:$R$1,0)), "") -> LIVE | AP9: =IFERROR( INDEX('Salesforce Contracts 22nd June'!$O$2:$R$4000, MATCH(1,INDEX(('Salesforce Contracts 22nd June'!$A$2:$A$4000=$B9)*(INDEX('Salesforce Contracts 22nd June'!$O$2:$R$4000,,MATCH($AP$1,'Salesforce Contracts 22nd June'!$O$1:$R$1,0))<>""),0),0), MATCH(AP$1,'Salesforce Contracts 22nd June'!$O$1:$R$1,0)), "") -> LIVE | AQ9: =IFERROR(VLOOKUP(B9,Lookup!Q:R,2,FALSE),"n/a") -> 2019 | AR9: =VLOOKUP(B9,Lookup!L:M,2,FALSE) -> 0 | AS9: =VLOOKUP(B9,Lookup!L:N,3,FALSE) -> (blank)
A10: =VLOOKUP(B:B,'Salesforce Contracts 22nd June'!A:V,8,FALSE) -> Referral | B10: =Lookup!L9 -> Alberto Giuffrida | C10: =VLOOKUP(B:B,'Salesforce Contracts 22nd June'!A:V,4,FALSE) -> Switzerland | D10: =VLOOKUP(B:B,'Salesforce Contracts 22nd June'!A:V,14,FALSE) -> Switzerland | E10: =VLOOKUP(B:B,'Salesforce Contracts 22nd June'!A:V,9,FALSE) -> Live Contract | F10: =VLOOKUP(B:B,'Salesforce Contracts 22nd June'!A:V,6,FALSE) -> 2018-04-01 | G10: =VLOOKUP(B:B,'Salesforce Contracts 22nd June'!A:V,7,FALSE) -> 2020-03-31 | H10: Inactive | I10: Inactive | J10: Inactive | K10: Inactive | L10: Inactive | M10: Inactive | N10: =SUMIFS('Enrolment Data 22nd June'!O:O,'Enrolment Data 22nd June'!F:F,B10,'Enrolment Data 22nd June'!P:P,$N$2,'Enrolment Data 22nd June'!N:N,"Yes") -> 0 | O10: =SUMIFS('Enrolment Data 22nd June'!O:O,'Enrolment Data 22nd June'!F:F,B10,'Enrolment Data 22nd June'!P:P,$O$2,'Enrolment Data 22nd June'!N:N,"Yes") -> 0 | P10: 0 | Q10: =SUMIFS('Enrolment Data 22nd June'!O:O,'Enrolment Data 22nd June'!F:F,B10,'Enrolment Data 22nd June'!P:P,$Q$2,'Enrolment Data 22nd June'!N:N,"Yes") -> 0 | R10: =SUMIFS('Enrolment Data 22nd June'!O:O,'Enrolment Data 22nd June'!F:F,B10,'Enrolment Data 22nd June'!P:P,$R$2,'Enrolment Data 22nd June'!N:N,"Yes") -> 0 | S10: 0 | T10: 0 | U10: - | V10: =SUMIFS('Enrolment Data 22nd June'!O:O,'Enrolment Data 22nd June'!F:F,B10,'Enrolment Data 22nd June'!P:P,$V$2,'Enrolment Data 22nd June'!N:N,"Yes") -> 0 | W10: 0 | X10: - | Y10: =SUMIFS('Enrolment Data 22nd June'!O:O,'Enrolment Data 22nd June'!F:F,B10,'Enrolment Data 22nd June'!P:P,$Y$2,'Enrolment Data 22nd June'!N:N,"Yes") -> 0 | Z10: 0 | AA10: =SUMIFS('Enrolment Data 22nd June'!O:O,'Enrolment Data 22nd June'!F:F,B10,'Enrolment Data 22nd June'!P:P,$AA$2,'Enrolment Data 22nd June'!N:N,"Yes") -> 0 | AB10: =SUMIFS('Enrolment Data 22nd June'!O:O,'Enrolment Data 22nd June'!F:F,B10,'Enrolment Data 22nd June'!P:P,$AB$2,'Enrolment Data 22nd June'!N:N,"Yes") -> 0 | AC10: 0 | AD10: 0 | AE10: 0 | AF10: 0 | AG10: 0 | AH10: 2018 | AI10: =IFERROR( INDEX('Salesforce Contracts 22nd June'!$S$2:$V$4000, MATCH(1,INDEX(('Salesforce Contracts 22nd June'!$A$2:$A$4000=$B10)*(INDEX('Salesforce Contracts 22nd June'!$S$2:$V$4000,,MATCH($AI$1,'Salesforce Contracts 22nd June'!$O$1:$R$1,0))<>""),0),0), MATCH(AI$1,'Salesforce Contracts 22nd June'!$O$1:$R$1,0)), "") ->  | AJ10: =IFERROR( INDEX('Salesforce Contracts 22nd June'!$S$2:$V$4000, MATCH(1,INDEX(('Salesforce Contracts 22nd June'!$A$2:$A$4000=$B10)*(INDEX('Salesforce Contracts 22nd June'!$S$2:$V$4000,,MATCH($AJ$1,'Salesforce Contracts 22nd June'!$O$1:$R$1,0))<>""),0),0), MATCH(AJ$1,'Salesforce Contracts 22nd June'!$O$1:$R$1,0)), "") -> Referral | AK10: =IFERROR( INDEX('Salesforce Contracts 22nd June'!$S$2:$V$4000, MATCH(1,INDEX(('Salesforce Contracts 22nd June'!$A$2:$A$4000=$B10)*(INDEX('Salesforce Contracts 22nd June'!$S$2:$V$4000,,MATCH($AK$1,'Salesforce Contracts 22nd June'!$O$1:$R$1,0))<>""),0),0), MATCH(AK$1,'Salesforce Contracts 22nd June'!$O$1:$R$1,0)), "") -> Referral | AL10: =IFERROR( INDEX('Salesforce Contracts 22nd June'!$S$2:$V$4000, MATCH(1,INDEX(('Salesforce Contracts 22nd June'!$A$2:$A$4000=$B10)*(INDEX('Salesforce Contracts 22nd June'!$S$2:$V$4000,,MATCH($AL$1,'Salesforce Contracts 22nd June'!$O$1:$R$1,0))<>""),0),0), MATCH(AL$1,'Salesforce Contracts 22nd June'!$O$1:$R$1,0)), "") -> Referral | AM10: =IFERROR( INDEX('Salesforce Contracts 22nd June'!$O$2:$R$4000, MATCH(1,INDEX(('Salesforce Contracts 22nd June'!$A$2:$A$4000=$B10)*(INDEX('Salesforce Contracts 22nd June'!$O$2:$R$4000,,MATCH($AM$1,'Salesforce Contracts 22nd June'!$O$1:$R$1,0))<>""),0),0), MATCH(AM$1,'Salesforce Contracts 22nd June'!$O$1:$R$1,0)), "") ->  | AN10: =IFERROR( INDEX('Salesforce Contracts 22nd June'!$O$2:$R$4000, MATCH(1,INDEX(('Salesforce Contracts 22nd June'!$A$2:$A$4000=$B10)*(INDEX('Salesforce Contracts 22nd June'!$O$2:$R$4000,,MATCH($AN$1,'Salesforce Contracts 22nd June'!$O$1:$R$1,0))<>""),0),0), MATCH(AN$1,'Salesforce Contracts 22nd June'!$O$1:$R$1,0)), "") -> LIVE | AO10: =IFERROR( INDEX('Salesforce Contracts 22nd June'!$O$2:$R$4000, MATCH(1,INDEX(('Salesforce Contracts 22nd June'!$A$2:$A$4000=$B10)*(INDEX('Salesforce Contracts 22nd June'!$O$2:$R$4000,,MATCH($AO$1,'Salesforce Contracts 22nd June'!$O$1:$R$1,0))<>""),0),0), MATCH(AO$1,'Salesforce Contracts 22nd June'!$O$1:$R$1,0)), "") -> LIVE | AP10: =IFERROR( INDEX('Salesforce Contracts 22nd June'!$O$2:$R$4000, MATCH(1,INDEX(('Salesforce Contracts 22nd June'!$A$2:$A$4000=$B10)*(INDEX('Salesforce Contracts 22nd June'!$O$2:$R$4000,,MATCH($AP$1,'Salesforce Contracts 22nd June'!$O$1:$R$1,0))<>""),0),0), MATCH(AP$1,'Salesforce Contracts 22nd June'!$O$1:$R$1,0)), "") -> LIVE | AQ10: =IFERROR(VLOOKUP(B10,Lookup!Q:R,2,FALSE),"n/a") -> 2018 | AR10: =VLOOKUP(B10,Lookup!L:M,2,FALSE) -> 0 | AS10: =VLOOKUP(B10,Lookup!L:N,3,FALSE) -> (blank)
A11: =VLOOKUP(B:B,'Salesforce Contracts 22nd June'!A:V,8,FALSE) -> Agent | B11: =Lookup!L10 -> Ales Danismanlik Alper Karayama | C11: =VLOOKUP(B:B,'Salesforce Contracts 22nd June'!A:V,4,FALSE) -> Southern Europe and MENA | D11: =VLOOKUP(B:B,'Salesforce Contracts 22nd June'!A:V,14,FALSE) -> Turkey | E11: =VLOOKUP(B:B,'Salesforce Contracts 22nd June'!A:V,9,FALSE) -> Live Contract | F11: =VLOOKUP(B:B,'Salesforce Contracts 22nd June'!A:V,6,FALSE) -> 2020-01-01 | G11: =VLOOKUP(B:B,'Salesforce Contracts 22nd June'!A:V,7,FALSE) -> 2022-01-01 | H11: Inactive | I11: Inactive | J11: Active | K11: Inactive | L11: Inactive | M11: Active | N11: =SUMIFS('Enrolment Data 22nd June'!O:O,'Enrolment Data 22nd June'!F:F,B11,'Enrolment Data 22nd June'!P:P,$N$2,'Enrolment Data 22nd June'!N:N,"Yes") -> 0 | O11: =SUMIFS('Enrolment Data 22nd June'!O:O,'Enrolment Data 22nd June'!F:F,B11,'Enrolment Data 22nd June'!P:P,$O$2,'Enrolment Data 22nd June'!N:N,"Yes") -> 0 | P11: 0 | Q11: =SUMIFS('Enrolment Data 22nd June'!O:O,'Enrolment Data 22nd June'!F:F,B11,'Enrolment Data 22nd June'!P:P,$Q$2,'Enrolment Data 22nd June'!N:N,"Yes") -> 0 | R11: =SUMIFS('Enrolment Data 22nd June'!O:O,'Enrolment Data 22nd June'!F:F,B11,'Enrolment Data 22nd June'!P:P,$R$2,'Enrolment Data 22nd June'!N:N,"Yes") -> 0 | S11: 0 | T11: 0 | U11: - | V11: =SUMIFS('Enrolment Data 22nd June'!O:O,'Enrolment Data 22nd June'!F:F,B11,'Enrolment Data 22nd June'!P:P,$V$2,'Enrolment Data 22nd June'!N:N,"Yes") -> 1 | W11: 1 | X11: - | Y11: =SUMIFS('Enrolment Data 22nd June'!O:O,'Enrolment Data 22nd June'!F:F,B11,'Enrolment Data 22nd June'!P:P,$Y$2,'Enrolment Data 22nd June'!N:N,"Yes") -> 0 | Z11: 1 | AA11: =SUMIFS('Enrolment Data 22nd June'!O:O,'Enrolment Data 22nd June'!F:F,B11,'Enrolment Data 22nd June'!P:P,$AA$2,'Enrolment Data 22nd June'!N:N,"Yes") -> 0 | AB11: =SUMIFS('Enrolment Data 22nd June'!O:O,'Enrolment Data 22nd June'!F:F,B11,'Enrolment Data 22nd June'!P:P,$AB$2,'Enrolment Data 22nd June'!N:N,"Yes") -> 0 | AC11: 0 | AD11: 0 | AE11: 1 | AF11: 0 | AG11: 1 | AH11: 2020 | AI11: =IFERROR( INDEX('Salesforce Contracts 22nd June'!$S$2:$V$4000, MATCH(1,INDEX(('Salesforce Contracts 22nd June'!$A$2:$A$4000=$B11)*(INDEX('Salesforce Contracts 22nd June'!$S$2:$V$4000,,MATCH($AI$1,'Salesforce Contracts 22nd June'!$O$1:$R$1,0))<>""),0),0), MATCH(AI$1,'Salesforce Contracts 22nd June'!$O$1:$R$1,0)), "") -> Agent | AJ11: =IFERROR( INDEX('Salesforce Contracts 22nd June'!$S$2:$V$4000, MATCH(1,INDEX(('Salesforce Contracts 22nd June'!$A$2:$A$4000=$B11)*(INDEX('Salesforce Contracts 22nd June'!$S$2:$V$4000,,MATCH($AJ$1,'Salesforce Contracts 22nd June'!$O$1:$R$1,0))<>""),0),0), MATCH(AJ$1,'Salesforce Contracts 22nd June'!$O$1:$R$1,0)), "") ->  | AK11: =IFERROR( INDEX('Salesforce Contracts 22nd June'!$S$2:$V$4000, MATCH(1,INDEX(('Salesforce Contracts 22nd June'!$A$2:$A$4000=$B11)*(INDEX('Salesforce Contracts 22nd June'!$S$2:$V$4000,,MATCH($AK$1,'Salesforce Contracts 22nd June'!$O$1:$R$1,0))<>""),0),0), MATCH(AK$1,'Salesforce Contracts 22nd June'!$O$1:$R$1,0)), "") -> Agent | AL11: =IFERROR( INDEX('Salesforce Contracts 22nd June'!$S$2:$V$4000, MATCH(1,INDEX(('Salesforce Contracts 22nd June'!$A$2:$A$4000=$B11)*(INDEX('Salesforce Contracts 22nd June'!$S$2:$V$4000,,MATCH($AL$1,'Salesforce Contracts 22nd June'!$O$1:$R$1,0))<>""),0),0), MATCH(AL$1,'Salesforce Contracts 22nd June'!$O$1:$R$1,0)), "") -> Agent | AM11: =IFERROR( INDEX('Salesforce Contracts 22nd June'!$O$2:$R$4000, MATCH(1,INDEX(('Salesforce Contracts 22nd June'!$A$2:$A$4000=$B11)*(INDEX('Salesforce Contracts 22nd June'!$O$2:$R$4000,,MATCH($AM$1,'Salesforce Contracts 22nd June'!$O$1:$R$1,0))<>""),0),0), MATCH(AM$1,'Salesforce Contracts 22nd June'!$O$1:$R$1,0)), "") -> LIVE | AN11: =IFERROR( INDEX('Salesforce Contracts 22nd June'!$O$2:$R$4000, MATCH(1,INDEX(('Salesforce Contracts 22nd June'!$A$2:$A$4000=$B11)*(INDEX('Salesforce Contracts 22nd June'!$O$2:$R$4000,,MATCH($AN$1,'Salesforce Contracts 22nd June'!$O$1:$R$1,0))<>""),0),0), MATCH(AN$1,'Salesforce Contracts 22nd June'!$O$1:$R$1,0)), "") ->  | AO11: =IFERROR( INDEX('Salesforce Contracts 22nd June'!$O$2:$R$4000, MATCH(1,INDEX(('Salesforce Contracts 22nd June'!$A$2:$A$4000=$B11)*(INDEX('Salesforce Contracts 22nd June'!$O$2:$R$4000,,MATCH($AO$1,'Salesforce Contracts 22nd June'!$O$1:$R$1,0))<>""),0),0), MATCH(AO$1,'Salesforce Contracts 22nd June'!$O$1:$R$1,0)), "") -> LIVE | AP11: =IFERROR( INDEX('Salesforce Contracts 22nd June'!$O$2:$R$4000, MATCH(1,INDEX(('Salesforce Contracts 22nd June'!$A$2:$A$4000=$B11)*(INDEX('Salesforce Contracts 22nd June'!$O$2:$R$4000,,MATCH($AP$1,'Salesforce Contracts 22nd June'!$O$1:$R$1,0))<>""),0),0), MATCH(AP$1,'Salesforce Contracts 22nd June'!$O$1:$R$1,0)), "") -> LIVE | AQ11: =IFERROR(VLOOKUP(B11,Lookup!Q:R,2,FALSE),"n/a") -> 2016 | AR11: =VLOOKUP(B11,Lookup!L:M,2,FALSE) -> 0 | AS11: =VLOOKUP(B11,Lookup!L:N,3,FALSE) -> (blank)
A12: =VLOOKUP(B:B,'Salesforce Contracts 22nd June'!A:V,8,FALSE) -> EC | B12: =Lookup!L11 -> Alma Mater Consult LLC | C12: =VLOOKUP(B:B,'Salesforce Contracts 22nd June'!A:V,4,FALSE) -> Eastern Europe | D12: =VLOOKUP(B:B,'Salesforce Contracts 22nd June'!A:V,14,FALSE) -> Russian Federation | E12: =VLOOKUP(B:B,'Salesforce Contracts 22nd June'!A:V,9,FALSE) -> Expired | F12: =VLOOKUP(B:B,'Salesforce Contracts 22nd June'!A:V,6,FALSE) -> 2016-09-01 | G12: =VLOOKUP(B:B,'Salesforce Contracts 22nd June'!A:V,7,FALSE) -> 2018-09-01 | H12: Inactive | I12: Inactive | J12: Inactive | K12: Inactive | L12: Inactive | M12: Inactive | N12: =SUMIFS('Enrolment Data 22nd June'!O:O,'Enrolment Data 22nd June'!F:F,B12,'Enrolment Data 22nd June'!P:P,$N$2,'Enrolment Data 22nd June'!N:N,"Yes") -> 0 | O12: =SUMIFS('Enrolment Data 22nd June'!O:O,'Enrolment Data 22nd June'!F:F,B12,'Enrolment Data 22nd June'!P:P,$O$2,'Enrolment Data 22nd June'!N:N,"Yes") -> 0 | P12: 0 | Q12: =SUMIFS('Enrolment Data 22nd June'!O:O,'Enrolment Data 22nd June'!F:F,B12,'Enrolment Data 22nd June'!P:P,$Q$2,'Enrolment Data 22nd June'!N:N,"Yes") -> 0 | R12: =SUMIFS('Enrolment Data 22nd June'!O:O,'Enrolment Data 22nd June'!F:F,B12,'Enrolment Data 22nd June'!P:P,$R$2,'Enrolment Data 22nd June'!N:N,"Yes") -> 0 | S12: 0 | T12: 0 | U12: - | V12: =SUMIFS('Enrolment Data 22nd June'!O:O,'Enrolment Data 22nd June'!F:F,B12,'Enrolment Data 22nd June'!P:P,$V$2,'Enrolment Data 22nd June'!N:N,"Yes") -> 0 | W12: 0 | X12: - | Y12: =SUMIFS('Enrolment Data 22nd June'!O:O,'Enrolment Data 22nd June'!F:F,B12,'Enrolment Data 22nd June'!P:P,$Y$2,'Enrolment Data 22nd June'!N:N,"Yes") -> 0 | Z12: 0 | AA12: =SUMIFS('Enrolment Data 22nd June'!O:O,'Enrolment Data 22nd June'!F:F,B12,'Enrolment Data 22nd June'!P:P,$AA$2,'Enrolment Data 22nd June'!N:N,"Yes") -> 0 | AB12: =SUMIFS('Enrolment Data 22nd June'!O:O,'Enrolment Data 22nd June'!F:F,B12,'Enrolment Data 22nd June'!P:P,$AB$2,'Enrolment Data 22nd June'!N:N,"Yes") -> 0 | AC12: 0 | AD12: 0 | AE12: 0 | AF12: 0 | AG12: 0 | AH12: 2016 | AI12: =IFERROR( INDEX('Salesforce Contracts 22nd June'!$S$2:$V$4000, MATCH(1,INDEX(('Salesforce Contracts 22nd June'!$A$2:$A$4000=$B12)*(INDEX('Salesforce Contracts 22nd June'!$S$2:$V$4000,,MATCH($AI$1,'Salesforce Contracts 22nd June'!$O$1:$R$1,0))<>""),0),0), MATCH(AI$1,'Salesforce Contracts 22nd June'!$O$1:$R$1,0)), "") -> EC | AJ12: =IFERROR( INDEX('Salesforce Contracts 22nd June'!$S$2:$V$4000, MATCH(1,INDEX(('Salesforce Contracts 22nd June'!$A$2:$A$4000=$B12)*(INDEX('Salesforce Contracts 22nd June'!$S$2:$V$4000,,MATCH($AJ$1,'Salesforce Contracts 22nd June'!$O$1:$R$1,0))<>""),0),0), MATCH(AJ$1,'Salesforce Contracts 22nd June'!$O$1:$R$1,0)), "") -> EC | AK12: =IFERROR( INDEX('Salesforce Contracts 22nd June'!$S$2:$V$4000, MATCH(1,INDEX(('Salesforce Contracts 22nd June'!$A$2:$A$4000=$B12)*(INDEX('Salesforce Contracts 22nd June'!$S$2:$V$4000,,MATCH($AK$1,'Salesforce Contracts 22nd June'!$O$1:$R$1,0))<>""),0),0), MATCH(AK$1,'Salesforce Contracts 22nd June'!$O$1:$R$1,0)), "") ->  | AL12: =IFERROR( INDEX('Salesforce Contracts 22nd June'!$S$2:$V$4000, MATCH(1,INDEX(('Salesforce Contracts 22nd June'!$A$2:$A$4000=$B12)*(INDEX('Salesforce Contracts 22nd June'!$S$2:$V$4000,,MATCH($AL$1,'Salesforce Contracts 22nd June'!$O$1:$R$1,0))<>""),0),0), MATCH(AL$1,'Salesforce Contracts 22nd June'!$O$1:$R$1,0)), "") ->  | AM12: =IFERROR( INDEX('Salesforce Contracts 22nd June'!$O$2:$R$4000, MATCH(1,INDEX(('Salesforce Contracts 22nd June'!$A$2:$A$4000=$B12)*(INDEX('Salesforce Contracts 22nd June'!$O$2:$R$4000,,MATCH($AM$1,'Salesforce Contracts 22nd June'!$O$1:$R$1,0))<>""),0),0), MATCH(AM$1,'Salesforce Contracts 22nd June'!$O$1:$R$1,0)), "") -> LIVE | AN12: =IFERROR( INDEX('Salesforce Contracts 22nd June'!$O$2:$R$4000, MATCH(1,INDEX(('Salesforce Contracts 22nd June'!$A$2:$A$4000=$B12)*(INDEX('Salesforce Contracts 22nd June'!$O$2:$R$4000,,MATCH($AN$1,'Salesforce Contracts 22nd June'!$O$1:$R$1,0))<>""),0),0), MATCH(AN$1,'Salesforce Contracts 22nd June'!$O$1:$R$1,0)), "") -> LIVE | AO12: =IFERROR( INDEX('Salesforce Contracts 22nd June'!$O$2:$R$4000, MATCH(1,INDEX(('Salesforce Contracts 22nd June'!$A$2:$A$4000=$B12)*(INDEX('Salesforce Contracts 22nd June'!$O$2:$R$4000,,MATCH($AO$1,'Salesforce Contracts 22nd June'!$O$1:$R$1,0))<>""),0),0), MATCH(AO$1,'Salesforce Contracts 22nd June'!$O$1:$R$1,0)), "") ->  | AP12: =IFERROR( INDEX('Salesforce Contracts 22nd June'!$O$2:$R$4000, MATCH(1,INDEX(('Salesforce Contracts 22nd June'!$A$2:$A$4000=$B12)*(INDEX('Salesforce Contracts 22nd June'!$O$2:$R$4000,,MATCH($AP$1,'Salesforce Contracts 22nd June'!$O$1:$R$1,0))<>""),0),0), MATCH(AP$1,'Salesforce Contracts 22nd June'!$O$1:$R$1,0)), "") ->  | AQ12: =IFERROR(VLOOKUP(B12,Lookup!Q:R,2,FALSE),"n/a") -> 2016 | AR12: =VLOOKUP(B12,Lookup!L:M,2,FALSE) -> 0 | AS12: =VLOOKUP(B12,Lookup!L:N,3,FALSE) -> (blank)
A13: =VLOOKUP(B:B,'Salesforce Contracts 22nd June'!A:V,8,FALSE) -> Agent | B13: =Lookup!L12 -> Alpha International LLC | C13: =VLOOKUP(B:B,'Salesforce Contracts 22nd June'!A:V,4,FALSE) -> Southern Europe and MENA | D13: =VLOOKUP(B:B,'Salesforce Contracts 22nd June'!A:V,14,FALSE) -> Iraq; Jordan Palestine, State of; Tunisia; Turkey | E13: =VLOOKUP(B:B,'Salesforce Contracts 22nd June'!A:V,9,FALSE) -> Live Contract | F13: =VLOOKUP(B:B,'Salesforce Contracts 22nd June'!A:V,6,FALSE) -> 2019-06-03 | G13: =VLOOKUP(B:B,'Salesforce Contracts 22nd June'!A:V,7,FALSE) -> 2021-06-03 | H13: Inactive | I13: Inactive | J13: Inactive | K13: Inactive | L13: Inactive | M13: Inactive | N13: =SUMIFS('Enrolment Data 22nd June'!O:O,'Enrolment Data 22nd June'!F:F,B13,'Enrolment Data 22nd June'!P:P,$N$2,'Enrolment Data 22nd June'!N:N,"Yes") -> 0 | O13: =SUMIFS('Enrolment Data 22nd June'!O:O,'Enrolment Data 22nd June'!F:F,B13,'Enrolment Data 22nd June'!P:P,$O$2,'Enrolment Data 22nd June'!N:N,"Yes") -> 0 | P13: 0 | Q13: =SUMIFS('Enrolment Data 22nd June'!O:O,'Enrolment Data 22nd June'!F:F,B13,'Enrolment Data 22nd June'!P:P,$Q$2,'Enrolment Data 22nd June'!N:N,"Yes") -> 0 | R13: =SUMIFS('Enrolment Data 22nd June'!O:O,'Enrolment Data 22nd June'!F:F,B13,'Enrolment Data 22nd June'!P:P,$R$2,'Enrolment Data 22nd June'!N:N,"Yes") -> 0 | S13: 0 | T13: 0 | U13: - | V13: =SUMIFS('Enrolment Data 22nd June'!O:O,'Enrolment Data 22nd June'!F:F,B13,'Enrolment Data 22nd June'!P:P,$V$2,'Enrolment Data 22nd June'!N:N,"Yes") -> 0 | W13: 0 | X13: - | Y13: =SUMIFS('Enrolment Data 22nd June'!O:O,'Enrolment Data 22nd June'!F:F,B13,'Enrolment Data 22nd June'!P:P,$Y$2,'Enrolment Data 22nd June'!N:N,"Yes") -> 0 | Z13: 0 | AA13: =SUMIFS('Enrolment Data 22nd June'!O:O,'Enrolment Data 22nd June'!F:F,B13,'Enrolment Data 22nd June'!P:P,$AA$2,'Enrolment Data 22nd June'!N:N,"Yes") -> 0 | AB13: =SUMIFS('Enrolment Data 22nd June'!O:O,'Enrolment Data 22nd June'!F:F,B13,'Enrolment Data 22nd June'!P:P,$AB$2,'Enrolment Data 22nd June'!N:N,"Yes") -> 0 | AC13: 0 | AD13: 0 | AE13: 0 | AF13: 0 | AG13: 0 | AH13: 2019 | AI13: =IFERROR( INDEX('Salesforce Contracts 22nd June'!$S$2:$V$4000, MATCH(1,INDEX(('Salesforce Contracts 22nd June'!$A$2:$A$4000=$B13)*(INDEX('Salesforce Contracts 22nd June'!$S$2:$V$4000,,MATCH($AI$1,'Salesforce Contracts 22nd June'!$O$1:$R$1,0))<>""),0),0), MATCH(AI$1,'Salesforce Contracts 22nd June'!$O$1:$R$1,0)), "") ->  | AJ13: =IFERROR( INDEX('Salesforce Contracts 22nd June'!$S$2:$V$4000, MATCH(1,INDEX(('Salesforce Contracts 22nd June'!$A$2:$A$4000=$B13)*(INDEX('Salesforce Contracts 22nd June'!$S$2:$V$4000,,MATCH($AJ$1,'Salesforce Contracts 22nd June'!$O$1:$R$1,0))<>""),0),0), MATCH(AJ$1,'Salesforce Contracts 22nd June'!$O$1:$R$1,0)), "") ->  | AK13: =IFERROR( INDEX('Salesforce Contracts 22nd June'!$S$2:$V$4000, MATCH(1,INDEX(('Salesforce Contracts 22nd June'!$A$2:$A$4000=$B13)*(INDEX('Salesforce Contracts 22nd June'!$S$2:$V$4000,,MATCH($AK$1,'Salesforce Contracts 22nd June'!$O$1:$R$1,0))<>""),0),0), MATCH(AK$1,'Salesforce Contracts 22nd June'!$O$1:$R$1,0)), "") -> Agent | AL13: =IFERROR( INDEX('Salesforce Contracts 22nd June'!$S$2:$V$4000, MATCH(1,INDEX(('Salesforce Contracts 22nd June'!$A$2:$A$4000=$B13)*(INDEX('Salesforce Contracts 22nd June'!$S$2:$V$4000,,MATCH($AL$1,'Salesforce Contracts 22nd June'!$O$1:$R$1,0))<>""),0),0), MATCH(AL$1,'Salesforce Contracts 22nd June'!$O$1:$R$1,0)), "") -> Agent | AM13: =IFERROR( INDEX('Salesforce Contracts 22nd June'!$O$2:$R$4000, MATCH(1,INDEX(('Salesforce Contracts 22nd June'!$A$2:$A$4000=$B13)*(INDEX('Salesforce Contracts 22nd June'!$O$2:$R$4000,,MATCH($AM$1,'Salesforce Contracts 22nd June'!$O$1:$R$1,0))<>""),0),0), MATCH(AM$1,'Salesforce Contracts 22nd June'!$O$1:$R$1,0)), "") ->  | AN13: =IFERROR( INDEX('Salesforce Contracts 22nd June'!$O$2:$R$4000, MATCH(1,INDEX(('Salesforce Contracts 22nd June'!$A$2:$A$4000=$B13)*(INDEX('Salesforce Contracts 22nd June'!$O$2:$R$4000,,MATCH($AN$1,'Salesforce Contracts 22nd June'!$O$1:$R$1,0))<>""),0),0), MATCH(AN$1,'Salesforce Contracts 22nd June'!$O$1:$R$1,0)), "") ->  | AO13: =IFERROR( INDEX('Salesforce Contracts 22nd June'!$O$2:$R$4000, MATCH(1,INDEX(('Salesforce Contracts 22nd June'!$A$2:$A$4000=$B13)*(INDEX('Salesforce Contracts 22nd June'!$O$2:$R$4000,,MATCH($AO$1,'Salesforce Contracts 22nd June'!$O$1:$R$1,0))<>""),0),0), MATCH(AO$1,'Salesforce Contracts 22nd June'!$O$1:$R$1,0)), "") -> LIVE | AP13: =IFERROR( INDEX('Salesforce Contracts 22nd June'!$O$2:$R$4000, MATCH(1,INDEX(('Salesforce Contracts 22nd June'!$A$2:$A$4000=$B13)*(INDEX('Salesforce Contracts 22nd June'!$O$2:$R$4000,,MATCH($AP$1,'Salesforce Contracts 22nd June'!$O$1:$R$1,0))<>""),0),0), MATCH(AP$1,'Salesforce Contracts 22nd June'!$O$1:$R$1,0)), "") -> LIVE | AQ13: =IFERROR(VLOOKUP(B13,Lookup!Q:R,2,FALSE),"n/a") -> 2019 | AR13: =VLOOKUP(B13,Lookup!L:M,2,FALSE) -> 0 | AS13: =VLOOKUP(B13,Lookup!L:N,3,FALSE) -> (blank)
A14: =VLOOKUP(B:B,'Salesforce Contracts 22nd June'!A:V,8,FALSE) -> EC | B14: =Lookup!L13 -> ALTERNATIF Education Counselling Services | C14: =VLOOKUP(B:B,'Salesforce Contracts 22nd June'!A:V,4,FALSE) -> Southern Europe and MENA | D14: =VLOOKUP(B:B,'Salesforce Contracts 22nd June'!A:V,14,FALSE) -> Turkey | E14: =VLOOKUP(B:B,'Salesforce Contracts 22nd June'!A:V,9,FALSE) -> Expired | F14: =VLOOKUP(B:B,'Salesforce Contracts 22nd June'!A:V,6,FALSE) -> 2016-01-01 | G14: =VLOOKUP(B:B,'Salesforce Contracts 22nd June'!A:V,7,FALSE) -> 2018-01-01 | H14: Inactive | I14: Inactive | J14: Inactive | K14: Inactive | L14: Inactive | M14: Inactive | N14: =SUMIFS('Enrolment Data 22nd June'!O:O,'Enrolment Data 22nd June'!F:F,B14,'Enrolment Data 22nd June'!P:P,$N$2,'Enrolment Data 22nd June'!N:N,"Yes") -> 0 | O14: =SUMIFS('Enrolment Data 22nd June'!O:O,'Enrolment Data 22nd June'!F:F,B14,'Enrolment Data 22nd June'!P:P,$O$2,'Enrolment Data 22nd June'!N:N,"Yes") -> 0 | P14: 0 | Q14: =SUMIFS('Enrolment Data 22nd June'!O:O,'Enrolment Data 22nd June'!F:F,B14,'Enrolment Data 22nd June'!P:P,$Q$2,'Enrolment Data 22nd June'!N:N,"Yes") -> 0 | R14: =SUMIFS('Enrolment Data 22nd June'!O:O,'Enrolment Data 22nd June'!F:F,B14,'Enrolment Data 22nd June'!P:P,$R$2,'Enrolment Data 22nd June'!N:N,"Yes") -> 0 | S14: 0 | T14: 0 | U14: - | V14: =SUMIFS('Enrolment Data 22nd June'!O:O,'Enrolment Data 22nd June'!F:F,B14,'Enrolment Data 22nd June'!P:P,$V$2,'Enrolment Data 22nd June'!N:N,"Yes") -> 0 | W14: 0 | X14: - | Y14: =SUMIFS('Enrolment Data 22nd June'!O:O,'Enrolment Data 22nd June'!F:F,B14,'Enrolment Data 22nd June'!P:P,$Y$2,'Enrolment Data 22nd June'!N:N,"Yes") -> 0 | Z14: 0 | AA14: =SUMIFS('Enrolment Data 22nd June'!O:O,'Enrolment Data 22nd June'!F:F,B14,'Enrolment Data 22nd June'!P:P,$AA$2,'Enrolment Data 22nd June'!N:N,"Yes") -> 0 | AB14: =SUMIFS('Enrolment Data 22nd June'!O:O,'Enrolment Data 22nd June'!F:F,B14,'Enrolment Data 22nd June'!P:P,$AB$2,'Enrolment Data 22nd June'!N:N,"Yes") -> 0 | AC14: 0 | AD14: 0 | AE14: 0 | AF14: 0 | AG14: 0 | AH14: 2016 | AI14: =IFERROR( INDEX('Salesforce Contracts 22nd June'!$S$2:$V$4000, MATCH(1,INDEX(('Salesforce Contracts 22nd June'!$A$2:$A$4000=$B14)*(INDEX('Salesforce Contracts 22nd June'!$S$2:$V$4000,,MATCH($AI$1,'Salesforce Contracts 22nd June'!$O$1:$R$1,0))<>""),0),0), MATCH(AI$1,'Salesforce Contracts 22nd June'!$O$1:$R$1,0)), "") -> EC | AJ14: =IFERROR( INDEX('Salesforce Contracts 22nd June'!$S$2:$V$4000, MATCH(1,INDEX(('Salesforce Contracts 22nd June'!$A$2:$A$4000=$B14)*(INDEX('Salesforce Contracts 22nd June'!$S$2:$V$4000,,MATCH($AJ$1,'Salesforce Contracts 22nd June'!$O$1:$R$1,0))<>""),0),0), MATCH(AJ$1,'Salesforce Contracts 22nd June'!$O$1:$R$1,0)), "") ->  | AK14: =IFERROR( INDEX('Salesforce Contracts 22nd June'!$S$2:$V$4000, MATCH(1,INDEX(('Salesforce Contracts 22nd June'!$A$2:$A$4000=$B14)*(INDEX('Salesforce Contracts 22nd June'!$S$2:$V$4000,,MATCH($AK$1,'Salesforce Contracts 22nd June'!$O$1:$R$1,0))<>""),0),0), MATCH(AK$1,'Salesforce Contracts 22nd June'!$O$1:$R$1,0)), "") ->  | AL14: =IFERROR( INDEX('Salesforce Contracts 22nd June'!$S$2:$V$4000, MATCH(1,INDEX(('Salesforce Contracts 22nd June'!$A$2:$A$4000=$B14)*(INDEX('Salesforce Contracts 22nd June'!$S$2:$V$4000,,MATCH($AL$1,'Salesforce Contracts 22nd June'!$O$1:$R$1,0))<>""),0),0), MATCH(AL$1,'Salesforce Contracts 22nd June'!$O$1:$R$1,0)), "") ->  | AM14: =IFERROR( INDEX('Salesforce Contracts 22nd June'!$O$2:$R$4000, MATCH(1,INDEX(('Salesforce Contracts 22nd June'!$A$2:$A$4000=$B14)*(INDEX('Salesforce Contracts 22nd June'!$O$2:$R$4000,,MATCH($AM$1,'Salesforce Contracts 22nd June'!$O$1:$R$1,0))<>""),0),0), MATCH(AM$1,'Salesforce Contracts 22nd June'!$O$1:$R$1,0)), "") -> LIVE | AN14: =IFERROR( INDEX('Salesforce Contracts 22nd June'!$O$2:$R$4000, MATCH(1,INDEX(('Salesforce Contracts 22nd June'!$A$2:$A$4000=$B14)*(INDEX('Salesforce Contracts 22nd June'!$O$2:$R$4000,,MATCH($AN$1,'Salesforce Contracts 22nd June'!$O$1:$R$1,0))<>""),0),0), MATCH(AN$1,'Salesforce Contracts 22nd June'!$O$1:$R$1,0)), "") ->  | AO14: =IFERROR( INDEX('Salesforce Contracts 22nd June'!$O$2:$R$4000, MATCH(1,INDEX(('Salesforce Contracts 22nd June'!$A$2:$A$4000=$B14)*(INDEX('Salesforce Contracts 22nd June'!$O$2:$R$4000,,MATCH($AO$1,'Salesforce Contracts 22nd June'!$O$1:$R$1,0))<>""),0),0), MATCH(AO$1,'Salesforce Contracts 22nd June'!$O$1:$R$1,0)), "") ->  | AP14: =IFERROR( INDEX('Salesforce Contracts 22nd June'!$O$2:$R$4000, MATCH(1,INDEX(('Salesforce Contracts 22nd June'!$A$2:$A$4000=$B14)*(INDEX('Salesforce Contracts 22nd June'!$O$2:$R$4000,,MATCH($AP$1,'Salesforce Contracts 22nd June'!$O$1:$R$1,0))<>""),0),0), MATCH(AP$1,'Salesforce Contracts 22nd June'!$O$1:$R$1,0)), "") ->  | AQ14: =IFERROR(VLOOKUP(B14,Lookup!Q:R,2,FALSE),"n/a") -> 2016 | AR14: =VLOOKUP(B14,Lookup!L:M,2,FALSE) -> 0 | AS14: =VLOOKUP(B14,Lookup!L:N,3,FALSE) -> (blank)
A15: =VLOOKUP(B:B,'Salesforce Contracts 22nd June'!A:V,8,FALSE) -> Referral | B15: =Lookup!L14 -> Amanda Nicole Miller | C15: =VLOOKUP(B:B,'Salesforce Contracts 22nd June'!A:V,4,FALSE) -> North America | D15: =VLOOKUP(B:B,'Salesforce Contracts 22nd June'!A:V,14,FALSE) -> United States | E15: =VLOOKUP(B:B,'Salesforce Contracts 22nd June'!A:V,9,FALSE) -> Live Contract | F15: =VLOOKUP(B:B,'Salesforce Contracts 22nd June'!A:V,6,FALSE) -> 2018-10-01 | G15: =VLOOKUP(B:B,'Salesforce Contracts 22nd June'!A:V,7,FALSE) -> 2020-09-30 | H15: Inactive | I15: Inactive | J15: Inactive | K15: Inactive | L15: Inactive | M15: Inactive | N15: =SUMIFS('Enrolment Data 22nd June'!O:O,'Enrolment Data 22nd June'!F:F,B15,'Enrolment Data 22nd June'!P:P,$N$2,'Enrolment Data 22nd June'!N:N,"Yes") -> 0 | O15: =SUMIFS('Enrolment Data 22nd June'!O:O,'Enrolment Data 22nd June'!F:F,B15,'Enrolment Data 22nd June'!P:P,$O$2,'Enrolment Data 22nd June'!N:N,"Yes") -> 0 | P15: 0 | Q15: =SUMIFS('Enrolment Data 22nd June'!O:O,'Enrolment Data 22nd June'!F:F,B15,'Enrolment Data 22nd June'!P:P,$Q$2,'Enrolment Data 22nd June'!N:N,"Yes") -> 0 | R15: =SUMIFS('Enrolment Data 22nd June'!O:O,'Enrolment Data 22nd June'!F:F,B15,'Enrolment Data 22nd June'!P:P,$R$2,'Enrolment Data 22nd June'!N:N,"Yes") -> 0 | S15: 0 | T15: 0 | U15: - | V15: =SUMIFS('Enrolment Data 22nd June'!O:O,'Enrolment Data 22nd June'!F:F,B15,'Enrolment Data 22nd June'!P:P,$V$2,'Enrolment Data 22nd June'!N:N,"Yes") -> 0 | W15: 0 | X15: - | Y15: =SUMIFS('Enrolment Data 22nd June'!O:O,'Enrolment Data 22nd June'!F:F,B15,'Enrolment Data 22nd June'!P:P,$Y$2,'Enrolment Data 22nd June'!N:N,"Yes") -> 0 | Z15: 0 | AA15: =SUMIFS('Enrolment Data 22nd June'!O:O,'Enrolment Data 22nd June'!F:F,B15,'Enrolment Data 22nd June'!P:P,$AA$2,'Enrolment Data 22nd June'!N:N,"Yes") -> 0 | AB15: =SUMIFS('Enrolment Data 22nd June'!O:O,'Enrolment Data 22nd June'!F:F,B15,'Enrolment Data 22nd June'!P:P,$AB$2,'Enrolment Data 22nd June'!N:N,"Yes") -> 0 | AC15: 0 | AD15: 0 | AE15: 0 | AF15: 0 | AG15: 0 | AH15: 2018 | AI15: =IFERROR( INDEX('Salesforce Contracts 22nd June'!$S$2:$V$4000, MATCH(1,INDEX(('Salesforce Contracts 22nd June'!$A$2:$A$4000=$B15)*(INDEX('Salesforce Contracts 22nd June'!$S$2:$V$4000,,MATCH($AI$1,'Salesforce Contracts 22nd June'!$O$1:$R$1,0))<>""),0),0), MATCH(AI$1,'Salesforce Contracts 22nd June'!$O$1:$R$1,0)), "") ->  | AJ15: =IFERROR( INDEX('Salesforce Contracts 22nd June'!$S$2:$V$4000, MATCH(1,INDEX(('Salesforce Contracts 22nd June'!$A$2:$A$4000=$B15)*(INDEX('Salesforce Contracts 22nd June'!$S$2:$V$4000,,MATCH($AJ$1,'Salesforce Contracts 22nd June'!$O$1:$R$1,0))<>""),0),0), MATCH(AJ$1,'Salesforce Contracts 22nd June'!$O$1:$R$1,0)), "") -> Referral | AK15: =IFERROR( INDEX('Salesforce Contracts 22nd June'!$S$2:$V$4000, MATCH(1,INDEX(('Salesforce Contracts 22nd June'!$A$2:$A$4000=$B15)*(INDEX('Salesforce Contracts 22nd June'!$S$2:$V$4000,,MATCH($AK$1,'Salesforce Contracts 22nd June'!$O$1:$R$1,0))<>""),0),0), MATCH(AK$1,'Salesforce Contracts 22nd June'!$O$1:$R$1,0)), "") -> Referral | AL15: =IFERROR( INDEX('Salesforce Contracts 22nd June'!$S$2:$V$4000, MATCH(1,INDEX(('Salesforce Contracts 22nd June'!$A$2:$A$4000=$B15)*(INDEX('Salesforce Contracts 22nd June'!$S$2:$V$4000,,MATCH($AL$1,'Salesforce Contracts 22nd June'!$O$1:$R$1,0))<>""),0),0), MATCH(AL$1,'Salesforce Contracts 22nd June'!$O$1:$R$1,0)), "") -> Referral | AM15: =IFERROR( INDEX('Salesforce Contracts 22nd June'!$O$2:$R$4000, MATCH(1,INDEX(('Salesforce Contracts 22nd June'!$A$2:$A$4000=$B15)*(INDEX('Salesforce Contracts 22nd June'!$O$2:$R$4000,,MATCH($AM$1,'Salesforce Contracts 22nd June'!$O$1:$R$1,0))<>""),0),0), MATCH(AM$1,'Salesforce Contracts 22nd June'!$O$1:$R$1,0)), "") ->  | AN15: =IFERROR( INDEX('Salesforce Contracts 22nd June'!$O$2:$R$4000, MATCH(1,INDEX(('Salesforce Contracts 22nd June'!$A$2:$A$4000=$B15)*(INDEX('Salesforce Contracts 22nd June'!$O$2:$R$4000,,MATCH($AN$1,'Salesforce Contracts 22nd June'!$O$1:$R$1,0))<>""),0),0), MATCH(AN$1,'Salesforce Contracts 22nd June'!$O$1:$R$1,0)), "") -> LIVE | AO15: =IFERROR( INDEX('Salesforce Contracts 22nd June'!$O$2:$R$4000, MATCH(1,INDEX(('Salesforce Contracts 22nd June'!$A$2:$A$4000=$B15)*(INDEX('Salesforce Contracts 22nd June'!$O$2:$R$4000,,MATCH($AO$1,'Salesforce Contracts 22nd June'!$O$1:$R$1,0))<>""),0),0), MATCH(AO$1,'Salesforce Contracts 22nd June'!$O$1:$R$1,0)), "") -> LIVE | AP15: =IFERROR( INDEX('Salesforce Contracts 22nd June'!$O$2:$R$4000, MATCH(1,INDEX(('Salesforce Contracts 22nd June'!$A$2:$A$4000=$B15)*(INDEX('Salesforce Contracts 22nd June'!$O$2:$R$4000,,MATCH($AP$1,'Salesforce Contracts 22nd June'!$O$1:$R$1,0))<>""),0),0), MATCH(AP$1,'Salesforce Contracts 22nd June'!$O$1:$R$1,0)), "") -> LIVE | AQ15: =IFERROR(VLOOKUP(B15,Lookup!Q:R,2,FALSE),"n/a") -> 2018 | AR15: =VLOOKUP(B15,Lookup!L:M,2,FALSE) -> 0 | AS15: =VLOOKUP(B15,Lookup!L:N,3,FALSE) -> (blank)
A16: =VLOOKUP(B:B,'Salesforce Contracts 22nd June'!A:V,8,FALSE) -> Agent | B16: =Lookup!L15 -> Amber Education Holding Limited | C16: =VLOOKUP(B:B,'Salesforce Contracts 22nd June'!A:V,4,FALSE) -> Asia Pacific | D16: =VLOOKUP(B:B,'Salesforce Contracts 22nd June'!A:V,14,FALSE) -> China; Hong Kong | E16: =VLOOKUP(B:B,'Salesforce Contracts 22nd June'!A:V,9,FALSE) -> Sent to Partner | F16: =VLOOKUP(B:B,'Salesforce Contracts 22nd June'!A:V,6,FALSE) -> 2020-07-01 | G16: =VLOOKUP(B:B,'Salesforce Contracts 22nd June'!A:V,7,FALSE) -> 2022-07-01 | H16: Inactive | I16: Inactive | J16: Inactive | K16: Inactive | L16: Inactive | M16: Inactive | N16: =SUMIFS('Enrolment Data 22nd June'!O:O,'Enrolment Data 22nd June'!F:F,B16,'Enrolment Data 22nd June'!P:P,$N$2,'Enrolment Data 22nd June'!N:N,"Yes") -> 0 | O16: =SUMIFS('Enrolment Data 22nd June'!O:O,'Enrolment Data 22nd June'!F:F,B16,'Enrolment Data 22nd June'!P:P,$O$2,'Enrolment Data 22nd June'!N:N,"Yes") -> 0 | P16: 0 | Q16: =SUMIFS('Enrolment Data 22nd June'!O:O,'Enrolment Data 22nd June'!F:F,B16,'Enrolment Data 22nd June'!P:P,$Q$2,'Enrolment Data 22nd June'!N:N,"Yes") -> 0 | R16: =SUMIFS('Enrolment Data 22nd June'!O:O,'Enrolment Data 22nd June'!F:F,B16,'Enrolment Data 22nd June'!P:P,$R$2,'Enrolment Data 22nd June'!N:N,"Yes") -> 0 | S16: 0 | T16: 0 | U16: - | V16: =SUMIFS('Enrolment Data 22nd June'!O:O,'Enrolment Data 22nd June'!F:F,B16,'Enrolment Data 22nd June'!P:P,$V$2,'Enrolment Data 22nd June'!N:N,"Yes") -> 0 | W16: 0 | X16: - | Y16: =SUMIFS('Enrolment Data 22nd June'!O:O,'Enrolment Data 22nd June'!F:F,B16,'Enrolment Data 22nd June'!P:P,$Y$2,'Enrolment Data 22nd June'!N:N,"Yes") -> 0 | Z16: 0 | AA16: =SUMIFS('Enrolment Data 22nd June'!O:O,'Enrolment Data 22nd June'!F:F,B16,'Enrolment Data 22nd June'!P:P,$AA$2,'Enrolment Data 22nd June'!N:N,"Yes") -> 0 | AB16: =SUMIFS('Enrolment Data 22nd June'!O:O,'Enrolment Data 22nd June'!F:F,B16,'Enrolment Data 22nd June'!P:P,$AB$2,'Enrolment Data 22nd June'!N:N,"Yes") -> 0 | AC16: 0 | AD16: 0 | AE16: 0 | AF16: 0 | AG16: 0 | AH16: 2020 | AI16: =IFERROR( INDEX('Salesforce Contracts 22nd June'!$S$2:$V$4000, MATCH(1,INDEX(('Salesforce Contracts 22nd June'!$A$2:$A$4000=$B16)*(INDEX('Salesforce Contracts 22nd June'!$S$2:$V$4000,,MATCH($AI$1,'Salesforce Contracts 22nd June'!$O$1:$R$1,0))<>""),0),0), MATCH(AI$1,'Salesforce Contracts 22nd June'!$O$1:$R$1,0)), "") ->  | AJ16: =IFERROR( INDEX('Salesforce Contracts 22nd June'!$S$2:$V$4000, MATCH(1,INDEX(('Salesforce Contracts 22nd June'!$A$2:$A$4000=$B16)*(INDEX('Salesforce Contracts 22nd June'!$S$2:$V$4000,,MATCH($AJ$1,'Salesforce Contracts 22nd June'!$O$1:$R$1,0))<>""),0),0), MATCH(AJ$1,'Salesforce Contracts 22nd June'!$O$1:$R$1,0)), "") ->  | AK16: =IFERROR( INDEX('Salesforce Contracts 22nd June'!$S$2:$V$4000, MATCH(1,INDEX(('Salesforce Contracts 22nd June'!$A$2:$A$4000=$B16)*(INDEX('Salesforce Contracts 22nd June'!$S$2:$V$4000,,MATCH($AK$1,'Salesforce Contracts 22nd June'!$O$1:$R$1,0))<>""),0),0), MATCH(AK$1,'Salesforce Contracts 22nd June'!$O$1:$R$1,0)), "") ->  | AL16: =IFERROR( INDEX('Salesforce Contracts 22nd June'!$S$2:$V$4000, MATCH(1,INDEX(('Salesforce Contracts 22nd June'!$A$2:$A$4000=$B16)*(INDEX('Salesforce Contracts 22nd June'!$S$2:$V$4000,,MATCH($AL$1,'Salesforce Contracts 22nd June'!$O$1:$R$1,0))<>""),0),0), MATCH(AL$1,'Salesforce Contracts 22nd June'!$O$1:$R$1,0)), "") -> Agent | AM16: =IFERROR( INDEX('Salesforce Contracts 22nd June'!$O$2:$R$4000, MATCH(1,INDEX(('Salesforce Contracts 22nd June'!$A$2:$A$4000=$B16)*(INDEX('Salesforce Contracts 22nd June'!$O$2:$R$4000,,MATCH($AM$1,'Salesforce Contracts 22nd June'!$O$1:$R$1,0))<>""),0),0), MATCH(AM$1,'Salesforce Contracts 22nd June'!$O$1:$R$1,0)), "") ->  | AN16: =IFERROR( INDEX('Salesforce Contracts 22nd June'!$O$2:$R$4000, MATCH(1,INDEX(('Salesforce Contracts 22nd June'!$A$2:$A$4000=$B16)*(INDEX('Salesforce Contracts 22nd June'!$O$2:$R$4000,,MATCH($AN$1,'Salesforce Contracts 22nd June'!$O$1:$R$1,0))<>""),0),0), MATCH(AN$1,'Salesforce Contracts 22nd June'!$O$1:$R$1,0)), "") ->  | AO16: =IFERROR( INDEX('Salesforce Contracts 22nd June'!$O$2:$R$4000, MATCH(1,INDEX(('Salesforce Contracts 22nd June'!$A$2:$A$4000=$B16)*(INDEX('Salesforce Contracts 22nd June'!$O$2:$R$4000,,MATCH($AO$1,'Salesforce Contracts 22nd June'!$O$1:$R$1,0))<>""),0),0), MATCH(AO$1,'Salesforce Contracts 22nd June'!$O$1:$R$1,0)), "") ->  | AP16: =IFERROR( INDEX('Salesforce Contracts 22nd June'!$O$2:$R$4000, MATCH(1,INDEX(('Salesforce Contracts 22nd June'!$A$2:$A$4000=$B16)*(INDEX('Salesforce Contracts 22nd June'!$O$2:$R$4000,,MATCH($AP$1,'Salesforce Contracts 22nd June'!$O$1:$R$1,0))<>""),0),0), MATCH(AP$1,'Salesforce Contracts 22nd June'!$O$1:$R$1,0)), "") -> LIVE | AQ16: =IFERROR(VLOOKUP(B16,Lookup!Q:R,2,FALSE),"n/a") -> 2020 | AR16: =VLOOKUP(B16,Lookup!L:M,2,FALSE) -> 0 | AS16: =VLOOKUP(B16,Lookup!L:N,3,FALSE) -> (blank)
A17: =VLOOKUP(B:B,'Salesforce Contracts 22nd June'!A:V,8,FALSE) -> EC | B17: =Lookup!L16 -> Ana Macarena Ruiz Garcia | C17: =VLOOKUP(B:B,'Salesforce Contracts 22nd June'!A:V,4,FALSE) -> Spain and Portugal | D17: =VLOOKUP(B:B,'Salesforce Contracts 22nd June'!A:V,14,FALSE) -> Spain | E17: =VLOOKUP(B:B,'Salesforce Contracts 22nd June'!A:V,9,FALSE) -> Live Contract | F17: =VLOOKUP(B:B,'Salesforce Contracts 22nd June'!A:V,6,FALSE) -> 2020-01-01 | G17: =VLOOKUP(B:B,'Salesforce Contracts 22nd June'!A:V,7,FALSE) -> 2023-01-01 | H17: Active | I17: Active | J17: Active | K17: Active | L17: Active | M17: Active | N17: =SUMIFS('Enrolment Data 22nd June'!O:O,'Enrolment Data 22nd June'!F:F,B17,'Enrolment Data 22nd June'!P:P,$N$2,'Enrolment Data 22nd June'!N:N,"Yes") -> 2 | O17: =SUMIFS('Enrolment Data 22nd June'!O:O,'Enrolment Data 22nd June'!F:F,B17,'Enrolment Data 22nd June'!P:P,$O$2,'Enrolment Data 22nd June'!N:N,"Yes") -> 7 | P17: 9 | Q17: =SUMIFS('Enrolment Data 22nd June'!O:O,'Enrolment Data 22nd June'!F:F,B17,'Enrolment Data 22nd June'!P:P,$Q$2,'Enrolment Data 22nd June'!N:N,"Yes") -> 2 | R17: =SUMIFS('Enrolment Data 22nd June'!O:O,'Enrolment Data 22nd June'!F:F,B17,'Enrolment Data 22nd June'!P:P,$R$2,'Enrolment Data 22nd June'!N:N,"Yes") -> 4 | S17: 6 | T17: -3 | U17: -33% | V17: =SUMIFS('Enrolment Data 22nd June'!O:O,'Enrolment Data 22nd June'!F:F,B17,'Enrolment Data 22nd June'!P:P,$V$2,'Enrolment Data 22nd June'!N:N,"Yes") -> 0 | W17: -2 | X17: -100% | Y17: =SUMIFS('Enrolment Data 22nd June'!O:O,'Enrolment Data 22nd June'!F:F,B17,'Enrolment Data 22nd June'!P:P,$Y$2,'Enrolment Data 22nd June'!N:N,"Yes") -> 4 | Z17: 4 | AA17: =SUMIFS('Enrolment Data 22nd June'!O:O,'Enrolment Data 22nd June'!F:F,B17,'Enrolment Data 22nd June'!P:P,$AA$2,'Enrolment Data 22nd June'!N:N,"Yes") -> 0 | AB17: =SUMIFS('Enrolment Data 22nd June'!O:O,'Enrolment Data 22nd June'!F:F,B17,'Enrolment Data 22nd June'!P:P,$AB$2,'Enrolment Data 22nd June'!N:N,"Yes") -> 5 | AC17: 5 | AD17: 15 | AE17: 15 | AF17: 15 | AG17: 19 | AH17: 2020 | AI17: =IFERROR( INDEX('Salesforce Contracts 22nd June'!$S$2:$V$4000, MATCH(1,INDEX(('Salesforce Contracts 22nd June'!$A$2:$A$4000=$B17)*(INDEX('Salesforce Contracts 22nd June'!$S$2:$V$4000,,MATCH($AI$1,'Salesforce Contracts 22nd June'!$O$1:$R$1,0))<>""),0),0), MATCH(AI$1,'Salesforce Contracts 22nd June'!$O$1:$R$1,0)), "") -> EC | AJ17: =IFERROR( INDEX('Salesforce Contracts 22nd June'!$S$2:$V$4000, MATCH(1,INDEX(('Salesforce Contracts 22nd June'!$A$2:$A$4000=$B17)*(INDEX('Salesforce Contracts 22nd June'!$S$2:$V$4000,,MATCH($AJ$1,'Salesforce Contracts 22nd June'!$O$1:$R$1,0))<>""),0),0), MATCH(AJ$1,'Salesforce Contracts 22nd June'!$O$1:$R$1,0)), "") -> EC | AK17: =IFERROR( INDEX('Salesforce Contracts 22nd June'!$S$2:$V$4000, MATCH(1,INDEX(('Salesforce Contracts 22nd June'!$A$2:$A$4000=$B17)*(INDEX('Salesforce Contracts 22nd June'!$S$2:$V$4000,,MATCH($AK$1,'Salesforce Contracts 22nd June'!$O$1:$R$1,0))<>""),0),0), MATCH(AK$1,'Salesforce Contracts 22nd June'!$O$1:$R$1,0)), "") -> EC | AL17: =IFERROR( INDEX('Salesforce Contracts 22nd June'!$S$2:$V$4000, MATCH(1,INDEX(('Salesforce Contracts 22nd June'!$A$2:$A$4000=$B17)*(INDEX('Salesforce Contracts 22nd June'!$S$2:$V$4000,,MATCH($AL$1,'Salesforce Contracts 22nd June'!$O$1:$R$1,0))<>""),0),0), MATCH(AL$1,'Salesforce Contracts 22nd June'!$O$1:$R$1,0)), "") -> EC | AM17: =IFERROR( INDEX('Salesforce Contracts 22nd June'!$O$2:$R$4000, MATCH(1,INDEX(('Salesforce Contracts 22nd June'!$A$2:$A$4000=$B17)*(INDEX('Salesforce Contracts 22nd June'!$O$2:$R$4000,,MATCH($AM$1,'Salesforce Contracts 22nd June'!$O$1:$R$1,0))<>""),0),0), MATCH(AM$1,'Salesforce Contracts 22nd June'!$O$1:$R$1,0)), "") -> LIVE | AN17: =IFERROR( INDEX('Salesforce Contracts 22nd June'!$O$2:$R$4000, MATCH(1,INDEX(('Salesforce Contracts 22nd June'!$A$2:$A$4000=$B17)*(INDEX('Salesforce Contracts 22nd June'!$O$2:$R$4000,,MATCH($AN$1,'Salesforce Contracts 22nd June'!$O$1:$R$1,0))<>""),0),0), MATCH(AN$1,'Salesforce Contracts 22nd June'!$O$1:$R$1,0)), "") -> LIVE | AO17: =IFERROR( INDEX('Salesforce Contracts 22nd June'!$O$2:$R$4000, MATCH(1,INDEX(('Salesforce Contracts 22nd June'!$A$2:$A$4000=$B17)*(INDEX('Salesforce Contracts 22nd June'!$O$2:$R$4000,,MATCH($AO$1,'Salesforce Contracts 22nd June'!$O$1:$R$1,0))<>""),0),0), MATCH(AO$1,'Salesforce Contracts 22nd June'!$O$1:$R$1,0)), "") -> LIVE | AP17: =IFERROR( INDEX('Salesforce Contracts 22nd June'!$O$2:$R$4000, MATCH(1,INDEX(('Salesforce Contracts 22nd June'!$A$2:$A$4000=$B17)*(INDEX('Salesforce Contracts 22nd June'!$O$2:$R$4000,,MATCH($AP$1,'Salesforce Contracts 22nd June'!$O$1:$R$1,0))<>""),0),0), MATCH(AP$1,'Salesforce Contracts 22nd June'!$O$1:$R$1,0)), "") -> LIVE | AQ17: =IFERROR(VLOOKUP(B17,Lookup!Q:R,2,FALSE),"n/a") -> 2016 | AR17: =VLOOKUP(B17,Lookup!L:M,2,FALSE) -> 0 | AS17: =VLOOKUP(B17,Lookup!L:N,3,FALSE) -> (blank)
A18: =VLOOKUP(B:B,'Salesforce Contracts 22nd June'!A:V,8,FALSE) -> EC | B18: =Lookup!L17 -> Anton Gautama | C18: =VLOOKUP(B:B,'Salesforce Contracts 22nd June'!A:V,4,FALSE) -> Asia Pacific | D18: =VLOOKUP(B:B,'Salesforce Contracts 22nd June'!A:V,14,FALSE) -> Indonesia | E18: =VLOOKUP(B:B,'Salesforce Contracts 22nd June'!A:V,9,FALSE) -> Cancelled | F18: =VLOOKUP(B:B,'Salesforce Contracts 22nd June'!A:V,6,FALSE) -> 2016-11-01 | G18: =VLOOKUP(B:B,'Salesforce Contracts 22nd June'!A:V,7,FALSE) -> 2019-11-01 | H18: Inactive | I18: Inactive | J18: Inactive | K18: Inactive | L18: Inactive | M18: Inactive | N18: =SUMIFS('Enrolment Data 22nd June'!O:O,'Enrolment Data 22nd June'!F:F,B18,'Enrolment Data 22nd June'!P:P,$N$2,'Enrolment Data 22nd June'!N:N,"Yes") -> 0 | O18: =SUMIFS('Enrolment Data 22nd June'!O:O,'Enrolment Data 22nd June'!F:F,B18,'Enrolment Data 22nd June'!P:P,$O$2,'Enrolment Data 22nd June'!N:N,"Yes") -> 0 | P18: 0 | Q18: =SUMIFS('Enrolment Data 22nd June'!O:O,'Enrolment Data 22nd June'!F:F,B18,'Enrolment Data 22nd June'!P:P,$Q$2,'Enrolment Data 22nd June'!N:N,"Yes") -> 0 | R18: =SUMIFS('Enrolment Data 22nd June'!O:O,'Enrolment Data 22nd June'!F:F,B18,'Enrolment Data 22nd June'!P:P,$R$2,'Enrolment Data 22nd June'!N:N,"Yes") -> 0 | S18: 0 | T18: 0 | U18: - | V18: =SUMIFS('Enrolment Data 22nd June'!O:O,'Enrolment Data 22nd June'!F:F,B18,'Enrolment Data 22nd June'!P:P,$V$2,'Enrolment Data 22nd June'!N:N,"Yes") -> 0 | W18: 0 | X18: - | Y18: =SUMIFS('Enrolment Data 22nd June'!O:O,'Enrolment Data 22nd June'!F:F,B18,'Enrolment Data 22nd June'!P:P,$Y$2,'Enrolment Data 22nd June'!N:N,"Yes") -> 0 | Z18: 0 | AA18: =SUMIFS('Enrolment Data 22nd June'!O:O,'Enrolment Data 22nd June'!F:F,B18,'Enrolment Data 22nd June'!P:P,$AA$2,'Enrolment Data 22nd June'!N:N,"Yes") -> 0 | AB18: =SUMIFS('Enrolment Data 22nd June'!O:O,'Enrolment Data 22nd June'!F:F,B18,'Enrolment Data 22nd June'!P:P,$AB$2,'Enrolment Data 22nd June'!N:N,"Yes") -> 0 | AC18: 0 | AD18: 0 | AE18: 0 | AF18: 0 | AG18: 0 | AH18: 2016 | AI18: =IFERROR( INDEX('Salesforce Contracts 22nd June'!$S$2:$V$4000, MATCH(1,INDEX(('Salesforce Contracts 22nd June'!$A$2:$A$4000=$B18)*(INDEX('Salesforce Contracts 22nd June'!$S$2:$V$4000,,MATCH($AI$1,'Salesforce Contracts 22nd June'!$O$1:$R$1,0))<>""),0),0), MATCH(AI$1,'Salesforce Contracts 22nd June'!$O$1:$R$1,0)), "") -> EC | AJ18: =IFERROR( INDEX('Salesforce Contracts 22nd June'!$S$2:$V$4000, MATCH(1,INDEX(('Salesforce Contracts 22nd June'!$A$2:$A$4000=$B18)*(INDEX('Salesforce Contracts 22nd June'!$S$2:$V$4000,,MATCH($AJ$1,'Salesforce Contracts 22nd June'!$O$1:$R$1,0))<>""),0),0), MATCH(AJ$1,'Salesforce Contracts 22nd June'!$O$1:$R$1,0)), "") -> EC | AK18: =IFERROR( INDEX('Salesforce Contracts 22nd June'!$S$2:$V$4000, MATCH(1,INDEX(('Salesforce Contracts 22nd June'!$A$2:$A$4000=$B18)*(INDEX('Salesforce Contracts 22nd June'!$S$2:$V$4000,,MATCH($AK$1,'Salesforce Contracts 22nd June'!$O$1:$R$1,0))<>""),0),0), MATCH(AK$1,'Salesforce Contracts 22nd June'!$O$1:$R$1,0)), "") -> EC | AL18: =IFERROR( INDEX('Salesforce Contracts 22nd June'!$S$2:$V$4000, MATCH(1,INDEX(('Salesforce Contracts 22nd June'!$A$2:$A$4000=$B18)*(INDEX('Salesforce Contracts 22nd June'!$S$2:$V$4000,,MATCH($AL$1,'Salesforce Contracts 22nd June'!$O$1:$R$1,0))<>""),0),0), MATCH(AL$1,'Salesforce Contracts 22nd June'!$O$1:$R$1,0)), "") ->  | AM18: =IFERROR( INDEX('Salesforce Contracts 22nd June'!$O$2:$R$4000, MATCH(1,INDEX(('Salesforce Contracts 22nd June'!$A$2:$A$4000=$B18)*(INDEX('Salesforce Contracts 22nd June'!$O$2:$R$4000,,MATCH($AM$1,'Salesforce Contracts 22nd June'!$O$1:$R$1,0))<>""),0),0), MATCH(AM$1,'Salesforce Contracts 22nd June'!$O$1:$R$1,0)), "") -> LIVE | AN18: =IFERROR( INDEX('Salesforce Contracts 22nd June'!$O$2:$R$4000, MATCH(1,INDEX(('Salesforce Contracts 22nd June'!$A$2:$A$4000=$B18)*(INDEX('Salesforce Contracts 22nd June'!$O$2:$R$4000,,MATCH($AN$1,'Salesforce Contracts 22nd June'!$O$1:$R$1,0))<>""),0),0), MATCH(AN$1,'Salesforce Contracts 22nd June'!$O$1:$R$1,0)), "") -> LIVE | AO18: =IFERROR( INDEX('Salesforce Contracts 22nd June'!$O$2:$R$4000, MATCH(1,INDEX(('Salesforce Contracts 22nd June'!$A$2:$A$4000=$B18)*(INDEX('Salesforce Contracts 22nd June'!$O$2:$R$4000,,MATCH($AO$1,'Salesforce Contracts 22nd June'!$O$1:$R$1,0))<>""),0),0), MATCH(AO$1,'Salesforce Contracts 22nd June'!$O$1:$R$1,0)), "") -> LIVE | AP18: =IFERROR( INDEX('Salesforce Contracts 22nd June'!$O$2:$R$4000, MATCH(1,INDEX(('Salesforce Contracts 22nd June'!$A$2:$A$4000=$B18)*(INDEX('Salesforce Contracts 22nd June'!$O$2:$R$4000,,MATCH($AP$1,'Salesforce Contracts 22nd June'!$O$1:$R$1,0))<>""),0),0), MATCH(AP$1,'Salesforce Contracts 22nd June'!$O$1:$R$1,0)), "") ->  | AQ18: =IFERROR(VLOOKUP(B18,Lookup!Q:R,2,FALSE),"n/a") -> 2016 | AR18: =VLOOKUP(B18,Lookup!L:M,2,FALSE) -> 0 | AS18: =VLOOKUP(B18,Lookup!L:N,3,FALSE) -> (blank)
A19: =VLOOKUP(B:B,'Salesforce Contracts 22nd June'!A:V,8,FALSE) -> Agent | B19: =Lookup!L18 -> Aprile Management SRL | C19: =VLOOKUP(B:B,'Salesforce Contracts 22nd June'!A:V,4,FALSE) -> Southern Europe and MENA | D19: =VLOOKUP(B:B,'Salesforce Contracts 22nd June'!A:V,14,FALSE) -> Italy | E19: =VLOOKUP(B:B,'Salesforce Contracts 22nd June'!A:V,9,FALSE) -> Sent to Partner | F19: =VLOOKUP(B:B,'Salesforce Contracts 22nd June'!A:V,6,FALSE) -> 2020-01-01 | G19: =VLOOKUP(B:B,'Salesforce Contracts 22nd June'!A:V,7,FALSE) -> 2020-12-31 | H19: Inactive | I19: Inactive | J19: Inactive | K19: Active | L19: Inactive | M19: Inactive | N19: =SUMIFS('Enrolment Data 22nd June'!O:O,'Enrolment Data 22nd June'!F:F,B19,'Enrolment Data 22nd June'!P:P,$N$2,'Enrolment Data 22nd June'!N:N,"Yes") -> 0 | O19: =SUMIFS('Enrolment Data 22nd June'!O:O,'Enrolment Data 22nd June'!F:F,B19,'Enrolment Data 22nd June'!P:P,$O$2,'Enrolment Data 22nd June'!N:N,"Yes") -> 0 | P19: 0 | Q19: =SUMIFS('Enrolment Data 22nd June'!O:O,'Enrolment Data 22nd June'!F:F,B19,'Enrolment Data 22nd June'!P:P,$Q$2,'Enrolment Data 22nd June'!N:N,"Yes") -> 0 | R19: =SUMIFS('Enrolment Data 22nd June'!O:O,'Enrolment Data 22nd June'!F:F,B19,'Enrolment Data 22nd June'!P:P,$R$2,'Enrolment Data 22nd June'!N:N,"Yes") -> 0 | S19: 0 | T19: 0 | U19: - | V19: =SUMIFS('Enrolment Data 22nd June'!O:O,'Enrolment Data 22nd June'!F:F,B19,'Enrolment Data 22nd June'!P:P,$V$2,'Enrolment Data 22nd June'!N:N,"Yes") -> 0 | W19: 0 | X19: - | Y19: =SUMIFS('Enrolment Data 22nd June'!O:O,'Enrolment Data 22nd June'!F:F,B19,'Enrolment Data 22nd June'!P:P,$Y$2,'Enrolment Data 22nd June'!N:N,"Yes") -> 0 | Z19: 0 | AA19: =SUMIFS('Enrolment Data 22nd June'!O:O,'Enrolment Data 22nd June'!F:F,B19,'Enrolment Data 22nd June'!P:P,$AA$2,'Enrolment Data 22nd June'!N:N,"Yes") -> 0 | AB19: =SUMIFS('Enrolment Data 22nd June'!O:O,'Enrolment Data 22nd June'!F:F,B19,'Enrolment Data 22nd June'!P:P,$AB$2,'Enrolment Data 22nd June'!N:N,"Yes") -> 2 | AC19: 2 | AD19: 0 | AE19: 0 | AF19: 0 | AG19: 0 | AH19: 2020 | AI19: =IFERROR( INDEX('Salesforce Contracts 22nd June'!$S$2:$V$4000, MATCH(1,INDEX(('Salesforce Contracts 22nd June'!$A$2:$A$4000=$B19)*(INDEX('Salesforce Contracts 22nd June'!$S$2:$V$4000,,MATCH($AI$1,'Salesforce Contracts 22nd June'!$O$1:$R$1,0))<>""),0),0), MATCH(AI$1,'Salesforce Contracts 22nd June'!$O$1:$R$1,0)), "") ->  | AJ19: =IFERROR( INDEX('Salesforce Contracts 22nd June'!$S$2:$V$4000, MATCH(1,INDEX(('Salesforce Contracts 22nd June'!$A$2:$A$4000=$B19)*(INDEX('Salesforce Contracts 22nd June'!$S$2:$V$4000,,MATCH($AJ$1,'Salesforce Contracts 22nd June'!$O$1:$R$1,0))<>""),0),0), MATCH(AJ$1,'Salesforce Contracts 22nd June'!$O$1:$R$1,0)), "") ->  | AK19: =IFERROR( INDEX('Salesforce Contracts 22nd June'!$S$2:$V$4000, MATCH(1,INDEX(('Salesforce Contracts 22nd June'!$A$2:$A$4000=$B19)*(INDEX('Salesforce Contracts 22nd June'!$S$2:$V$4000,,MATCH($AK$1,'Salesforce Contracts 22nd June'!$O$1:$R$1,0))<>""),0),0), MATCH(AK$1,'Salesforce Contracts 22nd June'!$O$1:$R$1,0)), "") -> Agent | AL19: =IFERROR( INDEX('Salesforce Contracts 22nd June'!$S$2:$V$4000, MATCH(1,INDEX(('Salesforce Contracts 22nd June'!$A$2:$A$4000=$B19)*(INDEX('Salesforce Contracts 22nd June'!$S$2:$V$4000,,MATCH($AL$1,'Salesforce Contracts 22nd June'!$O$1:$R$1,0))<>""),0),0), MATCH(AL$1,'Salesforce Contracts 22nd June'!$O$1:$R$1,0)), "") -> Agent | AM19: =IFERROR( INDEX('Salesforce Contracts 22nd June'!$O$2:$R$4000, MATCH(1,INDEX(('Salesforce Contracts 22nd June'!$A$2:$A$4000=$B19)*(INDEX('Salesforce Contracts 22nd June'!$O$2:$R$4000,,MATCH($AM$1,'Salesforce Contracts 22nd June'!$O$1:$R$1,0))<>""),0),0), MATCH(AM$1,'Salesforce Contracts 22nd June'!$O$1:$R$1,0)), "") ->  | AN19: =IFERROR( INDEX('Salesforce Contracts 22nd June'!$O$2:$R$4000, MATCH(1,INDEX(('Salesforce Contracts 22nd June'!$A$2:$A$4000=$B19)*(INDEX('Salesforce Contracts 22nd June'!$O$2:$R$4000,,MATCH($AN$1,'Salesforce Contracts 22nd June'!$O$1:$R$1,0))<>""),0),0), MATCH(AN$1,'Salesforce Contracts 22nd June'!$O$1:$R$1,0)), "") ->  | AO19: =IFERROR( INDEX('Salesforce Contracts 22nd June'!$O$2:$R$4000, MATCH(1,INDEX(('Salesforce Contracts 22nd June'!$A$2:$A$4000=$B19)*(INDEX('Salesforce Contracts 22nd June'!$O$2:$R$4000,,MATCH($AO$1,'Salesforce Contracts 22nd June'!$O$1:$R$1,0))<>""),0),0), MATCH(AO$1,'Salesforce Contracts 22nd June'!$O$1:$R$1,0)), "") -> LIVE | AP19: =IFERROR( INDEX('Salesforce Contracts 22nd June'!$O$2:$R$4000, MATCH(1,INDEX(('Salesforce Contracts 22nd June'!$A$2:$A$4000=$B19)*(INDEX('Salesforce Contracts 22nd June'!$O$2:$R$4000,,MATCH($AP$1,'Salesforce Contracts 22nd June'!$O$1:$R$1,0))<>""),0),0), MATCH(AP$1,'Salesforce Contracts 22nd June'!$O$1:$R$1,0)), "") -> LIVE | AQ19: =IFERROR(VLOOKUP(B19,Lookup!Q:R,2,FALSE),"n/a") -> 2019 | AR19: =VLOOKUP(B19,Lookup!L:M,2,FALSE) -> 0 | AS19: =VLOOKUP(B19,Lookup!L:N,3,FALSE) -> (blank)
A20: =VLOOKUP(B:B,'Salesforce Contracts 22nd June'!A:V,8,FALSE) -> Agent | B20: =Lookup!L19 -> ASBA EDUCATION CONSULTING | C20: =VLOOKUP(B:B,'Salesforce Contracts 22nd June'!A:V,4,FALSE) -> Southern Europe and MENA | D20: =VLOOKUP(B:B,'Salesforce Contracts 22nd June'!A:V,14,FALSE) -> Turkey | E20: =VLOOKUP(B:B,'Salesforce Contracts 22nd June'!A:V,9,FALSE) -> Expired | F20: =VLOOKUP(B:B,'Salesforce Contracts 22nd June'!A:V,6,FALSE) -> 2017-06-01 | G20: =VLOOKUP(B:B,'Salesforce Contracts 22nd June'!A:V,7,FALSE) -> 2018-06-01 | H20: Active | I20: Inactive | J20: Inactive | K20: Inactive | L20: Active | M20: Active | N20: =SUMIFS('Enrolment Data 22nd June'!O:O,'Enrolment Data 22nd June'!F:F,B20,'Enrolment Data 22nd June'!P:P,$N$2,'Enrolment Data 22nd June'!N:N,"Yes") -> 0 | O20: =SUMIFS('Enrolment Data 22nd June'!O:O,'Enrolment Data 22nd June'!F:F,B20,'Enrolment Data 22nd June'!P:P,$O$2,'Enrolment Data 22nd June'!N:N,"Yes") -> 1 | P20: 1 | Q20: =SUMIFS('Enrolment Data 22nd June'!O:O,'Enrolment Data 22nd June'!F:F,B20,'Enrolment Data 22nd June'!P:P,$Q$2,'Enrolment Data 22nd June'!N:N,"Yes") -> 0 | R20: =SUMIFS('Enrolment Data 22nd June'!O:O,'Enrolment Data 22nd June'!F:F,B20,'Enrolment Data 22nd June'!P:P,$R$2,'Enrolment Data 22nd June'!N:N,"Yes") -> 0 | S20: 0 | T20: -1 | U20: -100% | V20: =SUMIFS('Enrolment Data 22nd June'!O:O,'Enrolment Data 22nd June'!F:F,B20,'Enrolment Data 22nd June'!P:P,$V$2,'Enrolment Data 22nd June'!N:N,"Yes") -> 0 | W20: 0 | X20: - | Y20: =SUMIFS('Enrolment Data 22nd June'!O:O,'Enrolment Data 22nd June'!F:F,B20,'Enrolment Data 22nd June'!P:P,$Y$2,'Enrolment Data 22nd June'!N:N,"Yes") -> 0 | Z20: 0 | AA20: =SUMIFS('Enrolment Data 22nd June'!O:O,'Enrolment Data 22nd June'!F:F,B20,'Enrolment Data 22nd June'!P:P,$AA$2,'Enrolment Data 22nd June'!N:N,"Yes") -> 0 | AB20: =SUMIFS('Enrolment Data 22nd June'!O:O,'Enrolment Data 22nd June'!F:F,B20,'Enrolment Data 22nd June'!P:P,$AB$2,'Enrolment Data 22nd June'!N:N,"Yes") -> 0 | AC20: 0 | AD20: 1 | AE20: 1 | AF20: 1 | AG20: 1 | AH20: 2017 | AI20: =IFERROR( INDEX('Salesforce Contracts 22nd June'!$S$2:$V$4000, MATCH(1,INDEX(('Salesforce Contracts 22nd June'!$A$2:$A$4000=$B20)*(INDEX('Salesforce Contracts 22nd June'!$S$2:$V$4000,,MATCH($AI$1,'Salesforce Contracts 22nd June'!$O$1:$R$1,0))<>""),0),0), MATCH(AI$1,'Salesforce Contracts 22nd June'!$O$1:$R$1,0)), "") -> Agent | AJ20: =IFERROR( INDEX('Salesforce Contracts 22nd June'!$S$2:$V$4000, MATCH(1,INDEX(('Salesforce Contracts 22nd June'!$A$2:$A$4000=$B20)*(INDEX('Salesforce Contracts 22nd June'!$S$2:$V$4000,,MATCH($AJ$1,'Salesforce Contracts 22nd June'!$O$1:$R$1,0))<>""),0),0), MATCH(AJ$1,'Salesforce Contracts 22nd June'!$O$1:$R$1,0)), "") -> Agent | AK20: =IFERROR( INDEX('Salesforce Contracts 22nd June'!$S$2:$V$4000, MATCH(1,INDEX(('Salesforce Contracts 22nd June'!$A$2:$A$4000=$B20)*(INDEX('Salesforce Contracts 22nd June'!$S$2:$V$4000,,MATCH($AK$1,'Salesforce Contracts 22nd June'!$O$1:$R$1,0))<>""),0),0), MATCH(AK$1,'Salesforce Contracts 22nd June'!$O$1:$R$1,0)), "") ->  | AL20: =IFERROR( INDEX('Salesforce Contracts 22nd June'!$S$2:$V$4000, MATCH(1,INDEX(('Salesforce Contracts 22nd June'!$A$2:$A$4000=$B20)*(INDEX('Salesforce Contracts 22nd June'!$S$2:$V$4000,,MATCH($AL$1,'Salesforce Contracts 22nd June'!$O$1:$R$1,0))<>""),0),0), MATCH(AL$1,'Salesforce Contracts 22nd June'!$O$1:$R$1,0)), "") ->  | AM20: =IFERROR( INDEX('Salesforce Contracts 22nd June'!$O$2:$R$4000, MATCH(1,INDEX(('Salesforce Contracts 22nd June'!$A$2:$A$4000=$B20)*(INDEX('Salesforce Contracts 22nd June'!$O$2:$R$4000,,MATCH($AM$1,'Salesforce Contracts 22nd June'!$O$1:$R$1,0))<>""),0),0), MATCH(AM$1,'Salesforce Contracts 22nd June'!$O$1:$R$1,0)), "") -> LIVE | AN20: =IFERROR( INDEX('Salesforce Contracts 22nd June'!$O$2:$R$4000, MATCH(1,INDEX(('Salesforce Contracts 22nd June'!$A$2:$A$4000=$B20)*(INDEX('Salesforce Contracts 22nd June'!$O$2:$R$4000,,MATCH($AN$1,'Salesforce Contracts 22nd June'!$O$1:$R$1,0))<>""),0),0), MATCH(AN$1,'Salesforce Contracts 22nd June'!$O$1:$R$1,0)), "") -> LIVE | AO20: =IFERROR( INDEX('Salesforce Contracts 22nd June'!$O$2:$R$4000, MATCH(1,INDEX(('Salesforce Contracts 22nd June'!$A$2:$A$4000=$B20)*(INDEX('Salesforce Contracts 22nd June'!$O$2:$R$4000,,MATCH($AO$1,'Salesforce Contracts 22nd June'!$O$1:$R$1,0))<>""),0),0), MATCH(AO$1,'Salesforce Contracts 22nd June'!$O$1:$R$1,0)), "") ->  | AP20: =IFERROR( INDEX('Salesforce Contracts 22nd June'!$O$2:$R$4000, MATCH(1,INDEX(('Salesforce Contracts 22nd June'!$A$2:$A$4000=$B20)*(INDEX('Salesforce Contracts 22nd June'!$O$2:$R$4000,,MATCH($AP$1,'Salesforce Contracts 22nd June'!$O$1:$R$1,0))<>""),0),0), MATCH(AP$1,'Salesforce Contracts 22nd June'!$O$1:$R$1,0)), "") ->  | AQ20: =IFERROR(VLOOKUP(B20,Lookup!Q:R,2,FALSE),"n/a") -> 2017 | AR20: =VLOOKUP(B20,Lookup!L:M,2,FALSE) -> 0 | AS20: =VLOOKUP(B20,Lookup!L:N,3,FALSE) -> (blank)
A21: =VLOOKUP(B:B,'Salesforce Contracts 22nd June'!A:V,8,FALSE) -> EC | B21: =Lookup!L20 -> Asesorias Masalia Ltda | C21: =VLOOKUP(B:B,'Salesforce Contracts 22nd June'!A:V,4,FALSE) -> South America | D21: =VLOOKUP(B:B,'Salesforce Contracts 22nd June'!A:V,14,FALSE) -> Chile | E21: =VLOOKUP(B:B,'Salesforce Contracts 22nd June'!A:V,9,FALSE) -> Expired | F21: =VLOOKUP(B:B,'Salesforce Contracts 22nd June'!A:V,6,FALSE) -> 2016-01-01 | G21: =VLOOKUP(B:B,'Salesforce Contracts 22nd June'!A:V,7,FALSE) -> 2020-01-01 | H21: Active | I21: Inactive | J21: Inactive | K21: Inactive | L21: Active | M21: Active | N21: =SUMIFS('Enrolment Data 22nd June'!O:O,'Enrolment Data 22nd June'!F:F,B21,'Enrolment Data 22nd June'!P:P,$N$2,'Enrolment Data 22nd June'!N:N,"Yes") -> 0 | O21: =SUMIFS('Enrolment Data 22nd June'!O:O,'Enrolment Data 22nd June'!F:F,B21,'Enrolment Data 22nd June'!P:P,$O$2,'Enrolment Data 22nd June'!N:N,"Yes") -> 1 | P21: 1 | Q21: =SUMIFS('Enrolment Data 22nd June'!O:O,'Enrolment Data 22nd June'!F:F,B21,'Enrolment Data 22nd June'!P:P,$Q$2,'Enrolment Data 22nd June'!N:N,"Yes") -> 0 | R21: =SUMIFS('Enrolment Data 22nd June'!O:O,'Enrolment Data 22nd June'!F:F,B21,'Enrolment Data 22nd June'!P:P,$R$2,'Enrolment Data 22nd June'!N:N,"Yes") -> 0 | S21: 0 | T21: -1 | U21: -100% | V21: =SUMIFS('Enrolment Data 22nd June'!O:O,'Enrolment Data 22nd June'!F:F,B21,'Enrolment Data 22nd June'!P:P,$V$2,'Enrolment Data 22nd June'!N:N,"Yes") -> 0 | W21: 0 | X21: - | Y21: =SUMIFS('Enrolment Data 22nd June'!O:O,'Enrolment Data 22nd June'!F:F,B21,'Enrolment Data 22nd June'!P:P,$Y$2,'Enrolment Data 22nd June'!N:N,"Yes") -> 0 | Z21: 0 | AA21: =SUMIFS('Enrolment Data 22nd June'!O:O,'Enrolment Data 22nd June'!F:F,B21,'Enrolment Data 22nd June'!P:P,$AA$2,'Enrolment Data 22nd June'!N:N,"Yes") -> 0 | AB21: =SUMIFS('Enrolment Data 22nd June'!O:O,'Enrolment Data 22nd June'!F:F,B21,'Enrolment Data 22nd June'!P:P,$AB$2,'Enrolment Data 22nd June'!N:N,"Yes") -> 0 | AC21: 0 | AD21: 1 | AE21: 1 | AF21: 1 | AG21: 1 | AH21: 2016 | AI21: =IFERROR( INDEX('Salesforce Contracts 22nd June'!$S$2:$V$4000, MATCH(1,INDEX(('Salesforce Contracts 22nd June'!$A$2:$A$4000=$B21)*(INDEX('Salesforce Contracts 22nd June'!$S$2:$V$4000,,MATCH($AI$1,'Salesforce Contracts 22nd June'!$O$1:$R$1,0))<>""),0),0), MATCH(AI$1,'Salesforce Contracts 22nd June'!$O$1:$R$1,0)), "") -> EC | AJ21: =IFERROR( INDEX('Salesforce Contracts 22nd June'!$S$2:$V$4000, MATCH(1,INDEX(('Salesforce Contracts 22nd June'!$A$2:$A$4000=$B21)*(INDEX('Salesforce Contracts 22nd June'!$S$2:$V$4000,,MATCH($AJ$1,'Salesforce Contracts 22nd June'!$O$1:$R$1,0))<>""),0),0), MATCH(AJ$1,'Salesforce Contracts 22nd June'!$O$1:$R$1,0)), "") -> EC | AK21: =IFERROR( INDEX('Salesforce Contracts 22nd June'!$S$2:$V$4000, MATCH(1,INDEX(('Salesforce Contracts 22nd June'!$A$2:$A$4000=$B21)*(INDEX('Salesforce Contracts 22nd June'!$S$2:$V$4000,,MATCH($AK$1,'Salesforce Contracts 22nd June'!$O$1:$R$1,0))<>""),0),0), MATCH(AK$1,'Salesforce Contracts 22nd June'!$O$1:$R$1,0)), "") -> EC | AL21: =IFERROR( INDEX('Salesforce Contracts 22nd June'!$S$2:$V$4000, MATCH(1,INDEX(('Salesforce Contracts 22nd June'!$A$2:$A$4000=$B21)*(INDEX('Salesforce Contracts 22nd June'!$S$2:$V$4000,,MATCH($AL$1,'Salesforce Contracts 22nd June'!$O$1:$R$1,0))<>""),0),0), MATCH(AL$1,'Salesforce Contracts 22nd June'!$O$1:$R$1,0)), "") ->  | AM21: =IFERROR( INDEX('Salesforce Contracts 22nd June'!$O$2:$R$4000, MATCH(1,INDEX(('Salesforce Contracts 22nd June'!$A$2:$A$4000=$B21)*(INDEX('Salesforce Contracts 22nd June'!$O$2:$R$4000,,MATCH($AM$1,'Salesforce Contracts 22nd June'!$O$1:$R$1,0))<>""),0),0), MATCH(AM$1,'Salesforce Contracts 22nd June'!$O$1:$R$1,0)), "") -> LIVE | AN21: =IFERROR( INDEX('Salesforce Contracts 22nd June'!$O$2:$R$4000, MATCH(1,INDEX(('Salesforce Contracts 22nd June'!$A$2:$A$4000=$B21)*(INDEX('Salesforce Contracts 22nd June'!$O$2:$R$4000,,MATCH($AN$1,'Salesforce Contracts 22nd June'!$O$1:$R$1,0))<>""),0),0), MATCH(AN$1,'Salesforce Contracts 22nd June'!$O$1:$R$1,0)), "") -> LIVE | AO21: =IFERROR( INDEX('Salesforce Contracts 22nd June'!$O$2:$R$4000, MATCH(1,INDEX(('Salesforce Contracts 22nd June'!$A$2:$A$4000=$B21)*(INDEX('Salesforce Contracts 22nd June'!$O$2:$R$4000,,MATCH($AO$1,'Salesforce Contracts 22nd June'!$O$1:$R$1,0))<>""),0),0), MATCH(AO$1,'Salesforce Contracts 22nd June'!$O$1:$R$1,0)), "") -> LIVE | AP21: =IFERROR( INDEX('Salesforce Contracts 22nd June'!$O$2:$R$4000, MATCH(1,INDEX(('Salesforce Contracts 22nd June'!$A$2:$A$4000=$B21)*(INDEX('Salesforce Contracts 22nd June'!$O$2:$R$4000,,MATCH($AP$1,'Salesforce Contracts 22nd June'!$O$1:$R$1,0))<>""),0),0), MATCH(AP$1,'Salesforce Contracts 22nd June'!$O$1:$R$1,0)), "") ->  | AQ21: =IFERROR(VLOOKUP(B21,Lookup!Q:R,2,FALSE),"n/a") -> 2009 | AR21: =VLOOKUP(B21,Lookup!L:M,2,FALSE) -> 0 | AS21: =VLOOKUP(B21,Lookup!L:N,3,FALSE) -> (blank)
A22: =VLOOKUP(B:B,'Salesforce Contracts 22nd June'!A:V,8,FALSE) -> EC | B22: =Lookup!L21 -> Asmahan Azzam | C22: =VLOOKUP(B:B,'Salesforce Contracts 22nd June'!A:V,4,FALSE) -> Gulf Region | D22: =VLOOKUP(B:B,'Salesforce Contracts 22nd June'!A:V,14,FALSE) -> United Arab Emirates | E22: =VLOOKUP(B:B,'Salesforce Contracts 22nd June'!A:V,9,FALSE) -> Expired | F22: =VLOOKUP(B:B,'Salesforce Contracts 22nd June'!A:V,6,FALSE) -> 2016-01-01 | G22: =VLOOKUP(B:B,'Salesforce Contracts 22nd June'!A:V,7,FALSE) -> 2018-01-01 | H22: Inactive | I22: Active | J22: Inactive | K22: Inactive | L22: Active | M22: Active | N22: =SUMIFS('Enrolment Data 22nd June'!O:O,'Enrolment Data 22nd June'!F:F,B22,'Enrolment Data 22nd June'!P:P,$N$2,'Enrolment Data 22nd June'!N:N,"Yes") -> 0 | O22: =SUMIFS('Enrolment Data 22nd June'!O:O,'Enrolment Data 22nd June'!F:F,B22,'Enrolment Data 22nd June'!P:P,$O$2,'Enrolment Data 22nd June'!N:N,"Yes") -> 0 | P22: 0 | Q22: =SUMIFS('Enrolment Data 22nd June'!O:O,'Enrolment Data 22nd June'!F:F,B22,'Enrolment Data 22nd June'!P:P,$Q$2,'Enrolment Data 22nd June'!N:N,"Yes") -> 1 | R22: =SUMIFS('Enrolment Data 22nd June'!O:O,'Enrolment Data 22nd June'!F:F,B22,'Enrolment Data 22nd June'!P:P,$R$2,'Enrolment Data 22nd June'!N:N,"Yes") -> 0 | S22: 1 | T22: 1 | U22: - | V22: =SUMIFS('Enrolment Data 22nd June'!O:O,'Enrolment Data 22nd June'!F:F,B22,'Enrolment Data 22nd June'!P:P,$V$2,'Enrolment Data 22nd June'!N:N,"Yes") -> 0 | W22: -1 | X22: -100% | Y22: =SUMIFS('Enrolment Data 22nd June'!O:O,'Enrolment Data 22nd June'!F:F,B22,'Enrolment Data 22nd June'!P:P,$Y$2,'Enrolment Data 22nd June'!N:N,"Yes") -> 0 | Z22: 0 | AA22: =SUMIFS('Enrolment Data 22nd June'!O:O,'Enrolment Data 22nd June'!F:F,B22,'Enrolment Data 22nd June'!P:P,$AA$2,'Enrolment Data 22nd June'!N:N,"Yes") -> 0 | AB22: =SUMIFS('Enrolment Data 22nd June'!O:O,'Enrolment Data 22nd June'!F:F,B22,'Enrolment Data 22nd June'!P:P,$AB$2,'Enrolment Data 22nd June'!N:N,"Yes") -> 0 | AC22: 0 | AD22: 1 | AE22: 1 | AF22: 0 | AG22: 1 | AH22: 2016 | AI22: =IFERROR( INDEX('Salesforce Contracts 22nd June'!$S$2:$V$4000, MATCH(1,INDEX(('Salesforce Contracts 22nd June'!$A$2:$A$4000=$B22)*(INDEX('Salesforce Contracts 22nd June'!$S$2:$V$4000,,MATCH($AI$1,'Salesforce Contracts 22nd June'!$O$1:$R$1,0))<>""),0),0), MATCH(AI$1,'Salesforce Contracts 22nd June'!$O$1:$R$1,0)), "") -> EC | AJ22: =IFERROR( INDEX('Salesforce Contracts 22nd June'!$S$2:$V$4000, MATCH(1,INDEX(('Salesforce Contracts 22nd June'!$A$2:$A$4000=$B22)*(INDEX('Salesforce Contracts 22nd June'!$S$2:$V$4000,,MATCH($AJ$1,'Salesforce Contracts 22nd June'!$O$1:$R$1,0))<>""),0),0), MATCH(AJ$1,'Salesforce Contracts 22nd June'!$O$1:$R$1,0)), "") -> EC | AK22: =IFERROR( INDEX('Salesforce Contracts 22nd June'!$S$2:$V$4000, MATCH(1,INDEX(('Salesforce Contracts 22nd June'!$A$2:$A$4000=$B22)*(INDEX('Salesforce Contracts 22nd June'!$S$2:$V$4000,,MATCH($AK$1,'Salesforce Contracts 22nd June'!$O$1:$R$1,0))<>""),0),0), MATCH(AK$1,'Salesforce Contracts 22nd June'!$O$1:$R$1,0)), "") ->  | AL22: =IFERROR( INDEX('Salesforce Contracts 22nd June'!$S$2:$V$4000, MATCH(1,INDEX(('Salesforce Contracts 22nd June'!$A$2:$A$4000=$B22)*(INDEX('Salesforce Contracts 22nd June'!$S$2:$V$4000,,MATCH($AL$1,'Salesforce Contracts 22nd June'!$O$1:$R$1,0))<>""),0),0), MATCH(AL$1,'Salesforce Contracts 22nd June'!$O$1:$R$1,0)), "") ->  | AM22: =IFERROR( INDEX('Salesforce Contracts 22nd June'!$O$2:$R$4000, MATCH(1,INDEX(('Salesforce Contracts 22nd June'!$A$2:$A$4000=$B22)*(INDEX('Salesforce Contracts 22nd June'!$O$2:$R$4000,,MATCH($AM$1,'Salesforce Contracts 22nd June'!$O$1:$R$1,0))<>""),0),0), MATCH(AM$1,'Salesforce Contracts 22nd June'!$O$1:$R$1,0)), "") -> LIVE | AN22: =IFERROR( INDEX('Salesforce Contracts 22nd June'!$O$2:$R$4000, MATCH(1,INDEX(('Salesforce Contracts 22nd June'!$A$2:$A$4000=$B22)*(INDEX('Salesforce Contracts 22nd June'!$O$2:$R$4000,,MATCH($AN$1,'Salesforce Contracts 22nd June'!$O$1:$R$1,0))<>""),0),0), MATCH(AN$1,'Salesforce Contracts 22nd June'!$O$1:$R$1,0)), "") ->  | AO22: =IFERROR( INDEX('Salesforce Contracts 22nd June'!$O$2:$R$4000, MATCH(1,INDEX(('Salesforce Contracts 22nd June'!$A$2:$A$4000=$B22)*(INDEX('Salesforce Contracts 22nd June'!$O$2:$R$4000,,MATCH($AO$1,'Salesforce Contracts 22nd June'!$O$1:$R$1,0))<>""),0),0), MATCH(AO$1,'Salesforce Contracts 22nd June'!$O$1:$R$1,0)), "") ->  | AP22: =IFERROR( INDEX('Salesforce Contracts 22nd June'!$O$2:$R$4000, MATCH(1,INDEX(('Salesforce Contracts 22nd June'!$A$2:$A$4000=$B22)*(INDEX('Salesforce Contracts 22nd June'!$O$2:$R$4000,,MATCH($AP$1,'Salesforce Contracts 22nd June'!$O$1:$R$1,0))<>""),0),0), MATCH(AP$1,'Salesforce Contracts 22nd June'!$O$1:$R$1,0)), "") ->  | AQ22: =IFERROR(VLOOKUP(B22,Lookup!Q:R,2,FALSE),"n/a") -> 2016 | AR22: =VLOOKUP(B22,Lookup!L:M,2,FALSE) -> 0 | AS22: =VLOOKUP(B22,Lookup!L:N,3,FALSE) -> (blank) | AU22: yes
A23: =VLOOKUP(B:B,'Salesforce Contracts 22nd June'!A:V,8,FALSE) -> EC | B23: =Lookup!L22 -> Atlas Korea Co., Ltd | C23: =VLOOKUP(B:B,'Salesforce Contracts 22nd June'!A:V,4,FALSE) -> Asia Pacific | D23: =VLOOKUP(B:B,'Salesforce Contracts 22nd June'!A:V,14,FALSE) -> Korea, Republic of | E23: =VLOOKUP(B:B,'Salesforce Contracts 22nd June'!A:V,9,FALSE) -> Live Contract | F23: =VLOOKUP(B:B,'Salesforce Contracts 22nd June'!A:V,6,FALSE) -> 2020-01-01 | G23: =VLOOKUP(B:B,'Salesforce Contracts 22nd June'!A:V,7,FALSE) -> 2023-01-01 | H23: Active | I23: Active | J23: Active | K23: Active | L23: Active | M23: Active | N23: =SUMIFS('Enrolment Data 22nd June'!O:O,'Enrolment Data 22nd June'!F:F,B23,'Enrolment Data 22nd June'!P:P,$N$2,'Enrolment Data 22nd June'!N:N,"Yes") -> 8 | O23: =SUMIFS('Enrolment Data 22nd June'!O:O,'Enrolment Data 22nd June'!F:F,B23,'Enrolment Data 22nd June'!P:P,$O$2,'Enrolment Data 22nd June'!N:N,"Yes") -> 9 | P23: 17 | Q23: =SUMIFS('Enrolment Data 22nd June'!O:O,'Enrolment Data 22nd June'!F:F,B23,'Enrolment Data 22nd June'!P:P,$Q$2,'Enrolment Data 22nd June'!N:N,"Yes") -> 6 | R23: =SUMIFS('Enrolment Data 22nd June'!O:O,'Enrolment Data 22nd June'!F:F,B23,'Enrolment Data 22nd June'!P:P,$R$2,'Enrolment Data 22nd June'!N:N,"Yes") -> 7 | S23: 13 | T23: -4 | U23: -24% | V23: =SUMIFS('Enrolment Data 22nd June'!O:O,'Enrolment Data 22nd June'!F:F,B23,'Enrolment Data 22nd June'!P:P,$V$2,'Enrolment Data 22nd June'!N:N,"Yes") -> 5 | W23: -1 | X23: -17% | Y23: =SUMIFS('Enrolment Data 22nd June'!O:O,'Enrolment Data 22nd June'!F:F,B23,'Enrolment Data 22nd June'!P:P,$Y$2,'Enrolment Data 22nd June'!N:N,"Yes") -> 7 | Z23: 12 | AA23: =SUMIFS('Enrolment Data 22nd June'!O:O,'Enrolment Data 22nd June'!F:F,B23,'Enrolment Data 22nd June'!P:P,$AA$2,'Enrolment Data 22nd June'!N:N,"Yes") -> 3 | AB23: =SUMIFS('Enrolment Data 22nd June'!O:O,'Enrolment Data 22nd June'!F:F,B23,'Enrolment Data 22nd June'!P:P,$AB$2,'Enrolment Data 22nd June'!N:N,"Yes") -> 10 | AC23: 13 | AD23: 30 | AE23: 35 | AF23: 23 | AG23: 45 | AH23: 2020 | AI23: =IFERROR( INDEX('Salesforce Contracts 22nd June'!$S$2:$V$4000, MATCH(1,INDEX(('Salesforce Contracts 22nd June'!$A$2:$A$4000=$B23)*(INDEX('Salesforce Contracts 22nd June'!$S$2:$V$4000,,MATCH($AI$1,'Salesforce Contracts 22nd June'!$O$1:$R$1,0))<>""),0),0), MATCH(AI$1,'Salesforce Contracts 22nd June'!$O$1:$R$1,0)), "") -> EC | AJ23: =IFERROR( INDEX('Salesforce Contracts 22nd June'!$S$2:$V$4000, MATCH(1,INDEX(('Salesforce Contracts 22nd June'!$A$2:$A$4000=$B23)*(INDEX('Salesforce Contracts 22nd June'!$S$2:$V$4000,,MATCH($AJ$1,'Salesforce Contracts 22nd June'!$O$1:$R$1,0))<>""),0),0), MATCH(AJ$1,'Salesforce Contracts 22nd June'!$O$1:$R$1,0)), "") -> EC | AK23: =IFERROR( INDEX('Salesforce Contracts 22nd June'!$S$2:$V$4000, MATCH(1,INDEX(('Salesforce Contracts 22nd June'!$A$2:$A$4000=$B23)*(INDEX('Salesforce Contracts 22nd June'!$S$2:$V$4000,,MATCH($AK$1,'Salesforce Contracts 22nd June'!$O$1:$R$1,0))<>""),0),0), MATCH(AK$1,'Salesforce Contracts 22nd June'!$O$1:$R$1,0)), "") -> EC | AL23: =IFERROR( INDEX('Salesforce Contracts 22nd June'!$S$2:$V$4000, MATCH(1,INDEX(('Salesforce Contracts 22nd June'!$A$2:$A$4000=$B23)*(INDEX('Salesforce Contracts 22nd June'!$S$2:$V$4000,,MATCH($AL$1,'Salesforce Contracts 22nd June'!$O$1:$R$1,0))<>""),0),0), MATCH(AL$1,'Salesforce Contracts 22nd June'!$O$1:$R$1,0)), "") -> EC | AM23: =IFERROR( INDEX('Salesforce Contracts 22nd June'!$O$2:$R$4000, MATCH(1,INDEX(('Salesforce Contracts 22nd June'!$A$2:$A$4000=$B23)*(INDEX('Salesforce Contracts 22nd June'!$O$2:$R$4000,,MATCH($AM$1,'Salesforce Contracts 22nd June'!$O$1:$R$1,0))<>""),0),0), MATCH(AM$1,'Salesforce Contracts 22nd June'!$O$1:$R$1,0)), "") -> LIVE | AN23: =IFERROR( INDEX('Salesforce Contracts 22nd June'!$O$2:$R$4000, MATCH(1,INDEX(('Salesforce Contracts 22nd June'!$A$2:$A$4000=$B23)*(INDEX('Salesforce Contracts 22nd June'!$O$2:$R$4000,,MATCH($AN$1,'Salesforce Contracts 22nd June'!$O$1:$R$1,0))<>""),0),0), MATCH(AN$1,'Salesforce Contracts 22nd June'!$O$1:$R$1,0)), "") -> LIVE | AO23: =IFERROR( INDEX('Salesforce Contracts 22nd June'!$O$2:$R$4000, MATCH(1,INDEX(('Salesforce Contracts 22nd June'!$A$2:$A$4000=$B23)*(INDEX('Salesforce Contracts 22nd June'!$O$2:$R$4000,,MATCH($AO$1,'Salesforce Contracts 22nd June'!$O$1:$R$1,0))<>""),0),0), MATCH(AO$1,'Salesforce Contracts 22nd June'!$O$1:$R$1,0)), "") -> LIVE | AP23: =IFERROR( INDEX('Salesforce Contracts 22nd June'!$O$2:$R$4000, MATCH(1,INDEX(('Salesforce Contracts 22nd June'!$A$2:$A$4000=$B23)*(INDEX('Salesforce Contracts 22nd June'!$O$2:$R$4000,,MATCH($AP$1,'Salesforce Contracts 22nd June'!$O$1:$R$1,0))<>""),0),0), MATCH(AP$1,'Salesforce Contracts 22nd June'!$O$1:$R$1,0)), "") -> LIVE | AQ23: =IFERROR(VLOOKUP(B23,Lookup!Q:R,2,FALSE),"n/a") -> 2016 | AR23: =VLOOKUP(B23,Lookup!L:M,2,FALSE) -> 0 | AS23: =VLOOKUP(B23,Lookup!L:N,3,FALSE) -> (blank)
A24: =VLOOKUP(B:B,'Salesforce Contracts 22nd June'!A:V,8,FALSE) -> Agent | B24: =Lookup!L23 -> Avenue To Success Company Limited (ATS) | C24: =VLOOKUP(B:B,'Salesforce Contracts 22nd June'!A:V,4,FALSE) -> Asia Pacific | D24: =VLOOKUP(B:B,'Salesforce Contracts 22nd June'!A:V,14,FALSE) -> Vietnam | E24: =VLOOKUP(B:B,'Salesforce Contracts 22nd June'!A:V,9,FALSE) -> Sent to Partner | F24: =VLOOKUP(B:B,'Salesforce Contracts 22nd June'!A:V,6,FALSE) -> 2020-01-01 | G24: =VLOOKUP(B:B,'Salesforce Contracts 22nd June'!A:V,7,FALSE) -> 2022-01-01 | H24: Inactive | I24: Inactive | J24: Inactive | K24: Inactive | L24: Inactive | M24: Inactive | N24: =SUMIFS('Enrolment Data 22nd June'!O:O,'Enrolment Data 22nd June'!F:F,B24,'Enrolment Data 22nd June'!P:P,$N$2,'Enrolment Data 22nd June'!N:N,"Yes") -> 0 | O24: =SUMIFS('Enrolment Data 22nd June'!O:O,'Enrolment Data 22nd June'!F:F,B24,'Enrolment Data 22nd June'!P:P,$O$2,'Enrolment Data 22nd June'!N:N,"Yes") -> 0 | P24: 0 | Q24: =SUMIFS('Enrolment Data 22nd June'!O:O,'Enrolment Data 22nd June'!F:F,B24,'Enrolment Data 22nd June'!P:P,$Q$2,'Enrolment Data 22nd June'!N:N,"Yes") -> 0 | R24: =SUMIFS('Enrolment Data 22nd June'!O:O,'Enrolment Data 22nd June'!F:F,B24,'Enrolment Data 22nd June'!P:P,$R$2,'Enrolment Data 22nd June'!N:N,"Yes") -> 0 | S24: 0 | T24: 0 | U24: - | V24: =SUMIFS('Enrolment Data 22nd June'!O:O,'Enrolment Data 22nd June'!F:F,B24,'Enrolment Data 22nd June'!P:P,$V$2,'Enrolment Data 22nd June'!N:N,"Yes") -> 0 | W24: 0 | X24: - | Y24: =SUMIFS('Enrolment Data 22nd June'!O:O,'Enrolment Data 22nd June'!F:F,B24,'Enrolment Data 22nd June'!P:P,$Y$2,'Enrolment Data 22nd June'!N:N,"Yes") -> 0 | Z24: 0 | AA24: =SUMIFS('Enrolment Data 22nd June'!O:O,'Enrolment Data 22nd June'!F:F,B24,'Enrolment Data 22nd June'!P:P,$AA$2,'Enrolment Data 22nd June'!N:N,"Yes") -> 0 | AB24: =SUMIFS('Enrolment Data 22nd June'!O:O,'Enrolment Data 22nd June'!F:F,B24,'Enrolment Data 22nd June'!P:P,$AB$2,'Enrolment Data 22nd June'!N:N,"Yes") -> 0 | AC24: 0 | AD24: 0 | AE24: 0 | AF24: 0 | AG24: 0 | AH24: 2020 | AI24: =IFERROR( INDEX('Salesforce Contracts 22nd June'!$S$2:$V$4000, MATCH(1,INDEX(('Salesforce Contracts 22nd June'!$A$2:$A$4000=$B24)*(INDEX('Salesforce Contracts 22nd June'!$S$2:$V$4000,,MATCH($AI$1,'Salesforce Contracts 22nd June'!$O$1:$R$1,0))<>""),0),0), MATCH(AI$1,'Salesforce Contracts 22nd June'!$O$1:$R$1,0)), "") ->  | AJ24: =IFERROR( INDEX('Salesforce Contracts 22nd June'!$S$2:$V$4000, MATCH(1,INDEX(('Salesforce Contracts 22nd June'!$A$2:$A$4000=$B24)*(INDEX('Salesforce Contracts 22nd June'!$S$2:$V$4000,,MATCH($AJ$1,'Salesforce Contracts 22nd June'!$O$1:$R$1,0))<>""),0),0), MATCH(AJ$1,'Salesforce Contracts 22nd June'!$O$1:$R$1,0)), "") ->  | AK24: =IFERROR( INDEX('Salesforce Contracts 22nd June'!$S$2:$V$4000, MATCH(1,INDEX(('Salesforce Contracts 22nd June'!$A$2:$A$4000=$B24)*(INDEX('Salesforce Contracts 22nd June'!$S$2:$V$4000,,MATCH($AK$1,'Salesforce Contracts 22nd June'!$O$1:$R$1,0))<>""),0),0), MATCH(AK$1,'Salesforce Contracts 22nd June'!$O$1:$R$1,0)), "") ->  | AL24: =IFERROR( INDEX('Salesforce Contracts 22nd June'!$S$2:$V$4000, MATCH(1,INDEX(('Salesforce Contracts 22nd June'!$A$2:$A$4000=$B24)*(INDEX('Salesforce Contracts 22nd June'!$S$2:$V$4000,,MATCH($AL$1,'Salesforce Contracts 22nd June'!$O$1:$R$1,0))<>""),0),0), MATCH(AL$1,'Salesforce Contracts 22nd June'!$O$1:$R$1,0)), "") -> Agent | AM24: =IFERROR( INDEX('Salesforce Contracts 22nd June'!$O$2:$R$4000, MATCH(1,INDEX(('Salesforce Contracts 22nd June'!$A$2:$A$4000=$B24)*(INDEX('Salesforce Contracts 22nd June'!$O$2:$R$4000,,MATCH($AM$1,'Salesforce Contracts 22nd June'!$O$1:$R$1,0))<>""),0),0), MATCH(AM$1,'Salesforce Contracts 22nd June'!$O$1:$R$1,0)), "") ->  | AN24: =IFERROR( INDEX('Salesforce Contracts 22nd June'!$O$2:$R$4000, MATCH(1,INDEX(('Salesforce Contracts 22nd June'!$A$2:$A$4000=$B24)*(INDEX('Salesforce Contracts 22nd June'!$O$2:$R$4000,,MATCH($AN$1,'Salesforce Contracts 22nd June'!$O$1:$R$1,0))<>""),0),0), MATCH(AN$1,'Salesforce Contracts 22nd June'!$O$1:$R$1,0)), "") ->  | AO24: =IFERROR( INDEX('Salesforce Contracts 22nd June'!$O$2:$R$4000, MATCH(1,INDEX(('Salesforce Contracts 22nd June'!$A$2:$A$4000=$B24)*(INDEX('Salesforce Contracts 22nd June'!$O$2:$R$4000,,MATCH($AO$1,'Salesforce Contracts 22nd June'!$O$1:$R$1,0))<>""),0),0), MATCH(AO$1,'Salesforce Contracts 22nd June'!$O$1:$R$1,0)), "") ->  | AP24: =IFERROR( INDEX('Salesforce Contracts 22nd June'!$O$2:$R$4000, MATCH(1,INDEX(('Salesforce Contracts 22nd June'!$A$2:$A$4000=$B24)*(INDEX('Salesforce Contracts 22nd June'!$O$2:$R$4000,,MATCH($AP$1,'Salesforce Contracts 22nd June'!$O$1:$R$1,0))<>""),0),0), MATCH(AP$1,'Salesforce Contracts 22nd June'!$O$1:$R$1,0)), "") -> LIVE | AQ24: =IFERROR(VLOOKUP(B24,Lookup!Q:R,2,FALSE),"n/a") -> 2020 | AR24: =VLOOKUP(B24,Lookup!L:M,2,FALSE) -> 0 | AS24: =VLOOKUP(B24,Lookup!L:N,3,FALSE) -> (blank)
A25: =VLOOKUP(B:B,'Salesforce Contracts 22nd June'!A:V,8,FALSE) -> EC | B25: =Lookup!L24 -> Aya Travel LLC | C25: =VLOOKUP(B:B,'Salesforce Contracts 22nd June'!A:V,4,FALSE) -> Gulf Region | D25: =VLOOKUP(B:B,'Salesforce Contracts 22nd June'!A:V,14,FALSE) -> United Arab Emirates | E25: =VLOOKUP(B:B,'Salesforce Contracts 22nd June'!A:V,9,FALSE) -> On Hold | F25: =VLOOKUP(B:B,'Salesforce Contracts 22nd June'!A:V,6,FALSE) -> 2016-01-01 | G25: =VLOOKUP(B:B,'Salesforce Contracts 22nd June'!A:V,7,FALSE) -> 2018-01-01 | H25: Inactive | I25: Inactive | J25: Inactive | K25: Inactive | L25: Inactive | M25: Inactive | N25: =SUMIFS('Enrolment Data 22nd June'!O:O,'Enrolment Data 22nd June'!F:F,B25,'Enrolment Data 22nd June'!P:P,$N$2,'Enrolment Data 22nd June'!N:N,"Yes") -> 0 | O25: =SUMIFS('Enrolment Data 22nd June'!O:O,'Enrolment Data 22nd June'!F:F,B25,'Enrolment Data 22nd June'!P:P,$O$2,'Enrolment Data 22nd June'!N:N,"Yes") -> 0 | P25: 0 | Q25: =SUMIFS('Enrolment Data 22nd June'!O:O,'Enrolment Data 22nd June'!F:F,B25,'Enrolment Data 22nd June'!P:P,$Q$2,'Enrolment Data 22nd June'!N:N,"Yes") -> 0 | R25: =SUMIFS('Enrolment Data 22nd June'!O:O,'Enrolment Data 22nd June'!F:F,B25,'Enrolment Data 22nd June'!P:P,$R$2,'Enrolment Data 22nd June'!N:N,"Yes") -> 0 | S25: 0 | T25: 0 | U25: - | V25: =SUMIFS('Enrolment Data 22nd June'!O:O,'Enrolment Data 22nd June'!F:F,B25,'Enrolment Data 22nd June'!P:P,$V$2,'Enrolment Data 22nd June'!N:N,"Yes") -> 0 | W25: 0 | X25: - | Y25: =SUMIFS('Enrolment Data 22nd June'!O:O,'Enrolment Data 22nd June'!F:F,B25,'Enrolment Data 22nd June'!P:P,$Y$2,'Enrolment Data 22nd June'!N:N,"Yes") -> 0 | Z25: 0 | AA25: =SUMIFS('Enrolment Data 22nd June'!O:O,'Enrolment Data 22nd June'!F:F,B25,'Enrolment Data 22nd June'!P:P,$AA$2,'Enrolment Data 22nd June'!N:N,"Yes") -> 0 | AB25: =SUMIFS('Enrolment Data 22nd June'!O:O,'Enrolment Data 22nd June'!F:F,B25,'Enrolment Data 22nd June'!P:P,$AB$2,'Enrolment Data 22nd June'!N:N,"Yes") -> 0 | AC25: 0 | AD25: 0 | AE25: 0 | AF25: 0 | AG25: 0 | AH25: 2016 | AI25: =IFERROR( INDEX('Salesforce Contracts 22nd June'!$S$2:$V$4000, MATCH(1,INDEX(('Salesforce Contracts 22nd June'!$A$2:$A$4000=$B25)*(INDEX('Salesforce Contracts 22nd June'!$S$2:$V$4000,,MATCH($AI$1,'Salesforce Contracts 22nd June'!$O$1:$R$1,0))<>""),0),0), MATCH(AI$1,'Salesforce Contracts 22nd June'!$O$1:$R$1,0)), "") -> EC | AJ25: =IFERROR( INDEX('Salesforce Contracts 22nd June'!$S$2:$V$4000, MATCH(1,INDEX(('Salesforce Contracts 22nd June'!$A$2:$A$4000=$B25)*(INDEX('Salesforce Contracts 22nd June'!$S$2:$V$4000,,MATCH($AJ$1,'Salesforce Contracts 22nd June'!$O$1:$R$1,0))<>""),0),0), MATCH(AJ$1,'Salesforce Contracts 22nd June'!$O$1:$R$1,0)), "") ->  | AK25: =IFERROR( INDEX('Salesforce Contracts 22nd June'!$S$2:$V$4000, MATCH(1,INDEX(('Salesforce Contracts 22nd June'!$A$2:$A$4000=$B25)*(INDEX('Salesforce Contracts 22nd June'!$S$2:$V$4000,,MATCH($AK$1,'Salesforce Contracts 22nd June'!$O$1:$R$1,0))<>""),0),0), MATCH(AK$1,'Salesforce Contracts 22nd June'!$O$1:$R$1,0)), "") ->  | AL25: =IFERROR( INDEX('Salesforce Contracts 22nd June'!$S$2:$V$4000, MATCH(1,INDEX(('Salesforce Contracts 22nd June'!$A$2:$A$4000=$B25)*(INDEX('Salesforce Contracts 22nd June'!$S$2:$V$4000,,MATCH($AL$1,'Salesforce Contracts 22nd June'!$O$1:$R$1,0))<>""),0),0), MATCH(AL$1,'Salesforce Contracts 22nd June'!$O$1:$R$1,0)), "") ->  | AM25: =IFERROR( INDEX('Salesforce Contracts 22nd June'!$O$2:$R$4000, MATCH(1,INDEX(('Salesforce Contracts 22nd June'!$A$2:$A$4000=$B25)*(INDEX('Salesforce Contracts 22nd June'!$O$2:$R$4000,,MATCH($AM$1,'Salesforce Contracts 22nd June'!$O$1:$R$1,0))<>""),0),0), MATCH(AM$1,'Salesforce Contracts 22nd June'!$O$1:$R$1,0)), "") -> LIVE | AN25: =IFERROR( INDEX('Salesforce Contracts 22nd June'!$O$2:$R$4000, MATCH(1,INDEX(('Salesforce Contracts 22nd June'!$A$2:$A$4000=$B25)*(INDEX('Salesforce Contracts 22nd June'!$O$2:$R$4000,,MATCH($AN$1,'Salesforce Contracts 22nd June'!$O$1:$R$1,0))<>""),0),0), MATCH(AN$1,'Salesforce Contracts 22nd June'!$O$1:$R$1,0)), "") ->  | AO25: =IFERROR( INDEX('Salesforce Contracts 22nd June'!$O$2:$R$4000, MATCH(1,INDEX(('Salesforce Contracts 22nd June'!$A$2:$A$4000=$B25)*(INDEX('Salesforce Contracts 22nd June'!$O$2:$R$4000,,MATCH($AO$1,'Salesforce Contracts 22nd June'!$O$1:$R$1,0))<>""),0),0), MATCH(AO$1,'Salesforce Contracts 22nd June'!$O$1:$R$1,0)), "") ->  | AP25: =IFERROR( INDEX('Salesforce Contracts 22nd June'!$O$2:$R$4000, MATCH(1,INDEX(('Salesforce Contracts 22nd June'!$A$2:$A$4000=$B25)*(INDEX('Salesforce Contracts 22nd June'!$O$2:$R$4000,,MATCH($AP$1,'Salesforce Contracts 22nd June'!$O$1:$R$1,0))<>""),0),0), MATCH(AP$1,'Salesforce Contracts 22nd June'!$O$1:$R$1,0)), "") ->  | AQ25: =IFERROR(VLOOKUP(B25,Lookup!Q:R,2,FALSE),"n/a") -> 2016 | AR25: =VLOOKUP(B25,Lookup!L:M,2,FALSE) -> 0 | AS25: =VLOOKUP(B25,Lookup!L:N,3,FALSE) -> (blank)
A26: =VLOOKUP(B:B,'Salesforce Contracts 22nd June'!A:V,8,FALSE) -> EC | B26: =Lookup!L25 -> Azeri Student Center | C26: =VLOOKUP(B:B,'Salesforce Contracts 22nd June'!A:V,4,FALSE) -> Central Europe and Caucasus | D26: =VLOOKUP(B:B,'Salesforce Contracts 22nd June'!A:V,14,FALSE) -> Azerbaijan; Georgia | E26: =VLOOKUP(B:B,'Salesforce Contracts 22nd June'!A:V,9,FALSE) -> Expired | F26: =VLOOKUP(B:B,'Salesforce Contracts 22nd June'!A:V,6,FALSE) -> 2016-01-01 | G26: =VLOOKUP(B:B,'Salesforce Contracts 22nd June'!A:V,7,FALSE) -> 2020-01-01 | H26: Active | I26: Active | J26: Active | K26: Active | L26: Active | M26: Active | N26: =SUMIFS('Enrolment Data 22nd June'!O:O,'Enrolment Data 22nd June'!F:F,B26,'Enrolment Data 22nd June'!P:P,$N$2,'Enrolment Data 22nd June'!N:N,"Yes") -> 0 | O26: =SUMIFS('Enrolment Data 22nd June'!O:O,'Enrolment Data 22nd June'!F:F,B26,'Enrolment Data 22nd June'!P:P,$O$2,'Enrolment Data 22nd June'!N:N,"Yes") -> 11 | P26: 11 | Q26: =SUMIFS('Enrolment Data 22nd June'!O:O,'Enrolment Data 22nd June'!F:F,B26,'Enrolment Data 22nd June'!P:P,$Q$2,'Enrolment Data 22nd June'!N:N,"Yes") -> 1 | R26: =SUMIFS('Enrolment Data 22nd June'!O:O,'Enrolment Data 22nd June'!F:F,B26,'Enrolment Data 22nd June'!P:P,$R$2,'Enrolment Data 22nd June'!N:N,"Yes") -> 25 | S26: 26 | T26: 15 | U26: 136% | V26: =SUMIFS('Enrolment Data 22nd June'!O:O,'Enrolment Data 22nd June'!F:F,B26,'Enrolment Data 22nd June'!P:P,$V$2,'Enrolment Data 22nd June'!N:N,"Yes") -> 1 | W26: 0 | X26: 0% | Y26: =SUMIFS('Enrolment Data 22nd June'!O:O,'Enrolment Data 22nd June'!F:F,B26,'Enrolment Data 22nd June'!P:P,$Y$2,'Enrolment Data 22nd June'!N:N,"Yes") -> 9 | Z26: 10 | AA26: =SUMIFS('Enrolment Data 22nd June'!O:O,'Enrolment Data 22nd June'!F:F,B26,'Enrolment Data 22nd June'!P:P,$AA$2,'Enrolment Data 22nd June'!N:N,"Yes") -> 3 | AB26: =SUMIFS('Enrolment Data 22nd June'!O:O,'Enrolment Data 22nd June'!F:F,B26,'Enrolment Data 22nd June'!P:P,$AB$2,'Enrolment Data 22nd June'!N:N,"Yes") -> 3 | AC26: 6 | AD26: 37 | AE26: 38 | AF26: 45 | AG26: 50 | AH26: 2016 | AI26: =IFERROR( INDEX('Salesforce Contracts 22nd June'!$S$2:$V$4000, MATCH(1,INDEX(('Salesforce Contracts 22nd June'!$A$2:$A$4000=$B26)*(INDEX('Salesforce Contracts 22nd June'!$S$2:$V$4000,,MATCH($AI$1,'Salesforce Contracts 22nd June'!$O$1:$R$1,0))<>""),0),0), MATCH(AI$1,'Salesforce Contracts 22nd June'!$O$1:$R$1,0)), "") -> EC | AJ26: =IFERROR( INDEX('Salesforce Contracts 22nd June'!$S$2:$V$4000, MATCH(1,INDEX(('Salesforce Contracts 22nd June'!$A$2:$A$4000=$B26)*(INDEX('Salesforce Contracts 22nd June'!$S$2:$V$4000,,MATCH($AJ$1,'Salesforce Contracts 22nd June'!$O$1:$R$1,0))<>""),0),0), MATCH(AJ$1,'Salesforce Contracts 22nd June'!$O$1:$R$1,0)), "") -> EC | AK26: =IFERROR( INDEX('Salesforce Contracts 22nd June'!$S$2:$V$4000, MATCH(1,INDEX(('Salesforce Contracts 22nd June'!$A$2:$A$4000=$B26)*(INDEX('Salesforce Contracts 22nd June'!$S$2:$V$4000,,MATCH($AK$1,'Salesforce Contracts 22nd June'!$O$1:$R$1,0))<>""),0),0), MATCH(AK$1,'Salesforce Contracts 22nd June'!$O$1:$R$1,0)), "") -> EC | AL26: =IFERROR( INDEX('Salesforce Contracts 22nd June'!$S$2:$V$4000, MATCH(1,INDEX(('Salesforce Contracts 22nd June'!$A$2:$A$4000=$B26)*(INDEX('Salesforce Contracts 22nd June'!$S$2:$V$4000,,MATCH($AL$1,'Salesforce Contracts 22nd June'!$O$1:$R$1,0))<>""),0),0), MATCH(AL$1,'Salesforce Contracts 22nd June'!$O$1:$R$1,0)), "") -> EC | AM26: =IFERROR( INDEX('Salesforce Contracts 22nd June'!$O$2:$R$4000, MATCH(1,INDEX(('Salesforce Contracts 22nd June'!$A$2:$A$4000=$B26)*(INDEX('Salesforce Contracts 22nd June'!$O$2:$R$4000,,MATCH($AM$1,'Salesforce Contracts 22nd June'!$O$1:$R$1,0))<>""),0),0), MATCH(AM$1,'Salesforce Contracts 22nd June'!$O$1:$R$1,0)), "") -> LIVE | AN26: =IFERROR( INDEX('Salesforce Contracts 22nd June'!$O$2:$R$4000, MATCH(1,INDEX(('Salesforce Contracts 22nd June'!$A$2:$A$4000=$B26)*(INDEX('Salesforce Contracts 22nd June'!$O$2:$R$4000,,MATCH($AN$1,'Salesforce Contracts 22nd June'!$O$1:$R$1,0))<>""),0),0), MATCH(AN$1,'Salesforce Contracts 22nd June'!$O$1:$R$1,0)), "") -> LIVE | AO26: =IFERROR( INDEX('Salesforce Contracts 22nd June'!$O$2:$R$4000, MATCH(1,INDEX(('Salesforce Contracts 22nd June'!$A$2:$A$4000=$B26)*(INDEX('Salesforce Contracts 22nd June'!$O$2:$R$4000,,MATCH($AO$1,'Salesforce Contracts 22nd June'!$O$1:$R$1,0))<>""),0),0), MATCH(AO$1,'Salesforce Contracts 22nd June'!$O$1:$R$1,0)), "") -> LIVE | AP26: =IFERROR( INDEX('Salesforce Contracts 22nd June'!$O$2:$R$4000, MATCH(1,INDEX(('Salesforce Contracts 22nd June'!$A$2:$A$4000=$B26)*(INDEX('Salesforce Contracts 22nd June'!$O$2:$R$4000,,MATCH($AP$1,'Salesforce Contracts 22nd June'!$O$1:$R$1,0))<>""),0),0), MATCH(AP$1,'Salesforce Contracts 22nd June'!$O$1:$R$1,0)), "") ->  | AQ26: =IFERROR(VLOOKUP(B26,Lookup!Q:R,2,FALSE),"n/a") -> 2015 | AR26: =VLOOKUP(B26,Lookup!L:M,2,FALSE) -> 0 | AS26: =VLOOKUP(B26,Lookup!L:N,3,FALSE) -> (blank) | AW26: yes
A27: =VLOOKUP(B:B,'Salesforce Contracts 22nd June'!A:V,8,FALSE) -> Agent | B27: =Lookup!L26 -> Bach Thinh Services and Trading JSC (B and T Edu) | C27: =VLOOKUP(B:B,'Salesforce Contracts 22nd June'!A:V,4,FALSE) -> Asia Pacific | D27: =VLOOKUP(B:B,'Salesforce Contracts 22nd June'!A:V,14,FALSE) -> Vietnam | E27: =VLOOKUP(B:B,'Salesforce Contracts 22nd June'!A:V,9,FALSE) -> Sent to Partner | F27: =VLOOKUP(B:B,'Salesforce Contracts 22nd June'!A:V,6,FALSE) -> 2020-04-01 | G27: =VLOOKUP(B:B,'Salesforce Contracts 22nd June'!A:V,7,FALSE) -> 2022-04-01 | H27: Inactive | I27: Inactive | J27: Inactive | K27: Inactive | L27: Inactive | M27: Inactive | N27: =SUMIFS('Enrolment Data 22nd June'!O:O,'Enrolment Data 22nd June'!F:F,B27,'Enrolment Data 22nd June'!P:P,$N$2,'Enrolment Data 22nd June'!N:N,"Yes") -> 0 | O27: =SUMIFS('Enrolment Data 22nd June'!O:O,'Enrolment Data 22nd June'!F:F,B27,'Enrolment Data 22nd June'!P:P,$O$2,'Enrolment Data 22nd June'!N:N,"Yes") -> 0 | P27: 0 | Q27: =SUMIFS('Enrolment Data 22nd June'!O:O,'Enrolment Data 22nd June'!F:F,B27,'Enrolment Data 22nd June'!P:P,$Q$2,'Enrolment Data 22nd June'!N:N,"Yes") -> 0 | R27: =SUMIFS('Enrolment Data 22nd June'!O:O,'Enrolment Data 22nd June'!F:F,B27,'Enrolment Data 22nd June'!P:P,$R$2,'Enrolment Data 22nd June'!N:N,"Yes") -> 0 | S27: 0 | T27: 0 | U27: - | V27: =SUMIFS('Enrolment Data 22nd June'!O:O,'Enrolment Data 22nd June'!F:F,B27,'Enrolment Data 22nd June'!P:P,$V$2,'Enrolment Data 22nd June'!N:N,"Yes") -> 0 | W27: 0 | X27: - | Y27: =SUMIFS('Enrolment Data 22nd June'!O:O,'Enrolment Data 22nd June'!F:F,B27,'Enrolment Data 22nd June'!P:P,$Y$2,'Enrolment Data 22nd June'!N:N,"Yes") -> 0 | Z27: 0 | AA27: =SUMIFS('Enrolment Data 22nd June'!O:O,'Enrolment Data 22nd June'!F:F,B27,'Enrolment Data 22nd June'!P:P,$AA$2,'Enrolment Data 22nd June'!N:N,"Yes") -> 0 | AB27: =SUMIFS('Enrolment Data 22nd June'!O:O,'Enrolment Data 22nd June'!F:F,B27,'Enrolment Data 22nd June'!P:P,$AB$2,'Enrolment Data 22nd June'!N:N,"Yes") -> 0 | AC27: 0 | AD27: 0 | AE27: 0 | AF27: 0 | AG27: 0 | AH27: 2020 | AI27: =IFERROR( INDEX('Salesforce Contracts 22nd June'!$S$2:$V$4000, MATCH(1,INDEX(('Salesforce Contracts 22nd June'!$A$2:$A$4000=$B27)*(INDEX('Salesforce Contracts 22nd June'!$S$2:$V$4000,,MATCH($AI$1,'Salesforce Contracts 22nd June'!$O$1:$R$1,0))<>""),0),0), MATCH(AI$1,'Salesforce Contracts 22nd June'!$O$1:$R$1,0)), "") ->  | AJ27: =IFERROR( INDEX('Salesforce Contracts 22nd June'!$S$2:$V$4000, MATCH(1,INDEX(('Salesforce Contracts 22nd June'!$A$2:$A$4000=$B27)*(INDEX('Salesforce Contracts 22nd June'!$S$2:$V$4000,,MATCH($AJ$1,'Salesforce Contracts 22nd June'!$O$1:$R$1,0))<>""),0),0), MATCH(AJ$1,'Salesforce Contracts 22nd June'!$O$1:$R$1,0)), "") ->  | AK27: =IFERROR( INDEX('Salesforce Contracts 22nd June'!$S$2:$V$4000, MATCH(1,INDEX(('Salesforce Contracts 22nd June'!$A$2:$A$4000=$B27)*(INDEX('Salesforce Contracts 22nd June'!$S$2:$V$4000,,MATCH($AK$1,'Salesforce Contracts 22nd June'!$O$1:$R$1,0))<>""),0),0), MATCH(AK$1,'Salesforce Contracts 22nd June'!$O$1:$R$1,0)), "") ->  | AL27: =IFERROR( INDEX('Salesforce Contracts 22nd June'!$S$2:$V$4000, MATCH(1,INDEX(('Salesforce Contracts 22nd June'!$A$2:$A$4000=$B27)*(INDEX('Salesforce Contracts 22nd June'!$S$2:$V$4000,,MATCH($AL$1,'Salesforce Contracts 22nd June'!$O$1:$R$1,0))<>""),0),0), MATCH(AL$1,'Salesforce Contracts 22nd June'!$O$1:$R$1,0)), "") -> Agent | AM27: =IFERROR( INDEX('Salesforce Contracts 22nd June'!$O$2:$R$4000, MATCH(1,INDEX(('Salesforce Contracts 22nd June'!$A$2:$A$4000=$B27)*(INDEX('Salesforce Contracts 22nd June'!$O$2:$R$4000,,MATCH($AM$1,'Salesforce Contracts 22nd June'!$O$1:$R$1,0))<>""),0),0), MATCH(AM$1,'Salesforce Contracts 22nd June'!$O$1:$R$1,0)), "") ->  | AN27: =IFERROR( INDEX('Salesforce Contracts 22nd June'!$O$2:$R$4000, MATCH(1,INDEX(('Salesforce Contracts 22nd June'!$A$2:$A$4000=$B27)*(INDEX('Salesforce Contracts 22nd June'!$O$2:$R$4000,,MATCH($AN$1,'Salesforce Contracts 22nd June'!$O$1:$R$1,0))<>""),0),0), MATCH(AN$1,'Salesforce Contracts 22nd June'!$O$1:$R$1,0)), "") ->  | AO27: =IFERROR( INDEX('Salesforce Contracts 22nd June'!$O$2:$R$4000, MATCH(1,INDEX(('Salesforce Contracts 22nd June'!$A$2:$A$4000=$B27)*(INDEX('Salesforce Contracts 22nd June'!$O$2:$R$4000,,MATCH($AO$1,'Salesforce Contracts 22nd June'!$O$1:$R$1,0))<>""),0),0), MATCH(AO$1,'Salesforce Contracts 22nd June'!$O$1:$R$1,0)), "") ->  | AP27: =IFERROR( INDEX('Salesforce Contracts 22nd June'!$O$2:$R$4000, MATCH(1,INDEX(('Salesforce Contracts 22nd June'!$A$2:$A$4000=$B27)*(INDEX('Salesforce Contracts 22nd June'!$O$2:$R$4000,,MATCH($AP$1,'Salesforce Contracts 22nd June'!$O$1:$R$1,0))<>""),0),0), MATCH(AP$1,'Salesforce Contracts 22nd June'!$O$1:$R$1,0)), "") -> LIVE | AQ27: =IFERROR(VLOOKUP(B27,Lookup!Q:R,2,FALSE),"n/a") -> 2020 | AR27: =VLOOKUP(B27,Lookup!L:M,2,FALSE) -> 0 | AS27: =VLOOKUP(B27,Lookup!L:N,3,FALSE) -> (blank)
A28: =VLOOKUP(B:B,'Salesforce Contracts 22nd June'!A:V,8,FALSE) -> Agent | B28: =Lookup!L27 -> Baltic Council for International Education | C28: =VLOOKUP(B:B,'Salesforce Contracts 22nd June'!A:V,4,FALSE) -> Central Europe and Caucasus | D28: =VLOOKUP(B:B,'Salesforce Contracts 22nd June'!A:V,14,FALSE) -> Estonia; Latvia | E28: =VLOOKUP(B:B,'Salesforce Contracts 22nd June'!A:V,9,FALSE) -> Live Contract | F28: =VLOOKUP(B:B,'Salesforce Contracts 22nd June'!A:V,6,FALSE) -> 2020-05-01 | G28: =VLOOKUP(B:B,'Salesforce Contracts 22nd June'!A:V,7,FALSE) -> 2022-05-01 | H28: Inactive | I28: Inactive | J28: Inactive | K28: Inactive | L28: Inactive | M28: Inactive | N28: =SUMIFS('Enrolment Data 22nd June'!O:O,'Enrolment Data 22nd June'!F:F,B28,'Enrolment Data 22nd June'!P:P,$N$2,'Enrolment Data 22nd June'!N:N,"Yes") -> 0 | O28: =SUMIFS('Enrolment Data 22nd June'!O:O,'Enrolment Data 22nd June'!F:F,B28,'Enrolment Data 22nd June'!P:P,$O$2,'Enrolment Data 22nd June'!N:N,"Yes") -> 0 | P28: 0 | Q28: =SUMIFS('Enrolment Data 22nd June'!O:O,'Enrolment Data 22nd June'!F:F,B28,'Enrolment Data 22nd June'!P:P,$Q$2,'Enrolment Data 22nd June'!N:N,"Yes") -> 0 | R28: =SUMIFS('Enrolment Data 22nd June'!O:O,'Enrolment Data 22nd June'!F:F,B28,'Enrolment Data 22nd June'!P:P,$R$2,'Enrolment Data 22nd June'!N:N,"Yes") -> 0 | S28: 0 | T28: 0 | U28: - | V28: =SUMIFS('Enrolment Data 22nd June'!O:O,'Enrolment Data 22nd June'!F:F,B28,'Enrolment Data 22nd June'!P:P,$V$2,'Enrolment Data 22nd June'!N:N,"Yes") -> 0 | W28: 0 | X28: - | Y28: =SUMIFS('Enrolment Data 22nd June'!O:O,'Enrolment Data 22nd June'!F:F,B28,'Enrolment Data 22nd June'!P:P,$Y$2,'Enrolment Data 22nd June'!N:N,"Yes") -> 0 | Z28: 0 | AA28: =SUMIFS('Enrolment Data 22nd June'!O:O,'Enrolment Data 22nd June'!F:F,B28,'Enrolment Data 22nd June'!P:P,$AA$2,'Enrolment Data 22nd June'!N:N,"Yes") -> 0 | AB28: =SUMIFS('Enrolment Data 22nd June'!O:O,'Enrolment Data 22nd June'!F:F,B28,'Enrolment Data 22nd June'!P:P,$AB$2,'Enrolment Data 22nd June'!N:N,"Yes") -> 0 | AC28: 0 | AD28: 0 | AE28: 0 | AF28: 0 | AG28: 0 | AH28: 2020 | AI28: =IFERROR( INDEX('Salesforce Contracts 22nd June'!$S$2:$V$4000, MATCH(1,INDEX(('Salesforce Contracts 22nd June'!$A$2:$A$4000=$B28)*(INDEX('Salesforce Contracts 22nd June'!$S$2:$V$4000,,MATCH($AI$1,'Salesforce Contracts 22nd June'!$O$1:$R$1,0))<>""),0),0), MATCH(AI$1,'Salesforce Contracts 22nd June'!$O$1:$R$1,0)), "") ->  | AJ28: =IFERROR( INDEX('Salesforce Contracts 22nd June'!$S$2:$V$4000, MATCH(1,INDEX(('Salesforce Contracts 22nd June'!$A$2:$A$4000=$B28)*(INDEX('Salesforce Contracts 22nd June'!$S$2:$V$4000,,MATCH($AJ$1,'Salesforce Contracts 22nd June'!$O$1:$R$1,0))<>""),0),0), MATCH(AJ$1,'Salesforce Contracts 22nd June'!$O$1:$R$1,0)), "") ->  | AK28: =IFERROR( INDEX('Salesforce Contracts 22nd June'!$S$2:$V$4000, MATCH(1,INDEX(('Salesforce Contracts 22nd June'!$A$2:$A$4000=$B28)*(INDEX('Salesforce Contracts 22nd June'!$S$2:$V$4000,,MATCH($AK$1,'Salesforce Contracts 22nd June'!$O$1:$R$1,0))<>""),0),0), MATCH(AK$1,'Salesforce Contracts 22nd June'!$O$1:$R$1,0)), "") ->  | AL28: =IFERROR( INDEX('Salesforce Contracts 22nd June'!$S$2:$V$4000, MATCH(1,INDEX(('Salesforce Contracts 22nd June'!$A$2:$A$4000=$B28)*(INDEX('Salesforce Contracts 22nd June'!$S$2:$V$4000,,MATCH($AL$1,'Salesforce Contracts 22nd June'!$O$1:$R$1,0))<>""),0),0), MATCH(AL$1,'Salesforce Contracts 22nd June'!$O$1:$R$1,0)), "") -> Agent | AM28: =IFERROR( INDEX('Salesforce Contracts 22nd June'!$O$2:$R$4000, MATCH(1,INDEX(('Salesforce Contracts 22nd June'!$A$2:$A$4000=$B28)*(INDEX('Salesforce Contracts 22nd June'!$O$2:$R$4000,,MATCH($AM$1,'Salesforce Contracts 22nd June'!$O$1:$R$1,0))<>""),0),0), MATCH(AM$1,'Salesforce Contracts 22nd June'!$O$1:$R$1,0)), "") ->  | AN28: =IFERROR( INDEX('Salesforce Contracts 22nd June'!$O$2:$R$4000, MATCH(1,INDEX(('Salesforce Contracts 22nd June'!$A$2:$A$4000=$B28)*(INDEX('Salesforce Contracts 22nd June'!$O$2:$R$4000,,MATCH($AN$1,'Salesforce Contracts 22nd June'!$O$1:$R$1,0))<>""),0),0), MATCH(AN$1,'Salesforce Contracts 22nd June'!$O$1:$R$1,0)), "") ->  | AO28: =IFERROR( INDEX('Salesforce Contracts 22nd June'!$O$2:$R$4000, MATCH(1,INDEX(('Salesforce Contracts 22nd June'!$A$2:$A$4000=$B28)*(INDEX('Salesforce Contracts 22nd June'!$O$2:$R$4000,,MATCH($AO$1,'Salesforce Contracts 22nd June'!$O$1:$R$1,0))<>""),0),0), MATCH(AO$1,'Salesforce Contracts 22nd June'!$O$1:$R$1,0)), "") ->  | AP28: =IFERROR( INDEX('Salesforce Contracts 22nd June'!$O$2:$R$4000, MATCH(1,INDEX(('Salesforce Contracts 22nd June'!$A$2:$A$4000=$B28)*(INDEX('Salesforce Contracts 22nd June'!$O$2:$R$4000,,MATCH($AP$1,'Salesforce Contracts 22nd June'!$O$1:$R$1,0))<>""),0),0), MATCH(AP$1,'Salesforce Contracts 22nd June'!$O$1:$R$1,0)), "") -> LIVE | AQ28: =IFERROR(VLOOKUP(B28,Lookup!Q:R,2,FALSE),"n/a") -> 2020 | AR28: =VLOOKUP(B28,Lookup!L:M,2,FALSE) -> 0 | AS28: =VLOOKUP(B28,Lookup!L:N,3,FALSE) -> (blank)
A29: =VLOOKUP(B:B,'Salesforce Contracts 22nd June'!A:V,8,FALSE) -> Agent | B29: =Lookup!L28 -> Barbara Glasmacher Internationale Schulberatung GmbH | C29: =VLOOKUP(B:B,'Salesforce Contracts 22nd June'!A:V,4,FALSE) -> GAN Region | D29: =VLOOKUP(B:B,'Salesforce Contracts 22nd June'!A:V,14,FALSE) -> Austria; Germany Netherlands | E29: =VLOOKUP(B:B,'Salesforce Contracts 22nd June'!A:V,9,FALSE) -> Sent to Partner | F29: =VLOOKUP(B:B,'Salesforce Contracts 22nd June'!A:V,6,FALSE) -> 2019-09-01 | G29: =VLOOKUP(B:B,'Salesforce Contracts 22nd June'!A:V,7,FALSE) -> 2021-09-01 | H29: Inactive | I29: Inactive | J29: Inactive | K29: Inactive | L29: Inactive | M29: Inactive | N29: =SUMIFS('Enrolment Data 22nd June'!O:O,'Enrolment Data 22nd June'!F:F,B29,'Enrolment Data 22nd June'!P:P,$N$2,'Enrolment Data 22nd June'!N:N,"Yes") -> 0 | O29: =SUMIFS('Enrolment Data 22nd June'!O:O,'Enrolment Data 22nd June'!F:F,B29,'Enrolment Data 22nd June'!P:P,$O$2,'Enrolment Data 22nd June'!N:N,"Yes") -> 0 | P29: 0 | Q29: =SUMIFS('Enrolment Data 22nd June'!O:O,'Enrolment Data 22nd June'!F:F,B29,'Enrolment Data 22nd June'!P:P,$Q$2,'Enrolment Data 22nd June'!N:N,"Yes") -> 0 | R29: =SUMIFS('Enrolment Data 22nd June'!O:O,'Enrolment Data 22nd June'!F:F,B29,'Enrolment Data 22nd June'!P:P,$R$2,'Enrolment Data 22nd June'!N:N,"Yes") -> 0 | S29: 0 | T29: 0 | U29: - | V29: =SUMIFS('Enrolment Data 22nd June'!O:O,'Enrolment Data 22nd June'!F:F,B29,'Enrolment Data 22nd June'!P:P,$V$2,'Enrolment Data 22nd June'!N:N,"Yes") -> 0 | W29: 0 | X29: - | Y29: =SUMIFS('Enrolment Data 22nd June'!O:O,'Enrolment Data 22nd June'!F:F,B29,'Enrolment Data 22nd June'!P:P,$Y$2,'Enrolment Data 22nd June'!N:N,"Yes") -> 0 | Z29: 0 | AA29: =SUMIFS('Enrolment Data 22nd June'!O:O,'Enrolment Data 22nd June'!F:F,B29,'Enrolment Data 22nd June'!P:P,$AA$2,'Enrolment Data 22nd June'!N:N,"Yes") -> 0 | AB29: =SUMIFS('Enrolment Data 22nd June'!O:O,'Enrolment Data 22nd June'!F:F,B29,'Enrolment Data 22nd June'!P:P,$AB$2,'Enrolment Data 22nd June'!N:N,"Yes") -> 0 | AC29: 0 | AD29: 0 | AE29: 0 | AF29: 0 | AG29: 0 | AH29: 2019 | AI29: =IFERROR( INDEX('Salesforce Contracts 22nd June'!$S$2:$V$4000, MATCH(1,INDEX(('Salesforce Contracts 22nd June'!$A$2:$A$4000=$B29)*(INDEX('Salesforce Contracts 22nd June'!$S$2:$V$4000,,MATCH($AI$1,'Salesforce Contracts 22nd June'!$O$1:$R$1,0))<>""),0),0), MATCH(AI$1,'Salesforce Contracts 22nd June'!$O$1:$R$1,0)), "") -> Referral | AJ29: =IFERROR( INDEX('Salesforce Contracts 22nd June'!$S$2:$V$4000, MATCH(1,INDEX(('Salesforce Contracts 22nd June'!$A$2:$A$4000=$B29)*(INDEX('Salesforce Contracts 22nd June'!$S$2:$V$4000,,MATCH($AJ$1,'Salesforce Contracts 22nd June'!$O$1:$R$1,0))<>""),0),0), MATCH(AJ$1,'Salesforce Contracts 22nd June'!$O$1:$R$1,0)), "") -> Referral | AK29: =IFERROR( INDEX('Salesforce Contracts 22nd June'!$S$2:$V$4000, MATCH(1,INDEX(('Salesforce Contracts 22nd June'!$A$2:$A$4000=$B29)*(INDEX('Salesforce Contracts 22nd June'!$S$2:$V$4000,,MATCH($AK$1,'Salesforce Contracts 22nd June'!$O$1:$R$1,0))<>""),0),0), MATCH(AK$1,'Salesforce Contracts 22nd June'!$O$1:$R$1,0)), "") -> Agent | AL29: =IFERROR( INDEX('Salesforce Contracts 22nd June'!$S$2:$V$4000, MATCH(1,INDEX(('Salesforce Contracts 22nd June'!$A$2:$A$4000=$B29)*(INDEX('Salesforce Contracts 22nd June'!$S$2:$V$4000,,MATCH($AL$1,'Salesforce Contracts 22nd June'!$O$1:$R$1,0))<>""),0),0), MATCH(AL$1,'Salesforce Contracts 22nd June'!$O$1:$R$1,0)), "") -> Agent | AM29: =IFERROR( INDEX('Salesforce Contracts 22nd June'!$O$2:$R$4000, MATCH(1,INDEX(('Salesforce Contracts 22nd June'!$A$2:$A$4000=$B29)*(INDEX('Salesforce Contracts 22nd June'!$O$2:$R$4000,,MATCH($AM$1,'Salesforce Contracts 22nd June'!$O$1:$R$1,0))<>""),0),0), MATCH(AM$1,'Salesforce Contracts 22nd June'!$O$1:$R$1,0)), "") -> LIVE | AN29: =IFERROR( INDEX('Salesforce Contracts 22nd June'!$O$2:$R$4000, MATCH(1,INDEX(('Salesforce Contracts 22nd June'!$A$2:$A$4000=$B29)*(INDEX('Salesforce Contracts 22nd June'!$O$2:$R$4000,,MATCH($AN$1,'Salesforce Contracts 22nd June'!$O$1:$R$1,0))<>""),0),0), MATCH(AN$1,'Salesforce Contracts 22nd June'!$O$1:$R$1,0)), "") -> LIVE | AO29: =IFERROR( INDEX('Salesforce Contracts 22nd June'!$O$2:$R$4000, MATCH(1,INDEX(('Salesforce Contracts 22nd June'!$A$2:$A$4000=$B29)*(INDEX('Salesforce Contracts 22nd June'!$O$2:$R$4000,,MATCH($AO$1,'Salesforce Contracts 22nd June'!$O$1:$R$1,0))<>""),0),0), MATCH(AO$1,'Salesforce Contracts 22nd June'!$O$1:$R$1,0)), "") -> LIVE | AP29: =IFERROR( INDEX('Salesforce Contracts 22nd June'!$O$2:$R$4000, MATCH(1,INDEX(('Salesforce Contracts 22nd June'!$A$2:$A$4000=$B29)*(INDEX('Salesforce Contracts 22nd June'!$O$2:$R$4000,,MATCH($AP$1,'Salesforce Contracts 22nd June'!$O$1:$R$1,0))<>""),0),0), MATCH(AP$1,'Salesforce Contracts 22nd June'!$O$1:$R$1,0)), "") -> LIVE | AQ29: =IFERROR(VLOOKUP(B29,Lookup!Q:R,2,FALSE),"n/a") -> 2017 | AR29: =VLOOKUP(B29,Lookup!L:M,2,FALSE) -> 0 | AS29: =VLOOKUP(B29,Lookup!L:N,3,FALSE) -> (blank)
A30: =VLOOKUP(B:B,'Salesforce Contracts 22nd June'!A:V,8,FALSE) -> Agent | B30: =Lookup!L29 -> Beijing Aoji Education Group | C30: =VLOOKUP(B:B,'Salesforce Contracts 22nd June'!A:V,4,FALSE) -> China | D30: =VLOOKUP(B:B,'Salesforce Contracts 22nd June'!A:V,14,FALSE) -> China | E30: =VLOOKUP(B:B,'Salesforce Contracts 22nd June'!A:V,9,FALSE) -> Sent to Partner | F30: =VLOOKUP(B:B,'Salesforce Contracts 22nd June'!A:V,6,FALSE) -> 2019-09-01 | G30: =VLOOKUP(B:B,'Salesforce Contracts 22nd June'!A:V,7,FALSE) -> 2021-09-01 | H30: Inactive | I30: Inactive | J30: Inactive | K30: Inactive | L30: Inactive | M30: Inactive | N30: =SUMIFS('Enrolment Data 22nd June'!O:O,'Enrolment Data 22nd June'!F:F,B30,'Enrolment Data 22nd June'!P:P,$N$2,'Enrolment Data 22nd June'!N:N,"Yes") -> 0 | O30: =SUMIFS('Enrolment Data 22nd June'!O:O,'Enrolment Data 22nd June'!F:F,B30,'Enrolment Data 22nd June'!P:P,$O$2,'Enrolment Data 22nd June'!N:N,"Yes") -> 0 | P30: 0 | Q30: =SUMIFS('Enrolment Data 22nd June'!O:O,'Enrolment Data 22nd June'!F:F,B30,'Enrolment Data 22nd June'!P:P,$Q$2,'Enrolment Data 22nd June'!N:N,"Yes") -> 0 | R30: =SUMIFS('Enrolment Data 22nd June'!O:O,'Enrolment Data 22nd June'!F:F,B30,'Enrolment Data 22nd June'!P:P,$R$2,'Enrolment Data 22nd June'!N:N,"Yes") -> 0 | S30: 0 | T30: 0 | U30: - | V30: =SUMIFS('Enrolment Data 22nd June'!O:O,'Enrolment Data 22nd June'!F:F,B30,'Enrolment Data 22nd June'!P:P,$V$2,'Enrolment Data 22nd June'!N:N,"Yes") -> 0 | W30: 0 | X30: - | Y30: =SUMIFS('Enrolment Data 22nd June'!O:O,'Enrolment Data 22nd June'!F:F,B30,'Enrolment Data 22nd June'!P:P,$Y$2,'Enrolment Data 22nd June'!N:N,"Yes") -> 0 | Z30: 0 | AA30: =SUMIFS('Enrolment Data 22nd June'!O:O,'Enrolment Data 22nd June'!F:F,B30,'Enrolment Data 22nd June'!P:P,$AA$2,'Enrolment Data 22nd June'!N:N,"Yes") -> 0 | AB30: =SUMIFS('Enrolment Data 22nd June'!O:O,'Enrolment Data 22nd June'!F:F,B30,'Enrolment Data 22nd June'!P:P,$AB$2,'Enrolment Data 22nd June'!N:N,"Yes") -> 0 | AC30: 0 | AD30: 0 | AE30: 0 | AF30: 0 | AG30: 0 | AH30: 2019 | AI30: =IFERROR( INDEX('Salesforce Contracts 22nd June'!$S$2:$V$4000, MATCH(1,INDEX(('Salesforce Contracts 22nd June'!$A$2:$A$4000=$B30)*(INDEX('Salesforce Contracts 22nd June'!$S$2:$V$4000,,MATCH($AI$1,'Salesforce Contracts 22nd June'!$O$1:$R$1,0))<>""),0),0), MATCH(AI$1,'Salesforce Contracts 22nd June'!$O$1:$R$1,0)), "") ->  | AJ30: =IFERROR( INDEX('Salesforce Contracts 22nd June'!$S$2:$V$4000, MATCH(1,INDEX(('Salesforce Contracts 22nd June'!$A$2:$A$4000=$B30)*(INDEX('Salesforce Contracts 22nd June'!$S$2:$V$4000,,MATCH($AJ$1,'Salesforce Contracts 22nd June'!$O$1:$R$1,0))<>""),0),0), MATCH(AJ$1,'Salesforce Contracts 22nd June'!$O$1:$R$1,0)), "") ->  | AK30: =IFERROR( INDEX('Salesforce Contracts 22nd June'!$S$2:$V$4000, MATCH(1,INDEX(('Salesforce Contracts 22nd June'!$A$2:$A$4000=$B30)*(INDEX('Salesforce Contracts 22nd June'!$S$2:$V$4000,,MATCH($AK$1,'Salesforce Contracts 22nd June'!$O$1:$R$1,0))<>""),0),0), MATCH(AK$1,'Salesforce Contracts 22nd June'!$O$1:$R$1,0)), "") -> Agent | AL30: =IFERROR( INDEX('Salesforce Contracts 22nd June'!$S$2:$V$4000, MATCH(1,INDEX(('Salesforce Contracts 22nd June'!$A$2:$A$4000=$B30)*(INDEX('Salesforce Contracts 22nd June'!$S$2:$V$4000,,MATCH($AL$1,'Salesforce Contracts 22nd June'!$O$1:$R$1,0))<>""),0),0), MATCH(AL$1,'Salesforce Contracts 22nd June'!$O$1:$R$1,0)), "") -> Agent | AM30: =IFERROR( INDEX('Salesforce Contracts 22nd June'!$O$2:$R$4000, MATCH(1,INDEX(('Salesforce Contracts 22nd June'!$A$2:$A$4000=$B30)*(INDEX('Salesforce Contracts 22nd June'!$O$2:$R$4000,,MATCH($AM$1,'Salesforce Contracts 22nd June'!$O$1:$R$1,0))<>""),0),0), MATCH(AM$1,'Salesforce Contracts 22nd June'!$O$1:$R$1,0)), "") ->  | AN30: =IFERROR( INDEX('Salesforce Contracts 22nd June'!$O$2:$R$4000, MATCH(1,INDEX(('Salesforce Contracts 22nd June'!$A$2:$A$4000=$B30)*(INDEX('Salesforce Contracts 22nd June'!$O$2:$R$4000,,MATCH($AN$1,'Salesforce Contracts 22nd June'!$O$1:$R$1,0))<>""),0),0), MATCH(AN$1,'Salesforce Contracts 22nd June'!$O$1:$R$1,0)), "") ->  | AO30: =IFERROR( INDEX('Salesforce Contracts 22nd June'!$O$2:$R$4000, MATCH(1,INDEX(('Salesforce Contracts 22nd June'!$A$2:$A$4000=$B30)*(INDEX('Salesforce Contracts 22nd June'!$O$2:$R$4000,,MATCH($AO$1,'Salesforce Contracts 22nd June'!$O$1:$R$1,0))<>""),0),0), MATCH(AO$1,'Salesforce Contracts 22nd June'!$O$1:$R$1,0)), "") -> LIVE | AP30: =IFERROR( INDEX('Salesforce Contracts 22nd June'!$O$2:$R$4000, MATCH(1,INDEX(('Salesforce Contracts 22nd June'!$A$2:$A$4000=$B30)*(INDEX('Salesforce Contracts 22nd June'!$O$2:$R$4000,,MATCH($AP$1,'Salesforce Contracts 22nd June'!$O$1:$R$1,0))<>""),0),0), MATCH(AP$1,'Salesforce Contracts 22nd June'!$O$1:$R$1,0)), "") -> LIVE | AQ30: =IFERROR(VLOOKUP(B30,Lookup!Q:R,2,FALSE),"n/a") -> 2019 | AR30: =VLOOKUP(B30,Lookup!L:M,2,FALSE) -> 0 | AS30: =VLOOKUP(B30,Lookup!L:N,3,FALSE) -> (blank)
A31: =VLOOKUP(B:B,'Salesforce Contracts 22nd June'!A:V,8,FALSE) -> Agent | B31: =Lookup!L30 -> Beijing Bright Future International Management Consultants Co Ltd | C31: =VLOOKUP(B:B,'Salesforce Contracts 22nd June'!A:V,4,FALSE) -> China | D31: =VLOOKUP(B:B,'Salesforce Contracts 22nd June'!A:V,14,FALSE) -> China | E31: =VLOOKUP(B:B,'Salesforce Contracts 22nd June'!A:V,9,FALSE) -> Live Contract | F31: =VLOOKUP(B:B,'Salesforce Contracts 22nd June'!A:V,6,FALSE) -> 2019-09-01 | G31: =VLOOKUP(B:B,'Salesforce Contracts 22nd June'!A:V,7,FALSE) -> 2021-09-01 | H31: Inactive | I31: Inactive | J31: Inactive | K31: Inactive | L31: Inactive | M31: Inactive | N31: =SUMIFS('Enrolment Data 22nd June'!O:O,'Enrolment Data 22nd June'!F:F,B31,'Enrolment Data 22nd June'!P:P,$N$2,'Enrolment Data 22nd June'!N:N,"Yes") -> 0 | O31: =SUMIFS('Enrolment Data 22nd June'!O:O,'Enrolment Data 22nd June'!F:F,B31,'Enrolment Data 22nd June'!P:P,$O$2,'Enrolment Data 22nd June'!N:N,"Yes") -> 0 | P31: 0 | Q31: =SUMIFS('Enrolment Data 22nd June'!O:O,'Enrolment Data 22nd June'!F:F,B31,'Enrolment Data 22nd June'!P:P,$Q$2,'Enrolment Data 22nd June'!N:N,"Yes") -> 0 | R31: =SUMIFS('Enrolment Data 22nd June'!O:O,'Enrolment Data 22nd June'!F:F,B31,'Enrolment Data 22nd June'!P:P,$R$2,'Enrolment Data 22nd June'!N:N,"Yes") -> 0 | S31: 0 | T31: 0 | U31: - | V31: =SUMIFS('Enrolment Data 22nd June'!O:O,'Enrolment Data 22nd June'!F:F,B31,'Enrolment Data 22nd June'!P:P,$V$2,'Enrolment Data 22nd June'!N:N,"Yes") -> 0 | W31: 0 | X31: - | Y31: =SUMIFS('Enrolment Data 22nd June'!O:O,'Enrolment Data 22nd June'!F:F,B31,'Enrolment Data 22nd June'!P:P,$Y$2,'Enrolment Data 22nd June'!N:N,"Yes") -> 0 | Z31: 0 | AA31: =SUMIFS('Enrolment Data 22nd June'!O:O,'Enrolment Data 22nd June'!F:F,B31,'Enrolment Data 22nd June'!P:P,$AA$2,'Enrolment Data 22nd June'!N:N,"Yes") -> 0 | AB31: =SUMIFS('Enrolment Data 22nd June'!O:O,'Enrolment Data 22nd June'!F:F,B31,'Enrolment Data 22nd June'!P:P,$AB$2,'Enrolment Data 22nd June'!N:N,"Yes") -> 0 | AC31: 0 | AD31: 0 | AE31: 0 | AF31: 0 | AG31: 0 | AH31: 2019 | AI31: =IFERROR( INDEX('Salesforce Contracts 22nd June'!$S$2:$V$4000, MATCH(1,INDEX(('Salesforce Contracts 22nd June'!$A$2:$A$4000=$B31)*(INDEX('Salesforce Contracts 22nd June'!$S$2:$V$4000,,MATCH($AI$1,'Salesforce Contracts 22nd June'!$O$1:$R$1,0))<>""),0),0), MATCH(AI$1,'Salesforce Contracts 22nd June'!$O$1:$R$1,0)), "") ->  | AJ31: =IFERROR( INDEX('Salesforce Contracts 22nd June'!$S$2:$V$4000, MATCH(1,INDEX(('Salesforce Contracts 22nd June'!$A$2:$A$4000=$B31)*(INDEX('Salesforce Contracts 22nd June'!$S$2:$V$4000,,MATCH($AJ$1,'Salesforce Contracts 22nd June'!$O$1:$R$1,0))<>""),0),0), MATCH(AJ$1,'Salesforce Contracts 22nd June'!$O$1:$R$1,0)), "") ->  | AK31: =IFERROR( INDEX('Salesforce Contracts 22nd June'!$S$2:$V$4000, MATCH(1,INDEX(('Salesforce Contracts 22nd June'!$A$2:$A$4000=$B31)*(INDEX('Salesforce Contracts 22nd June'!$S$2:$V$4000,,MATCH($AK$1,'Salesforce Contracts 22nd June'!$O$1:$R$1,0))<>""),0),0), MATCH(AK$1,'Salesforce Contracts 22nd June'!$O$1:$R$1,0)), "") -> Agent | AL31: =IFERROR( INDEX('Salesforce Contracts 22nd June'!$S$2:$V$4000, MATCH(1,INDEX(('Salesforce Contracts 22nd June'!$A$2:$A$4000=$B31)*(INDEX('Salesforce Contracts 22nd June'!$S$2:$V$4000,,MATCH($AL$1,'Salesforce Contracts 22nd June'!$O$1:$R$1,0))<>""),0),0), MATCH(AL$1,'Salesforce Contracts 22nd June'!$O$1:$R$1,0)), "") -> Agent | AM31: =IFERROR( INDEX('Salesforce Contracts 22nd June'!$O$2:$R$4000, MATCH(1,INDEX(('Salesforce Contracts 22nd June'!$A$2:$A$4000=$B31)*(INDEX('Salesforce Contracts 22nd June'!$O$2:$R$4000,,MATCH($AM$1,'Salesforce Contracts 22nd June'!$O$1:$R$1,0))<>""),0),0), MATCH(AM$1,'Salesforce Contracts 22nd June'!$O$1:$R$1,0)), "") ->  | AN31: =IFERROR( INDEX('Salesforce Contracts 22nd June'!$O$2:$R$4000, MATCH(1,INDEX(('Salesforce Contracts 22nd June'!$A$2:$A$4000=$B31)*(INDEX('Salesforce Contracts 22nd June'!$O$2:$R$4000,,MATCH($AN$1,'Salesforce Contracts 22nd June'!$O$1:$R$1,0))<>""),0),0), MATCH(AN$1,'Salesforce Contracts 22nd June'!$O$1:$R$1,0)), "") ->  | AO31: =IFERROR( INDEX('Salesforce Contracts 22nd June'!$O$2:$R$4000, MATCH(1,INDEX(('Salesforce Contracts 22nd June'!$A$2:$A$4000=$B31)*(INDEX('Salesforce Contracts 22nd June'!$O$2:$R$4000,,MATCH($AO$1,'Salesforce Contracts 22nd June'!$O$1:$R$1,0))<>""),0),0), MATCH(AO$1,'Salesforce Contracts 22nd June'!$O$1:$R$1,0)), "") -> LIVE | AP31: =IFERROR( INDEX('Salesforce Contracts 22nd June'!$O$2:$R$4000, MATCH(1,INDEX(('Salesforce Contracts 22nd June'!$A$2:$A$4000=$B31)*(INDEX('Salesforce Contracts 22nd June'!$O$2:$R$4000,,MATCH($AP$1,'Salesforce Contracts 22nd June'!$O$1:$R$1,0))<>""),0),0), MATCH(AP$1,'Salesforce Contracts 22nd June'!$O$1:$R$1,0)), "") -> LIVE | AQ31: =IFERROR(VLOOKUP(B31,Lookup!Q:R,2,FALSE),"n/a") -> 2019 | AR31: =VLOOKUP(B31,Lookup!L:M,2,FALSE) -> 0 | AS31: =VLOOKUP(B31,Lookup!L:N,3,FALSE) -> (blank)
A32: =VLOOKUP(B:B,'Salesforce Contracts 22nd June'!A:V,8,FALSE) -> Agent | B32: =Lookup!L31 -> Beijing Chuge International Cultural Exchange Co Ltd | C32: =VLOOKUP(B:B,'Salesforce Contracts 22nd June'!A:V,4,FALSE) -> China | D32: =VLOOKUP(B:B,'Salesforce Contracts 22nd June'!A:V,14,FALSE) -> China | E32: =VLOOKUP(B:B,'Salesforce Contracts 22nd June'!A:V,9,FALSE) -> Sent to Partner | F32: =VLOOKUP(B:B,'Salesforce Contracts 22nd June'!A:V,6,FALSE) -> 2020-01-01 | G32: =VLOOKUP(B:B,'Salesforce Contracts 22nd June'!A:V,7,FALSE) -> 2022-01-01 | H32: Inactive | I32: Inactive | J32: Inactive | K32: Active | L32: Inactive | M32: Inactive | N32: =SUMIFS('Enrolment Data 22nd June'!O:O,'Enrolment Data 22nd June'!F:F,B32,'Enrolment Data 22nd June'!P:P,$N$2,'Enrolment Data 22nd June'!N:N,"Yes") -> 0 | O32: =SUMIFS('Enrolment Data 22nd June'!O:O,'Enrolment Data 22nd June'!F:F,B32,'Enrolment Data 22nd June'!P:P,$O$2,'Enrolment Data 22nd June'!N:N,"Yes") -> 0 | P32: 0 | Q32: =SUMIFS('Enrolment Data 22nd June'!O:O,'Enrolment Data 22nd June'!F:F,B32,'Enrolment Data 22nd June'!P:P,$Q$2,'Enrolment Data 22nd June'!N:N,"Yes") -> 0 | R32: =SUMIFS('Enrolment Data 22nd June'!O:O,'Enrolment Data 22nd June'!F:F,B32,'Enrolment Data 22nd June'!P:P,$R$2,'Enrolment Data 22nd June'!N:N,"Yes") -> 0 | S32: 0 | T32: 0 | U32: - | V32: =SUMIFS('Enrolment Data 22nd June'!O:O,'Enrolment Data 22nd June'!F:F,B32,'Enrolment Data 22nd June'!P:P,$V$2,'Enrolment Data 22nd June'!N:N,"Yes") -> 0 | W32: 0 | X32: - | Y32: =SUMIFS('Enrolment Data 22nd June'!O:O,'Enrolment Data 22nd June'!F:F,B32,'Enrolment Data 22nd June'!P:P,$Y$2,'Enrolment Data 22nd June'!N:N,"Yes") -> 0 | Z32: 0 | AA32: =SUMIFS('Enrolment Data 22nd June'!O:O,'Enrolment Data 22nd June'!F:F,B32,'Enrolment Data 22nd June'!P:P,$AA$2,'Enrolment Data 22nd June'!N:N,"Yes") -> 0 | AB32: =SUMIFS('Enrolment Data 22nd June'!O:O,'Enrolment Data 22nd June'!F:F,B32,'Enrolment Data 22nd June'!P:P,$AB$2,'Enrolment Data 22nd June'!N:N,"Yes") -> 1 | AC32: 1 | AD32: 0 | AE32: 0 | AF32: 0 | AG32: 0 | AH32: 2020 | AI32: =IFERROR( INDEX('Salesforce Contracts 22nd June'!$S$2:$V$4000, MATCH(1,INDEX(('Salesforce Contracts 22nd June'!$A$2:$A$4000=$B32)*(INDEX('Salesforce Contracts 22nd June'!$S$2:$V$4000,,MATCH($AI$1,'Salesforce Contracts 22nd June'!$O$1:$R$1,0))<>""),0),0), MATCH(AI$1,'Salesforce Contracts 22nd June'!$O$1:$R$1,0)), "") ->  | AJ32: =IFERROR( INDEX('Salesforce Contracts 22nd June'!$S$2:$V$4000, MATCH(1,INDEX(('Salesforce Contracts 22nd June'!$A$2:$A$4000=$B32)*(INDEX('Salesforce Contracts 22nd June'!$S$2:$V$4000,,MATCH($AJ$1,'Salesforce Contracts 22nd June'!$O$1:$R$1,0))<>""),0),0), MATCH(AJ$1,'Salesforce Contracts 22nd June'!$O$1:$R$1,0)), "") ->  | AK32: =IFERROR( INDEX('Salesforce Contracts 22nd June'!$S$2:$V$4000, MATCH(1,INDEX(('Salesforce Contracts 22nd June'!$A$2:$A$4000=$B32)*(INDEX('Salesforce Contracts 22nd June'!$S$2:$V$4000,,MATCH($AK$1,'Salesforce Contracts 22nd June'!$O$1:$R$1,0))<>""),0),0), MATCH(AK$1,'Salesforce Contracts 22nd June'!$O$1:$R$1,0)), "") ->  | AL32: =IFERROR( INDEX('Salesforce Contracts 22nd June'!$S$2:$V$4000, MATCH(1,INDEX(('Salesforce Contracts 22nd June'!$A$2:$A$4000=$B32)*(INDEX('Salesforce Contracts 22nd June'!$S$2:$V$4000,,MATCH($AL$1,'Salesforce Contracts 22nd June'!$O$1:$R$1,0))<>""),0),0), MATCH(AL$1,'Salesforce Contracts 22nd June'!$O$1:$R$1,0)), "") -> Agent | AM32: =IFERROR( INDEX('Salesforce Contracts 22nd June'!$O$2:$R$4000, MATCH(1,INDEX(('Salesforce Contracts 22nd June'!$A$2:$A$4000=$B32)*(INDEX('Salesforce Contracts 22nd June'!$O$2:$R$4000,,MATCH($AM$1,'Salesforce Contracts 22nd June'!$O$1:$R$1,0))<>""),0),0), MATCH(AM$1,'Salesforce Contracts 22nd June'!$O$1:$R$1,0)), "") ->  | AN32: =IFERROR( INDEX('Salesforce Contracts 22nd June'!$O$2:$R$4000, MATCH(1,INDEX(('Salesforce Contracts 22nd June'!$A$2:$A$4000=$B32)*(INDEX('Salesforce Contracts 22nd June'!$O$2:$R$4000,,MATCH($AN$1,'Salesforce Contracts 22nd June'!$O$1:$R$1,0))<>""),0),0), MATCH(AN$1,'Salesforce Contracts 22nd June'!$O$1:$R$1,0)), "") ->  | AO32: =IFERROR( INDEX('Salesforce Contracts 22nd June'!$O$2:$R$4000, MATCH(1,INDEX(('Salesforce Contracts 22nd June'!$A$2:$A$4000=$B32)*(INDEX('Salesforce Contracts 22nd June'!$O$2:$R$4000,,MATCH($AO$1,'Salesforce Contracts 22nd June'!$O$1:$R$1,0))<>""),0),0), MATCH(AO$1,'Salesforce Contracts 22nd June'!$O$1:$R$1,0)), "") ->  | AP32: =IFERROR( INDEX('Salesforce Contracts 22nd June'!$O$2:$R$4000, MATCH(1,INDEX(('Salesforce Contracts 22nd June'!$A$2:$A$4000=$B32)*(INDEX('Salesforce Contracts 22nd June'!$O$2:$R$4000,,MATCH($AP$1,'Salesforce Contracts 22nd June'!$O$1:$R$1,0))<>""),0),0), MATCH(AP$1,'Salesforce Contracts 22nd June'!$O$1:$R$1,0)), "") -> LIVE | AQ32: =IFERROR(VLOOKUP(B32,Lookup!Q:R,2,FALSE),"n/a") -> 2020 | AR32: =VLOOKUP(B32,Lookup!L:M,2,FALSE) -> 0 | AS32: =VLOOKUP(B32,Lookup!L:N,3,FALSE) -> (blank)
A33: =VLOOKUP(B:B,'Salesforce Contracts 22nd June'!A:V,8,FALSE) -> EC | B33: =Lookup!L32 -> Beijing Guangtian?an Education Consulting Co Ltd | C33: =VLOOKUP(B:B,'Salesforce Contracts 22nd June'!A:V,4,FALSE) -> China | D33: =VLOOKUP(B:B,'Salesforce Contracts 22nd June'!A:V,14,FALSE) -> China | E33: =VLOOKUP(B:B,'Salesforce Contracts 22nd June'!A:V,9,FALSE) -> Live Contract | F33: =VLOOKUP(B:B,'Salesforce Contracts 22nd June'!A:V,6,FALSE) -> 2020-01-01 | G33: =VLOOKUP(B:B,'Salesforce Contracts 22nd June'!A:V,7,FALSE) -> 2023-01-01 | H33: Active | I33: Active | J33: Active | K33: Active | L33: Active | M33: Active | N33: =SUMIFS('Enrolment Data 22nd June'!O:O,'Enrolment Data 22nd June'!F:F,B33,'Enrolment Data 22nd June'!P:P,$N$2,'Enrolment Data 22nd June'!N:N,"Yes") -> 6 | O33: =SUMIFS('Enrolment Data 22nd June'!O:O,'Enrolment Data 22nd June'!F:F,B33,'Enrolment Data 22nd June'!P:P,$O$2,'Enrolment Data 22nd June'!N:N,"Yes") -> 47 | P33: 53 | Q33: =SUMIFS('Enrolment Data 22nd June'!O:O,'Enrolment Data 22nd June'!F:F,B33,'Enrolment Data 22nd June'!P:P,$Q$2,'Enrolment Data 22nd June'!N:N,"Yes") -> 8 | R33: =SUMIFS('Enrolment Data 22nd June'!O:O,'Enrolment Data 22nd June'!F:F,B33,'Enrolment Data 22nd June'!P:P,$R$2,'Enrolment Data 22nd June'!N:N,"Yes") -> 30 | S33: 38 | T33: -15 | U33: -28% | V33: =SUMIFS('Enrolment Data 22nd June'!O:O,'Enrolment Data 22nd June'!F:F,B33,'Enrolment Data 22nd June'!P:P,$V$2,'Enrolment Data 22nd June'!N:N,"Yes") -> 13 | W33: 5 | X33: 63% | Y33: =SUMIFS('Enrolment Data 22nd June'!O:O,'Enrolment Data 22nd June'!F:F,B33,'Enrolment Data 22nd June'!P:P,$Y$2,'Enrolment Data 22nd June'!N:N,"Yes") -> 57 | Z33: 70 | AA33: =SUMIFS('Enrolment Data 22nd June'!O:O,'Enrolment Data 22nd June'!F:F,B33,'Enrolment Data 22nd June'!P:P,$AA$2,'Enrolment Data 22nd June'!N:N,"Yes") -> 13 | AB33: =SUMIFS('Enrolment Data 22nd June'!O:O,'Enrolment Data 22nd June'!F:F,B33,'Enrolment Data 22nd June'!P:P,$AB$2,'Enrolment Data 22nd June'!N:N,"Yes") -> 46 | AC33: 59 | AD33: 91 | AE33: 104 | AF33: 134 | AG33: 174 | AH33: 2020 | AI33: =IFERROR( INDEX('Salesforce Contracts 22nd June'!$S$2:$V$4000, MATCH(1,INDEX(('Salesforce Contracts 22nd June'!$A$2:$A$4000=$B33)*(INDEX('Salesforce Contracts 22nd June'!$S$2:$V$4000,,MATCH($AI$1,'Salesforce Contracts 22nd June'!$O$1:$R$1,0))<>""),0),0), MATCH(AI$1,'Salesforce Contracts 22nd June'!$O$1:$R$1,0)), "") -> EC | AJ33: =IFERROR( INDEX('Salesforce Contracts 22nd June'!$S$2:$V$4000, MATCH(1,INDEX(('Salesforce Contracts 22nd June'!$A$2:$A$4000=$B33)*(INDEX('Salesforce Contracts 22nd June'!$S$2:$V$4000,,MATCH($AJ$1,'Salesforce Contracts 22nd June'!$O$1:$R$1,0))<>""),0),0), MATCH(AJ$1,'Salesforce Contracts 22nd June'!$O$1:$R$1,0)), "") -> EC | AK33: =IFERROR( INDEX('Salesforce Contracts 22nd June'!$S$2:$V$4000, MATCH(1,INDEX(('Salesforce Contracts 22nd June'!$A$2:$A$4000=$B33)*(INDEX('Salesforce Contracts 22nd June'!$S$2:$V$4000,,MATCH($AK$1,'Salesforce Contracts 22nd June'!$O$1:$R$1,0))<>""),0),0), MATCH(AK$1,'Salesforce Contracts 22nd June'!$O$1:$R$1,0)), "") -> EC | AL33: =IFERROR( INDEX('Salesforce Contracts 22nd June'!$S$2:$V$4000, MATCH(1,INDEX(('Salesforce Contracts 22nd June'!$A$2:$A$4000=$B33)*(INDEX('Salesforce Contracts 22nd June'!$S$2:$V$4000,,MATCH($AL$1,'Salesforce Contracts 22nd June'!$O$1:$R$1,0))<>""),0),0), MATCH(AL$1,'Salesforce Contracts 22nd June'!$O$1:$R$1,0)), "") -> EC | AM33: =IFERROR( INDEX('Salesforce Contracts 22nd June'!$O$2:$R$4000, MATCH(1,INDEX(('Salesforce Contracts 22nd June'!$A$2:$A$4000=$B33)*(INDEX('Salesforce Contracts 22nd June'!$O$2:$R$4000,,MATCH($AM$1,'Salesforce Contracts 22nd June'!$O$1:$R$1,0))<>""),0),0), MATCH(AM$1,'Salesforce Contracts 22nd June'!$O$1:$R$1,0)), "") -> LIVE | AN33: =IFERROR( INDEX('Salesforce Contracts 22nd June'!$O$2:$R$4000, MATCH(1,INDEX(('Salesforce Contracts 22nd June'!$A$2:$A$4000=$B33)*(INDEX('Salesforce Contracts 22nd June'!$O$2:$R$4000,,MATCH($AN$1,'Salesforce Contracts 22nd June'!$O$1:$R$1,0))<>""),0),0), MATCH(AN$1,'Salesforce Contracts 22nd June'!$O$1:$R$1,0)), "") -> LIVE | AO33: =IFERROR( INDEX('Salesforce Contracts 22nd June'!$O$2:$R$4000, MATCH(1,INDEX(('Salesforce Contracts 22nd June'!$A$2:$A$4000=$B33)*(INDEX('Salesforce Contracts 22nd June'!$O$2:$R$4000,,MATCH($AO$1,'Salesforce Contracts 22nd June'!$O$1:$R$1,0))<>""),0),0), MATCH(AO$1,'Salesforce Contracts 22nd June'!$O$1:$R$1,0)), "") -> LIVE | AP33: =IFERROR( INDEX('Salesforce Contracts 22nd June'!$O$2:$R$4000, MATCH(1,INDEX(('Salesforce Contracts 22nd June'!$A$2:$A$4000=$B33)*(INDEX('Salesforce Contracts 22nd June'!$O$2:$R$4000,,MATCH($AP$1,'Salesforce Contracts 22nd June'!$O$1:$R$1,0))<>""),0),0), MATCH(AP$1,'Salesforce Contracts 22nd June'!$O$1:$R$1,0)), "") -> LIVE | AQ33: =IFERROR(VLOOKUP(B33,Lookup!Q:R,2,FALSE),"n/a") -> 2015 | AR33: =VLOOKUP(B33,Lookup!L:M,2,FALSE) -> 0 | AS33: =VLOOKUP(B33,Lookup!L:N,3,FALSE) -> (blank)
A34: =VLOOKUP(B:B,'Salesforce Contracts 22nd June'!A:V,8,FALSE) -> Agent | B34: =Lookup!L33 -> Beijing New Oriental Vision Overseas Consulting Co., Ltd | C34: =VLOOKUP(B:B,'Salesforce Contracts 22nd June'!A:V,4,FALSE) -> China | D34: =VLOOKUP(B:B,'Salesforce Contracts 22nd June'!A:V,14,FALSE) -> China | E34: =VLOOKUP(B:B,'Salesforce Contracts 22nd June'!A:V,9,FALSE) -> Live Contract | F34: =VLOOKUP(B:B,'Salesforce Contracts 22nd June'!A:V,6,FALSE) -> 2017-06-30 | G34: =VLOOKUP(B:B,'Salesforce Contracts 22nd June'!A:V,7,FALSE) -> 2020-01-01 | H34: Inactive | I34: Active | J34: Active | K34: Active | L34: Active | M34: Active | N34: =SUMIFS('Enrolment Data 22nd June'!O:O,'Enrolment Data 22nd June'!F:F,B34,'Enrolment Data 22nd June'!P:P,$N$2,'Enrolment Data 22nd June'!N:N,"Yes") -> 0 | O34: =SUMIFS('Enrolment Data 22nd June'!O:O,'Enrolment Data 22nd June'!F:F,B34,'Enrolment Data 22nd June'!P:P,$O$2,'Enrolment Data 22nd June'!N:N,"Yes") -> 0 | P34: 0 | Q34: =SUMIFS('Enrolment Data 22nd June'!O:O,'Enrolment Data 22nd June'!F:F,B34,'Enrolment Data 22nd June'!P:P,$Q$2,'Enrolment Data 22nd June'!N:N,"Yes") -> 0 | R34: =SUMIFS('Enrolment Data 22nd June'!O:O,'Enrolment Data 22nd June'!F:F,B34,'Enrolment Data 22nd June'!P:P,$R$2,'Enrolment Data 22nd June'!N:N,"Yes") -> 1 | S34: 1 | T34: 1 | U34: - | V34: =SUMIFS('Enrolment Data 22nd June'!O:O,'Enrolment Data 22nd June'!F:F,B34,'Enrolment Data 22nd June'!P:P,$V$2,'Enrolment Data 22nd June'!N:N,"Yes") -> 4 | W34: 4 | X34: - | Y34: =SUMIFS('Enrolment Data 22nd June'!O:O,'Enrolment Data 22nd June'!F:F,B34,'Enrolment Data 22nd June'!P:P,$Y$2,'Enrolment Data 22nd June'!N:N,"Yes") -> 3 | Z34: 7 | AA34: =SUMIFS('Enrolment Data 22nd June'!O:O,'Enrolment Data 22nd June'!F:F,B34,'Enrolment Data 22nd June'!P:P,$AA$2,'Enrolment Data 22nd June'!N:N,"Yes") -> 2 | AB34: =SUMIFS('Enrolment Data 22nd June'!O:O,'Enrolment Data 22nd June'!F:F,B34,'Enrolment Data 22nd June'!P:P,$AB$2,'Enrolment Data 22nd June'!N:N,"Yes") -> 8 | AC34: 10 | AD34: 1 | AE34: 5 | AF34: 4 | AG34: 10 | AH34: 2017 | AI34: =IFERROR( INDEX('Salesforce Contracts 22nd June'!$S$2:$V$4000, MATCH(1,INDEX(('Salesforce Contracts 22nd June'!$A$2:$A$4000=$B34)*(INDEX('Salesforce Contracts 22nd June'!$S$2:$V$4000,,MATCH($AI$1,'Salesforce Contracts 22nd June'!$O$1:$R$1,0))<>""),0),0), MATCH(AI$1,'Salesforce Contracts 22nd June'!$O$1:$R$1,0)), "") -> Agent | AJ34: =IFERROR( INDEX('Salesforce Contracts 22nd June'!$S$2:$V$4000, MATCH(1,INDEX(('Salesforce Contracts 22nd June'!$A$2:$A$4000=$B34)*(INDEX('Salesforce Contracts 22nd June'!$S$2:$V$4000,,MATCH($AJ$1,'Salesforce Contracts 22nd June'!$O$1:$R$1,0))<>""),0),0), MATCH(AJ$1,'Salesforce Contracts 22nd June'!$O$1:$R$1,0)), "") -> Agent | AK34: =IFERROR( INDEX('Salesforce Contracts 22nd June'!$S$2:$V$4000, MATCH(1,INDEX(('Salesforce Contracts 22nd June'!$A$2:$A$4000=$B34)*(INDEX('Salesforce Contracts 22nd June'!$S$2:$V$4000,,MATCH($AK$1,'Salesforce Contracts 22nd June'!$O$1:$R$1,0))<>""),0),0), MATCH(AK$1,'Salesforce Contracts 22nd June'!$O$1:$R$1,0)), "") -> Agent | AL34: =IFERROR( INDEX('Salesforce Contracts 22nd June'!$S$2:$V$4000, MATCH(1,INDEX(('Salesforce Contracts 22nd June'!$A$2:$A$4000=$B34)*(INDEX('Salesforce Contracts 22nd June'!$S$2:$V$4000,,MATCH($AL$1,'Salesforce Contracts 22nd June'!$O$1:$R$1,0))<>""),0),0), MATCH(AL$1,'Salesforce Contracts 22nd June'!$O$1:$R$1,0)), "") -> Agent | AM34: =IFERROR( INDEX('Salesforce Contracts 22nd June'!$O$2:$R$4000, MATCH(1,INDEX(('Salesforce Contracts 22nd June'!$A$2:$A$4000=$B34)*(INDEX('Salesforce Contracts 22nd June'!$O$2:$R$4000,,MATCH($AM$1,'Salesforce Contracts 22nd June'!$O$1:$R$1,0))<>""),0),0), MATCH(AM$1,'Salesforce Contracts 22nd June'!$O$1:$R$1,0)), "") -> LIVE | AN34: =IFERROR( INDEX('Salesforce Contracts 22nd June'!$O$2:$R$4000, MATCH(1,INDEX(('Salesforce Contracts 22nd June'!$A$2:$A$4000=$B34)*(INDEX('Salesforce Contracts 22nd June'!$O$2:$R$4000,,MATCH($AN$1,'Salesforce Contracts 22nd June'!$O$1:$R$1,0))<>""),0),0), MATCH(AN$1,'Salesforce Contracts 22nd June'!$O$1:$R$1,0)), "") -> LIVE | AO34: =IFERROR( INDEX('Salesforce Contracts 22nd June'!$O$2:$R$4000, MATCH(1,INDEX(('Salesforce Contracts 22nd June'!$A$2:$A$4000=$B34)*(INDEX('Salesforce Contracts 22nd June'!$O$2:$R$4000,,MATCH($AO$1,'Salesforce Contracts 22nd June'!$O$1:$R$1,0))<>""),0),0), MATCH(AO$1,'Salesforce Contracts 22nd June'!$O$1:$R$1,0)), "") -> LIVE | AP34: =IFERROR( INDEX('Salesforce Contracts 22nd June'!$O$2:$R$4000, MATCH(1,INDEX(('Salesforce Contracts 22nd June'!$A$2:$A$4000=$B34)*(INDEX('Salesforce Contracts 22nd June'!$O$2:$R$4000,,MATCH($AP$1,'Salesforce Contracts 22nd June'!$O$1:$R$1,0))<>""),0),0), MATCH(AP$1,'Salesforce Contracts 22nd June'!$O$1:$R$1,0)), "") ->  | AQ34: =IFERROR(VLOOKUP(B34,Lookup!Q:R,2,FALSE),"n/a") -> 2017 | AR34: =VLOOKUP(B34,Lookup!L:M,2,FALSE) -> 0 | AS34: =VLOOKUP(B34,Lookup!L:N,3,FALSE) -> (blank) | AW34: yes
A35: =VLOOKUP(B:B,'Salesforce Contracts 22nd June'!A:V,8,FALSE) -> Agent | B35: =Lookup!L34 -> Bespoke Education Consultancy | C35: =VLOOKUP(B:B,'Salesforce Contracts 22nd June'!A:V,4,FALSE) -> UK Region | D35: =VLOOKUP(B:B,'Salesforce Contracts 22nd June'!A:V,14,FALSE) -> United Kingdom | E35: =VLOOKUP(B:B,'Salesforce Contracts 22nd June'!A:V,9,FALSE) -> Agreement received | F35: =VLOOKUP(B:B,'Salesforce Contracts 22nd June'!A:V,6,FALSE) -> 2020-01-01 | G35: =VLOOKUP(B:B,'Salesforce Contracts 22nd June'!A:V,7,FALSE) -> 2022-01-01 | H35: Inactive | I35: Inactive | J35: Inactive | K35: Active | L35: Inactive | M35: Inactive | N35: =SUMIFS('Enrolment Data 22nd June'!O:O,'Enrolment Data 22nd June'!F:F,B35,'Enrolment Data 22nd June'!P:P,$N$2,'Enrolment Data 22nd June'!N:N,"Yes") -> 0 | O35: =SUMIFS('Enrolment Data 22nd June'!O:O,'Enrolment Data 22nd June'!F:F,B35,'Enrolment Data 22nd June'!P:P,$O$2,'Enrolment Data 22nd June'!N:N,"Yes") -> 0 | P35: 0 | Q35: =SUMIFS('Enrolment Data 22nd June'!O:O,'Enrolment Data 22nd June'!F:F,B35,'Enrolment Data 22nd June'!P:P,$Q$2,'Enrolment Data 22nd June'!N:N,"Yes") -> 0 | R35: =SUMIFS('Enrolment Data 22nd June'!O:O,'Enrolment Data 22nd June'!F:F,B35,'Enrolment Data 22nd June'!P:P,$R$2,'Enrolment Data 22nd June'!N:N,"Yes") -> 0 | S35: 0 | T35: 0 | U35: - | V35: =SUMIFS('Enrolment Data 22nd June'!O:O,'Enrolment Data 22nd June'!F:F,B35,'Enrolment Data 22nd June'!P:P,$V$2,'Enrolment Data 22nd June'!N:N,"Yes") -> 0 | W35: 0 | X35: - | Y35: =SUMIFS('Enrolment Data 22nd June'!O:O,'Enrolment Data 22nd June'!F:F,B35,'Enrolment Data 22nd June'!P:P,$Y$2,'Enrolment Data 22nd June'!N:N,"Yes") -> 0 | Z35: 0 | AA35: =SUMIFS('Enrolment Data 22nd June'!O:O,'Enrolment Data 22nd June'!F:F,B35,'Enrolment Data 22nd June'!P:P,$AA$2,'Enrolment Data 22nd June'!N:N,"Yes") -> 0 | AB35: =SUMIFS('Enrolment Data 22nd June'!O:O,'Enrolment Data 22nd June'!F:F,B35,'Enrolment Data 22nd June'!P:P,$AB$2,'Enrolment Data 22nd June'!N:N,"Yes") -> 1 | AC35: 1 | AD35: 0 | AE35: 0 | AF35: 0 | AG35: 0 | AH35: 2020 | AI35: =IFERROR( INDEX('Salesforce Contracts 22nd June'!$S$2:$V$4000, MATCH(1,INDEX(('Salesforce Contracts 22nd June'!$A$2:$A$4000=$B35)*(INDEX('Salesforce Contracts 22nd June'!$S$2:$V$4000,,MATCH($AI$1,'Salesforce Contracts 22nd June'!$O$1:$R$1,0))<>""),0),0), MATCH(AI$1,'Salesforce Contracts 22nd June'!$O$1:$R$1,0)), "") ->  | AJ35: =IFERROR( INDEX('Salesforce Contracts 22nd June'!$S$2:$V$4000, MATCH(1,INDEX(('Salesforce Contracts 22nd June'!$A$2:$A$4000=$B35)*(INDEX('Salesforce Contracts 22nd June'!$S$2:$V$4000,,MATCH($AJ$1,'Salesforce Contracts 22nd June'!$O$1:$R$1,0))<>""),0),0), MATCH(AJ$1,'Salesforce Contracts 22nd June'!$O$1:$R$1,0)), "") ->  | AK35: =IFERROR( INDEX('Salesforce Contracts 22nd June'!$S$2:$V$4000, MATCH(1,INDEX(('Salesforce Contracts 22nd June'!$A$2:$A$4000=$B35)*(INDEX('Salesforce Contracts 22nd June'!$S$2:$V$4000,,MATCH($AK$1,'Salesforce Contracts 22nd June'!$O$1:$R$1,0))<>""),0),0), MATCH(AK$1,'Salesforce Contracts 22nd June'!$O$1:$R$1,0)), "") ->  | AL35: =IFERROR( INDEX('Salesforce Contracts 22nd June'!$S$2:$V$4000, MATCH(1,INDEX(('Salesforce Contracts 22nd June'!$A$2:$A$4000=$B35)*(INDEX('Salesforce Contracts 22nd June'!$S$2:$V$4000,,MATCH($AL$1,'Salesforce Contracts 22nd June'!$O$1:$R$1,0))<>""),0),0), MATCH(AL$1,'Salesforce Contracts 22nd June'!$O$1:$R$1,0)), "") -> Agent | AM35: =IFERROR( INDEX('Salesforce Contracts 22nd June'!$O$2:$R$4000, MATCH(1,INDEX(('Salesforce Contracts 22nd June'!$A$2:$A$4000=$B35)*(INDEX('Salesforce Contracts 22nd June'!$O$2:$R$4000,,MATCH($AM$1,'Salesforce Contracts 22nd June'!$O$1:$R$1,0))<>""),0),0), MATCH(AM$1,'Salesforce Contracts 22nd June'!$O$1:$R$1,0)), "") ->  | AN35: =IFERROR( INDEX('Salesforce Contracts 22nd June'!$O$2:$R$4000, MATCH(1,INDEX(('Salesforce Contracts 22nd June'!$A$2:$A$4000=$B35)*(INDEX('Salesforce Contracts 22nd June'!$O$2:$R$4000,,MATCH($AN$1,'Salesforce Contracts 22nd June'!$O$1:$R$1,0))<>""),0),0), MATCH(AN$1,'Salesforce Contracts 22nd June'!$O$1:$R$1,0)), "") ->  | AO35: =IFERROR( INDEX('Salesforce Contracts 22nd June'!$O$2:$R$4000, MATCH(1,INDEX(('Salesforce Contracts 22nd June'!$A$2:$A$4000=$B35)*(INDEX('Salesforce Contracts 22nd June'!$O$2:$R$4000,,MATCH($AO$1,'Salesforce Contracts 22nd June'!$O$1:$R$1,0))<>""),0),0), MATCH(AO$1,'Salesforce Contracts 22nd June'!$O$1:$R$1,0)), "") ->  | AP35: =IFERROR( INDEX('Salesforce Contracts 22nd June'!$O$2:$R$4000, MATCH(1,INDEX(('Salesforce Contracts 22nd June'!$A$2:$A$4000=$B35)*(INDEX('Salesforce Contracts 22nd June'!$O$2:$R$4000,,MATCH($AP$1,'Salesforce Contracts 22nd June'!$O$1:$R$1,0))<>""),0),0), MATCH(AP$1,'Salesforce Contracts 22nd June'!$O$1:$R$1,0)), "") -> LIVE | AQ35: =IFERROR(VLOOKUP(B35,Lookup!Q:R,2,FALSE),"n/a") -> 2020 | AR35: =VLOOKUP(B35,Lookup!L:M,2,FALSE) -> 0 | AS35: =VLOOKUP(B35,Lookup!L:N,3,FALSE) -> (blank)
A36: =VLOOKUP(B:B,'Salesforce Contracts 22nd June'!A:V,8,FALSE) -> Agent | B36: =Lookup!L35 -> Best Way Intercambios Viagens e Turismo Ltda-ME | C36: =VLOOKUP(B:B,'Salesforce Contracts 22nd June'!A:V,4,FALSE) -> South America | D36: =VLOOKUP(B:B,'Salesforce Contracts 22nd June'!A:V,14,FALSE) -> Brazil | E36: =VLOOKUP(B:B,'Salesforce Contracts 22nd June'!A:V,9,FALSE) -> Sent to Partner | F36: =VLOOKUP(B:B,'Salesforce Contracts 22nd June'!A:V,6,FALSE) -> 2020-01-01 | G36: =VLOOKUP(B:B,'Salesforce Contracts 22nd June'!A:V,7,FALSE) -> 2022-01-01 | H36: Inactive | I36: Inactive | J36: Inactive | K36: Inactive | L36: Inactive | M36: Inactive | N36: =SUMIFS('Enrolment Data 22nd June'!O:O,'Enrolment Data 22nd June'!F:F,B36,'Enrolment Data 22nd June'!P:P,$N$2,'Enrolment Data 22nd June'!N:N,"Yes") -> 0 | O36: =SUMIFS('Enrolment Data 22nd June'!O:O,'Enrolment Data 22nd June'!F:F,B36,'Enrolment Data 22nd June'!P:P,$O$2,'Enrolment Data 22nd June'!N:N,"Yes") -> 0 | P36: 0 | Q36: =SUMIFS('Enrolment Data 22nd June'!O:O,'Enrolment Data 22nd June'!F:F,B36,'Enrolment Data 22nd June'!P:P,$Q$2,'Enrolment Data 22nd June'!N:N,"Yes") -> 0 | R36: =SUMIFS('Enrolment Data 22nd June'!O:O,'Enrolment Data 22nd June'!F:F,B36,'Enrolment Data 22nd June'!P:P,$R$2,'Enrolment Data 22nd June'!N:N,"Yes") -> 0 | S36: 0 | T36: 0 | U36: - | V36: =SUMIFS('Enrolment Data 22nd June'!O:O,'Enrolment Data 22nd June'!F:F,B36,'Enrolment Data 22nd June'!P:P,$V$2,'Enrolment Data 22nd June'!N:N,"Yes") -> 0 | W36: 0 | X36: - | Y36: =SUMIFS('Enrolment Data 22nd June'!O:O,'Enrolment Data 22nd June'!F:F,B36,'Enrolment Data 22nd June'!P:P,$Y$2,'Enrolment Data 22nd June'!N:N,"Yes") -> 0 | Z36: 0 | AA36: =SUMIFS('Enrolment Data 22nd June'!O:O,'Enrolment Data 22nd June'!F:F,B36,'Enrolment Data 22nd June'!P:P,$AA$2,'Enrolment Data 22nd June'!N:N,"Yes") -> 0 | AB36: =SUMIFS('Enrolment Data 22nd June'!O:O,'Enrolment Data 22nd June'!F:F,B36,'Enrolment Data 22nd June'!P:P,$AB$2,'Enrolment Data 22nd June'!N:N,"Yes") -> 0 | AC36: 0 | AD36: 0 | AE36: 0 | AF36: 0 | AG36: 0 | AH36: 2020 | AI36: =IFERROR( INDEX('Salesforce Contracts 22nd June'!$S$2:$V$4000, MATCH(1,INDEX(('Salesforce Contracts 22nd June'!$A$2:$A$4000=$B36)*(INDEX('Salesforce Contracts 22nd June'!$S$2:$V$4000,,MATCH($AI$1,'Salesforce Contracts 22nd June'!$O$1:$R$1,0))<>""),0),0), MATCH(AI$1,'Salesforce Contracts 22nd June'!$O$1:$R$1,0)), "") ->  | AJ36: =IFERROR( INDEX('Salesforce Contracts 22nd June'!$S$2:$V$4000, MATCH(1,INDEX(('Salesforce Contracts 22nd June'!$A$2:$A$4000=$B36)*(INDEX('Salesforce Contracts 22nd June'!$S$2:$V$4000,,MATCH($AJ$1,'Salesforce Contracts 22nd June'!$O$1:$R$1,0))<>""),0),0), MATCH(AJ$1,'Salesforce Contracts 22nd June'!$O$1:$R$1,0)), "") ->  | AK36: =IFERROR( INDEX('Salesforce Contracts 22nd June'!$S$2:$V$4000, MATCH(1,INDEX(('Salesforce Contracts 22nd June'!$A$2:$A$4000=$B36)*(INDEX('Salesforce Contracts 22nd June'!$S$2:$V$4000,,MATCH($AK$1,'Salesforce Contracts 22nd June'!$O$1:$R$1,0))<>""),0),0), MATCH(AK$1,'Salesforce Contracts 22nd June'!$O$1:$R$1,0)), "") ->  | AL36: =IFERROR( INDEX('Salesforce Contracts 22nd June'!$S$2:$V$4000, MATCH(1,INDEX(('Salesforce Contracts 22nd June'!$A$2:$A$4000=$B36)*(INDEX('Salesforce Contracts 22nd June'!$S$2:$V$4000,,MATCH($AL$1,'Salesforce Contracts 22nd June'!$O$1:$R$1,0))<>""),0),0), MATCH(AL$1,'Salesforce Contracts 22nd June'!$O$1:$R$1,0)), "") -> Agent | AM36: =IFERROR( INDEX('Salesforce Contracts 22nd June'!$O$2:$R$4000, MATCH(1,INDEX(('Salesforce Contracts 22nd June'!$A$2:$A$4000=$B36)*(INDEX('Salesforce Contracts 22nd June'!$O$2:$R$4000,,MATCH($AM$1,'Salesforce Contracts 22nd June'!$O$1:$R$1,0))<>""),0),0), MATCH(AM$1,'Salesforce Contracts 22nd June'!$O$1:$R$1,0)), "") ->  | AN36: =IFERROR( INDEX('Salesforce Contracts 22nd June'!$O$2:$R$4000, MATCH(1,INDEX(('Salesforce Contracts 22nd June'!$A$2:$A$4000=$B36)*(INDEX('Salesforce Contracts 22nd June'!$O$2:$R$4000,,MATCH($AN$1,'Salesforce Contracts 22nd June'!$O$1:$R$1,0))<>""),0),0), MATCH(AN$1,'Salesforce Contracts 22nd June'!$O$1:$R$1,0)), "") ->  | AO36: =IFERROR( INDEX('Salesforce Contracts 22nd June'!$O$2:$R$4000, MATCH(1,INDEX(('Salesforce Contracts 22nd June'!$A$2:$A$4000=$B36)*(INDEX('Salesforce Contracts 22nd June'!$O$2:$R$4000,,MATCH($AO$1,'Salesforce Contracts 22nd June'!$O$1:$R$1,0))<>""),0),0), MATCH(AO$1,'Salesforce Contracts 22nd June'!$O$1:$R$1,0)), "") ->  | AP36: =IFERROR( INDEX('Salesforce Contracts 22nd June'!$O$2:$R$4000, MATCH(1,INDEX(('Salesforce Contracts 22nd June'!$A$2:$A$4000=$B36)*(INDEX('Salesforce Contracts 22nd June'!$O$2:$R$4000,,MATCH($AP$1,'Salesforce Contracts 22nd June'!$O$1:$R$1,0))<>""),0),0), MATCH(AP$1,'Salesforce Contracts 22nd June'!$O$1:$R$1,0)), "") -> LIVE | AQ36: =IFERROR(VLOOKUP(B36,Lookup!Q:R,2,FALSE),"n/a") -> 2020 | AR36: =VLOOKUP(B36,Lookup!L:M,2,FALSE) -> 0 | AS36: =VLOOKUP(B36,Lookup!L:N,3,FALSE) -> (blank)
A37: =VLOOKUP(B:B,'Salesforce Contracts 22nd June'!A:V,8,FALSE) -> Agent | B37: =Lookup!L36 -> BESTAR | C37: =VLOOKUP(B:B,'Salesforce Contracts 22nd June'!A:V,4,FALSE) -> Asia Pacific | D37: =VLOOKUP(B:B,'Salesforce Contracts 22nd June'!A:V,14,FALSE) -> Korea, Republic of | E37: =VLOOKUP(B:B,'Salesforce Contracts 22nd June'!A:V,9,FALSE) -> Sent to Partner | F37: =VLOOKUP(B:B,'Salesforce Contracts 22nd June'!A:V,6,FALSE) -> 2020-01-01 | G37: =VLOOKUP(B:B,'Salesforce Contracts 22nd June'!A:V,7,FALSE) -> 2022-01-01 | H37: Inactive | I37: Inactive | J37: Inactive | K37: Inactive | L37: Inactive | M37: Inactive | N37: =SUMIFS('Enrolment Data 22nd June'!O:O,'Enrolment Data 22nd June'!F:F,B37,'Enrolment Data 22nd June'!P:P,$N$2,'Enrolment Data 22nd June'!N:N,"Yes") -> 0 | O37: =SUMIFS('Enrolment Data 22nd June'!O:O,'Enrolment Data 22nd June'!F:F,B37,'Enrolment Data 22nd June'!P:P,$O$2,'Enrolment Data 22nd June'!N:N,"Yes") -> 0 | P37: 0 | Q37: =SUMIFS('Enrolment Data 22nd June'!O:O,'Enrolment Data 22nd June'!F:F,B37,'Enrolment Data 22nd June'!P:P,$Q$2,'Enrolment Data 22nd June'!N:N,"Yes") -> 0 | R37: =SUMIFS('Enrolment Data 22nd June'!O:O,'Enrolment Data 22nd June'!F:F,B37,'Enrolment Data 22nd June'!P:P,$R$2,'Enrolment Data 22nd June'!N:N,"Yes") -> 0 | S37: 0 | T37: 0 | U37: - | V37: =SUMIFS('Enrolment Data 22nd June'!O:O,'Enrolment Data 22nd June'!F:F,B37,'Enrolment Data 22nd June'!P:P,$V$2,'Enrolment Data 22nd June'!N:N,"Yes") -> 0 | W37: 0 | X37: - | Y37: =SUMIFS('Enrolment Data 22nd June'!O:O,'Enrolment Data 22nd June'!F:F,B37,'Enrolment Data 22nd June'!P:P,$Y$2,'Enrolment Data 22nd June'!N:N,"Yes") -> 0 | Z37: 0 | AA37: =SUMIFS('Enrolment Data 22nd June'!O:O,'Enrolment Data 22nd June'!F:F,B37,'Enrolment Data 22nd June'!P:P,$AA$2,'Enrolment Data 22nd June'!N:N,"Yes") -> 0 | AB37: =SUMIFS('Enrolment Data 22nd June'!O:O,'Enrolment Data 22nd June'!F:F,B37,'Enrolment Data 22nd June'!P:P,$AB$2,'Enrolment Data 22nd June'!N:N,"Yes") -> 0 | AC37: 0 | AD37: 0 | AE37: 0 | AF37: 0 | AG37: 0 | AH37: 2020 | AI37: =IFERROR( INDEX('Salesforce Contracts 22nd June'!$S$2:$V$4000, MATCH(1,INDEX(('Salesforce Contracts 22nd June'!$A$2:$A$4000=$B37)*(INDEX('Salesforce Contracts 22nd June'!$S$2:$V$4000,,MATCH($AI$1,'Salesforce Contracts 22nd June'!$O$1:$R$1,0))<>""),0),0), MATCH(AI$1,'Salesforce Contracts 22nd June'!$O$1:$R$1,0)), "") ->  | AJ37: =IFERROR( INDEX('Salesforce Contracts 22nd June'!$S$2:$V$4000, MATCH(1,INDEX(('Salesforce Contracts 22nd June'!$A$2:$A$4000=$B37)*(INDEX('Salesforce Contracts 22nd June'!$S$2:$V$4000,,MATCH($AJ$1,'Salesforce Contracts 22nd June'!$O$1:$R$1,0))<>""),0),0), MATCH(AJ$1,'Salesforce Contracts 22nd June'!$O$1:$R$1,0)), "") ->  | AK37: =IFERROR( INDEX('Salesforce Contracts 22nd June'!$S$2:$V$4000, MATCH(1,INDEX(('Salesforce Contracts 22nd June'!$A$2:$A$4000=$B37)*(INDEX('Salesforce Contracts 22nd June'!$S$2:$V$4000,,MATCH($AK$1,'Salesforce Contracts 22nd June'!$O$1:$R$1,0))<>""),0),0), MATCH(AK$1,'Salesforce Contracts 22nd June'!$O$1:$R$1,0)), "") ->  | AL37: =IFERROR( INDEX('Salesforce Contracts 22nd June'!$S$2:$V$4000, MATCH(1,INDEX(('Salesforce Contracts 22nd June'!$A$2:$A$4000=$B37)*(INDEX('Salesforce Contracts 22nd June'!$S$2:$V$4000,,MATCH($AL$1,'Salesforce Contracts 22nd June'!$O$1:$R$1,0))<>""),0),0), MATCH(AL$1,'Salesforce Contracts 22nd June'!$O$1:$R$1,0)), "") -> Agent | AM37: =IFERROR( INDEX('Salesforce Contracts 22nd June'!$O$2:$R$4000, MATCH(1,INDEX(('Salesforce Contracts 22nd June'!$A$2:$A$4000=$B37)*(INDEX('Salesforce Contracts 22nd June'!$O$2:$R$4000,,MATCH($AM$1,'Salesforce Contracts 22nd June'!$O$1:$R$1,0))<>""),0),0), MATCH(AM$1,'Salesforce Contracts 22nd June'!$O$1:$R$1,0)), "") ->  | AN37: =IFERROR( INDEX('Salesforce Contracts 22nd June'!$O$2:$R$4000, MATCH(1,INDEX(('Salesforce Contracts 22nd June'!$A$2:$A$4000=$B37)*(INDEX('Salesforce Contracts 22nd June'!$O$2:$R$4000,,MATCH($AN$1,'Salesforce Contracts 22nd June'!$O$1:$R$1,0))<>""),0),0), MATCH(AN$1,'Salesforce Contracts 22nd June'!$O$1:$R$1,0)), "") ->  | AO37: =IFERROR( INDEX('Salesforce Contracts 22nd June'!$O$2:$R$4000, MATCH(1,INDEX(('Salesforce Contracts 22nd June'!$A$2:$A$4000=$B37)*(INDEX('Salesforce Contracts 22nd June'!$O$2:$R$4000,,MATCH($AO$1,'Salesforce Contracts 22nd June'!$O$1:$R$1,0))<>""),0),0), MATCH(AO$1,'Salesforce Contracts 22nd June'!$O$1:$R$1,0)), "") ->  | AP37: =IFERROR( INDEX('Salesforce Contracts 22nd June'!$O$2:$R$4000, MATCH(1,INDEX(('Salesforce Contracts 22nd June'!$A$2:$A$4000=$B37)*(INDEX('Salesforce Contracts 22nd June'!$O$2:$R$4000,,MATCH($AP$1,'Salesforce Contracts 22nd June'!$O$1:$R$1,0))<>""),0),0), MATCH(AP$1,'Salesforce Contracts 22nd June'!$O$1:$R$1,0)), "") -> LIVE | AQ37: =IFERROR(VLOOKUP(B37,Lookup!Q:R,2,FALSE),"n/a") -> 2020 | AR37: =VLOOKUP(B37,Lookup!L:M,2,FALSE) -> 0 | AS37: =VLOOKUP(B37,Lookup!L:N,3,FALSE) -> (blank)
A38: =VLOOKUP(B:B,'Salesforce Contracts 22nd June'!A:V,8,FALSE) -> Agent | B38: =Lookup!L37 -> Better School Internatsberatung GmbH | C38: =VLOOKUP(B:B,'Salesforce Contracts 22nd June'!A:V,4,FALSE) -> GAN Region | D38: =VLOOKUP(B:B,'Salesforce Contracts 22nd June'!A:V,14,FALSE) -> Austria; Germany Netherlands | E38: =VLOOKUP(B:B,'Salesforce Contracts 22nd June'!A:V,9,FALSE) -> Sent to Partner | F38: =VLOOKUP(B:B,'Salesforce Contracts 22nd June'!A:V,6,FALSE) -> 2019-08-01 | G38: =VLOOKUP(B:B,'Salesforce Contracts 22nd June'!A:V,7,FALSE) -> 2021-08-01 | H38: Inactive | I38: Inactive | J38: Inactive | K38: Inactive | L38: Inactive | M38: Inactive | N38: =SUMIFS('Enrolment Data 22nd June'!O:O,'Enrolment Data 22nd June'!F:F,B38,'Enrolment Data 22nd June'!P:P,$N$2,'Enrolment Data 22nd June'!N:N,"Yes") -> 0 | O38: =SUMIFS('Enrolment Data 22nd June'!O:O,'Enrolment Data 22nd June'!F:F,B38,'Enrolment Data 22nd June'!P:P,$O$2,'Enrolment Data 22nd June'!N:N,"Yes") -> 0 | P38: 0 | Q38: =SUMIFS('Enrolment Data 22nd June'!O:O,'Enrolment Data 22nd June'!F:F,B38,'Enrolment Data 22nd June'!P:P,$Q$2,'Enrolment Data 22nd June'!N:N,"Yes") -> 0 | R38: =SUMIFS('Enrolment Data 22nd June'!O:O,'Enrolment Data 22nd June'!F:F,B38,'Enrolment Data 22nd June'!P:P,$R$2,'Enrolment Data 22nd June'!N:N,"Yes") -> 0 | S38: 0 | T38: 0 | U38: - | V38: =SUMIFS('Enrolment Data 22nd June'!O:O,'Enrolment Data 22nd June'!F:F,B38,'Enrolment Data 22nd June'!P:P,$V$2,'Enrolment Data 22nd June'!N:N,"Yes") -> 0 | W38: 0 | X38: - | Y38: =SUMIFS('Enrolment Data 22nd June'!O:O,'Enrolment Data 22nd June'!F:F,B38,'Enrolment Data 22nd June'!P:P,$Y$2,'Enrolment Data 22nd June'!N:N,"Yes") -> 0 | Z38: 0 | AA38: =SUMIFS('Enrolment Data 22nd June'!O:O,'Enrolment Data 22nd June'!F:F,B38,'Enrolment Data 22nd June'!P:P,$AA$2,'Enrolment Data 22nd June'!N:N,"Yes") -> 0 | AB38: =SUMIFS('Enrolment Data 22nd June'!O:O,'Enrolment Data 22nd June'!F:F,B38,'Enrolment Data 22nd June'!P:P,$AB$2,'Enrolment Data 22nd June'!N:N,"Yes") -> 0 | AC38: 0 | AD38: 0 | AE38: 0 | AF38: 0 | AG38: 0 | AH38: 2019 | AI38: =IFERROR( INDEX('Salesforce Contracts 22nd June'!$S$2:$V$4000, MATCH(1,INDEX(('Salesforce Contracts 22nd June'!$A$2:$A$4000=$B38)*(INDEX('Salesforce Contracts 22nd June'!$S$2:$V$4000,,MATCH($AI$1,'Salesforce Contracts 22nd June'!$O$1:$R$1,0))<>""),0),0), MATCH(AI$1,'Salesforce Contracts 22nd June'!$O$1:$R$1,0)), "") ->  | AJ38: =IFERROR( INDEX('Salesforce Contracts 22nd June'!$S$2:$V$4000, MATCH(1,INDEX(('Salesforce Contracts 22nd June'!$A$2:$A$4000=$B38)*(INDEX('Salesforce Contracts 22nd June'!$S$2:$V$4000,,MATCH($AJ$1,'Salesforce Contracts 22nd June'!$O$1:$R$1,0))<>""),0),0), MATCH(AJ$1,'Salesforce Contracts 22nd June'!$O$1:$R$1,0)), "") ->  | AK38: =IFERROR( INDEX('Salesforce Contracts 22nd June'!$S$2:$V$4000, MATCH(1,INDEX(('Salesforce Contracts 22nd June'!$A$2:$A$4000=$B38)*(INDEX('Salesforce Contracts 22nd June'!$S$2:$V$4000,,MATCH($AK$1,'Salesforce Contracts 22nd June'!$O$1:$R$1,0))<>""),0),0), MATCH(AK$1,'Salesforce Contracts 22nd June'!$O$1:$R$1,0)), "") -> Agent | AL38: =IFERROR( INDEX('Salesforce Contracts 22nd June'!$S$2:$V$4000, MATCH(1,INDEX(('Salesforce Contracts 22nd June'!$A$2:$A$4000=$B38)*(INDEX('Salesforce Contracts 22nd June'!$S$2:$V$4000,,MATCH($AL$1,'Salesforce Contracts 22nd June'!$O$1:$R$1,0))<>""),0),0), MATCH(AL$1,'Salesforce Contracts 22nd June'!$O$1:$R$1,0)), "") -> Agent | AM38: =IFERROR( INDEX('Salesforce Contracts 22nd June'!$O$2:$R$4000, MATCH(1,INDEX(('Salesforce Contracts 22nd June'!$A$2:$A$4000=$B38)*(INDEX('Salesforce Contracts 22nd June'!$O$2:$R$4000,,MATCH($AM$1,'Salesforce Contracts 22nd June'!$O$1:$R$1,0))<>""),0),0), MATCH(AM$1,'Salesforce Contracts 22nd June'!$O$1:$R$1,0)), "") ->  | AN38: =IFERROR( INDEX('Salesforce Contracts 22nd June'!$O$2:$R$4000, MATCH(1,INDEX(('Salesforce Contracts 22nd June'!$A$2:$A$4000=$B38)*(INDEX('Salesforce Contracts 22nd June'!$O$2:$R$4000,,MATCH($AN$1,'Salesforce Contracts 22nd June'!$O$1:$R$1,0))<>""),0),0), MATCH(AN$1,'Salesforce Contracts 22nd June'!$O$1:$R$1,0)), "") ->  | AO38: =IFERROR( INDEX('Salesforce Contracts 22nd June'!$O$2:$R$4000, MATCH(1,INDEX(('Salesforce Contracts 22nd June'!$A$2:$A$4000=$B38)*(INDEX('Salesforce Contracts 22nd June'!$O$2:$R$4000,,MATCH($AO$1,'Salesforce Contracts 22nd June'!$O$1:$R$1,0))<>""),0),0), MATCH(AO$1,'Salesforce Contracts 22nd June'!$O$1:$R$1,0)), "") -> LIVE | AP38: =IFERROR( INDEX('Salesforce Contracts 22nd June'!$O$2:$R$4000, MATCH(1,INDEX(('Salesforce Contracts 22nd June'!$A$2:$A$4000=$B38)*(INDEX('Salesforce Contracts 22nd June'!$O$2:$R$4000,,MATCH($AP$1,'Salesforce Contracts 22nd June'!$O$1:$R$1,0))<>""),0),0), MATCH(AP$1,'Salesforce Contracts 22nd June'!$O$1:$R$1,0)), "") -> LIVE | AQ38: =IFERROR(VLOOKUP(B38,Lookup!Q:R,2,FALSE),"n/a") -> 2019 | AR38: =VLOOKUP(B38,Lookup!L:M,2,FALSE) -> 0 | AS38: =VLOOKUP(B38,Lookup!L:N,3,FALSE) -> (blank)
